Workbook

Sheet Quick Start Guide (hidden)
B9: Envision Tomorrow™ Return on Investment Model
B10: ="Version "&ChangeLog!C43&", Updated "&ChangeLog!D43 -> Version v4.04, Updated 1/24/19
B12: What is the ROI Model?
B13: Do you want to examine redevelopment potential in your city, town, or region? Do you want to study the relationship between land use regulations and the current development market?
B14: The ROI Model is a versatile, easy-to-use tool that can be used to test the physical and financial feasibility of a proposed development or existing development regulations. The ROI Model considers a range of factors including parking, height and use requirements, costs associated with construction, fees, rents and subsidies. The ROI Model allows you to model single-use and mixed-use buildings at a range of scales.
B16: Quick Start Guide
B17: A few quick and easy steps will get you started at modeling prototype buildings and testing land use regulations.
B19: 1. Save this file with a new name.
B21: 2. Gather data for use in the ROI Model.
B22: - Existing land use regulations (e.g. parking requirements, height limits, landscaping, setbacks)
B23: - Local estimates for construction costs, rents, sales prices, and land values
B24: - Local tax rates
B26: 3. Select units of measurement and currency.
B27: The ROI Model currently works in metric and imperial units of measurement and up to three different currencies. When toggling between currencies or units, you will be asked to reset the model's default values or proceed with values as entered.
B29: 4. Work through the Physical and Financial tabs.
B30: Using the data you have gathered, enter data into the pink Input Cells of each Input Tab in the ROI Model. If you have questions, the Envision Tomorrow user manual as well as embedded comments (hover over cells with a red corner for more information) are available to provide answers to common questions.
C32: TAB Color Definition
C33: Input Tab
C34: Output Tab
C35: Reference Tab
C37: CELL Color Definition
C38: Input Cell
C39: Header Cell
C40: Subheader Cell
C41: Information cell | D41: [Click for info ◊]
C42: Output Cell | D42: [white]
B44: 5. Make adjustments to create a building that meets your goals.
B45: Completing the ROI Model is an iterative learning process, and you will likely go through several iterations of each prototype building in order to test a variety of assumptions about market conditions, achievable rent, desired building types and sizes, ownership schemes, financing, and regulatory conditions, among many other factors. It is helpful to have a goal or a question to guide your testing.
B46: What building types are feasible in the current market?
B47: What would X (e.g. rent, land cost, financing) need to be in order to achieve a desired building type?
B48: If certain regulatory constraints (e.g. height restrictions, high parking requirements or setbacks) were relaxed or removed, what new building types become possible?

Sheet Readme
D1: MIDDLE HOUSING PRO-FORMA
B5: DRAFT Middle Housing Pro-Forma Tool May 17th, 2023 This pro-forma tool is being developed as part of the Middle Housing Objective Design + Development Standards Toolkit. The pro-forma is still in draft form and has not yet been reviewed in full by the Dept. of Commerce. It is intended to allow users to assess financial feasibility of building prototypes included in the "Optional Chapters" of the ODDS Toolkit. Users may find it helpful to reference the tables below to better understand which building types relate to each "Placetype" and "Overlay Zone" from the ODDS Toolkit. Use the "Dashboard" page to select building prototypes and modify them using orange cells. The "Comparison" tab provides a comparison between the selected prototype and a detached home. The "Assumptions" tab exposes key pro-forma assumptions, many of which are editable. Questions or comments regarding this tool? Contact Mary Reinbold: mary.reinbold@commerce.wa.gov
D18: Relationship of Placetypes ot Toolkit Overlay Zones
B20: Placetypes | D20: NRO.S1 | E20: NRO.S2 | F20: NRO.M1 | G20: NRO.M2
B21: City Center-Adjacent
B22: Main Street-Adjacent Neighborhood
B23: Corridor-Adjacent Neighborhood
B24: Neighborhood Node-Adjacent
B25: Mixed Neighborhood Small Footprint
B26: Mixed Neighborhood Medium Footprint
B27: Mixed Neighborhood Large Footprint
B28: Small-Lot Detached Neighborhood
B29: Large-Lot Detached Neighborhood
D32: Relationship of Toolkit Overlay Zones to Middle Housing Building Types (Table 4.020.A)
B34: Zones | C34: Duplex | D34: Cottage Housing | E34: Triplex | F34: Fourplex | G34: Side Court | H34: Townhouse | I34: Courtyard | J34: Multiplex
B35: NRO.S1
B36: NRO.S2
B37: NRO.M1
B38: NRO.M2

Sheet Dashboard
D1: MIDDLE HOUSING PRO-FORMA
B6: 1. Project Location & Type | F6: Achievable Rents and Sales Prices
B7: County | C7: King
B8: City | C8: Shoreline | F8: ="In "&C8&", the average unit in this project could "&IF(C12="For Rent","rent ","sell ")&IF(VLOOKUP($C$8,Assumptions!$A$98:$F$184,IF($C$12="For Rent",3,5),FALSE)=VLOOKUP($C$8,Assumptions!$A$98:$F$184,IF($C$12="For Rent",4,6),FALSE),"for around:","for between:") -> In Shoreline, the average unit in this project could sell for between:
B9: Placetype | C9: Large_Lot_Detached_Neighborhood
B10: Toolkit Zone | C10: NRO.S.1
B11: Housing Prototype | C11: Duplex
B12: Project Type | C12: For Sale
F13: =IF(VLOOKUP($C$8,Assumptions!$A$98:$F$184,IF($C$12="For Rent",4,6),FALSE)=VLOOKUP($C$8,Assumptions!$A$98:$F$184,IF($C$12="For Rent",3,5),FALSE),TEXT(CEILING(VLOOKUP($C$8,Assumptions!$A$98:$F$184,IF($C$12="For Rent",4,6),FALSE)*C19,10),"$#,##0"),TEXT(CEILING(VLOOKUP($C$8,Assumptions!$A$98:$F$184,IF($C$12="For Rent",3,5),FALSE)*C19,10),"$#,##0")&" and "&TEXT(CEILING(VLOOKUP($C$8,Assumptions!$A$98:$F$184,IF($C$12="For Rent",4,6),FALSE)*C19,10),"$#,##0")) -> $677,260 and $892,750
B14: 2. Project Characteristics
B15: Attribute | C15: Prototype Value | D15: Override
B16: Lot Width | C16: ='Physical Inputs'!B27 -> 45
B17: Lot Depth | C17: ='Physical Inputs'!B29 -> 100
B18: Floors | C18: =PI_BHeight -> 2
B19: Average Unit Size | C19: =Lists!I27 -> 1600
B20: Number of Units | C20: ='Physical Inputs'!B2 -> 2
B21: Required Parking (Spaces/Unit) | C21: =Lists!H27 -> 1
B22: Impact Fees (% of Hard Costs) | C22: =Assumptions!B16 -> 0.05
B23: Development Duration (Months) | C23: =Lists!M27 -> 9
B24: Land Cost ($/Sqft) | C24: =Lists!F27 -> 40
F26: Project Return vs Attainability
B28: 3. Project Feasibility
C29: =IF(C12="For Sale","Sales Price Per Sqft","Avg. Monthly Rent Per Sqft") -> Sales Price Per Sqft | D29: =BF_AvgRent -> 459.5625
C30: =IF(C12="For Sale","Sales Price","Avg. Monthly Rent") -> Sales Price | D30: =IF(C12="For Sale",'Basic Financial'!D55,BF_AvgRent*PI_AvgUnitsize) -> 735300
C31: =IF(C12="For Sale","Project Rate of Return","Project Internal Rate of Return") -> Project Rate of Return | D31: =Lists!G27 -> 0.1973543891
B34: Project Attainability
B35: Financial Surplus (Gap) | C35: =IF(C12="For Sale",'Residential Owner'!D25,'Mixed-Use Summary'!N127) -> -3249.36
B36: Surplus (Gap) Per Unit | C36: =C35/'Physical Outputs'!D39 -> -1624.68
B37: % of AMI | C37: =IF(C12="For Sale",Dashboard!D30/Lists!B62,Dashboard!D30/Lists!B61) -> 1.472771162
B38: Household Type (Ppl/Hhld) | C38: =Lists!B59 -> 4

Sheet Comparison
D1: MIDDLE HOUSING PRO-FORMA
D7: =Assumptions!B32 -> Detached Home | E7: =Dashboard!C11 -> Duplex | F7: Change
C9: Lot Size | D9: =Assumptions!B48*Assumptions!B49 -> 4000 | E9: =Dashboard!C16*Dashboard!C17 -> 4500 | F9: =(E9-D9)/D9 -> 0.125
C10: Lot Price | D10: =D9*Dashboard!C24 -> 160000 | E10: =E9*Dashboard!C24 -> 180000 | F10: =(E10-D10)/D10 -> 0.125
C11: Number of Units | D11: =Assumptions!B34 -> 1 | E11: =Dashboard!C20 -> 2 | F11: =(E11-D11)/D11 -> 1
C12: Average Unit Size | D12: =Assumptions!B44 -> 2500 | E12: =Dashboard!C19 -> 1600 | F12: =(E12-D12)/D12 -> -0.36
C13: =IF(Dashboard!C12="For Sale","Avg. Sale Price / Unit","Avg. Rent / Unit") -> Avg. Sale Price / Unit | D13: =IF(Dashboard!C12="For Rent",8936,1421438) -> 1421438 | E13: =Dashboard!D30 -> 735300 | F13: =(E13-D13)/D13 -> -0.4827069489
C14: ="% of "&CountyLookup&" Co. AMI" -> % of King Co. AMI | D14: =IF(Dashboard!C12="For Sale",((D27+(D26*Dashboard!C24))*Assumptions!B40)/SUMIF(Table1520[Table 12: Affordable Home Price by Household Size],CountyLookup,Table1520[4]),((E27+(E26*Dashboard!C24))*Assumptions!B44)/SUMIF(Table17[Table 11: Affordable Monthly Mortgage or Rent Payment by Household Size],CountyLookup,Table17[4])) -> 2.85024897 | E14: =Dashboard!C37 -> 1.472771162 | F14: =E14-D14 -> -1.377477808
C15: =Dashboard!C31 -> Project Rate of Return | D15: =IF(Dashboard!C12="For Sale",0.2,0.12) -> 0.2 | E15: =Dashboard!D31 -> 0.1973543891 | F15: =E15-D15 -> -0.002645610946
C17: ="Project Return and Attainability: "&Assumptions!B31&" v.s. "&Dashboard!C11 -> Project Return and Attainability: Detached Home v.s. Duplex
D25: Sale | E25: Rent
C26: Slope | D26: 2.094144309 | E26: 0.01315553055
C27: Y-Intercept | D27: 485.4436533 | E27: 3.040640514

Sheet MarketAnalysis (hidden)
A1: King County | B1: Sales Typology | C1: Rental Typology | D1: Median Price PSF | E1: Asking Rent | F1: Land Cost | G1: Development Activity - Sales | H1: Sales Prices | I1: Price Growth | J1: Development Activity - Rental | K1: Occupancy Rate | L1: Rent Growth | M1: Asking Rents
A2: Bellevue | B2: Strong | C2: Strong | D2: 607.6212905 | E2: 2.97 | F2: =VLOOKUP(Table10[[#This Row],[Sales Prices]],Table5[],2,FALSE) -> 85 | G2: High | H2: High | I2: High | J2: Mid-High | K2: Mid-High | L2: Mid-High | M2: High
A3: Bothell | B3: Strong | C3: Strong | D3: 469.0246263 | E3: 2.46 | F3: =VLOOKUP(Table10[[#This Row],[Sales Prices]],Table5[],2,FALSE) -> 45 | G3: High | H3: Mid-High | I3: High | J3: High | K3: Mid-High | L3: Mid-High | M3: Mid-High
A4: Burien | B4: Transitional | C4: Emerging | D4: 416.6666667 | E4: 1.93 | F4: =VLOOKUP(Table10[[#This Row],[Sales Prices]],Table5[],2,FALSE) -> 45 | G4: Mid-High | H4: Mid-High | I4: High | J4: Mid-High | K4: High | L4: High | M4: Low
A5: Kenmore | B5: Transitional | C5: Strong | D5: 460.593654 | E5: 2.46 | F5: =VLOOKUP(Table10[[#This Row],[Sales Prices]],Table5[],2,FALSE) -> 45 | G5: Low-Mid | H5: Mid-High | I5: High | J5: High | K5: Mid-High | L5: Mid-High | M5: Mid-High
A6: Milton | B6: Transitional | C6: Emerging | D6: 324.2473116 | E6: 2.07 | F6: =VLOOKUP(Table10[[#This Row],[Sales Prices]],Table5[],2,FALSE) -> 25 | G6: High | H6: Low-Mid | I6: High | J6: Low | K6: High | L6: High | M6: Low-Mid
A7: Newcastle | B7: Strong | C7: Strong | D7: 584.7953216 | E7: 2.97 | F7: =VLOOKUP(Table10[[#This Row],[Sales Prices]],Table5[],2,FALSE) -> 85 | G7: Mid-High | H7: High | I7: High | J7: Mid-High | K7: High | L7: High | M7: High
A8: Redmond | B8: Strong | C8: Emerging | D8: 615.7635468 | E8: 2.85 | F8: =VLOOKUP(Table10[[#This Row],[Sales Prices]],Table5[],2,FALSE) -> 85 | G8: Mid-High | H8: High | I8: Mid-High | J8: High | K8: Low | L8: Mid-High | M8: High
A9: Renton | B9: Strong | C9: Strong | D9: 445.1612903 | E9: 2.52 | F9: =VLOOKUP(Table10[[#This Row],[Sales Prices]],Table5[],2,FALSE) -> 45 | G9: High | H9: Mid-High | I9: High | J9: Low-Mid | K9: High | L9: High | M9: Mid-High
A10: Seattle | B10: Strong | C10: Emerging | D10: 750 | E10: 3.66 | F10: =VLOOKUP(Table10[[#This Row],[Sales Prices]],Table5[],2,FALSE) -> 85 | G10: High | H10: High | I10: High | J10: High | K10: Low-Mid | L10: Low-Mid | M10: High
A11: Shoreline | B11: Strong | C11: Emerging | D11: 502.9069767 | E11: 2.27 | F11: =VLOOKUP(Table10[[#This Row],[Sales Prices]],Table5[],2,FALSE) -> 85 | G11: High | H11: High | I11: High | J11: High | K11: Mid-High | L11: Mid-High | M11: Low-Mid
A12: Tukwila | B12: Transitional | C12: Emerging | D12: 380.1169591 | E12: 2.35 | F12: =VLOOKUP(Table10[[#This Row],[Sales Prices]],Table5[],2,FALSE) -> 45 | G12: Mid-High | H12: Mid-High | I12: High | J12: Mid-High | K12: High | L12: High | M12: Mid-High
A14: Pierce County | B14: Sales Typology | C14: Rental Typology | D14: Median Price PSF | E14: Asking Rent | F14: Land Cost | G14: Development Activity - Sales | H14: Sales Prices | I14: Price Growth | J14: Development Activity - Rental | K14: Occupancy Rate | L14: Rent Growth | M14: Asking Rents
A15: Eatonville | B15: Static | C15: Emerging | D15: 298.1842504 | E15: 1.55 | F15: =VLOOKUP(Table11[[#This Row],[Sales Prices]],Table5[],3,FALSE) -> 10 | G15: Low | H15: Low | I15: Low | J15: Low | K15: High | L15: Mid-High | M15: Low
A16: Edgewood | B16: Transitional | C16: Static | D16: 310.7923497 | E16: 1.85 | F16: =VLOOKUP(Table11[[#This Row],[Sales Prices]],Table5[],3,FALSE) -> 20 | G16: Low-Mid | H16: Low-Mid | I16: High | J16: Low | K16: Low-Mid | L16: Mid-High | M16: Low
A17: Enumclaw | B17: Emerging | C17: Emerging | D17: 333.006856 | E17: 2.33 | F17: =VLOOKUP(Table11[[#This Row],[Sales Prices]],Table5[],3,FALSE) -> 20 | G17: Low | H17: Low-Mid | I17: Low | J17: Mid-High | K17: Low-Mid | L17: High | M17: Low-Mid
A18: Fife | B18: Transitional | C18: Emerging | D18: 278.8944724 | E18: 1.89 | F18: =VLOOKUP(Table11[[#This Row],[Sales Prices]],Table5[],3,FALSE) -> 10 | G18: High | H18: Low | I18: High | J18: High | K18: Mid-High | L18: Low-Mid | M18: Low
A19: Gig Harbor | B19: Emerging | C19: Static | D19: 357.0099653 | E19: 1.85 | F19: =VLOOKUP(Table11[[#This Row],[Sales Prices]],Table5[],3,FALSE) -> 20 | G19: Low | H19: Low-Mid | I19: Low | J19: Low | K19: Mid-High | L19: Low-Mid | M19: Low
A20: Lakewood | B20: Transitional | C20: Emerging | D20: 295.6480605 | E20: 1.89 | F20: =VLOOKUP(Table11[[#This Row],[Sales Prices]],Table5[],3,FALSE) -> 10 | G20: Mid-High | H20: Low | I20: High | J20: High | K20: Mid-High | L20: Low-Mid | M20: Low
A21: Milton | B21: Transitional | C21: Emerging | D21: 324.2473116 | E21: 2.07 | F21: =VLOOKUP(Table11[[#This Row],[Sales Prices]],Table5[],3,FALSE) -> 20 | G21: High | H21: Low-Mid | I21: High | J21: Low | K21: High | L21: High | M21: Low-Mid
A22: Ruston | B22: Transitional | C22: Emerging | D22: 460.4650776 | E22: 1.89 | F22: =VLOOKUP(Table11[[#This Row],[Sales Prices]],Table5[],3,FALSE) -> 35 | G22: Mid-High | H22: Mid-High | I22: Low-Mid | J22: High | K22: Mid-High | L22: Low-Mid | M22: Low
A23: Tacoma | B23: Transitional | C23: Emerging | D23: 460.4650776 | E23: 1.89 | F23: =VLOOKUP(Table11[[#This Row],[Sales Prices]],Table5[],3,FALSE) -> 35 | G23: Mid-High | H23: Mid-High | I23: High | J23: High | K23: Mid-High | L23: Low-Mid | M23: Low
A24: University Place | B24: Transitional | C24: Emerging | D24: 330.7657454 | E24: 1.89 | F24: =VLOOKUP(Table11[[#This Row],[Sales Prices]],Table5[],3,FALSE) -> 20 | G24: Mid-High | H24: Low-Mid | I24: High | J24: High | K24: Mid-High | L24: Low-Mid | M24: Low
A26: Snohomish County | B26: Sales Typology | C26: Rental Typology | D26: Median Price PSF | E26: Asking Rent | F26: Land Cost | G26: Development Activity - Sales | H26: Sales Prices | I26: Price Growth | J26: Development Activity - Rental | K26: Occupancy Rate | L26: Rent Growth | M26: Asking Rents
A27: Bothell | B27: Strong | C27: Strong | D27: 469.0246263 | E27: 2.46 | F27: =VLOOKUP(Table12[[#This Row],[Sales Prices]],Table5[],4,FALSE) -> 40 | G27: High | H27: Mid-High | I27: High | J27: High | K27: Mid-High | L27: Mid-High | M27: Mid-High
A28: Everett | B28: Strong | C28: Emerging | D28: 375.2941176 | E28: 2.1 | F28: =VLOOKUP(Table12[[#This Row],[Sales Prices]],Table5[],4,FALSE) -> 40 | G28: Mid-High | H28: Mid-High | I28: High | J28: Low-Mid | K28: Mid-High | L28: High | M28: Low-Mid
A29: Mill Creek | B29: Strong | C29: Emerging | D29: 435.1292054 | E29: 2.08 | F29: =VLOOKUP(Table12[[#This Row],[Sales Prices]],Table5[],4,FALSE) -> 40 | G29: Mid-High | H29: Mid-High | I29: High | J29: Low-Mid | K29: Mid-High | L29: Mid-High | M29: Low-Mid
A30: Monroe | B30: Transitional | C30: Emerging | D30: 373.4689797 | E30: 2.08 | F30: =VLOOKUP(Table12[[#This Row],[Sales Prices]],Table5[],4,FALSE) -> 40 | G30: Mid-High | H30: Mid-High | I30: Low-Mid | J30: Low-Mid | K30: Mid-High | L30: Mid-High | M30: Low-Mid
A31: Snohomish | B31: Transitional | C31: Emerging | D31: 383.242692 | E31: 2.08 | F31: =VLOOKUP(Table12[[#This Row],[Sales Prices]],Table5[],4,FALSE) -> 40 | G31: Low | H31: Mid-High | I31: High | J31: Low-Mid | K31: Mid-High | L31: Mid-High | M31: Low-Mid
A32: Snoqualmie | B32: Transitional | C32: Emerging | D32: 456.041736 | E32: 2.33 | F32: =VLOOKUP(Table12[[#This Row],[Sales Prices]],Table5[],4,FALSE) -> 40 | G32: Mid-High | H32: Mid-High | I32: Mid-High | J32: Mid-High | K32: Low-Mid | L32: High | M32: Low-Mid

Sheet Assumptions
A1: Table 1: Construction Cost Assumptions ($/Sqft Hard Costs, Excl. Parking, Site Work) | B1: 1 Unit | C1: 2 Unit | D1: 3 Unit | E1: 4+ Unit | F1: Source | M1: 3bd | N1: 4bd
A2: 4bd | B2: 291 | C2: 248 | D2: 272 | E2: 259 | F2: Various sources including (https://harrisonarchitects.com/how-much-will-it-cost/, RS Means) confirmed and adjusted through local developer interviews | M2: 350 | N2: 325
A3: 3bd | B3: 307 | C3: 261 | D3: 287 | E3: 273 | M3: 325 | N3: 300
A4: 2bd | B4: 324 | C4: 275 | D4: 303 | E4: 287 | M4: 300 | N4: 275
A5: 1bd | B5: 341 | C5: 289 | D5: 318 | E5: 303 | M5: 275 | N5: 250
A6: Studio | B6: 378 | C6: 322 | D6: 354 | E6: 336
A8: Table 2: Parking Cost Assumptions | B8: Cost/Space | C8: Source
A9: Surface | B9: 5000 | C9: https://www.vtpi.org/tca/tca0504.pdf
A10: Internal (Tuck Under or Garage) | B10: 20000
A11: Underground | B11: 30000
A13: Table 3: Miscellaneous Costs | B13: Cost | C13: Basis | D13: Source
A14: Site Work Including Demolition | B14: 50000 | C14: Lump Sum
A15: Taxes | B15: 0.01 | C15: of Hard Costs
A16: Impact Fees | B16: 0.05 | C16: of Hard Costs | D16: City of Seattle / Fehr & Peers
A17: Rental Unit Operating Costs | B17: 0.1 | C17: of GPI
A18: Contingency | B18: 0.05 | C18: of Total Value | D18: Developer Interviews
A19: Development Duration | B19: 9 | C19: Months | D19: Developer Interviews
A21: Table 4: Financial Assumptions | B21: Value
A22: Amortization Period (years) | B22: 30
A23: Interest Rate | B23: 0.06
A24: Terminal Cap Rate | B24: 0.045
A25: GPI Annual Escalation | B25: 0.03
A26: Property Value Annual Escalation | B26: 0.03
A27: Terminal Occupancy Rate | B27: 0.95
A28: For-Sale (Project Rate of Return) | B28: 0.2
A29: For-Rent (IRR on Project Cost) | B29: 0.12
A31: Table 5: Template Building Physical Parameters | B31: Detached Home | C31: Stacked Duplex | D31: Cottage Housing | E31: Triplex | F31: Fourplex | G31: Multiplex | H31: Courtyard Building | I31: Townhouse | J31: Side Court
A32: Project Type | B32: Detached Home | C32: Duplex | D32: Cottage Housing | E32: Triplex | F32: Fourplex | G32: Multiplex | H32: Courtyard Building | I32: Townhouse | J32: Side Court
A33: Levels | B33: 2 | C33: 2 | D33: 1 | E33: 2 | F33: 2 | G33: 2.5 | H33: 2.5 | I33: 2 | J33: 2
A34: Number of Units | B34: 1 | C34: 2 | D34: 5 | E34: 3 | F34: 4 | G34: 8 | H34: 10 | I34: 1 | J34: 6
A35: Studio Units
A36: 1 Bed Units | F36: 4 | G36: 4 | H36: 4 | J36: 3
A37: 2 Bed Units | C37: 0 | D37: 5 | E37: 3 | G37: 4 | H37: 6 | J37: 3
A38: 3 Bed Units | B38: 1 | C38: 2 | I38: 1
A39: 4 Bed Units
A40: Avg Unit Size | B40: 2500 | C40: 1600 | D40: 1000 | E40: 1200 | F40: 800 | G40: 850 | H40: 1040 | I40: 2200 | J40: 900
A41: Studio Unit Size
A42: 1 Bed Unit Size | F42: 800 | G42: 700 | H42: 800 | J42: 800
A43: 2 Bed Unit Size | C43: 1600 | D43: 1000 | E43: 1200 | G43: 1000 | H43: 1200 | J43: 1000
A44: 3 Bed Unit Size | B44: 2500 | I44: 2200
A45: 4 Bed Unit Size
A46: Front Setback | B46: 20 | C46: 10 | D46: 10 | E46: 10 | F46: 5 | G46: 10 | H46: 10 | I46: 0 | J46: 5
A47: Side Setback | B47: 5 | C47: 5 | D47: 5 | E47: 5 | F47: 5 | G47: 5 | H47: 5 | I47: 0 | J47: 5
A48: Lot Width | B48: 40 | C48: 45 | D48: 105 | E48: 45 | F48: 45 | G48: 65 | H48: 95 | I48: 18 | J48: 65
A49: Lot Depth | B49: 100 | C49: 100 | D49: 100 | E49: 110 | F49: 110 | G49: 110 | H49: 110 | I49: 100 | J49: 110
A50: Circulation Area | B50: 0 | C50: 0 | D50: 0 | E50: 0 | F50: 0 | G50: 0 | H50: 0 | I50: 0 | J50: 0.15
A51: Landscaping Outside of Setbacks (% of Lot Area) | B51: 0.18 | C51: 0.08777777778 | D51: 0.05238095238 | E51: 0.04646464646 | F51: 0.05757575758 | G51: -0.1212898213 | H51: -0.05 | I51: 0.06388888889 | J51: -0.09965034965
A52: Parking (Spaces per Unit) | B52: 2 | C52: 1 | D52: 1 | E52: 1 | F52: 1 | G52: 1 | H52: 1 | I52: 1 | J52: 1
A54: Table 6: Land Cost Per Sqft by Sales Price Typology | B54: King | C54: Snohomish | D54: Pierce | E54: Kitsap | F54: Source
A55: Low | B55: 15 | C55: 10 | D55: 10 | E55: 10 | F55: Redfin / Cascadia Partners Market Research
A56: Low-Mid | B56: 25 | C56: 20 | D56: 20 | E56: 15
A57: Mid-High | B57: 45 | C57: 35 | D57: 40 | E57: 35
A58: High | B58: 85 | C58: 65 | D58: 55 | E58: 60
A60: Table 7: Average Sales Price by Sales Typology | B60: Sales Price/Sqft | C60: Source
A61: Low | B61: =AVERAGEIF(MarketAnalysis!H:H,Table6[[#This Row],[Table 7: Average Sales Price by Sales Typology]],MarketAnalysis!D:D) -> 290.9089278 | C61: Redfin / Cascadia Partners Market Research
A62: Low-Mid | B62: =AVERAGEIF(MarketAnalysis!H:H,Table6[[#This Row],[Table 7: Average Sales Price by Sales Typology]],MarketAnalysis!D:D) -> 330.0115899
A63: Mid-High | B63: =AVERAGEIF(MarketAnalysis!H:H,Table6[[#This Row],[Table 7: Average Sales Price by Sales Typology]],MarketAnalysis!D:D) -> 429.5919007
A64: High | B64: =AVERAGEIF(MarketAnalysis!H:H,Table6[[#This Row],[Table 7: Average Sales Price by Sales Typology]],MarketAnalysis!D:D) -> 612.2174271
A66: Table 8: Average Rent by Rental Typology | B66: Asking Rent/Sqft | C66: Source
A67: Low | B67: =AVERAGEIF(MarketAnalysis!M:M,Table69[[#This Row],[Table 8: Average Rent by Rental Typology]],MarketAnalysis!E:E) -> 1.847777778 | C67: Zillow / Cascadia Partners Market Research
A68: Low-Mid | B68: =AVERAGEIF(MarketAnalysis!M:M,Table69[[#This Row],[Table 8: Average Rent by Rental Typology]],MarketAnalysis!E:E) -> 2.156666667
A69: Mid-High | B69: =AVERAGEIF(MarketAnalysis!M:M,Table69[[#This Row],[Table 8: Average Rent by Rental Typology]],MarketAnalysis!E:E) -> 2.45
A70: High | B70: =AVERAGEIF(MarketAnalysis!M:M,Table69[[#This Row],[Table 8: Average Rent by Rental Typology]],MarketAnalysis!E:E) -> 3.1125
A72: Table 9: Mortgage Assumptions | B72: Value
A73: Interest rate | B73: 0.06
A74: Taxes + Insurance | B74: 0.2
A75: Downpayment | B75: 0.1
A77: Table 10: Median Income by Household Size | B77: 1 | C77: 2 | D77: 3 | E77: 4 | F77: Source
A78: King | B78: 94290 | C78: 107760 | D78: 121230 | E78: 134700 | F78: HUD Income Limits 2022
A79: Kitsap | B79: 71750 | C79: 82000 | D79: 92250 | E79: 102500
A80: Pierce | B80: 71260 | C80: 81440 | D80: 91620 | E80: 101800
A81: Snohomish | B81: 94220 | C81: 107680 | D81: 121140 | E81: 134600
A83: Table 11: Affordable Monthly Mortgage or Rent Payment by Household Size | B83: 1 | C83: 2 | D83: 3 | E83: 4
A84: King | B84: =(B78/12)*0.3 -> 2357.25 | C84: 2694 | D84: 3030.75 | E84: 3367.5
A85: Kitsap | B85: 1793.75 | C85: 2050 | D85: 2306.25 | E85: 2562.5
A86: Pierce | B86: 1781.5 | C86: 2036 | D86: 2290.5 | E86: 2545
A87: Snohomish | B87: 2355.5 | C87: 2692 | D87: 3028.5 | E87: 3365
A89: Table 12: Affordable Home Price by Household Size | B89: 1 | C89: 2 | D89: 3 | E89: 4
A90: King | B90: =-PV(Assumptions!$B$73/12,360,B84*(1-Assumptions!$B$74))/(1-Assumptions!$B$75) -> 349484.0294 | C90: =-PV(Assumptions!$B$73/12,360,C84*(1-Assumptions!$B$74))/(1-Assumptions!$B$75) -> 399410.3193 | D90: =-PV(Assumptions!$B$73/12,360,D84*(1-Assumptions!$B$74))/(1-Assumptions!$B$75) -> 449336.6092 | E90: =-PV(Assumptions!$B$73/12,360,E84*(1-Assumptions!$B$74))/(1-Assumptions!$B$75) -> 499262.8991
A91: Kitsap | B91: =-PV(Assumptions!$B$73/12,360,B85*(1-Assumptions!$B$74))/(1-Assumptions!$B$75) -> 265939.9629 | C91: =-PV(Assumptions!$B$73/12,360,C85*(1-Assumptions!$B$74))/(1-Assumptions!$B$75) -> 303931.3862 | D91: =-PV(Assumptions!$B$73/12,360,D85*(1-Assumptions!$B$74))/(1-Assumptions!$B$75) -> 341922.8095 | E91: =-PV(Assumptions!$B$73/12,360,E85*(1-Assumptions!$B$74))/(1-Assumptions!$B$75) -> 379914.2328
A92: Pierce | B92: =-PV(Assumptions!$B$73/12,360,B86*(1-Assumptions!$B$74))/(1-Assumptions!$B$75) -> 264123.7876 | C92: =-PV(Assumptions!$B$73/12,360,C86*(1-Assumptions!$B$74))/(1-Assumptions!$B$75) -> 301855.7572 | D92: =-PV(Assumptions!$B$73/12,360,D86*(1-Assumptions!$B$74))/(1-Assumptions!$B$75) -> 339587.7269 | E92: =-PV(Assumptions!$B$73/12,360,E86*(1-Assumptions!$B$74))/(1-Assumptions!$B$75) -> 377319.6966
A93: Snohomish | B93: =-PV(Assumptions!$B$73/12,360,B87*(1-Assumptions!$B$74))/(1-Assumptions!$B$75) -> 349224.5757 | C93: =-PV(Assumptions!$B$73/12,360,C87*(1-Assumptions!$B$74))/(1-Assumptions!$B$75) -> 399113.8008 | D93: =-PV(Assumptions!$B$73/12,360,D87*(1-Assumptions!$B$74))/(1-Assumptions!$B$75) -> 449003.0259 | E93: =-PV(Assumptions!$B$73/12,360,E87*(1-Assumptions!$B$74))/(1-Assumptions!$B$75) -> 498892.251
A98: Table 13: Sales Price and Rental Rate Ranges | B98: County | C98: Rent_Minimum | D98: Rent_Maximum | E98: Sales_Minimum | F98: Sales_Maximum | G98: Source
A99: Darrington | B99: Snohomish | C99: 2.08 | D99: 2.08 | E99: 273.296 | F99: 273.296 | G99: Rental Data: CoStar
A100: Marysville | B100: Snohomish | C100: 2.08 | D100: 2.08 | E100: 326.3889 | F100: 375.2941 | G100: Sales Data: Redfin
A101: Granite Falls | B101: Snohomish | C101: 2.08 | D101: 2.08 | E101: 340.2579 | F101: 340.2579
A102: Lake Stevens | B102: Snohomish | C102: 2.08 | D102: 2.08 | E102: 326.3889 | F102: 375.2941
A103: Snohomish | B103: Snohomish | C103: 2.08 | D103: 2.08 | E103: 383.2427 | F103: 383.2427
A104: Monroe | B104: Snohomish | C104: 2.08 | D104: 2.08 | E104: 373.469 | F104: 383.2427
A105: Mill Creek | B105: Snohomish | C105: 2.08 | D105: 2.46 | E105: 378.4993 | F105: 435.1292
A106: Sultan | B106: Snohomish | C106: 2.08 | D106: 2.08 | E106: 285.5994 | F106: 373.469
A107: Gold Bar | B107: Snohomish | C107: 2.08 | D107: 2.08 | E107: 285.5994 | F107: 329.3591
A108: Index | B108: Snohomish | C108: 2.08 | D108: 2.08 | E108: 285.5994 | F108: 329.3591
A109: Bothell | B109: Snohomish | C109: 2.46 | D109: 2.46 | E109: 399.4596 | F109: 478.9006
A110: Mountlake Terrace | B110: Snohomish | C110: 2.23 | D110: 2.27 | E110: 399.4596 | F110: 456.7731
A111: Skykomish | B111: King | C111: 2.33 | D111: 2.33 | E111: 553.2837 | F111: 553.2837
A112: Clyde Hill | B112: King | C112: 2.87 | D112: 2.97 | E112: 758.6187 | F112: 1175.515
A113: Bremerton | B113: Kitsap | C113: 2 | D113: 2.17 | E113: 270.2276 | F113: 290.404
A114: Fife | B114: Pierce | C114: 1.85 | D114: 1.89 | E114: 278.8945 | F114: 324.2473
A115: Edgewood | B115: Pierce | C115: 1.85 | D115: 2.07 | E115: 278.8945 | F115: 324.3838
A116: Pacific | B116: Pierce | C116: 1.85 | D116: 1.9 | E116: 301.3132 | F116: 335.5369
A117: Auburn | B117: Pierce | C117: 1.85 | D117: 1.85 | E117: 297.3933 | F117: 335.5369
A118: Buckley | B118: Pierce | C118: 1.55 | D118: 2.33 | E118: 303.1314 | F118: 333.0069
A119: South Prairie | B119: Pierce | C119: 1.55 | D119: 1.85 | E119: 262.0087 | F119: 413.6905
A120: Roy | B120: Pierce | C120: 1.55 | D120: 2 | E120: 309.1655 | F120: 309.1655
A121: Bainbridge Island | B121: Kitsap | C121: 2.57 | D121: 2.57 | E121: 537.1846 | F121: 537.1846
A122: Poulsbo | B122: Kitsap | C122: 2.03 | D122: 2.03 | E122: 320.5362 | F122: 320.5362
A123: Port Orchard | B123: Kitsap | C123: 2.09 | D123: 2.09 | E123: 284.7754 | F123: 290.404
A124: Brier | B124: Snohomish | C124: 2.23 | D124: 2.23 | E124: 399.4596 | F124: 469.0246
A125: Woodway | B125: Snohomish | C125: 2.23 | D125: 2.27 | E125: 502.907 | F125: 557.9632
A126: Edmonds | B126: Snohomish | C126: 2.23 | D126: 2.27 | E126: 399.4596 | F126: 557.9632
A127: Everett | B127: Snohomish | C127: 2.08 | D127: 2.1 | E127: 326.3889 | F127: 416.5978
A128: Stanwood | B128: Snohomish | C128: 2.08 | D128: 2.08 | E128: 355.1724 | F128: 355.1724
A129: Arlington | B129: Snohomish | C129: 2.08 | D129: 2.08 | E129: 336.7003 | F129: 349.2763
A130: Shoreline | B130: King | C130: 2.23 | D130: 2.46 | E130: 423.2821 | F130: 557.9632
A131: Kirkland | B131: King | C131: 2.46 | D131: 2.97 | E131: 460.5937 | F131: 942.48
A132: Bothell | B132: King | C132: 2.46 | D132: 2.46 | E132: 460.5937 | F132: 526.7488
A133: Kenmore | B133: King | C133: 2.23 | D133: 2.87 | E133: 399.4596 | F133: 526.7488
A134: Redmond | B134: King | C134: 2.33 | D134: 2.97 | E134: 526.7488 | F134: 758.6187
A135: Sammamish | B135: King | C135: 2.33 | D135: 2.85 | E135: 456.0417 | F135: 640.1719
A136: Yarrow Point | B136: King | C136: 2.87 | D136: 2.97 | E136: 758.6187 | F136: 942.48
A137: Hunts Point | B137: King | C137: 2.97 | D137: 2.97 | E137: 942.48 | F137: 1175.515
A138: Medina | B138: King | C138: 2.97 | D138: 2.97 | E138: 942.48 | F138: 1175.515
A139: Bellevue | B139: King | C139: 2.52 | D139: 2.97 | E139: 428.2686 | F139: 1175.515
A140: Issaquah | B140: King | C140: 2.33 | D140: 2.52 | E140: 528.1403 | F140: 640.1719
A141: Beaux Arts | B141: King | C141: 2.97 | D141: 2.97 | E141: 942.48 | F141: 942.48
A142: Newcastle | B142: King | C142: 2.35 | D142: 2.97 | E142: 428.2686 | F142: 584.7953
A143: Lake Forest Park | B143: King | C143: 2.23 | D143: 2.46 | E143: 399.4596 | F143: 473.1904
A144: Woodinville | B144: King | C144: 2.08 | D144: 2.87 | E144: 478.9006 | F144: 615.7635
A145: Duvall | B145: King | C145: 2.33 | D145: 2.33 | E145: 394.4954 | F145: 394.4954
A146: Carnation | B146: King | C146: 2.33 | D146: 2.33 | E146: 431.0345 | F146: 431.0345
A147: Snoqualmie | B147: King | C147: 2.33 | D147: 2.33 | E147: 453.7037 | F147: 456.9547
A148: North Bend | B148: King | C148: 2.33 | D148: 2.33 | E148: 453.7037 | F148: 456.9547
A149: Burien | B149: King | C149: 1.93 | D149: 2.4 | E149: 321.1382 | F149: 416.6667
A150: Seattle | B150: King | C150: 1.93 | D150: 3.66 | E150: 321.1382 | F150: 1175.515
A151: SeaTac | B151: King | C151: 1.93 | D151: 2.4 | E151: 312.3289 | F151: 381.1391
A152: Normandy Park | B152: King | C152: 1.93 | D152: 1.93 | E152: 363.1328 | F152: 395.9749
A153: Des Moines | B153: King | C153: 1.93 | D153: 2.14 | E153: 302.3256 | F153: 381.1391
A154: Kent | B154: King | C154: 1.9 | D154: 2.52 | E154: 299.7859 | F154: 365.4605
A155: Federal Way | B155: King | C155: 1.85 | D155: 2.07 | E155: 299.7859 | F155: 363.1328
A156: Auburn | B156: King | C156: 1.85 | D156: 2.52 | E156: 297.3933 | F156: 357.5684
A157: Algona | B157: King | C157: 1.9 | D157: 1.9 | E157: 299.7859 | F157: 335.5369
A158: Pacific | B158: King | C158: 1.85 | D158: 1.9 | E158: 299.7859 | F158: 335.5369
A159: Milton | B159: King | C159: 1.85 | D159: 2.07 | E159: 299.7859 | F159: 324.2473
A160: Covington | B160: King | C160: 2.14 | D160: 2.52 | E160: 323.9731 | F160: 365.4605
A161: Maple Valley | B161: King | C161: 2.33 | D161: 2.33 | E161: 323.9731 | F161: 441.0726
A162: Black Diamond | B162: King | C162: 2.33 | D162: 2.33 | E162: 310.8889 | F162: 365.4605
A163: Enumclaw | B163: King | C163: 2.33 | D163: 2.33 | E163: 333.0069 | F163: 333.0069
A164: Tacoma | B164: Pierce | C164: 1.85 | D164: 1.89 | E164: 278.8945 | F164: 460.4651
A165: Puyallup | B165: Pierce | C165: 1.85 | D165: 1.85 | E165: 274.3142 | F165: 310.7923
A166: Sumner | B166: Pierce | C166: 1.85 | D166: 1.85 | E166: 297.3933 | F166: 335.5369
A167: Bonney Lake | B167: Pierce | C167: 1.85 | D167: 1.85 | E167: 297.3933 | F167: 324.3838
A168: Steilacoom | B168: Pierce | C168: 1.89 | D168: 2 | E168: 283.4762 | F168: 333.8366
A169: DuPont | B169: Pierce | C169: 2 | D169: 2 | E169: 265.5486 | F169: 265.5486
A170: University Place | B170: Pierce | C170: 1.89 | D170: 1.89 | E170: 283.4762 | F170: 339.8876
A171: Lakewood | B171: Pierce | C171: 1.85 | D171: 2 | E171: 283.4762 | F171: 333.8366
A172: Fircrest | B172: Pierce | C172: 1.89 | D172: 1.89 | E172: 300.4622 | F172: 339.8876
A173: Ruston | B173: Pierce | C173: 1.89 | D173: 1.89 | E173: 440.552 | F173: 440.552
A174: Gig Harbor | B174: Pierce | C174: 1.85 | D174: 1.85 | E174: 350.0368 | F174: 357.01
A175: Wilkeson | B175: Pierce | C175: 1.55 | D175: 1.55 | E175: 303.1314 | F175: 332.7516
A176: Carbonado | B176: Pierce | C176: 1.55 | D176: 1.55 | E176: 303.1314 | F176: 332.7516
A177: Orting | B177: Pierce | C177: 1.85 | D177: 1.85 | E177: 262.0087 | F177: 297.3933
A178: Eatonville | B178: Pierce | C178: 1.55 | D178: 1.55 | E178: 298.1843 | F178: 298.1843
A179: Milton | B179: Pierce | C179: 1.85 | D179: 2.07 | E179: 278.8945 | F179: 324.2473
A180: Renton | B180: King | C180: 2.14 | D180: 2.52 | E180: 339.3046 | F180: 445.1613
A181: Tukwila | B181: King | C181: 1.93 | D181: 2.5 | E181: 312.3289 | F181: 485.2071
A182: Mercer Island | B182: King | C182: 2.97 | D182: 2.97 | E182: 806.7391 | F182: 806.7391
A183: Mukilteo | B183: Snohomish | C183: 2.1 | D183: 2.23 | E183: 351.3819 | F183: 425.2401
A184: Lynnwood | B184: Snohomish | C184: 2.23 | D184: 2.23 | E184: 381.6794 | F184: 425.2401

Sheet Lists (hidden)
A1: Project Type Selection
A3: Middle Housing Type | B3: Single-Family Detached | C3: Duplex | D3: Cottage Housing | E3: Triplex | F3: Fourplex | G3: Multiplex | H3: Courtyard Building | I3: Townhouse | J3: Side Court
A4: ET Pro Forma Type | B4: Single Family | C4: Semi-Detached / Townhome | D4: Single Family | E4: Semi-Detached / Townhome | F4: Semi-Detached / Townhome | G4: Multifamily | H4: Multifamily | I4: Semi-Detached / Townhome | J4: Semi-Detached / Townhome
A5: Renter or Owner | B5: Rental | C5: Ownership
A13: Regional Market Values | B13: Median Sales PSF | C13: Median Rent PSF | D13: Land Cost / Sqft
A14: Min | B14: =MIN(MarketAnalysis!D:D) -> 278.8944724 | C14: =MIN(MarketAnalysis!E:E) -> 1.55 | D14: =MIN(MarketAnalysis!F:F) -> 10
A15: Low | B15: =MAX(IF(MarketAnalysis!$H:$H=Lists!$A15,MarketAnalysis!D:D)) -> 298.1842504 | C15: =MAX(IF(MarketAnalysis!$M:$M=Lists!$A15,MarketAnalysis!E:E)) -> 1.93 | D15: =MAX(IF(MarketAnalysis!$H:$H=Lists!$A15,MarketAnalysis!F:F)) -> 10
A16: Low-Mid | B16: =MIN(IF(MarketAnalysis!$H:$H=Lists!$A16,MarketAnalysis!D:D)) -> 310.7923497 | C16: =MIN(IF(MarketAnalysis!$M:$M=Lists!$A16,MarketAnalysis!E:E)) -> 2.07 | D16: =MIN(IF(MarketAnalysis!$H:$H=Lists!$A16,MarketAnalysis!F:F)) -> 20
A17: Low-Mid | B17: =MAX(IF(MarketAnalysis!$H:$H=Lists!$A17,MarketAnalysis!D:D)) -> 357.0099653 | C17: =MAX(IF(MarketAnalysis!$M:$M=Lists!$A17,MarketAnalysis!E:E)) -> 2.33 | D17: =MAX(IF(MarketAnalysis!$H:$H=Lists!$A17,MarketAnalysis!F:F)) -> 25
A18: Mid-High | B18: =MIN(IF(MarketAnalysis!$H:$H=Lists!$A18,MarketAnalysis!D:D)) -> 373.4689797 | C18: =MIN(IF(MarketAnalysis!$M:$M=Lists!$A18,MarketAnalysis!E:E)) -> 2.35 | D18: =MIN(IF(MarketAnalysis!$H:$H=Lists!$A18,MarketAnalysis!F:F)) -> 35
A19: Mid-High | B19: =MAX(IF(MarketAnalysis!$H:$H=Lists!$A19,MarketAnalysis!D:D)) -> 469.0246263 | C19: =MAX(IF(MarketAnalysis!$M:$M=Lists!$A19,MarketAnalysis!E:E)) -> 2.52 | D19: =MAX(IF(MarketAnalysis!$H:$H=Lists!$A19,MarketAnalysis!F:F)) -> 45
A20: High | B20: =MIN(IF(MarketAnalysis!$H:$H=Lists!$A20,MarketAnalysis!D:D)) -> 502.9069767 | C20: =MIN(IF(MarketAnalysis!$M:$M=Lists!$A20,MarketAnalysis!E:E)) -> 2.85 | D20: =MIN(IF(MarketAnalysis!$H:$H=Lists!$A20,MarketAnalysis!F:F)) -> 85
A21: Max | B21: =MAX(MarketAnalysis!D:D) -> 750 | C21: =MAX(MarketAnalysis!E:E) -> 3.66 | D21: =MAX(MarketAnalysis!F:F) -> 85
A26: Current Selection | B26: Slider Value | C26: Sales Price | D26: 1 Bed Rental Rate | E26: Shared Driveway | F26: Land Cost | G26: Return | H26: Parking | I26: Unit Size | J26: Landsape Override | K26: Floors | L26: Impact Fees | M26: Dev Duration | N26: Max Rent or Sale | O26: Lot Width | P26: Lot Depth | Q26: Front SB | R26: Side SB
B27: 45 | C27: =IF(Dashboard!C12="For Sale",Dashboard!D29,0) -> 459.5625 | D27: =IF(Dashboard!C12="For Sale",200+(7.5*Lists!B27),1.5+(0.02415*Lists!B27)) -> 537.5 | E27: =HLOOKUP(Dashboard!C11,Assumptions!B32:J50,19,FALSE) -> 0 | F27: =IF(Dashboard!D24<>"",Dashboard!D24,40) -> 40 | G27: =IF(Dashboard!C12="For Sale",'Residential Owner'!E17,BF_ActReturnRenter) -> 0.1973543891 | H27: =IF(Dashboard!D21<>"",Dashboard!D21,Preset_Parking) -> 1 | I27: =IF(Dashboard!D19<>"",Dashboard!D19,Preset_UnitSz) -> 1600 | K27: =IF(Dashboard!D18<>"",Dashboard!D18,Preset_Ht) -> 2 | L27: =IF(Dashboard!D22<>"",Dashboard!D22,Assumptions!B16) -> 0.05 | M27: =IF(Dashboard!D23<>"",Dashboard!D23,Assumptions!B19) -> 9 | N27: =IF(Dashboard!C12="For Rent",VLOOKUP(Dashboard!C8,Assumptions!A98:F184,4,FALSE),VLOOKUP(Dashboard!C8,Assumptions!A98:F184,6,FALSE)) -> 557.9632 | O27: =IF(Dashboard!D16<>"",Dashboard!D16,Preset_LotW) -> 45 | P27: =IF(Dashboard!D17<>"",Dashboard!D17,Preset_LotD) -> 100 | Q27: =Preset_FSb -> 10 | R27: =Preset_SSb -> 5
A30: AMI Chart Inputs | B30: Return Threshold Trendline
B31: =IF(Dashboard!C12="For Sale",Assumptions!B28,Assumptions!B29) -> 0.2 | C31: 0
B32: =B31 -> 0.2 | C32: 5
A36: Project Type Inputs
A37: Levels | B37: =SUMIF(Assumptions!$B$32:$J$32,Dashboard!$C$11,Assumptions!$B33:$JI33) -> 2
A38: Number of Units | B38: =SUMIF(Assumptions!$B$32:$J$32,Dashboard!$C$11,Assumptions!$B34:$JI34) -> 2
A39: Studio Units | B39: =SUMIF(Assumptions!$B$32:$J$32,Dashboard!$C$11,Assumptions!$B35:$JI35) -> 0
A40: 1 Bed Units | B40: =SUMIF(Assumptions!$B$32:$J$32,Dashboard!$C$11,Assumptions!$B36:$JI36) -> 0
A41: 2 Bed Units | B41: =SUMIF(Assumptions!$B$32:$J$32,Dashboard!$C$11,Assumptions!$B37:$JI37) -> 0
A42: 3 Bed Units | B42: =SUMIF(Assumptions!$B$32:$J$32,Dashboard!$C$11,Assumptions!$B38:$JI38) -> 2
A43: 4 Bed Units | B43: =SUMIF(Assumptions!$B$32:$J$32,Dashboard!$C$11,Assumptions!$B39:$JI39) -> 0
A44: Unit Size | B44: =SUMIF(Assumptions!$B$32:$J$32,Dashboard!$C$11,Assumptions!$B40:$JI40) -> 1600
A45: Studio Unit Size | B45: =SUMIF(Assumptions!$B$32:$J$32,Dashboard!$C$11,Assumptions!$B41:$JI41) -> 0
A46: 1 Bed Unit Size | B46: =SUMIF(Assumptions!$B$32:$J$32,Dashboard!$C$11,Assumptions!$B42:$JI42) -> 0
A47: 2 Bed Unit Size | B47: =SUMIF(Assumptions!$B$32:$J$32,Dashboard!$C$11,Assumptions!$B43:$JI43) -> 1600
A48: 3 Bed Unit Size | B48: =SUMIF(Assumptions!$B$32:$J$32,Dashboard!$C$11,Assumptions!$B44:$JI44) -> 0
A49: 4 Bed Unit Size | B49: =SUMIF(Assumptions!$B$32:$J$32,Dashboard!$C$11,Assumptions!$B45:$JI45) -> 0
A50: Front Setback | B50: =SUMIF(Assumptions!$B$32:$J$32,Dashboard!$C$11,Assumptions!$B46:$JI46) -> 10
A51: Side Setback | B51: =SUMIF(Assumptions!$B$32:$J$32,Dashboard!$C$11,Assumptions!$B47:$JI47) -> 5
A52: Lot Width | B52: =SUMIF(Assumptions!$B$32:$J$32,Dashboard!$C$11,Assumptions!$B48:$JI48) -> 45
A53: Lot Depth | B53: =SUMIF(Assumptions!$B$32:$J$32,Dashboard!$C$11,Assumptions!$B49:$JI49) -> 100
A54: Extra Landscaping | B54: =IF(J27<>"",J27,SUMIF(Assumptions!$B$32:$J$32,Dashboard!$C$11,Assumptions!$B51:$J51)) -> 0.08777777778
A55: Parking | B55: =SUMIF(Assumptions!$B$32:$J$32,Dashboard!$C$11,Assumptions!$B52:$J52) -> 1
A58: AMI Inputs
A59: Fam Size | B59: =IF(ROUNDUP(PI_AvgUnitsize/400,0)>4,4,ROUNDUP(PI_AvgUnitsize/400,0)) -> 4
A60: County | B60: =CountyLookup -> King
A61: Max Monthly Payment | B61: =IF(B59=1,SUMIF(Table17[Table 11: Affordable Monthly Mortgage or Rent Payment by Household Size],Lists!B60,Table17[1]),IF(Lists!B59=2,SUMIF(Table17[Table 11: Affordable Monthly Mortgage or Rent Payment by Household Size],Lists!B60,Table17[2]),IF(Lists!B59=3,SUMIF(Table17[Table 11: Affordable Monthly Mortgage or Rent Payment by Household Size],Lists!B60,Table17[3]),SUMIF(Table17[Table 11: Affordable Monthly Mortgage or Rent Payment by Household Size],Lists!B60,Table17[4])))) -> 3367.5
A62: Max Home Price | B62: =IF(B59=1,SUMIF(Table17[Table 11: Affordable Monthly Mortgage or Rent Payment by Household Size],Lists!B60,Table1520[1]),IF(Lists!B59=2,SUMIF(Table17[Table 11: Affordable Monthly Mortgage or Rent Payment by Household Size],Lists!B60,Table1520[2]),IF(Lists!B59=3,SUMIF(Table17[Table 11: Affordable Monthly Mortgage or Rent Payment by Household Size],Lists!B60,Table1520[3]),SUMIF(Table17[Table 11: Affordable Monthly Mortgage or Rent Payment by Household Size],Lists!B60,Table1520[4])))) -> 499262.8991
A65: City List
A66: Skykomish | B66: King
A67: Clyde Hill | B67: King
A68: Shoreline | B68: King
A69: Kirkland | B69: King
A70: Bothell | B70: King
A71: Kenmore | B71: King
A72: Redmond | B72: King
A73: Sammamish | B73: King
A74: Yarrow Point | B74: King
A75: Hunts Point | B75: King
A76: Medina | B76: King
A77: Bellevue | B77: King
A78: Issaquah | B78: King
A79: Beaux Arts | B79: King
A80: Newcastle | B80: King
A81: Lake Forest Park | B81: King
A82: Woodinville | B82: King
A83: Duvall | B83: King
A84: Carnation | B84: King
A85: Snoqualmie | B85: King
A86: North Bend | B86: King
A87: Burien | B87: King
A88: Seattle | B88: King
A89: SeaTac | B89: King
A90: Normandy Park | B90: King
A91: Des Moines | B91: King
A92: Kent | B92: King
A93: Federal Way | B93: King
A94: Auburn | B94: King
A95: Algona | B95: King
A96: Pacific | B96: King
A97: Milton | B97: King
A98: Covington | B98: King
A99: Maple Valley | B99: King
A100: Black Diamond | B100: King
A101: Enumclaw | B101: King
A102: Renton | B102: King
A103: Tukwila | B103: King
A104: Mercer Island | B104: King
A105: Bremerton | B105: Kitsap
A106: Bainbridge Island | B106: Kitsap
A107: Poulsbo | B107: Kitsap
A108: Port Orchard | B108: Kitsap
A109: Fife | B109: Pierce
A110: Edgewood | B110: Pierce
A111: Pacific | B111: Pierce
A112: Auburn | B112: Pierce
A113: Buckley | B113: Pierce
A114: South Prairie | B114: Pierce
A115: Roy | B115: Pierce
A116: Tacoma | B116: Pierce
A117: Puyallup | B117: Pierce
A118: Sumner | B118: Pierce
A119: Bonney Lake | B119: Pierce
A120: Steilacoom | B120: Pierce
A121: DuPont | B121: Pierce
A122: University Place | B122: Pierce
A123: Lakewood | B123: Pierce
A124: Fircrest | B124: Pierce
A125: Ruston | B125: Pierce
A126: Gig Harbor | B126: Pierce
A127: Wilkeson | B127: Pierce
A128: Carbonado | B128: Pierce
A129: Orting | B129: Pierce
A130: Eatonville | B130: Pierce
A131: Milton | B131: Pierce
A132: Darrington | B132: Snohomish
A133: Marysville | B133: Snohomish
A134: Granite Falls | B134: Snohomish
A135: Lake Stevens | B135: Snohomish
A136: Snohomish | B136: Snohomish
A137: Monroe | B137: Snohomish
A138: Mill Creek | B138: Snohomish
A139: Sultan | B139: Snohomish
A140: Gold Bar | B140: Snohomish
A141: Index | B141: Snohomish
A142: Bothell | B142: Snohomish
A143: Mountlake Terrace | B143: Snohomish
A144: Brier | B144: Snohomish
A145: Woodway | B145: Snohomish
A146: Edmonds | B146: Snohomish
A147: Everett | B147: Snohomish
A148: Stanwood | B148: Snohomish
A149: Arlington | B149: Snohomish
A150: Mukilteo | B150: Snohomish
A151: Lynnwood | B151: Snohomish
A154: Placetypes
A155: City_Center_Adjacent | B155: NRO.M2
A156: Main_Street_Adjacent_Neighborhood | B156: NRO.M2 | C156: NRO.M1
A157: Corridor_Adjacent_Neighborhood | B157: NRO.M1 | C157: NRO.S.2
A158: Neighborhood_Node_Adjacent | B158: NRO.M1
A159: Mixed_Neighborhood_Small_Footprint | B159: NRO.M1 | C159: NRO.S.2
A160: Mixed_Neighborhood_Medium_Footprint | B160: NRO.M1
A161: Mixed_Neighborhood_Large_Footprint | B161: NRO.M1 | C161: NRO.M2
A162: Small_Lot_Detached_Neighborhood | B162: NRO.S.1
A163: Large_Lot_Detached_Neighborhood | B163: NRO.S.1
A166: Zones
A167: NRO.M2 | B167: Triplex | C167: Fourplex | D167: Townhouse | E167: Courtyard Building | F167: Multiplex | G167: Side Court
A168: NRO.M1 | B168: Triplex | C168: Fourplex | D168: Townhouse | E168: Courtyard Building | F168: Multiplex | G168: Side Court
A169: NRO.S.2 | B169: Duplex | C169: Cottage Housing | D169: Triplex | E169: Fourplex | F169: Townhouse | G169: Side Court
A170: NRO.S.1 | B170: Duplex | C170: Cottage Housing | D170: Triplex | E170: Fourplex

Sheet Physical Inputs (hidden)
A1: Physical Stats
A2: Housing Units / Hotel Rooms | B2: ='Physical Outputs'!D39 -> 2
A3: Jobs | B3: ='Physical Outputs'!E39 -> 0
A4: ="Net Rentable/Sellable "&'Metric Translation'!B7 -> Net Rentable/Sellable Square Feet | B4: ='Physical Outputs'!C39-'Physical Outputs'!C38 -> 3200
A5: ="Housing / Hotel Room Density (Per "&'Metric Translation'!B10&")" -> Housing / Hotel Room Density (Per Acre) | B5: ='Physical Outputs'!F39 -> 19.36
A6: ="Job Density (Per "&'Metric Translation'!B10&")" -> Job Density (Per Acre) | B6: ='Physical Outputs'!G39 -> 0
A7: FAR ◊ | B7: ='Physical Outputs'!B39/'Physical Inputs'!B34 -> 0.7111111111
A8: FAR (Excluding Internal Parking) | B8: =SUM('Physical Outputs'!B29:B35)/'Physical Inputs'!B34 -> 0.7111111111
A9: Financial Stats
A10: Rental (Residential and Commercial) | B10: Target Return | C10: Actual Return
A11: IRR on Project Cost (Unleveraged Return) | B11: ='Mixed-Use Summary'!N6 -> 0.12 | C11: ='Mixed-Use Summary'!P6 -> 0
A12: Cash-on-Cash (After Year 3) | B12: ='Mixed-Use Summary'!N5 -> 0.12 | C12: ='Mixed-Use Summary'!P5 -> 0
A13: IRR on Investor Equity (Leveraged Return Before Tax) | B13: ='Mixed-Use Summary'!N7 -> 0.25 | C13: ='Mixed-Use Summary'!P7 -> 0
A14: Debt Service Coverage Ratio (Year 3) | B14: ='Mixed-Use Summary'!N8 -> 1.25 | C14: ='Mixed-Use Summary'!P8 -> 0
A15: IRR on Public Participation | B15: ='Mixed-Use Summary'!N9 -> 0.05 | C15: ='Mixed-Use Summary'!P9 -> 0
A16: Owner Residential | B16: Target Return | C16: Actual Return
A17: Project Rate of Return | B17: ='Mixed-Use Summary'!T5 -> 0.2 | C17: =IF('Physical Inputs'!$B$42="Owner",'Mixed-Use Summary'!V5,"N/A") -> 0.1973543891
A18: Return to Equity | B18: ='Mixed-Use Summary'!T6 -> 0.75 | C18: =IF('Physical Inputs'!$B$42="Owner",'Mixed-Use Summary'!V6,"N/A") -> 0.9867719453
A19: Physical Inputs
A20: Project Info | D20: Balance to Unit Target ◊
A21: Building Name ◊ | B21: Brampton - New Build Duplex
A22: Units of Measurement | B22: US Customary
A23: Currency | B23: USD
A24: Project Location ◊ | B24: Puget Sound, WA | D24: Unit Target: | E24: =Dashboard!D20 -> 0
A26: Lot Dimesions (Optional) | B26: ="Lot Dimensions ("&'Metric Translation'!B7&")" -> Lot Dimensions (Square Feet) | C26: ="Setbacks ("&'Metric Translation'!B7&")" -> Setbacks (Square Feet) | D26: ="Landscaped Area ("&'Metric Translation'!B6&")" -> Landscaped Area (ft) | E26: Pervious %
A27: Front | B27: =Lists!O27 -> 45 | C27: =Lists!Q27 -> 10 | D27: =B27*C27*E27 -> 450 | E27: 1
A28: Rear | B28: =B27 -> 45 | C28: 15 | D28: =B28*C28*E28 -> 675 | E28: 1
A29: Left | B29: =Lists!P27 -> 100 | C29: =Lists!R27 -> 5 | D29: =(((B29-(C27+C28))*C29))*E29 -> 375 | E29: 1
A30: Right | B30: =B29 -> 100 | C30: =C29 -> 5 | D30: =(((B30-(C27+C28))*C30))*E30 -> 375 | E30: 1
A31: Calculated Total | B31: =AVERAGE(B27:B28)*AVERAGE(B29:B30) -> 4500 | D31: =SUMPRODUCT(D27:D30,E27:E30) -> 1875 | E31: =D31/B31 -> 0.4166666667
A33: Site Characteristics | B33: Renter | E33: Apply Lot Dimensions ◊
A34: Site area ◊ | B34: =PI_CalcLotSize -> 4500 | C34: =IF('Physical Inputs'!B22="Metric",PI_SiteArea/10000,'Physical Inputs'!B34/43560) -> 0.1033057851 | D34: ='Metric Translation'!B4&" / "&'Metric Translation'!B12 -> square feet / acres
A35: Site net-to-gross ratio ◊ | B35: =1-Lists!E27 -> 1 | C35: =(1-PI_GrossToNet)*PI_SiteArea -> 0 | D35: ="percent / "&'Metric Translation'!B4 -> percent / square feet
A36: Landscaping ◊ | B36: =PI_CalcLandscape+Preset_ExLandscp -> 0.5044444444 | C36: =PI_SiteArea*PI_LandscapePct -> 2270 | D36: ="percent / "&'Metric Translation'!B4 -> percent / square feet
A37: ="Building height ("&'Metric Translation'!B18&")" -> Building height (stories) | B37: =Lists!K27 -> 2 | C37: =PO_BuildingFootprint -> 1600 | D37: ="ground floor "&'Metric Translation'!B4 -> ground floor square feet
A38: Under-build ◊ | B38: 1 | C38: ='Physical Outputs'!B39 -> 3200 | D38: gross building area
A40: Building Uses ◊
A41: Residential | B41: =HLOOKUP(Dashboard!C11,Lists!B3:M4,2,FALSE) -> Semi-Detached / Townhome | C41: select residential type
B42: Owner | C42: select occupancy type
B43: 1
A44: Retail | B44: 0
A45: % of Ground Floor | B45: =IF(PI_Internal<1,('Physical Outputs'!B30-'Physical Outputs'!B38)/PO_BuildingFootprint,'Physical Outputs'!B30/PO_BuildingFootprint) -> 0
A46: Office | B46: 0
A47: Industrial | B47: 0
A48: Public | B48: 0
A49: Education | B49: 0
A50: Hotel/Motel | B50: 0
A51: Commercial Parking | B51: 0
A52: Total (Check) | B52: =SUM(B43:B44,B46:B51) -> 1
A54: Average Residential Unit Size | B54: ="Avg. Unit Size (Net "&'Metric Translation'!B5&")" -> Avg. Unit Size (Net sf) | C54: % of Units in Building | D54: Required Parking by Type ◊ | E54: # of Units by Type | F54: Bedrooms
A55: Affordable | B55: 0 | C55: 0 | D55: =2*0.6 -> 1.2 | E55: =('Physical Outputs'!$C$29/$B$62)*C55 -> 0
A56: 4+ Bedroom | B56: =Lists!B49 -> 0 | C56: =Lists!B43/Preset_Units -> 0 | D56: =3.5*0.6 -> 2.1 | E56: =('Physical Outputs'!$C$29/$B$62)*C56 -> 0 | F56: =4*E56 -> 0
A57: 3 Bedroom | B57: =Lists!B48 -> 0 | C57: =Lists!B42/Preset_Units -> 1 | D57: 2 | E57: =('Physical Outputs'!$C$29/$B$62)*C57 -> 2 | F57: =3*E57 -> 6
A58: 2 Bedroom | B58: =Lists!B47 -> 1600 | C58: =Lists!B41/Preset_Units -> 0 | D58: 1 | E58: =('Physical Outputs'!$C$29/$B$62)*C58 -> 0 | F58: =2*E58 -> 0
A59: 1 Bedroom | B59: =Lists!B46 -> 0 | C59: =Lists!B40/Preset_Units -> 0 | D59: =1.5*0.6 -> 0.9 | E59: =('Physical Outputs'!$C$29/$B$62)*C59 -> 0 | F59: =1*E59 -> 0
A60: Studio | B60: =Lists!B45 -> 0 | C60: =Lists!B39/Preset_Units -> 0 | D60: =1*0.6 -> 0.6 | E60: =('Physical Outputs'!$C$29/$B$62)*C60 -> 0 | F60: =1*E60 -> 0
A61: Calculated Avg. Residential Unit Size | B61: =SUMPRODUCT(B55:B60,C55:C60) -> 0 | C61: =SUM(C55:C60) -> 1 | D61: =SUMPRODUCT(C55:C60,D55:D60) -> 2 | E61: =SUM(E55:E60) -> 2 | F61: =SUM(F55:F60) -> 6
A62: User-defined Avg. Residential Unit Size ◊ | B62: =Lists!I27 -> 1600
A64: Area per Employee by Sector (Average) ◊ | B64: Gross | C64: Net
A65: Retail | B65: 945 | C65: =PI_RetDen*AF_RetailGrossPct -> 803.25 | D65: ="gross / net "&'Metric Translation'!$B$4&" / worker" -> gross / net square feet / worker
A66: Office | B66: 387 | C66: =PI_OffDen*AF_OffGrossPct -> 328.95 | D66: ="gross / net "&'Metric Translation'!$B$4&" / worker" -> gross / net square feet / worker
A67: Industrial | B67: 1730 | C67: =PI_IndDen*AF_IndGrossPct -> 1470.5 | D67: ="gross / net "&'Metric Translation'!$B$4&" / worker" -> gross / net square feet / worker
A68: Public | B68: 746 | C68: =PI_PubDen*AF_PubGrossPct -> 634.1 | D68: ="gross / net "&'Metric Translation'!$B$4&" / worker" -> gross / net square feet / worker
A69: Educational | B69: 767 | C69: =PI_EduDen -> 767 | D69: ="gross / net "&'Metric Translation'!$B$4&" / worker" -> gross / net square feet / worker
A70: Hotel/Motel (Area per Employee) | B70: 1317 | C70: =PI_HotelDen*AF_HotelGrossPct -> 1119.45 | D70: ="gross / net "&'Metric Translation'!$B$4&" / worker" -> gross / net square feet / worker
A71: Hotel/Motel (Room Size) | B71: 400 | C71: =PI_HotelRmDen*AF_HotelGrossPct -> 340 | D71: ="net "&'Metric Translation'!$B$4&" / room" -> net square feet / room
A72: Commercial Parking | B72: 20000 | C72: - | D72: ="gross "&'Metric Translation'!$B$4&" / worker" -> gross square feet / worker
A74: Parking Requirements
A75: ="Spaces Per Unit, Hotel Room or 1,000 Gross "&'Metric Translation'!B5 -> Spaces Per Unit, Hotel Room or 1,000 Gross sf | B75: Gross | C75: Net
A76: Residential ◊ | B76: =Lists!H27 -> 1 | C76: =PI_ResParking -> 1 | D76: space(s) / dwelling unit
A77: Retail ◊ | B77: 0 | C77: =PI_RetParking/AF_RetailGrossPct -> 0 | D77: ="space(s) / 1000 "&'Metric Translation'!$B$5 -> space(s) / 1000 sf
A78: Office ◊ | B78: 0 | C78: =PI_OffParking/AF_OffGrossPct -> 0 | D78: ="space(s) / 1000 "&'Metric Translation'!$B$5 -> space(s) / 1000 sf
A79: Industrial ◊ | B79: 0 | C79: =PI_IndParking/AF_IndGrossPct -> 0 | D79: ="space(s) / 1000 "&'Metric Translation'!$B$5 -> space(s) / 1000 sf
A80: Public | B80: 0 | C80: =PI_PubParking/AF_PubGrossPct -> 0 | D80: ="space(s) / 1000 "&'Metric Translation'!$B$5 -> space(s) / 1000 sf
A81: Educational | B81: 0 | C81: =PI_EduParking -> 0 | D81: ="space(s) / 1000 "&'Metric Translation'!$B$5 -> space(s) / 1000 sf
A82: Hotel/Motel ◊ | B82: 0 | C82: =PI_HotelParking -> 0 | D82: space(s) / room
A84: Parking Type
A85: Surface or Structured Parking | B85: 1 | C85: (number of levels)
A86: Internal Parking (Tuck Under or Podium) ◊ | B86: 0 | C86: (number of levels)
A87: % Used ◊ | B87: =IFERROR(IF(B86=0,"",(IF('Physical Outputs'!B61=0,"Add Additional Parking Type",IF((('Physical Outputs'!B53-'Physical Outputs'!B57-'Physical Outputs'!B58)/'Physical Outputs'!B60)>1,1,(('Physical Outputs'!B53-'Physical Outputs'!B57-'Physical Outputs'!B58)/'Physical Outputs'!B60))))),"-") ->  | C87: =IF(B86=0,"",IF('Physical Outputs'!B61,"Percent Used (internal parking check, if only parking type)","")) -> 
A88: Underground Parking ◊ | B88: 0 | C88: (maximum number of levels to test)
B89: =('Building Envelope Calculator'!C25*'Physical Inputs'!C100)/('Building Envelope Calculator'!B7) -> 0.195125 | C89: ="levels will maximize site without surface or structured parking" -> levels will maximize site without surface or structured parking
B90: ='Building Envelope Calculator'!B171/('Physical Inputs'!B34/'Physical Inputs'!C100) -> 0 | C90: actual underground levels after factoring underbuild
A91: Mechanical parking? ◊ | B91: no
A93: Parking Layout
B94: Mark choice with "X" | C94: =IF('Physical Inputs'!B22="Metric", "Square meters per space ◊","Square feet per space ◊") -> Square feet per space ◊
A95: Suburban Perpendicular | C95: 400 | D95: ='Metric Translation'!$B$4 -> square feet
A96: Urban Perpendicular | B96: x | C96: 315 | D96: ='Metric Translation'!$B$4 -> square feet
A97: Structured | C97: 260 | D97: ='Metric Translation'!$B$4 -> square feet
A98: Mechanical | C98: 125 | D98: ='Metric Translation'!$B$4 -> square feet
A99: Custom | C99: 325 | D99: ='Metric Translation'!$B$4 -> square feet
A100: Parking Area ◊ | C100: =IF(B95="X",C95,IF(B96="X",C96,IF(B97="X",C97,IF(B98="X",C98,IF(B99="X",C99,0))))) -> 315
A154: Res Menu - Do Not Alter
A155: Owner
A156: Renter
A157: None
A159: =IF('Physical Inputs'!B23="GBP","Detached","Single Family") -> Single Family
A160: Semi-Detached / Townhome
A161: Multifamily
A162: Mobile Home
A163: None
A166: Res Type Input - Do Not Alter
A167: =IF(B41="Detached","Single Family",IF(OR(B41="Semi-Detached / Townhome"),"Townhome",B41)) -> Townhome

Sheet Physical Outputs (hidden)
A1: Physical Stats
A2: Housing Units / Hotel Rooms | B2: ='Physical Outputs'!D39 -> 2
A3: Jobs | B3: ='Physical Outputs'!E39 -> 0
A4: ="Net Rentable/Sellable "&'Metric Translation'!B7 -> Net Rentable/Sellable Square Feet | B4: ='Physical Outputs'!C39-'Physical Outputs'!C38 -> 3200
A5: ="Housing / Hotel Room Density (Per "&'Metric Translation'!B10&")" -> Housing / Hotel Room Density (Per Acre) | B5: ='Physical Outputs'!F39 -> 19.36
A6: ="Job Density (Per "&'Metric Translation'!B10&")" -> Job Density (Per Acre) | B6: ='Physical Outputs'!G39 -> 0
A7: FAR ◊ | B7: ='Physical Outputs'!B39/'Physical Inputs'!B34 -> 0.7111111111
A8: FAR (Excluding Internal Parking) | B8: =SUM('Physical Outputs'!B29:B35)/'Physical Inputs'!B34 -> 0.7111111111
A9: Financial Stats
A10: Rental (Residential and Commercial) | B10: Target Return | C10: Actual Return
A11: IRR on Project Cost (Unleveraged Return) | B11: ='Mixed-Use Summary'!N6 -> 0.12 | C11: ='Mixed-Use Summary'!P6 -> 0
A12: Cash-on-Cash (After Year 3) | B12: ='Mixed-Use Summary'!N5 -> 0.12 | C12: ='Mixed-Use Summary'!P5 -> 0
A13: IRR on Investor Equity (Leveraged Return Before Tax) | B13: ='Mixed-Use Summary'!N7 -> 0.25 | C13: ='Mixed-Use Summary'!P7 -> 0
A14: Debt Service Coverage Ratio (Year 3) | B14: ='Mixed-Use Summary'!N8 -> 1.25 | C14: ='Mixed-Use Summary'!P8 -> 0
A15: IRR on Public Participation | B15: ='Mixed-Use Summary'!N9 -> 0.05 | C15: ='Mixed-Use Summary'!P9 -> 0
A16: Owner Residential | B16: Target Return | C16: Actual Return
A17: Project Rate of Return | B17: ='Mixed-Use Summary'!T5 -> 0.2 | C17: =IF('Physical Inputs'!$B$42="Owner",'Mixed-Use Summary'!V5,"N/A") -> 0.1973543891
A18: Return to Equity | B18: ='Mixed-Use Summary'!T6 -> 0.75 | C18: =IF('Physical Inputs'!$B$42="Owner",'Mixed-Use Summary'!V6,"N/A") -> 0.9867719453
A19: Physical Outputs
A20: Site-Level Outputs
A21: Building Footprint | B21: =C21/SUM($C$21:$C$24) -> 0.3555555556 | C21: ='Building Envelope Calculator'!B164 -> 1600 | D21: ='Metric Translation'!$B$5 -> sf
A22: Landscaping or Open Space | B22: =C22/SUM($C$21:$C$24) -> 0.5044444444 | C22: ='Building Envelope Calculator'!B165 -> 2270 | D22: ='Metric Translation'!$B$5 -> sf
A23: Parking Area | B23: =C23/SUM($C$21:$C$24) -> 0.14 | C23: ='Building Envelope Calculator'!B166 -> 630 | D23: ='Metric Translation'!$B$5 -> sf
A24: Shared Driveway Area | B24: =C24/SUM($C$21:$C$24) -> 0 | C24: =PI_SiteArea*(1-PI_GrossToNet) -> 0
A25: Useable building total ◊ | B25: - | C25: =B39 -> 3200 | D25: ='Metric Translation'!$B$5 -> sf
A27: Land Use Outputs
A28: ='Metric Translation'!B9&" by Use" -> Square Footage by Use | B28: ="Gross "&'Metric Translation'!B7&" ◊" -> Gross Square Feet ◊ | C28: ="Net "&'Metric Translation'!B7&" ◊" -> Net Square Feet ◊ | D28: Total Dwelling Units or Hotel/Motel Rooms ◊ | E28: Total Jobs ◊ | F28: ="DU/"&'Metric Translation'!B10&" ◊" -> DU/Acre ◊ | G28: ="Jobs/"&'Metric Translation'!B10&" ◊" -> Jobs/Acre ◊
A29: ='Physical Inputs'!A41 -> Residential | B29: ='Building Envelope Calculator'!B138 -> 3200 | C29: =B29*'Building Envelope Calculator'!B12 -> 3200 | D29: =IF('Physical Inputs'!B62=0,0,C29/'Physical Inputs'!B62) -> 2 | F29: =D29/'Physical Inputs'!$C$34 -> 19.36
A30: Retail | B30: ='Building Envelope Calculator'!B139 -> 0 | C30: =B30*'Advanced Financial'!B25 -> 0 | E30: =IF('Physical Inputs'!B65=0,0,B30/'Physical Inputs'!B65)*AF_RetOccup -> 0 | G30: =E30/'Physical Inputs'!$C$34 -> 0
A31: Office | B31: ='Building Envelope Calculator'!B140 -> 0 | C31: =B31*'Advanced Financial'!B26 -> 0 | E31: =IF('Physical Inputs'!B66=0,0,B31/'Physical Inputs'!B66)*AF_OffOccup -> 0 | G31: =E31/'Physical Inputs'!$C$34 -> 0
A32: Industrial | B32: ='Building Envelope Calculator'!B141 -> 0 | C32: =B32*'Advanced Financial'!B27 -> 0 | E32: =IF('Physical Inputs'!B67=0,0,B32/'Physical Inputs'!B67)*AF_IndOccup -> 0 | G32: =E32/'Physical Inputs'!$C$34 -> 0
A33: Public | B33: ='Building Envelope Calculator'!B142 -> 0 | C33: =B33*'Advanced Financial'!B28 -> 0 | E33: =IF('Physical Inputs'!B68=0,0,B33/'Physical Inputs'!B68)*AF_PubOccup -> 0 | G33: =E33/'Physical Inputs'!$C$34 -> 0
A34: Educational | B34: ='Building Envelope Calculator'!B143 -> 0 | C34: =B34*'Advanced Financial'!B29 -> 0 | E34: =IF('Physical Inputs'!B69=0,0,B34/'Physical Inputs'!B69) -> 0 | G34: =E34/'Physical Inputs'!$C$34 -> 0
A35: Hotel/Motel | B35: ='Building Envelope Calculator'!B144 -> 0 | C35: =B35*'Advanced Financial'!B23 -> 0 | D35: =IF('Physical Inputs'!B71=0,0,C35/'Physical Inputs'!C71) -> 0 | E35: =IF('Physical Inputs'!B70=0,0,B35/'Physical Inputs'!B70) -> 0 | F35: =D35/'Physical Inputs'!$C$34 -> 0 | G35: =E35/'Physical Inputs'!$C$34 -> 0
A36: Commercial Parking | B36: ='Building Envelope Calculator'!B145 -> 0 | C36: =B36*'Advanced Financial'!B24 -> 0 | D36: =IF('Physical Inputs'!B73=0,0,C36/'Physical Inputs'!B73) -> 0 | E36: =IF('Physical Inputs'!B72=0,0,B36/'Physical Inputs'!B72) -> 0 | F36: =D36/'Physical Inputs'!$C$34 -> 0 | G36: =E36/'Physical Inputs'!$C$34 -> 0
A37: Structured Parking | B37: ='Building Envelope Calculator'!B192-'Building Envelope Calculator'!C192 -> 0 | C37: ='Building Envelope Calculator'!B192-'Building Envelope Calculator'!C192 -> 0
A38: Internal Parking | B38: ='Building Envelope Calculator'!B146 -> 0 | C38: =B38 -> 0
A39: Total | B39: =SUM(B29:B38) -> 3200 | C39: 3200 | D39: 2 | E39: 0 | F39: 19.36 | G39: 0
A41: Parking Outputs
A42: ="Parking spaces per 1,000 "&'Metric Translation'!B5&" of development" -> Parking spaces per 1,000 sf of development | B42: =B61/(SUM(B29:B36)/1000) -> 0.625
A44: Parking Spaces by Land Use | B44: Spaces Required | C44: Parking Area
A45: Market-Rate Residential | B45: ='Building Envelope Calculator'!C138 -> 2 | C45: ='Physical Outputs'!B45*'Physical Inputs'!$C$100 -> 630 | D45: ='Metric Translation'!$B$5 -> sf
A46: Retail | B46: ='Building Envelope Calculator'!C139 -> 0 | C46: ='Physical Outputs'!B46*'Physical Inputs'!$C$100 -> 0 | D46: ='Metric Translation'!$B$5 -> sf
A47: Office | B47: ='Building Envelope Calculator'!C140 -> 0 | C47: ='Physical Outputs'!B47*'Physical Inputs'!$C$100 -> 0 | D47: ='Metric Translation'!$B$5 -> sf
A48: Industrial | B48: ='Building Envelope Calculator'!C141 -> 0 | C48: ='Physical Outputs'!B48*'Physical Inputs'!$C$100 -> 0 | D48: ='Metric Translation'!$B$5 -> sf
A49: Public | B49: ='Building Envelope Calculator'!C142 -> 0 | C49: ='Physical Outputs'!B49*'Physical Inputs'!$C$100 -> 0 | D49: ='Metric Translation'!$B$5 -> sf
A50: Educational | B50: ='Building Envelope Calculator'!C143 -> 0 | C50: ='Physical Outputs'!B50*'Physical Inputs'!$C$100 -> 0 | D50: ='Metric Translation'!$B$5 -> sf
A51: Hotel/Motel | B51: ='Building Envelope Calculator'!C144 -> 0 | C51: ='Physical Outputs'!B51*'Physical Inputs'!$C$100 -> 0 | D51: ='Metric Translation'!$B$5 -> sf
A52: Commercial Parking | B52: ='Building Envelope Calculator'!C145 -> 0 | C52: ='Physical Outputs'!B52*'Physical Inputs'!$C$100 -> 0 | D52: ='Metric Translation'!$B$5 -> sf
A53: Total | B53: =SUM(B45:B52) -> 2 | C53: =SUM(C45:C52) -> 630 | D53: ='Metric Translation'!$B$5 -> sf
A55: Parking Spaces by Type
A56: ='Basic Financial'!A67 -> Surface | B56: =IFERROR('Building Envelope Calculator'!B170*'Building Envelope Calculator'!C192/'Building Envelope Calculator'!B192,0) -> 2
A57: ='Basic Financial'!A68 -> Structured (above ground) | B57: =IFERROR('Building Envelope Calculator'!B170*B37/'Building Envelope Calculator'!B192,0) -> 0
A58: ='Basic Financial'!A69 -> Underground | B58: ='Building Envelope Calculator'!B171 -> 0
A59: Commercial Parking | B59: ='Building Envelope Calculator'!B172 -> 0
A60: ='Basic Financial'!A70 -> Internal (Tuck Under or Sandwich) | B60: ='Building Envelope Calculator'!B173 -> 0
A61: Total | B61: =SUM(B56:B60) -> 2 | C61: spaces

Sheet Basic Financial (hidden)
A1: Physical Stats
A2: Housing Units / Hotel Rooms | B2: ='Physical Outputs'!D39 -> 2
A3: Jobs | B3: ='Physical Outputs'!E39 -> 0
A4: ="Net Rentable/Sellable "&'Metric Translation'!B7 -> Net Rentable/Sellable Square Feet | B4: ='Physical Outputs'!C39-'Physical Outputs'!C38 -> 3200
A5: ="Housing / Hotel Room Density (Per "&'Metric Translation'!B10&")" -> Housing / Hotel Room Density (Per Acre) | B5: ='Physical Outputs'!F39 -> 19.36
A6: ="Job Density (Per "&'Metric Translation'!B10&")" -> Job Density (Per Acre) | B6: ='Physical Outputs'!G39 -> 0
A7: FAR ◊ | B7: ='Physical Outputs'!B39/'Physical Inputs'!B34 -> 0.7111111111
A8: FAR (Excluding Internal Parking) | B8: =SUM('Physical Outputs'!B29:B35)/'Physical Inputs'!B34 -> 0.7111111111
A9: Financial Stats
A10: Rental (Residential and Commercial) | B10: Target Return | C10: Actual Return
A11: IRR on Project Cost (Unleveraged Return) | B11: ='Mixed-Use Summary'!N6 -> 0.12 | C11: ='Mixed-Use Summary'!P6 -> 0
A12: Cash-on-Cash (After Year 3) | B12: ='Mixed-Use Summary'!N5 -> 0.12 | C12: ='Mixed-Use Summary'!P5 -> 0
A13: IRR on Investor Equity (Leveraged Return Before Tax) | B13: ='Mixed-Use Summary'!N7 -> 0.25 | C13: ='Mixed-Use Summary'!P7 -> 0
A14: Debt Service Coverage Ratio (Year 3) | B14: ='Mixed-Use Summary'!N8 -> 1.25 | C14: ='Mixed-Use Summary'!P8 -> 0
A15: IRR on Public Participation | B15: ='Mixed-Use Summary'!N9 -> 0.05 | C15: ='Mixed-Use Summary'!P9 -> 0
A16: Owner Residential | B16: Target Return | C16: Actual Return
A17: Project Rate of Return | B17: ='Mixed-Use Summary'!T5 -> 0.2 | C17: =IF('Physical Inputs'!$B$42="Owner",'Mixed-Use Summary'!V5,"N/A") -> 0.1973543891
A18: Return to Equity | B18: ='Mixed-Use Summary'!T6 -> 0.75 | C18: =IF('Physical Inputs'!$B$42="Owner",'Mixed-Use Summary'!V6,"N/A") -> 0.9867719453
A19: Basic Financial Inputs
A20: ="Construction Costs Per "&'Metric Translation'!B8&" or Per Space (Core, Shell and Improvements) ◊" -> Construction Costs Per Square Foot or Per Space (Core, Shell and Improvements) ◊ | D20: Balance Return on Investment ◊
A21: Residential | B21: =IF('Physical Outputs'!D39<=1.1,SUMPRODUCT('Physical Inputs'!C56:C60,Assumptions!$B$2:$B$6),IF('Physical Outputs'!D39<=2.1,SUMPRODUCT('Physical Inputs'!C56:C60,Assumptions!$C$2:$C$6),IF('Physical Outputs'!D39<=3.1,SUMPRODUCT('Physical Inputs'!C56:C60,Assumptions!$D$2:$D$6),SUMPRODUCT('Physical Inputs'!C56:C60,Assumptions!$E$2:$E$6)))) -> 261
A22: Retail
A23: Office
A24: Industrial
A25: Public
A26: Educational
A27: Hotel/Motel
A28: Commercial Parking (Per Space) ◊
A30: Land / Site Cost | B30: ='Metric Translation'!B15&" / "&'Metric Translation'!B5 -> $ / sf | C30: Total
A31: ="Site Cost per "&'Metric Translation'!B8&" ◊" -> Site Cost per Square Foot ◊ | B31: =Lists!F27 -> 40 | C31: =B31*PI_SiteArea -> 180000 | F31: =Lists!F27 -> 40
A33: Subsidy | B33: Development Offsets ◊ | D33: Potential Public Revenue ◊
A34: Test Subsidy ◊ | C34: % of Total Project Cost | D34: ="10-Year "&'Metric Translation'!B21&" ◊" -> 10-Year Property Taxes ◊ | E34: ='Metric Translation'!B23&" ◊" -> Fees / SDCs ◊
A35: Detailed Subsidy (from Leveraging Tools tab) | B35: ='Mixed-Use Summary'!J17+'Mixed-Use Summary'!H66+IF(OR(BF_Subsidy=0,BF_Subsidy=""),SUM('Mixed-Use Summary'!C96:L101),0) -> 0 | C35: =IFERROR(B35/-B78,0) -> 0 | D35: =SUM('Mixed-Use Summary'!C95:L95)+SUM('Residential Owner'!E54:N54) -> 168587.8092 | E35: =-'Development Costs'!E28-'Development Costs'!E29 -> 41760
D36: =SUM(D35:E35) -> 210347.8092
A38: Below-Market Rent Calculator | B38: =IF('Physical Inputs'!B25="Metric","Open-Market Rent","AMI") -> AMI | C38: Below-Market Unit Mix | D38: =IF('Physical Inputs'!B25="Metric","Percent of Open-Market Rent","Percent of AMI") -> Percent of AMI | E38: Below-Market Rent
A39: =IF('Physical Inputs'!B25="Metric","Intermediate Rent","Income-Restricted") -> Income-Restricted | B39: 60000 | C39: 0.1 | D39: 1 | E39: =IF('Physical Inputs'!$B$22="Metric",BF_AMI*D39,(BF_AMI*D39/12)*0.3) -> 1500
A40: =IF('Physical Inputs'!B25="Metric","Social Rent","Low Income") -> Low Income | B40: - | C40: 0 | D40: 0 | E40: =IF('Physical Inputs'!$B$22="Metric",BF_AMI*D40,(BF_AMI*D40/12)*0.3) -> 0
A41: =IF('Physical Inputs'!B25="Metric","Affordable Rent","Very Low Income") -> Very Low Income | B41: - | C41: 0 | D41: 0 | E41: =IF('Physical Inputs'!$B$22="Metric",BF_AMI*D41,(BF_AMI*D41/12)*0.3) -> 0
A42: Calculated Below-Market Rent | B42: - | C42: =SUM(C39:C41) -> 0.1 | D42: - | E42: =E39 -> 1500
A44: Residential Rent (Rental) ◊ | B44: ='Metric Translation'!B15&" / "&'Metric Translation'!B5 -> $ / sf | C44: Unit Size | D44: Parking Cost / Mo ◊ | E44: Rent
A45: ='Physical Inputs'!A55 -> Affordable | B45: =IFERROR(E45/C45,0) -> 0 | C45: ='Physical Inputs'!B55 -> 0 | D45: 0 | E45: =E42+D45 -> 1500
A46: ='Physical Inputs'!A56 -> 4+ Bedroom | B46: =B49*0.85 -> 456.875 | C46: ='Physical Inputs'!B56 -> 0 | D46: 0 | E46: =(C46*B46)+D46 -> 0
A47: ='Physical Inputs'!A57 -> 3 Bedroom | B47: =B48*0.9 -> 459.5625 | C47: ='Physical Inputs'!B57 -> 0 | D47: 0 | E47: =(C47*B47)+D47 -> 0
A48: ='Physical Inputs'!A58 -> 2 Bedroom | B48: =B49*0.95 -> 510.625 | C48: ='Physical Inputs'!B58 -> 1600 | D48: 0 | E48: =(C48*B48)+D48 -> 817000
A49: ='Physical Inputs'!A59 -> 1 Bedroom | B49: =Lists!D27 -> 537.5 | C49: ='Physical Inputs'!B59 -> 0 | D49: 0 | E49: =(C49*B49)+D49 -> 0
A50: ='Physical Inputs'!A60 -> Studio | B50: =B49*1.05 -> 564.375 | C50: ='Physical Inputs'!B60 -> 0 | D50: 0 | E50: =(C50*B50)+D50 -> 0
A51: Calculated Average Monthly Rent | B51: =(SUMPRODUCT(B45:B50,'Physical Inputs'!C55:C60)) -> 459.5625 | C51: =IFERROR(PI_AvgUnitsize,0) -> 1600 | D51: =SUMPRODUCT(D45:D50,'Physical Inputs'!C55:C60) -> 0 | E51: =C51*B52+D51 -> 735300
A52: Monthly Rent per Square Foot | B52: =BF_CalcAvgRent -> 459.5625 | F52: =BF_CalcAvgRent -> 459.5625
A54: Residential Sale Price (Owner) ◊ | B54: ='Metric Translation'!B15&" / "&'Metric Translation'!B5 -> $ / sf | C54: Unit Size | D54: Sales Price
A55: Sale Price per Square Foot | B55: =Lists!C27 -> 459.5625 | C55: ='Physical Inputs'!B62 -> 1600 | D55: =B55*'Physical Inputs'!B62 -> 735300 | F55: =Lists!C27 -> 459.5625
A57: ="Commercial Rent per "&'Metric Translation'!B8&" (Except Hotel/Motel and Commercial Parking) ◊" -> Commercial Rent per Square Foot (Except Hotel/Motel and Commercial Parking) ◊
A58: Retail | B58: 18 | C58: Annual, Triple Net
A59: Office | B59: 22 | C59: Annual, Triple Net
A60: Industrial | B60: 12 | C60: Annual, Triple Net
A61: Public | B61: 14 | C61: Annual, Triple Net
A62: Educational | B62: 14 | C62: Annual, Triple Net
A63: Hotel/Motel | B63: 150 | C63: Daily, Average Room Rate
A64: Commercial Parking ◊ | B64: 4 | C64: Hourly, Average per Space
A66: Parking Costs Per Space ◊
A67: Surface | B67: =3000*(16000/15000) -> 3200
A68: Structured (above ground) | B68: 16000
A69: Underground | B69: =35000*(16000/15000) -> 37333.33333
A70: Internal (Tuck Under or Sandwich) | B70: =20000*(16000/15000) -> 21333.33333
A71: Mechanical | B71: 55000
A73: Basic Financial Outputs | B73: Total | C73: Percent of Total
A74: Building Construction (Hard Costs) ◊ | B74: =SUM('Development Costs'!E12:E23,'Development Costs'!E25) -> -885200 | C74: =B74/$B$78 -> 0.7207249457
A75: Parking Construction (Hard Costs) ◊ | B75: ='Development Costs'!E24 -> -6400 | C75: =B75/$B$78 -> 0.005210844614
A76: Buidling Soft Costs | B76: =SUM('Development Costs'!E4:E7,'Development Costs'!E28:E35) -> -156607.8 | C76: =B76/$B$78 -> 0.1275092049
A77: Land | B77: ='Development Costs'!E8 -> -180000 | C77: =B77/$B$78 -> 0.1465550048
A78: Total Project Costs ◊ | B78: ='Development Costs'!E37 -> -1228207.8 | C78: =SUM(C74:C77) -> 1
B80: =SUM(B74:B76)/'Physical Outputs'!B39 -> -327.5649375

Sheet Advanced Financial (hidden)
A1: Physical Stats
A2: Housing Units / Hotel Rooms | B2: ='Physical Outputs'!D39 -> 2
A3: Jobs | B3: ='Physical Outputs'!E39 -> 0
A4: ="Net Rentable/Sellable "&'Metric Translation'!B7 -> Net Rentable/Sellable Square Feet | B4: ='Physical Outputs'!C39-'Physical Outputs'!C38 -> 3200
A5: ="Housing / Hotel Room Density (Per "&'Metric Translation'!B10&")" -> Housing / Hotel Room Density (Per Acre) | B5: ='Physical Outputs'!F39 -> 19.36
A6: ="Job Density (Per "&'Metric Translation'!B10&")" -> Job Density (Per Acre) | B6: ='Physical Outputs'!G39 -> 0
A7: FAR ◊ | B7: ='Physical Outputs'!B39/'Physical Inputs'!B34 -> 0.7111111111
A8: FAR (Excluding Internal Parking) | B8: =SUM('Physical Outputs'!B29:B35)/'Physical Inputs'!B34 -> 0.7111111111
A9: Financial Stats
A10: Rental (Residential and Commercial) | B10: Target Return | C10: Actual Return
A11: IRR on Project Cost (Unleveraged Return) | B11: ='Mixed-Use Summary'!N6 -> 0.12 | C11: ='Mixed-Use Summary'!P6 -> 0
A12: Cash-on-Cash (After Year 3) | B12: ='Mixed-Use Summary'!N5 -> 0.12 | C12: ='Mixed-Use Summary'!P5 -> 0
A13: IRR on Investor Equity (Leveraged Return Before Tax) | B13: ='Mixed-Use Summary'!N7 -> 0.25 | C13: ='Mixed-Use Summary'!P7 -> 0
A14: Debt Service Coverage Ratio (Year 3) | B14: ='Mixed-Use Summary'!N8 -> 1.25 | C14: ='Mixed-Use Summary'!P8 -> 0
A15: IRR on Public Participation | B15: ='Mixed-Use Summary'!N9 -> 0.05 | C15: ='Mixed-Use Summary'!P9 -> 0
A16: Owner Residential | B16: Target Return | C16: Actual Return
A17: Project Rate of Return | B17: ='Mixed-Use Summary'!T5 -> 0.2 | C17: =IF('Physical Inputs'!$B$42="Owner",'Mixed-Use Summary'!V5,"N/A") -> 0.1973543891
A18: Return to Equity | B18: ='Mixed-Use Summary'!T6 -> 0.75 | C18: =IF('Physical Inputs'!$B$42="Owner",'Mixed-Use Summary'!V6,"N/A") -> 0.9867719453
A19: Advanced Financial Inputs
A20: Building Efficiency
A21: ="Net-to-Gross "&'Metric Translation'!B9&" (% Rentable) ◊" -> Net-to-Gross Square Footage (% Rentable) ◊ | C21: Notes/Data Source
A22: Residential | B22: 0.9 | C22: 100% will automatically be used for single family (detached), duplex or townhome buildings (semi-detached or terraced).
A23: Hotel/Motel | B23: 0.85
A24: Commercial Parking | B24: 0.95
A25: Retail | B25: 0.85
A26: Office | B26: 0.85
A27: Industrial | B27: 0.85
A28: Public | B28: 0.85
A30: Occupancy Rate (%) ◊ | B30: Rate in Year 1 ◊ | C30: Long-Term Rate ◊ | D30: Notes/Data Source
A31: Residential | B31: =IF(Dashboard!D23-Assumptions!B19>=12,0,IF(Dashboard!D23-Assumptions!B19<=0,0.95,0.95-(0.95*((Dashboard!C23-Assumptions!B19)/12)))) -> 0.95 | C31: =IF(Dashboard!C23-Assumptions!B19<12,Assumptions!B27,Assumptions!B27-(Assumptions!B27*(((Dashboard!C23-12-Assumptions!B19)/12)/9))) -> 0.95
A32: Hotel/Motel | C32: 0.75 | D32: Average daily occupancy
A33: Retail | B33: 0.95 | C33: 0.95
A34: Office | B34: 0.95 | C34: 0.95
A35: Industrial | B35: 0.95 | C35: 0.95
A36: Commercial Parking ◊ | C36: 0.7 | D36: Average daily occupancy (12 hrs)
A37: Public | C37: 0.95
A39: Pre Development Costs ◊ | C39: Notes/Data Source
A40: Due diligence ◊ | B40: 0 | C40: Enter manually if applicable
A41: Land carry (% of raw land cost) | B41: 0.05 | C41: Expert interviews
A42: Land entitlement / legal fees (% raw land) | B42: 0.02 | C42: Expert interviews
A43: Professional fees (% of hard costs) | B43: 0.05 | C43: Expert interviews
A45: Development Costs ◊ | C45: Notes/Data Source
A46: Demolition costs (total) | B46: =Assumptions!B14 -> 50000 | C46: Enter manually if applicable
A47: ="Site development costs (per "&'Metric Translation'!B5&")" -> Site development costs (per sf) | B47: 0 | C47: Enter manually if applicable
A48: ="Brownfield remediation costs (per "&'Metric Translation'!B5&" of site area)" -> Brownfield remediation costs (per sf of site area) | B48: 0 | C48: Enter manually if applicable
A49: Additional infrastructure enhancement costs (total) | C49: Enter manually if applicable
A51: Indirect Costs ◊ | C51: Notes/Data Source
A52: ='Metric Translation'!B24 -> Impact Fees (per Unit) | B52: 0 | C52: Enter manually
A53: ='Metric Translation'!B25 -> Impact Fees (per Job) | B53: 0 | C53: Enter manually | D53: remove
A54: ='Metric Translation'!B26 -> Impact Fees (per sqft of Employment Area) ◊ | B54: 0 | C54: Enter manually
A55: ='Metric Translation'!B29 -> Additonal Impact Fees (Total for Project) ◊ | B55: =-'Development Costs'!E15*Lists!L27 -> 41760 | C55: Enter manually
A56: ='Metric Translation'!B27 -> Building Permit Fees | B56: 0 | C56: Enter manually
A57: Taxes during construction (% raw land) | B57: 0.01 | C57: Expert interviews
A58: Insurance during construction (% of building costs) | B58: 0.01 | C58: Expert interviews
A59: Developer fee | B59: 0 | C59: Expert interviews
A60: Contingency | B60: =Assumptions!B18 -> 0.05 | C60: Expert interviews
A62: ='Metric Translation'!B21 -> Property Taxes | B62: Residential (Owner) | C62: Residential (Rental) | D62: Hotel/Motel | E62: Retail | F62: Office | G62: Industrial | H62: Commercial Parking
A63: ='Metric Translation'!B22&" Rate (% of project value: building + land)" -> Property Tax Rate (% of project value: building + land) | B63: =Assumptions!B15 -> 0.01 | C63: =Assumptions!B15 -> 0.01 | D63: 0 | E63: 0 | F63: 0.00962669 | G63: 0 | H63: 0
A64: Assessment Ratio (Assessment Value / Market Value) | B64: 1 | C64: 1 | D64: 1 | E64: 1 | F64: 1 | G64: 1 | H64: 1
A66: Financial Targets | C66: Residential (Rental) | D66: Hotel/Motel | E66: Retail | F66: Office | G66: Industrial | H66: Commercial Parking
A67: Cash-on-Cash (After Year 3) | C67: 0.12 | D67: 0.1 | E67: 0.1 | F67: 0.1 | G67: 0.1 | H67: 0.1
A68: IRR on Project Cost (Unleveraged Return) | C68: 0.12 | D68: 0.1 | E68: 0.1 | F68: 0.1 | G68: 0.1 | H68: 0.1
A69: IRR on Investor Equity (Leveraged Return Before Tax) | C69: 0.25 | D69: 0.25 | E69: 0.25 | F69: 0.25 | G69: 0.25 | H69: 0.25
A70: Debt Service Coverage Ratio (Year 3) | C70: 1.25 | D70: 1.25 | E70: 1.25 | F70: 1.25 | G70: 1.25 | H70: 1.25
A71: IRR on Public Participation | C71: 0.05 | D71: 0.05 | E71: 0.05 | F71: 0.05 | G71: 0.05 | H71: 0.05
C73: Residential (Owner)
A74: Project Rate of Return | C74: 0.2
A75: Return to Equity | C75: 0.75
A77: Financial Assumptions | B77: Residential (Owner) | C77: Residential (Rental) | D77: Hotel/Motel | E77: Retail | F77: Office | G77: Industrial | H77: Commercial Parking ◊
A78: ="Projected retail sales per "&'Metric Translation'!B5&" (retail only)" -> Projected retail sales per sf (retail only) | E78: 0
A79: % of sales to rent (retail only) | E79: 0
A80: Other income (vending, fines) | C80: 0.01
A81: Concessions and bad debt | C81: 0.02
A82: Operating costs (per unit, % of GPI, or per space) ◊ | C82: =Assumptions!B17 -> 0.1
A83: Going in cap rate | C83: 0.04
A84: Gross potential income - escalation | C84: =Assumptions!B25 -> 0.03
A85: Operating costs - escalation | C85: 0.03
A86: Property value - annual appreciation | B86: 0.03 | C86: =Assumptions!B26 -> 0.03
A87: Terminal cap rate, gross sales price | C87: =Assumptions!B24 -> 0.045
A88: Net sales = price less sales cost | C88: 0.05
A90: Primary Debt | B90: Residential (Owner) | C90: Residential (Rental) | D90: Hotel/Motel | E90: Retail | F90: Office | G90: Industrial | H90: Commercial Parking
A91: Maximum LTV | B91: 0.8 | C91: 0.8 | D91: 0.7 | E91: 0.7 | F91: 0.7 | G91: 0.7 | H91: 0.7
A92: Interest rate | C92: =Assumptions!B23 -> 0.06 | D92: 0.06 | E92: 0.06 | F92: 0.06 | G92: 0.06 | H92: 0.06
A93: Amortization period - years | C93: =Assumptions!B22 -> 30 | D93: 25 | E93: 25 | F93: 25 | G93: 25 | H93: 25

Sheet Fixed Parameters (hidden)
A1: MIXED USE TRIP GENERATION MODEL V4 - FIXED MODEL PARAMETERS
A2: These include coefficients for the model equations, and NCHRP trip distribution factors. These items cannot be changed by the user.
A4: Model Coefficients
A6: Internal Capture Probability Model Coefficients
A8: Variable | B8: HBW | C8: HBO | D8: NHB | F8: Avg Value
A9: Constant | B9: -3.62 | C9: -2.68 | D9: -1.87
A10: ln(Employment within the MXD) | D10: 0.208 | F10: 6.7
A11: ln(MXD Area in Square Miles) | C11: 0.486 | D11: 0.468 | F11: -1.59
A12: ln(Jobs / Population Diversity - index of jobs/population ratio compared to 0.2) | B12: 0.389 | C12: 0.399 | F12: -1.44
A13: ln(Number of intersections per square mile within the MXD) | C13: 0.385 | D13: 0.638 | F13: 5.31
A14: ln(Average Household Size Within the MXD) | B14: -1.33 | C14: -0.867 | D14: -0.237 | F14: 0.85
A15: ln(Vehicles Owned per Capita within the MXD) | B15: -0.99 | C15: -0.59 | D15: -0.163 | F15: -0.28
A18: Walking Trip Probability Model Coefficients
A20: Variable | B20: HBW | C20: HBO | D20: NHB
A21: Constant | B21: -3.98 | C21: -3.41 | D21: -3.63
A22: ln(MXD Area in Square Miles) | C22: -0.391 | F22: -1.59
A23: ln(Population + Employment per square mile within the MXD) | C23: 0.329 | D23: 0.377 | F23: 9.28
A24: ln(Jobs / Population Diversity - index of jobs/population ratio compared to 0.2) | B24: 0.226 | F24: -1.44
A25: ln(Retail jobs / Population Diversity - index of retail jobs/population ratio compared to 0.05) | C25: 0.205 | F25: -1.43
A26: ln(Number of intersections per square mile within the MXD) | D26: 0.803 | F26: 5.31
A27: ln(Employment in thousands within 1 mile of the MXD outside the MXD itself) | B27: 0.385 | C27: 0.444 | D27: 0.44 | F27: 2.44
A28: ln(Average Household Size Within the MXD) | B28: -1.57 | C28: -0.487 | D28: -0.281 | F28: 0.85
A29: ln(Vehicles Owned per Capita within the MXD) | B29: -1.84 | C29: -0.767 | D29: -0.242 | F29: -0.28
A32: Transit Trip Probability Model Coefficients
A34: Variable | B34: HBW | C34: HBO | D34: NHB
A35: Constant | B35: -4.23 | C35: -4.97 | D35: -4.4
A36: ln(Employment within the MXD) | B36: 0.246 | F36: 6.7
A37: ln(Number of intersections per square mile within the MXD) | B37: 1.34 | F37: 5.31
A38: ln(Employment in thousands within a 30 minute trip of the MXD by transit) | B38: 0.16 | C38: 0.294 | D38: 0.249 | F38: 8.41
A39: ln(Average Household Size Within the MXD) | B39: -1.15 | C39: -1.04 | F39: 0.85
A40: ln(Vehicles Owned per Capita within the MXD) | B40: -1.68 | C40: -1.05 | D40: -0.276 | F40: -0.28
A42: Trip Purpose Data from NCHRP 365
A44: PRODUCTIONS | C44: % Average Daily Person Trips by Purpose
A45: Area Type | B45: Productions per HH | C45: HBW | D45: HBO | E45: NHB
A46: Urban 50,000 to 199,999 | B46: 9.2 | C46: 0.2 | D46: 0.57 | E46: 0.23
A47: Urban 200,000 to 499,999 | B47: 9 | C47: 0.21 | D47: 0.56 | E47: 0.23
A48: Urban 500,000 to 999,999 | B48: 8.7 | C48: 0.22 | D48: 0.56 | E48: 0.22
A49: Urban 1,000,000+ | B49: 8.5 | C49: 0.21 | D49: 0.56 | E49: 0.23
A50: Average Data (not varying by MPO Type) | B50: 8.85 | C50: 0.21 | D50: 0.5625 | E50: 0.2275
A52: ATTRACTIONS | C52: Number of Daily Person Trips by Purpose
A53: Per HH | C53: 0 | D53: 0.9 | E53: 0.5
A54: Per Retail Emp CBD | C54: 1.45 | D54: 2 | E54: 1.4
A55: Per Retail Emp Non-CBD | C55: 1.45 | D55: 9 | E55: 4.1
A56: Per Service Emp (Office) | C56: 1.45 | D56: 1.7 | E56: 1.2
A57: Per Other Emp (Industrial) | C57: 1.45 | D57: 0.5 | E57: 0.5
A59: Time of Day Factors by Trip Purpose from NCHRP 365
C60: AM Peak Hour (7-8 AM) | F60: PM Peak Hour (5-6 PM)
A61: Area Type | C61: HBW | D61: HBO | E61: NHB | F61: HBW | G61: HBO | H61: NHB
A62: Urban 50,000 to 199,999 | C62: 0.1357 | D62: 0.0553 | E62: 0.0207 | F62: 0.1066 | G62: 0.0732 | H62: 0.0856
A63: Urban 200,000 to 499,999 | C63: 0.1446 | D63: 0.0528 | E63: 0.0133 | F63: 0.1224 | G63: 0.0723 | H63: 0.092
A64: Urban 500,000 to 999,999 | C64: 0.1521 | D64: 0.0522 | E64: 0.0183 | F64: 0.1117 | G64: 0.0721 | H64: 0.1017
A65: Urban 1,000,000+ | C65: 0.1406 | D65: 0.0479 | E65: 0.0105 | F65: 0.1204 | G65: 0.0737 | H65: 0.0901
A66: Average Data (not varying by MPO Type) | C66: 0.14325 | D66: 0.05205 | E66: 0.0157 | F66: 0.115275 | G66: 0.072825 | H66: 0.09235
A68: NOTE: Only the average data line is being used, because the above percentages do not vary considerably among MPO types, and thus the user
A69: does not have to determine which MPO type the site is in.
A71: Trip Purpose Splits by Land Use: Schools
A72: Trip Productions | B72: HBW | C72: HBO | D72: NHB
A73: DAILY | B73: 0 | C73: 0 | D73: 0.025
A74: AM PEAK HOUR | B74: 0 | C74: 0 | D74: 0.025
A75: PM PEAK HOUR | B75: 0 | C75: 0 | D75: 0.025
B77: HBW | C77: HBO | D77: NHB
A78: DAILY | B78: 0.35 | C78: 0.6 | D78: 0.025
A79: AM PEAK HOUR | B79: 0.35 | C79: 0.6 | D79: 0.025
A80: PM PEAK HOUR | B80: 0.35 | C80: 0.6 | D80: 0.025
A83: ITE Daily Parameters | H83: AM PEAK HOUR TRIP RATES | N83: PM PEAK HOUR TRIP RATES | U83: Valid Trip Gen Calc Choice?
A84: Code | B84: Average Rate | C84: Linear Multiplier | D84: Linear Constant | E84: Log Multipler | F84: Log Constant | H84: Average Rate | I84: Linear Multiplier | J84: Linear Constant | K84: Log Multipler | L84: Log Constant | N84: Average Rate | O84: Linear Multiplier | P84: Linear Constant | Q84: Log Multipler | R84: Log Constant | T84: Jobs Per Input Unit (if Applicable) | U84: Daily | V84: AM Peak Hour | W84: PM Peak Hour
A86: 210 | B86: 9.57 | E86: 0.92 | F86: 2.71 | H86: 0.75 | I86: 0.7 | J86: 9.74 | N86: 1.01 | Q86: 0.9 | R86: 0.51 | U86: =IF('Trip Generation'!E44="Linear Equation",IF(C86="","No","Yes"),IF('Trip Generation'!E44="Log Equation",(IF(E86="","No","Yes")),"Yes")) -> Yes | V86: =IF('Trip Generation'!E44="Linear Equation",IF(I86="","No","Yes"),IF('Trip Generation'!E44="Log Equation",(IF(K86="","No","Yes")),"Yes")) -> Yes | W86: =IF('Trip Generation'!E44="Linear Equation",IF(O86="","No","Yes"),IF('Trip Generation'!E44="Log Equation",(IF(Q86="","No","Yes")),"Yes")) -> Yes
A87: 220 | B87: 6.65 | C87: 6.06 | D87: 123.56 | H87: 0.51 | I87: 0.49 | J87: 3.73 | N87: 0.62 | O87: 0.55 | P87: 17.65 | U87: =IF('Trip Generation'!E45="Linear Equation",IF(C87="","No","Yes"),IF('Trip Generation'!E45="Log Equation",(IF(E87="","No","Yes")),"Yes")) -> Yes | V87: =IF('Trip Generation'!E45="Linear Equation",IF(I87="","No","Yes"),IF('Trip Generation'!E45="Log Equation",(IF(K87="","No","Yes")),"Yes")) -> Yes | W87: =IF('Trip Generation'!E45="Linear Equation",IF(O87="","No","Yes"),IF('Trip Generation'!E45="Log Equation",(IF(Q87="","No","Yes")),"Yes")) -> Yes
A88: 232 | B88: 4.18 | C88: 3.77 | D88: 223.66 | H88: 0.34 | I88: 0.29 | J88: 28.86 | N88: 0.38 | O88: 0.34 | P88: 15.47 | U88: =IF('Trip Generation'!E46="Linear Equation",IF(C88="","No","Yes"),IF('Trip Generation'!E46="Log Equation",(IF(E88="","No","Yes")),"Yes")) -> Yes | V88: =IF('Trip Generation'!E46="Linear Equation",IF(I88="","No","Yes"),IF('Trip Generation'!E46="Log Equation",(IF(K88="","No","Yes")),"Yes")) -> Yes | W88: =IF('Trip Generation'!E46="Linear Equation",IF(O88="","No","Yes"),IF('Trip Generation'!E46="Log Equation",(IF(Q88="","No","Yes")),"Yes")) -> Yes
A91: 820 | B91: 42.94 | E91: 0.65 | F91: 5.83 | H91: 1 | K91: 0.59 | L91: 2.32 | N91: 3.73 | Q91: 0.67 | R91: 3.37 | T91: =IFERROR('Physical Outputs'!E$30/('Physical Outputs'!B$30/1000),0) -> 0 | U91: =IF('Trip Generation'!E49="Linear Equation",IF(C91="","No","Yes"),IF('Trip Generation'!E49="Log Equation",(IF(E91="","No","Yes")),"Yes")) -> Yes | V91: =IF('Trip Generation'!E49="Linear Equation",IF(I91="","No","Yes"),IF('Trip Generation'!E49="Log Equation",(IF(K91="","No","Yes")),"Yes")) -> Yes | W91: =IF('Trip Generation'!E49="Linear Equation",IF(O91="","No","Yes"),IF('Trip Generation'!E49="Log Equation",(IF(Q91="","No","Yes")),"Yes")) -> Yes
A92: 850 | B92: 102.24 | C92: 66.95 | D92: 1391.56 | H92: 3.59 | N92: 10.5 | Q92: 0.61 | R92: 3.95 | T92: =IFERROR('Physical Outputs'!E$30/('Physical Outputs'!B$30/1000),0) -> 0 | U92: =IF('Trip Generation'!E50="Linear Equation",IF(C92="","No","Yes"),IF('Trip Generation'!E50="Log Equation",(IF(E92="","No","Yes")),"Yes")) -> Yes | V92: =IF('Trip Generation'!E50="Linear Equation",IF(I92="","No","Yes"),IF('Trip Generation'!E50="Log Equation",(IF(K92="","No","Yes")),"Yes")) -> Yes | W92: =IF('Trip Generation'!E50="Linear Equation",IF(O92="","No","Yes"),IF('Trip Generation'!E50="Log Equation",(IF(Q92="","No","Yes")),"Yes")) -> Yes
A93: 912 | B93: 148.15 | H93: 12.35 | N93: 25.82 | T93: =IFERROR('Physical Outputs'!E$30/('Physical Outputs'!B$30/1000),0) -> 0 | U93: =IF('Trip Generation'!E51="Linear Equation",IF(C93="","No","Yes"),IF('Trip Generation'!E51="Log Equation",(IF(E93="","No","Yes")),"Yes")) -> Yes | V93: =IF('Trip Generation'!E51="Linear Equation",IF(I93="","No","Yes"),IF('Trip Generation'!E51="Log Equation",(IF(K93="","No","Yes")),"Yes")) -> Yes | W93: =IF('Trip Generation'!E51="Linear Equation",IF(O93="","No","Yes"),IF('Trip Generation'!E51="Log Equation",(IF(Q93="","No","Yes")),"Yes")) -> Yes
A94: 492 | B94: 32.93 | H94: 1.38 | N94: 3.53 | Q94: 0.95 | R94: 1.43 | T94: =IFERROR('Physical Outputs'!E$30/('Physical Outputs'!B$30/1000),0) -> 0 | U94: =IF('Trip Generation'!E52="Linear Equation",IF(C94="","No","Yes"),IF('Trip Generation'!E52="Log Equation",(IF(E94="","No","Yes")),"Yes")) -> Yes | V94: =IF('Trip Generation'!E52="Linear Equation",IF(I94="","No","Yes"),IF('Trip Generation'!E52="Log Equation",(IF(K94="","No","Yes")),"Yes")) -> Yes | W94: =IF('Trip Generation'!E52="Linear Equation",IF(O94="","No","Yes"),IF('Trip Generation'!E52="Log Equation",(IF(Q94="","No","Yes")),"Yes")) -> Yes
A95: 932 | B95: 127.15 | H95: 11.52 | N95: 11.15 | T95: =IFERROR('Physical Outputs'!E$30/('Physical Outputs'!B$30/1000),0) -> 0 | U95: =IF('Trip Generation'!E53="Linear Equation",IF(C95="","No","Yes"),IF('Trip Generation'!E53="Log Equation",(IF(E95="","No","Yes")),"Yes")) -> Yes | V95: =IF('Trip Generation'!E53="Linear Equation",IF(I95="","No","Yes"),IF('Trip Generation'!E53="Log Equation",(IF(K95="","No","Yes")),"Yes")) -> Yes | W95: =IF('Trip Generation'!E53="Linear Equation",IF(O95="","No","Yes"),IF('Trip Generation'!E53="Log Equation",(IF(Q95="","No","Yes")),"Yes")) -> Yes
A96: 934 | B96: 496.12 | H96: 49.35 | N96: 33.84 | T96: =IFERROR('Physical Outputs'!E$30/('Physical Outputs'!B$30/1000),0) -> 0 | U96: =IF('Trip Generation'!E54="Linear Equation",IF(C96="","No","Yes"),IF('Trip Generation'!E54="Log Equation",(IF(E96="","No","Yes")),"Yes")) -> Yes | V96: =IF('Trip Generation'!E54="Linear Equation",IF(I96="","No","Yes"),IF('Trip Generation'!E54="Log Equation",(IF(K96="","No","Yes")),"Yes")) -> Yes | W96: =IF('Trip Generation'!E54="Linear Equation",IF(O96="","No","Yes"),IF('Trip Generation'!E54="Log Equation",(IF(Q96="","No","Yes")),"Yes")) -> Yes
A97: 945 | B97: =162.78/13.38*97.08 -> 1181.067444 | H97: 79.3 | N97: 97.08 | T97: =IFERROR('Physical Outputs'!E$30/('Physical Outputs'!B$30/1000),0) -> 0 | U97: =IF('Trip Generation'!E55="Linear Equation",IF(C97="","No","Yes"),IF('Trip Generation'!E55="Log Equation",(IF(E97="","No","Yes")),"Yes")) -> Yes | V97: =IF('Trip Generation'!E55="Linear Equation",IF(I97="","No","Yes"),IF('Trip Generation'!E55="Log Equation",(IF(K97="","No","Yes")),"Yes")) -> Yes | W97: =IF('Trip Generation'!E55="Linear Equation",IF(O97="","No","Yes"),IF('Trip Generation'!E55="Log Equation",(IF(Q97="","No","Yes")),"Yes")) -> Yes
A98: 942 | B98: =AVERAGE(H98,N98)*10 -> 31.6 | H98: 2.94 | N98: 3.38 | Q98: 0.94 | R98: 1.33 | T98: =IFERROR('Physical Outputs'!E$30/('Physical Outputs'!B$30/1000),0) -> 0 | U98: =IF('Trip Generation'!E56="Linear Equation",IF(C98="","No","Yes"),IF('Trip Generation'!E56="Log Equation",(IF(E98="","No","Yes")),"Yes")) -> Yes | V98: =IF('Trip Generation'!E56="Linear Equation",IF(I98="","No","Yes"),IF('Trip Generation'!E56="Log Equation",(IF(K98="","No","Yes")),"Yes")) -> Yes | W98: =IF('Trip Generation'!E56="Linear Equation",IF(O98="","No","Yes"),IF('Trip Generation'!E56="Log Equation",(IF(Q98="","No","Yes")),"Yes")) -> Yes
A101: 710 | B101: 3.32 | E101: 0.84 | F101: 2.23 | H101: 0.48 | K101: 0.86 | L101: 0.24 | N101: 0.46 | O101: 0.37 | P101: 60.08 | T101: =IFERROR('Physical Outputs'!E$31/('Physical Outputs'!B$31/1000),0) -> 0 | U101: =IF('Trip Generation'!E60="Linear Equation",IF(C101="","No","Yes"),IF('Trip Generation'!E60="Log Equation",(IF(E101="","No","Yes")),"Yes")) -> Yes | V101: =IF('Trip Generation'!E60="Linear Equation",IF(I101="","No","Yes"),IF('Trip Generation'!E60="Log Equation",(IF(K101="","No","Yes")),"Yes")) -> Yes | W101: =IF('Trip Generation'!E60="Linear Equation",IF(O101="","No","Yes"),IF('Trip Generation'!E60="Log Equation",(IF(Q101="","No","Yes")),"Yes")) -> Yes
A102: 720 | B102: 8.91 | E102: 0.67 | F102: 3.76 | H102: 0.53 | N102: 1.06 | Q102: 1.06 | R102: -0.32 | T102: =IFERROR('Physical Outputs'!E$31/('Physical Outputs'!B$31/1000),0) -> 0 | U102: =IF('Trip Generation'!E61="Linear Equation",IF(C102="","No","Yes"),IF('Trip Generation'!E61="Log Equation",(IF(E102="","No","Yes")),"Yes")) -> Yes | V102: =IF('Trip Generation'!E61="Linear Equation",IF(I102="","No","Yes"),IF('Trip Generation'!E61="Log Equation",(IF(K102="","No","Yes")),"Yes")) -> Yes | W102: =IF('Trip Generation'!E61="Linear Equation",IF(O102="","No","Yes"),IF('Trip Generation'!E61="Log Equation",(IF(Q102="","No","Yes")),"Yes")) -> Yes
A105: 110 | B105: 3.02 | C105: 2.95 | D105: 30.57 | H105: 0.44 | I105: 0.27 | J105: 70.47 | N105: 0.42 | O105: 0.29 | P105: 58.03 | T105: =IFERROR('Physical Outputs'!E$32/('Physical Outputs'!B$32/1000),0) -> 0 | U105: =IF('Trip Generation'!E65="Linear Equation",IF(C105="","No","Yes"),IF('Trip Generation'!E65="Log Equation",(IF(E105="","No","Yes")),"Yes")) -> Yes | V105: =IF('Trip Generation'!E65="Linear Equation",IF(I105="","No","Yes"),IF('Trip Generation'!E65="Log Equation",(IF(K105="","No","Yes")),"Yes")) -> Yes | W105: =IF('Trip Generation'!E65="Linear Equation",IF(O105="","No","Yes"),IF('Trip Generation'!E65="Log Equation",(IF(Q105="","No","Yes")),"Yes")) -> Yes
A106: 140 | B106: 2.13 | C106: 1.75 | D106: 245.96 | H106: 0.4 | K106: 0.85 | L106: 0.07 | N106: 0.36 | Q106: 0.78 | R106: 0.48 | T106: =IFERROR('Physical Outputs'!E$32/('Physical Outputs'!B$32/1000),0) -> 0 | U106: =IF('Trip Generation'!E66="Linear Equation",IF(C106="","No","Yes"),IF('Trip Generation'!E66="Log Equation",(IF(E106="","No","Yes")),"Yes")) -> Yes | V106: =IF('Trip Generation'!E66="Linear Equation",IF(I106="","No","Yes"),IF('Trip Generation'!E66="Log Equation",(IF(K106="","No","Yes")),"Yes")) -> Yes | W106: =IF('Trip Generation'!E66="Linear Equation",IF(O106="","No","Yes"),IF('Trip Generation'!E66="Log Equation",(IF(Q106="","No","Yes")),"Yes")) -> Yes
A107: 151 | B107: 2.5 | C107: 0.43 | D107: 50.56 | E107: 1.01 | F107: 0.82 | H107: 0.15 | N107: 0.26 | Q107: 1.02 | R107: 1.49 | T107: =IFERROR('Physical Outputs'!E$32/('Physical Outputs'!B$32/1000),0) -> 0 | U107: =IF('Trip Generation'!E67="Linear Equation",IF(C107="","No","Yes"),IF('Trip Generation'!E67="Log Equation",(IF(E107="","No","Yes")),"Yes")) -> Yes | V107: =IF('Trip Generation'!E67="Linear Equation",IF(I107="","No","Yes"),IF('Trip Generation'!E67="Log Equation",(IF(K107="","No","Yes")),"Yes")) -> Yes | W107: =IF('Trip Generation'!E67="Linear Equation",IF(O107="","No","Yes"),IF('Trip Generation'!E67="Log Equation",(IF(Q107="","No","Yes")),"Yes")) -> Yes
A110: 310 | B110: 8.17 | C110: 8.95 | D110: -373.16 | H110: 0.56 | K110: 1.24 | L110: -2 | N110: 0.59 | T110: =IFERROR('Physical Outputs'!E$35/('Physical Outputs'!B$35/1000),0) -> 0 | U110: =IF('Trip Generation'!E71="Linear Equation",IF(C110="","No","Yes"),IF('Trip Generation'!E71="Log Equation",(IF(E110="","No","Yes")),"Yes")) -> Yes | V110: =IF('Trip Generation'!E71="Linear Equation",IF(I110="","No","Yes"),IF('Trip Generation'!E71="Log Equation",(IF(K110="","No","Yes")),"Yes")) -> Yes | W110: =IF('Trip Generation'!E71="Linear Equation",IF(O110="","No","Yes"),IF('Trip Generation'!E71="Log Equation",(IF(Q110="","No","Yes")),"Yes")) -> Yes
A111: 320 | B111: 5.63 | E111: 0.92 | F111: 2.11 | H111: 0.45 | K111: 0.92 | L111: -0.46 | N111: 0.47 | Q111: 0.94 | R111: -0.51 | T111: =IFERROR('Physical Outputs'!E$35/('Physical Outputs'!B$35/1000),0) -> 0 | U111: =IF('Trip Generation'!E72="Linear Equation",IF(C111="","No","Yes"),IF('Trip Generation'!E72="Log Equation",(IF(E111="","No","Yes")),"Yes")) -> Yes | V111: =IF('Trip Generation'!E72="Linear Equation",IF(I111="","No","Yes"),IF('Trip Generation'!E72="Log Equation",(IF(K111="","No","Yes")),"Yes")) -> Yes | W111: =IF('Trip Generation'!E72="Linear Equation",IF(O111="","No","Yes"),IF('Trip Generation'!E72="Log Equation",(IF(Q111="","No","Yes")),"Yes")) -> Yes
A114: 550 | B114: 2.38 | C114: 2.23 | D114: 440 | H114: 0.21 | I114: 0.21 | J114: -69.14 | N114: 0.21 | O114: 0.19 | P114: 118.58 | T114: =0.25 -> 0.25 | U114: =IF('Trip Generation'!E76="Linear Equation",IF(C114="","No","Yes"),IF('Trip Generation'!E76="Log Equation",(IF(E114="","No","Yes")),"Yes")) -> Yes | V114: =IF('Trip Generation'!E76="Linear Equation",IF(I114="","No","Yes"),IF('Trip Generation'!E76="Log Equation",(IF(K114="","No","Yes")),"Yes")) -> Yes | W114: =IF('Trip Generation'!E76="Linear Equation",IF(O114="","No","Yes"),IF('Trip Generation'!E76="Log Equation",(IF(Q114="","No","Yes")),"Yes")) -> Yes
A115: 530 | B115: 1.71 | E115: 0.81 | F115: 1.86 | H115: 0.42 | N115: 0.13 | T115: =0.1 -> 0.1 | U115: =IF('Trip Generation'!E77="Linear Equation",IF(C115="","No","Yes"),IF('Trip Generation'!E77="Log Equation",(IF(E115="","No","Yes")),"Yes")) -> Yes | V115: =IF('Trip Generation'!E77="Linear Equation",IF(I115="","No","Yes"),IF('Trip Generation'!E77="Log Equation",(IF(K115="","No","Yes")),"Yes")) -> Yes | W115: =IF('Trip Generation'!E77="Linear Equation",IF(O115="","No","Yes"),IF('Trip Generation'!E77="Log Equation",(IF(Q115="","No","Yes")),"Yes")) -> Yes
A116: 522 | B116: 1.62 | H116: 0.54 | N116: 0.16 | T116: =0.1 -> 0.1 | U116: =IF('Trip Generation'!E78="Linear Equation",IF(C116="","No","Yes"),IF('Trip Generation'!E78="Log Equation",(IF(E116="","No","Yes")),"Yes")) -> Yes | V116: =IF('Trip Generation'!E78="Linear Equation",IF(I116="","No","Yes"),IF('Trip Generation'!E78="Log Equation",(IF(K116="","No","Yes")),"Yes")) -> Yes | W116: =IF('Trip Generation'!E78="Linear Equation",IF(O116="","No","Yes"),IF('Trip Generation'!E78="Log Equation",(IF(Q116="","No","Yes")),"Yes")) -> Yes
A117: 520 | B117: 1.29 | H117: 0.45 | K117: 1.14 | L117: -1.86 | N117: 0.15 | T117: =0.1 -> 0.1 | U117: =IF('Trip Generation'!E79="Linear Equation",IF(C117="","No","Yes"),IF('Trip Generation'!E79="Log Equation",(IF(E117="","No","Yes")),"Yes")) -> Yes | V117: =IF('Trip Generation'!E79="Linear Equation",IF(I117="","No","Yes"),IF('Trip Generation'!E79="Log Equation",(IF(K117="","No","Yes")),"Yes")) -> Yes | W117: =IF('Trip Generation'!E79="Linear Equation",IF(O117="","No","Yes"),IF('Trip Generation'!E79="Log Equation",(IF(Q117="","No","Yes")),"Yes")) -> Yes

Sheet Calculations (hidden)
A1: MIXED USE TRIP GENERATION MODEL V4 - CALCULATIONS
A3: Trip purpose distribution for each land use type
A5: NCHRP Trips
A6: Note: The productions and attractions in the first table are not actual project Ps and As - they are based on NCHRP rates (not ITE) and are solely for the purposes of
A7: estimating the trip purpose splits for the project. The exception to this is the school Ps and As, which are based on actual ITE trips above because there is no NCHRP estimate available.
A8: They are divided into HBW and HBO Attractions based on a fixed percentage input by the user on the Global input tab.
A10: Residential Production Rate | B10: ='Fixed Parameters'!$B$50 -> 8.85
C12: Productions | F12: Attractions | I12: Total
B13: DU or Jobs | C13: HBW | D13: HBO | E13: NHB | F13: HBW | G13: HBO | H13: NHB | I13: HBW | J13: HBO | K13: NHB
A14: Dwelling Units | B14: =SUM('Trip Generation'!B44:B46) -> 2 | C14: =$B14*$B$10*'Fixed Parameters'!C$50 -> 3.717 | D14: =$B14*$B$10*'Fixed Parameters'!D$50 -> 9.95625 | E14: =$B14*$B$10*'Fixed Parameters'!E$50 -> 4.02675 | F14: =$B14*'Fixed Parameters'!C53 -> 0 | G14: =$B14*'Fixed Parameters'!D53 -> 1.8 | H14: =$B14*'Fixed Parameters'!E53 -> 1 | I14: =C14+F14 -> 3.717 | J14: 11.75625 | K14: 5.02675
A15: Retail Emp CBD | B15: =IF('Trip Generation'!$B$28="Yes",SUM('Trip Generation'!D49:D56),0) -> 0 | C15: 0 | D15: 0 | E15: =$B15*'Fixed Parameters'!E54/2 -> 0 | F15: =$B15*'Fixed Parameters'!C54 -> 0 | G15: =$B15*'Fixed Parameters'!D54 -> 0 | H15: =$B15*'Fixed Parameters'!E54/2 -> 0 | I15: 0 | J15: 0 | K15: 0
A16: Retail Emp Non-CBD | B16: =IF('Trip Generation'!$B$28="No",SUM('Trip Generation'!D49:D56),0) -> 0 | C16: 0 | D16: 0 | E16: =$B16*'Fixed Parameters'!E55/2 -> 0 | F16: =$B16*'Fixed Parameters'!C55 -> 0 | G16: =$B16*'Fixed Parameters'!D55 -> 0 | H16: =$B16*'Fixed Parameters'!E55/2 -> 0 | I16: 0 | J16: 0 | K16: 0
A17: Service Emp (Office) | B17: =SUM('Trip Generation'!D60:D61) -> 0 | C17: 0 | D17: 0 | E17: =$B17*'Fixed Parameters'!E56/2 -> 0 | F17: =$B17*'Fixed Parameters'!C56 -> 0 | G17: =$B17*'Fixed Parameters'!D56 -> 0 | H17: =$B17*'Fixed Parameters'!E56/2 -> 0 | I17: 0 | J17: 0 | K17: 0
A18: Other Emp (Incl. Industrial, not incl. school) | B18: =SUM('Trip Generation'!D65:D67,'Trip Generation'!D71:D72)+'Trip Generation'!B84 -> 0 | C18: 0 | D18: 0 | E18: =$B18*'Fixed Parameters'!E57/2 -> 0 | F18: =$B18*'Fixed Parameters'!C57 -> 0 | G18: =$B18*'Fixed Parameters'!D57 -> 0 | H18: =$B18*'Fixed Parameters'!E57/2 -> 0 | I18: 0 | J18: 0 | K18: 0
A19: School | B19: =SUM('Trip Generation'!D76:D79) -> 0 | C19: 0 | D19: 0 | E19: =SUM('Trip Generation'!$F79:$H79)*'Fixed Parameters'!D73 -> 0 | F19: =SUM('Trip Generation'!$F79:$H79)*'Fixed Parameters'!B78 -> 0 | G19: =SUM('Trip Generation'!$F79:$H79)*'Fixed Parameters'!C78 -> 0 | H19: =SUM('Trip Generation'!$F79:$H79)*'Fixed Parameters'!D78 -> 0 | I19: 0 | J19: 0 | K19: 0
A20: Total | C20: =SUM(C14:C19) -> 3.717 | D20: 9.95625 | E20: 4.02675 | F20: 0 | G20: 1.8 | H20: 1 | I20: 3.717 | J20: 11.75625 | K20: 5.02675
A23: Trip Purpose Distribution for Residential Only | D23: P/A Distribution of NCHRP Trips | K23: P/A Distribution of ITE Trips | R23: Total Trips
D24: Productions | G24: Attractions | K24: Productions | N24: Attractions
B25: Raw ITE Trips | D25: HBW | E25: HBO | F25: NHB | G25: HBW | H25: HBO | I25: NHB | K25: HBW | L25: HBO | M25: NHB | N25: HBW | O25: HBO | P25: NHB | R25: HBW | S25: HBO | T25: NHB | V25: Totally External NHB Vehicle Productions for Project Household VMT Calcs
A26: Daily | B26: =SUM('Trip Generation'!F44:F46) -> 13.3 | D26: =C14 -> 3.717 | E26: =D14 -> 9.95625 | F26: =E14*('Trip Generation'!$B$39+'Trip Generation'!$B$40) -> 1.6107 | G26: =F14 -> 0 | H26: =G14 -> 1.8 | I26: =H14 -> 1 | K26: =IF(SUM($D26:$I26)=0,0,$B26*D26/SUM($D26:$I26)) -> 2.733700325 | L26: 7.322411586 | M26: 1.184603474 | N26: 0 | O26: 1.323825823 | P26: 0.7354587908 | R26: =K26+N26 -> 2.733700325 | S26: 8.646237409 | T26: 1.920062265 | V26: =IF(SUM(D26:I26)=0,0,E14*'Trip Generation'!B41*B26/SUM(D26:I26)) -> 1.776905212 | W26: <== used NCHRP rate and counted all trips, but scaled by the same factor of total ITE trips / total NCHRP trips that is being used to the left
A27: AM Peak Hour | B27: =SUM('Trip Generation'!G$44:G$46) -> 1.02 | D27: =D$26*'Fixed Parameters'!C$66 -> 0.53246025 | E27: =E$26*'Fixed Parameters'!D$66 -> 0.5182228125 | F27: =F$26*'Fixed Parameters'!E$66 -> 0.02528799 | G27: =G$26*'Fixed Parameters'!C$66 -> 0 | H27: =H$26*'Fixed Parameters'!D$66 -> 0.09369 | I27: =I$26*'Fixed Parameters'!E$66 -> 0.0157 | K27: 0.4581806141 | L27: 0.4459293374 | M27: 0.02176024743 | N27: 0 | O27: 0.08061999321 | P27: 0.01350980781 | R27: 0.4581806141 | S27: 0.5265493306 | T27: 0.03527005524 | V27: =V$26*'Fixed Parameters'!E$66 -> 0.02789741182
A28: PM Peak Hour | B28: =SUM('Trip Generation'!H$44:H$46) -> 1.24 | D28: =D$26*'Fixed Parameters'!F$66 -> 0.428477175 | E28: =E$26*'Fixed Parameters'!G$66 -> 0.7250639062 | F28: =F$26*'Fixed Parameters'!H$66 -> 0.148748145 | G28: =G$26*'Fixed Parameters'!F$66 -> 0 | H28: =H$26*'Fixed Parameters'!G$66 -> 0.131085 | I28: =I$26*'Fixed Parameters'!H$66 -> 0.09235 | K28: 0.3482357348 | L28: 0.5892803092 | M28: 0.1208918995 | N28: 0 | O28: 0.1065365531 | P28: 0.0750555035 | R28: 0.3482357348 | S28: 0.6958168622 | T28: 0.195947403 | V28: =V$26*'Fixed Parameters'!H$66 -> 0.1640971963
D30: P/A Distribution of NCHRP Trips | K30: Percentages | R30: Total Trips
D31: Productions | G31: Attractions | K31: Productions | N31: Attractions
A32: Trip Purpose Distribution for Retail Only | B32: Raw ITE Trips | D32: HBW | E32: HBO | F32: NHB | G32: HBW | H32: HBO | I32: NHB | K32: HBW | L32: HBO | M32: NHB | N32: HBW | O32: HBO | P32: NHB | R32: HBW | S32: HBO | T32: NHB
A33: Daily | B33: =SUM('Trip Generation'!F49:F56) -> 0 | D33: =C15+C16 -> 0 | E33: 0 | F33: 0 | G33: =F15+F16 -> 0 | H33: 0 | I33: 0 | K33: =IF(SUM($D33:$I33)=0,0,$B33*D33/SUM($D33:$I33)) -> 0 | L33: 0 | M33: 0 | N33: 0 | O33: 0 | P33: 0 | R33: =K33+N33 -> 0 | S33: 0 | T33: 0
A34: AM Peak Hour | B34: =SUM('Trip Generation'!G$49:G$56) -> 0 | D34: =D$33*'Fixed Parameters'!C$66 -> 0 | E34: =E$33*'Fixed Parameters'!D$66 -> 0 | F34: =F$33*'Fixed Parameters'!E$66 -> 0 | G34: =G$33*'Fixed Parameters'!C$66 -> 0 | H34: =H$33*'Fixed Parameters'!D$66 -> 0 | I34: =I$33*'Fixed Parameters'!E$66 -> 0 | K34: 0 | L34: 0 | M34: 0 | N34: 0 | O34: 0 | P34: 0 | R34: 0 | S34: 0 | T34: 0
A35: PM Peak Hour | B35: =SUM('Trip Generation'!H$49:H$56) -> 0 | D35: =D$33*'Fixed Parameters'!F$66 -> 0 | E35: =E$33*'Fixed Parameters'!G$66 -> 0 | F35: =F$33*'Fixed Parameters'!H$66 -> 0 | G35: =G$33*'Fixed Parameters'!F$66 -> 0 | H35: =H$33*'Fixed Parameters'!G$66 -> 0 | I35: =I$33*'Fixed Parameters'!H$66 -> 0 | K35: 0 | L35: 0 | M35: 0 | N35: 0 | O35: 0 | P35: 0 | R35: 0 | S35: 0 | T35: 0
D37: P/A Distribution of NCHRP Trips | K37: Percentages | R37: Total Trips
D38: Productions | G38: Attractions | K38: Productions | N38: Attractions
A39: Trip Purpose Distribution for Office Only | B39: Raw ITE Trips | D39: HBW | E39: HBO | F39: NHB | G39: HBW | H39: HBO | I39: NHB | K39: HBW | L39: HBO | M39: NHB | N39: HBW | O39: HBO | P39: NHB | R39: HBW | S39: HBO | T39: NHB
A40: Daily | B40: =SUM('Trip Generation'!F$60:F$61) -> 0 | D40: =C17 -> 0 | E40: 0 | F40: 0 | G40: 0 | H40: 0 | I40: 0 | K40: =IF(SUM($D40:$I40)=0,0,$B40*D40/SUM($D40:$I40)) -> 0 | L40: 0 | M40: 0 | N40: 0 | O40: 0 | P40: 0 | R40: =K40+N40 -> 0 | S40: 0 | T40: 0
A41: AM Peak Hour | B41: =SUM('Trip Generation'!G$60:G$61) -> 0 | D41: =D$40*'Fixed Parameters'!C$66 -> 0 | E41: =E$40*'Fixed Parameters'!D$66 -> 0 | F41: =F$40*'Fixed Parameters'!E$66 -> 0 | G41: =G$40*'Fixed Parameters'!C$66 -> 0 | H41: =H$40*'Fixed Parameters'!D$66 -> 0 | I41: =I$40*'Fixed Parameters'!E$66 -> 0 | K41: 0 | L41: 0 | M41: 0 | N41: 0 | O41: 0 | P41: 0 | R41: 0 | S41: 0 | T41: 0
A42: PM Peak Hour | B42: =SUM('Trip Generation'!H$60:H$61) -> 0 | D42: =D$40*'Fixed Parameters'!F$66 -> 0 | E42: =E$40*'Fixed Parameters'!G$66 -> 0 | F42: =F$40*'Fixed Parameters'!H$66 -> 0 | G42: =G$40*'Fixed Parameters'!F$66 -> 0 | H42: =H$40*'Fixed Parameters'!G$66 -> 0 | I42: =I$40*'Fixed Parameters'!H$66 -> 0 | K42: 0 | L42: 0 | M42: 0 | N42: 0 | O42: 0 | P42: 0 | R42: 0 | S42: 0 | T42: 0
D44: P/A Distribution of NCHRP Trips | K44: Percentages | R44: Total Trips
D45: Productions | G45: Attractions | K45: Productions | N45: Attractions
A46: Trip Purpose Distribution for Industrial / Other Only | B46: Raw ITE Trips | D46: HBW | E46: HBO | F46: NHB | G46: HBW | H46: HBO | I46: NHB | K46: HBW | L46: HBO | M46: NHB | N46: HBW | O46: HBO | P46: NHB | R46: HBW | S46: HBO | T46: NHB
A47: Daily | B47: =SUM('Trip Generation'!F$65:F$72)+'Trip Generation'!B83 -> 0 | D47: =C18 -> 0 | E47: 0 | F47: 0 | G47: 0 | H47: 0 | I47: 0 | K47: =IF(SUM($D47:$I47)=0,0,$B47*D47/SUM($D47:$I47)) -> 0 | L47: 0 | M47: 0 | N47: 0 | O47: 0 | P47: 0 | R47: =K47+N47 -> 0 | S47: 0 | T47: 0
A48: AM Peak Hour | B48: =SUM('Trip Generation'!G$65:G$72)+'Trip Generation'!C$83 -> 0 | D48: =D$47*'Fixed Parameters'!C$66 -> 0 | E48: =E$47*'Fixed Parameters'!D$66 -> 0 | F48: =F$47*'Fixed Parameters'!E$66 -> 0 | G48: =G$47*'Fixed Parameters'!C$66 -> 0 | H48: =H$47*'Fixed Parameters'!D$66 -> 0 | I48: =I$47*'Fixed Parameters'!E$66 -> 0 | K48: 0 | L48: 0 | M48: 0 | N48: 0 | O48: 0 | P48: 0 | R48: 0 | S48: 0 | T48: 0
A49: PM Peak Hour | B49: =SUM('Trip Generation'!H$65:H$72)+'Trip Generation'!D$83 -> 0 | D49: =D$47*'Fixed Parameters'!F$66 -> 0 | E49: =E$47*'Fixed Parameters'!G$66 -> 0 | F49: =F$47*'Fixed Parameters'!H$66 -> 0 | G49: =G$47*'Fixed Parameters'!F$66 -> 0 | H49: =H$47*'Fixed Parameters'!G$66 -> 0 | I49: =I$47*'Fixed Parameters'!H$66 -> 0 | K49: 0 | L49: 0 | M49: 0 | N49: 0 | O49: 0 | P49: 0 | R49: 0 | S49: 0 | T49: 0
D51: No NCHRP distribution | K51: Percentages (formula is simpler - just using input splits) | R51: Total Trips
D52: Productions | G52: Attractions | K52: Productions | N52: Attractions
A53: Trip Purpose Distribution for School Only | B53: Raw ITE Trips | D53: HBW | E53: HBO | F53: NHB | G53: HBW | H53: HBO | I53: NHB | K53: HBW | L53: HBO | M53: NHB | N53: HBW | O53: HBO | P53: NHB | R53: HBW | S53: HBO | T53: NHB
A54: Daily | B54: =SUM('Trip Generation'!F$76:F$79) -> 0 | K54: =$B54*'Fixed Parameters'!B73 -> 0 | L54: =$B54*'Fixed Parameters'!C73 -> 0 | M54: =$B54*'Fixed Parameters'!D73 -> 0 | N54: =$B54*'Fixed Parameters'!B78 -> 0 | O54: =$B54*'Fixed Parameters'!C78 -> 0 | P54: =$B54*'Fixed Parameters'!D78 -> 0 | R54: =K54+N54 -> 0 | S54: 0 | T54: 0
A55: AM Peak Hour | B55: =SUM('Trip Generation'!G$76:G$79) -> 0 | K55: =$B55*'Fixed Parameters'!B74 -> 0 | L55: =$B55*'Fixed Parameters'!C74 -> 0 | M55: =$B55*'Fixed Parameters'!D74 -> 0 | N55: =$B55*'Fixed Parameters'!B79 -> 0 | O55: =$B55*'Fixed Parameters'!C79 -> 0 | P55: =$B55*'Fixed Parameters'!D79 -> 0 | R55: 0 | S55: 0 | T55: 0
A56: PM Peak Hour | B56: =SUM('Trip Generation'!H$76:H$79) -> 0 | K56: =$B56*'Fixed Parameters'!B75 -> 0 | L56: =$B56*'Fixed Parameters'!C75 -> 0 | M56: =$B56*'Fixed Parameters'!D75 -> 0 | N56: =$B56*'Fixed Parameters'!B80 -> 0 | O56: =$B56*'Fixed Parameters'!C80 -> 0 | P56: =$B56*'Fixed Parameters'!D80 -> 0 | R56: 0 | S56: 0 | T56: 0
D58: P/A Distribution of NCHRP Trips | K58: Percentages | R58: Total Trips (For Trip Generation)
D59: Productions | G59: Attractions | K59: Productions | N59: Attractions
A60: Total Trip Purpose Distribution for Project Site | B60: Raw ITE Trips | D60: HBW | E60: HBO | F60: NHB | G60: HBW | H60: HBO | I60: NHB | K60: HBW | L60: HBO | M60: NHB | N60: HBW | O60: HBO | P60: NHB | R60: HBW | S60: HBO | T60: NHB
A61: Daily | B61: =B26+B33+B40+B47+B54 -> 13.3 | D61: =D26+D33+D40+D47+D54 -> 3.717 | E61: 9.95625 | F61: 1.6107 | G61: 0 | H61: 1.8 | I61: 1 | K61: =K26+K33+K40+K47+K54 -> 2.733700325 | L61: 7.322411586 | M61: 1.184603474 | N61: 0 | O61: 1.323825823 | P61: 0.7354587908 | R61: =R26+R33+R40+R47+R54 -> 2.733700325 | S61: 8.646237409 | T61: 1.920062265
A62: AM Peak Hour | B62: =B27+B34+B41+B48+B55 -> 1.02 | D62: 0.53246025 | E62: 0.5182228125 | F62: 0.02528799 | G62: 0 | H62: 0.09369 | I62: 0.0157 | K62: 0.4581806141 | L62: 0.4459293374 | M62: 0.02176024743 | N62: 0 | O62: 0.08061999321 | P62: 0.01350980781 | R62: 0.4581806141 | S62: 0.5265493306 | T62: 0.03527005524
A63: PM Peak Hour | B63: =B28+B35+B42+B49+B56 -> 1.24 | D63: 0.428477175 | E63: 0.7250639062 | F63: 0.148748145 | G63: 0 | H63: 0.131085 | I63: 0.09235 | K63: 0.3482357348 | L63: 0.5892803092 | M63: 0.1208918995 | N63: 0 | O63: 0.1065365531 | P63: 0.0750555035 | R63: 0.3482357348 | S63: 0.6958168622 | T63: 0.195947403
A65: Summary of Trips subject to model trip reductions
A67: Total Trips subject to model trip reductions
B68: Raw ITE Trips | D68: HBW | E68: HBO | F68: NHB
A69: Daily | B69: =SUM(D69:F69) -> 13.3 | D69: =R61 -> 2.733700325 | E69: =S61 -> 8.646237409 | F69: 1.920062265
A70: AM Peak Hour | B70: =SUM(D70:F70) -> 1.02 | D70: =R62 -> 0.4581806141 | E70: 0.5265493306 | F70: 0.03527005524
A71: PM Peak Hour | B71: =SUM(D71:F71) -> 1.24 | D71: =R63 -> 0.3482357348 | E71: 0.6958168622 | F71: 0.195947403
A73: Model Variables and Log Odds Calculations
A75: MXD Total Population | B75: =SUMPRODUCT('Trip Generation'!B34:B36,'Trip Generation'!B44:B46) -> 5
A76: MXD Total Employment | B76: =SUM(B15:B19) -> 0
A78: Internal Capture Probability Model
A80: Variable | B80: Value | C80: Log | D80: Mean of log | E80: Normalized Value
A81: Employment within the MXD | B81: =B76 -> 0 | C81: =IF(B81=0,0,LN(B81)) -> 0 | D81: ='Fixed Parameters'!F10 -> 6.7 | E81: =C81-D81 -> -6.7
A82: MXD Area in Square Miles | B82: =PI_SiteArea/640 -> 7.03125 | C82: 1.950364499 | D82: ='Fixed Parameters'!F11 -> -1.59 | E82: 3.540364499
A83: Jobs / Population Diversity - index of jobs/population ratio compared to 0.2 | B83: =IFERROR(MAX(1-ABS(0.2*B75-B76)/(0.2*B75+B76),0.01),) -> 0.01 | C83: -4.605170186 | D83: ='Fixed Parameters'!F12 -> -1.44 | E83: -3.165170186
A84: Number of intersections per square mile within the MXD | B84: ='Trip Generation'!B26/PI_SiteArea*640 -> 0.8533333333 | C84: -0.1586050302 | D84: ='Fixed Parameters'!F13 -> 5.31 | E84: -5.46860503
A85: Average Household Size Within the MXD | B85: =IF(SUM('Trip Generation'!B44:B46)=0,EXP(D85),SUMPRODUCT('Trip Generation'!$B$34:$B$36,'Trip Generation'!B44:B46)/SUM('Trip Generation'!B44:B46)) -> 2.5 | C85: 0.9162907319 | D85: ='Fixed Parameters'!F14 -> 0.85 | E85: 0.06629073187
A86: Vehicles Owned per Capita within the MXD | B86: =IF(SUM('Trip Generation'!B44:B46)=0,EXP(D86),'Trip Generation'!B31/B85) -> 0.74 | C86: -0.3011050928 | D86: ='Fixed Parameters'!F15 -> -0.28 | E86: -0.02110509278
B88: HBW | C88: HBO | D88: NHB
A89: LOG ODDS | B89: ='Fixed Parameters'!B$9+SUMPRODUCT('Fixed Parameters'!B$10:B$15,$E$81:$E$86) -> -4.918523834 | C89: ='Fixed Parameters'!C$9+SUMPRODUCT('Fixed Parameters'!C$10:C$15,$E$81:$E$86) -> -4.372720754 | D89: ='Fixed Parameters'!D$9+SUMPRODUCT('Fixed Parameters'!D$10:D$15,$E$81:$E$86) -> -5.107950197
A91: Walking Trip Probability Model
A93: Variable | B93: Value | C93: Log | D93: Mean of log | E93: Normalized Value
A94: MXD Area in Square Miles | B94: =PI_SiteArea/640 -> 7.03125 | C94: =IF(B94=0,0,LN(B94)) -> 1.950364499 | D94: ='Fixed Parameters'!F22 -> -1.59 | E94: =C94-D94 -> 3.540364499
A95: Population + Employment per square mile within the MXD | B95: =(B75+B76)/B82 -> 0.7111111111 | C95: -0.340926587 | D95: ='Fixed Parameters'!F23 -> 9.28 | E95: -9.620926587
A96: Jobs / Population Diversity - index of jobs/population ratio compared to 0.2 | B96: =IFERROR(MAX(1-ABS(0.2*B75-B76)/(0.2*B75+B76),0.01),) -> 0.01 | C96: -4.605170186 | D96: ='Fixed Parameters'!F24 -> -1.44 | E96: -3.165170186
A97: Retail jobs / Population Diversity - index of retail jobs/population ratio compared to 0.05 | B97: =IF(B75+B15+B16=0,EXP(D97),MAX(1-ABS(0.05*B75-(B15+B16))/(0.05*B75+(B15+B16)),0.01)) -> 0.01 | C97: -4.605170186 | D97: ='Fixed Parameters'!F25 -> -1.43 | E97: -3.175170186
A98: Number of intersections per square mile within the MXD | B98: ='Trip Generation'!B26/PI_SiteArea*640 -> 0.8533333333 | C98: -0.1586050302 | D98: ='Fixed Parameters'!F26 -> 5.31 | E98: -5.46860503
A99: Employment in thousands within 1 mile of the MXD outside the MXD itself | B99: ='Trip Generation'!B29/1000 -> 5 | C99: 1.609437912 | D99: ='Fixed Parameters'!F27 -> 2.44 | E99: -0.8305620876
A100: Average Household Size Within the MXD | B100: =B85 -> 2.5 | C100: 0.9162907319 | D100: ='Fixed Parameters'!F28 -> 0.85 | E100: 0.06629073187
A101: Vehicles Owned per Capita within the MXD | B101: =B86 -> 0.74 | C101: -0.3011050928 | D101: ='Fixed Parameters'!F29 -> -0.28 | E101: -0.02110509278 | F101: Note: if there are no households, the normalized value is set to zero
B103: HBW | C103: HBO | D103: NHB
A104: LOG ODDS | B104: ='Fixed Parameters'!B$21+SUMPRODUCT('Fixed Parameters'!B$22:B$29,$E$94:$E$101) -> -5.080337944 | C104: ='Fixed Parameters'!C$21+SUMPRODUCT('Fixed Parameters'!C$22:C$29,$E$94:$E$101) -> -8.995342802 | D104: ='Fixed Parameters'!D$21+SUMPRODUCT('Fixed Parameters'!D$22:D$29,$E$94:$E$101) -> -12.02734674
A106: Transit Trip Probability Model
A108: Variable | B108: Value | C108: Log | D108: Mean of log | E108: Normalized Value
A109: Employment within the MXD | B109: =B76 -> 0 | C109: =IF(B109=0,0,LN(B109)) -> 0 | D109: ='Fixed Parameters'!F36 -> 6.7 | E109: =C109-D109 -> -6.7
A110: Number of intersections per square mile within the MXD | B110: ='Trip Generation'!B26/PI_SiteArea*640 -> 0.8533333333 | C110: =IF(B110=0,0,LN(B110)) -> -0.1586050302 | D110: ='Fixed Parameters'!F37 -> 5.31 | E110: =C110-D110 -> -5.46860503
A111: Employment in thousands within a 30 minute trip of the MXD by transit | B111: ='Trip Generation'!B30/1000 -> 20 | C111: =IF(B111=0,0,LN(B111*1000)) -> 9.903487553 | D111: ='Fixed Parameters'!F38 -> 8.41 | E111: =C111-D111 -> 1.493487553 | F111: Note: the log is taken of the actual employment (not employment / 1000)
A112: Average Household Size Within the MXD | B112: =B100 -> 2.5 | C112: =IF(B112=0,0,LN(B112)) -> 0.9162907319 | D112: ='Fixed Parameters'!F39 -> 0.85 | E112: =C112-D112 -> 0.06629073187 | F112: Note: if there are no households, the normalized value is set to zero
A113: Vehicles Owned per Capita within the MXD | B113: =B101 -> 0.74 | C113: =IF(B113=0,0,LN(B113)) -> -0.3011050928 | D113: ='Fixed Parameters'!F40 -> -0.28 | E113: =C113-D113 -> -0.02110509278
B115: HBW | C115: HBO | D115: NHB
A116: LOG ODDS | B116: ='Fixed Parameters'!B$35+SUMPRODUCT('Fixed Parameters'!B$36:B$40,$E$109:$E$113) -> -13.00795052 | C116: ='Fixed Parameters'!C$35+SUMPRODUCT('Fixed Parameters'!C$36:C$40,$E$109:$E$113) -> -4.577696673 | D116: ='Fixed Parameters'!D$35+SUMPRODUCT('Fixed Parameters'!D$36:D$40,$E$109:$E$113) -> -4.022296594

Sheet ROI Scenario (hidden)
A1: Physical Stats
A2: Housing Units / Hotel Rooms | B2: ='Physical Outputs'!D39 -> 2
A3: Jobs | B3: ='Physical Outputs'!E39 -> 0
A4: ="Net Rentable/Sellable "&'Metric Translation'!B7 -> Net Rentable/Sellable Square Feet | B4: ='Physical Outputs'!C39-'Physical Outputs'!C38 -> 3200
A5: ="Housing / Hotel Room Density (Per "&'Metric Translation'!B10&")" -> Housing / Hotel Room Density (Per Acre) | B5: ='Physical Outputs'!F39 -> 19.36
A6: ="Job Density (Per "&'Metric Translation'!B10&")" -> Job Density (Per Acre) | B6: ='Physical Outputs'!G39 -> 0
A7: FAR ◊ | B7: ='Physical Outputs'!B39/PI_SiteArea -> 0.7111111111
A8: FAR (Excluding Internal Parking) | B8: =SUM('Physical Outputs'!B29:B35)/'Physical Inputs'!B34 -> 0.7111111111
A9: Financial Stats
A10: Rental (Residential and Commercial) | B10: Target Return | C10: Actual Return
A11: IRR on Project Cost (Unleveraged Return) | B11: ='Mixed-Use Summary'!N6 -> 0.12 | C11: ='Mixed-Use Summary'!P6 -> 0
A12: Cash-on-Cash (After Year 3) | B12: ='Mixed-Use Summary'!N5 -> 0.12 | C12: ='Mixed-Use Summary'!P5 -> 0
A13: IRR on Investor Equity (Leveraged Return Before Tax) | B13: ='Mixed-Use Summary'!N7 -> 0.25 | C13: ='Mixed-Use Summary'!P7 -> 0
A14: Debt Service Coverage Ratio (Year 3) | B14: ='Mixed-Use Summary'!N8 -> 1.25 | C14: ='Mixed-Use Summary'!P8 -> 0
A15: IRR on Public Participation | B15: ='Mixed-Use Summary'!N9 -> 0.05 | C15: ='Mixed-Use Summary'!P9 -> 0
A16: Owner Residential | B16: Target Return | C16: Actual Return
A17: Project Rate of Return | B17: ='Mixed-Use Summary'!T5 -> 0.2 | C17: =IF(PI_OwnerRenter="Owner",'Mixed-Use Summary'!V5,"N/A") -> 0.1973543891
A18: Return to Equity | B18: ='Mixed-Use Summary'!T6 -> 0.75 | C18: =IF('ROI Scenario'!#REF!="Owner",'Mixed-Use Summary'!V6,"N/A") -> 
B19: Select Sensitivity Test ◊ : | C19: Residual Land Value | D19: Select Product Type ◊ : | E19: Residential Rental
A20: =IF(RS_Test="Residual Land Value","Land Value / Lot Area "&'Metric Translation'!B8,IF(RS_Test="Per Unit Impact Fee","Impact Fee (Per Unit)",IF(RS_Test="Per Employee Impact Fee","Impact Fee (Per Employee)",IF(RS_Test="Per Sqft Impact Fee","Impact Fee (Per Square Foot)",IF(RS_Seek="Residential Owner","Parking Spaces (Per Unit)",IF(RS_Seek="Residential Rental","Parking Spaces (Per Unit)","Parking Spaces (Per 1000 Square Feet)")))))) -> Land Value / Lot Area Square Foot | B20: =IF(RS_Seek="Residential Owner","Sales Price",IF(RS_Seek="Residential Rental","Rental Rate","Lease Rate"))&" Threshold" -> Rental Rate Threshold
A21: 0 | B21: 3.0395
A22: 20 | B22: 3.3035
A23: 40 | B23: 3.5673
A24: 80 | B24: 4.0938
A25: 100 | B25: 4.3583
A26: 150 | B26: 5.0121
A28: =IF(RS_Seek="Residential Owner","Sales Price",IF(RS_Seek="Residential Rental","Rental Rate","Lease Rate"))&" Function ◊" -> Rental Rate Function ◊
A29: Slope | B29: =LINEST(B21:B26,A21:A26) -> 0.01315553055
A30: Y-Intercept | B30: =INTERCEPT(B21:B26,A21:A26) -> 3.040640514
A31: =A28 -> Rental Rate Function ◊ | B31: ="Y = "&ROUND(B29,3)&"x +"&ROUND(B30,2) -> Y = 0.013x +3.04
A33: =RS_Test&" Calculator" -> Residual Land Value Calculator
A34: ="Target "&IF(RS_Seek="Residential Owner","Sales Price per Sqft.",IF(RS_Seek="Residential Rental","Rental Rate per Sqft.","Lease Rate (NNN)")) -> Target Rental Rate per Sqft. | B34: 1.5
A35: ="Maximum "&RS_Test -> Maximum Residual Land Value | B35: =(B34-B30)/B29 -> -117.1097212
A37: ="Required "&IF(RS_Seek="Residential Owner","Sales Price",IF(RS_Seek="Residential Rental","Rental Rate","Lease Rate"))&" Calculator ◊" -> Required Rental Rate Calculator ◊
A38: ="Target "&RS_Test -> Target Residual Land Value | B38: 10
A39: ="Minimum "&IF(RS_Seek="Residential Owner","Sales Price per Sqft.",IF(RS_Seek="Residential Rental","Rental Rate per Sqft.","Lease Rate (NNN)")) -> Minimum Rental Rate per Sqft. | B39: =(B29*B38)+B30 -> 3.17219582
A50: 300 | B50: 131.1579
A133: For selection: Do Not Alter
A134: =IF(AND(PI_ResPct>0,PI_OwnerRenter="Owner"),"Residential Owner","") -> Residential Owner | B134: =IF(ROWS(B$134:B134)>COUNTA($A$134:$A$141),"",INDEX($A$134:$A$141,SMALL(IF($A$134:$A$141<>"",ROW($A$134:$A$141)-ROW($A$134)+1),ROWS(B$134:B134)))) -> Residential Owner | C134: =IFERROR(INDEX($A$134:$A$141,_xlfn.AGGREGATE(15,6,(ROW($A$134:$A$141)-ROW($A$134)+1)/($A$134:$A$141<>""),ROWS(B$134:B134))),"") -> Residential Owner
A135: =IF(AND(PI_ResPct>0,PI_OwnerRenter="Renter"),"Residential Rental","") ->  | B135: =IF(ROWS(B$134:B135)>COUNTA($A$134:$A$141),"",INDEX($A$134:$A$141,SMALL(IF($A$134:$A$141<>"",ROW($A$134:$A$141)-ROW($A$134)+1),ROWS(B$134:B135)))) ->  | C135: =IFERROR(INDEX($A$134:$A$141,_xlfn.AGGREGATE(15,6,(ROW($A$134:$A$141)-ROW($A$134)+1)/($A$134:$A$141<>""),ROWS(B$134:B135))),"") -> 
A136: =IF(PI_RetPct>0,"Retail","") ->  | B136: =IF(ROWS(B$134:B136)>COUNTA($A$134:$A$141),"",INDEX($A$134:$A$141,SMALL(IF($A$134:$A$141<>"",ROW($A$134:$A$141)-ROW($A$134)+1),ROWS(B$134:B136)))) ->  | C136: =IFERROR(INDEX($A$134:$A$141,_xlfn.AGGREGATE(15,6,(ROW($A$134:$A$141)-ROW($A$134)+1)/($A$134:$A$141<>""),ROWS(B$134:B136))),"") -> 
A137: =IF(PI_OffPct>0,"Office","") ->  | B137: =IF(ROWS(B$134:B137)>COUNTA($A$134:$A$141),"",INDEX($A$134:$A$141,SMALL(IF($A$134:$A$141<>"",ROW($A$134:$A$141)-ROW($A$134)+1),ROWS(B$134:B137)))) ->  | C137: =IFERROR(INDEX($A$134:$A$141,_xlfn.AGGREGATE(15,6,(ROW($A$134:$A$141)-ROW($A$134)+1)/($A$134:$A$141<>""),ROWS(B$134:B137))),"") -> 
A138: =IF(PI_IndPct>0,"Industrial","") ->  | B138: =IF(ROWS(B$134:B138)>COUNTA($A$134:$A$141),"",INDEX($A$134:$A$141,SMALL(IF($A$134:$A$141<>"",ROW($A$134:$A$141)-ROW($A$134)+1),ROWS(B$134:B138)))) ->  | C138: =IFERROR(INDEX($A$134:$A$141,_xlfn.AGGREGATE(15,6,(ROW($A$134:$A$141)-ROW($A$134)+1)/($A$134:$A$141<>""),ROWS(B$134:B138))),"") -> 
A139: =IF(PI_PubPct>0,"Public/Civic","") ->  | B139: =IF(ROWS(B$134:B139)>COUNTA($A$134:$A$141),"",INDEX($A$134:$A$141,SMALL(IF($A$134:$A$141<>"",ROW($A$134:$A$141)-ROW($A$134)+1),ROWS(B$134:B139)))) ->  | C139: =IFERROR(INDEX($A$134:$A$141,_xlfn.AGGREGATE(15,6,(ROW($A$134:$A$141)-ROW($A$134)+1)/($A$134:$A$141<>""),ROWS(B$134:B139))),"") -> 
A140: =IF(PI_EduPct>0,"Education","") ->  | B140: =IF(ROWS(B$134:B140)>COUNTA($A$134:$A$141),"",INDEX($A$134:$A$141,SMALL(IF($A$134:$A$141<>"",ROW($A$134:$A$141)-ROW($A$134)+1),ROWS(B$134:B140)))) ->  | C140: =IFERROR(INDEX($A$134:$A$141,_xlfn.AGGREGATE(15,6,(ROW($A$134:$A$141)-ROW($A$134)+1)/($A$134:$A$141<>""),ROWS(B$134:B140))),"") -> 
A141: =IF(PI_HotelPct>0,"Hotel","") ->  | B141: =IF(ROWS(B$134:B141)>COUNTA($A$134:$A$141),"",INDEX($A$134:$A$141,SMALL(IF($A$134:$A$141<>"",ROW($A$134:$A$141)-ROW($A$134)+1),ROWS(B$134:B141)))) ->  | C141: =IFERROR(INDEX($A$134:$A$141,_xlfn.AGGREGATE(15,6,(ROW($A$134:$A$141)-ROW($A$134)+1)/($A$134:$A$141<>""),ROWS(B$134:B141))),"") -> 
C142: =$C$134:INDEX($C$134:$C$141,COUNTIF($C$134:$C$141,"?*")) -> Residential Owner
A146: For final rent curve calc: Do not alter
A147: 0 | B147: 0.8013
A148: 500 | B148: 126.5162
A150: For Product Type:
A151: =PI_ResPct -> 1 | B151: =IF(PI_OwnerRenter="Renter","Residential Rental","Residential Owner") -> Residential Owner | C151: =MAX(A151:A157) -> 1
A152: =PI_RetPct -> 0 | B152: Retail | C152: =MATCH(C151,A151:A157,0) -> 1
A153: =PI_OffPct -> 0 | B153: Office | C153: =INDEX(B151:B157,C152) -> Residential Owner
A154: =PI_IndPct -> 0 | B154: Industrial
A155: =PI_PubPct -> 0 | B155: Public/Civic
A156: =PI_EduPct -> 0 | B156: Education
A157: =PI_HotelPct -> 0 | B157: Motel

Sheet Green Infrastructure (hidden)
A1: Green Infrastructure Stats
A2: Impervious Cover | B2: =(PO_BuildingFootprint+PO_ParkingSf)/PI_SiteArea -> 0.4955555556
A3: Water quality capture depth (in) | C3: =IF(B30=A201,GI_Runoff_Coefficient*GI_rainfall_depth,IF(GI_Recharge_Zone="yes",(1.8*GI_Impervious_Cover+0.6),(0.5+GI_Impervious_Cover-0.2))) -> 0.496
A4: Water quality capture volume required (gal) | C4: =GI_capture_depth/12*PI_SiteArea*7.48 -> 1391.28
A5: Green Infrastructure Outputs | B5: Square feet | C5: Gallons Captured
A6: Landscape area (no stormwater feature) | B6: =PO_LandscapingSf-GI_Biofiltration_sf-GI_Rain_gardens_sf-B7 -> 2270
A7: Above-ground conventional facility | B7: =IF(GI_Conventional_underground="no",GI_Conventional_sf,0) -> 0
A8: Unbuildable Area | B8: ='Physical Outputs'!$C$24 -> 0
A9: Parking area next to building | B9: =PO_ParkingSf-IF(GI_Rainwater_harvesting_parking="yes",PO_ParkingSf,0) -> 630
A10: Building Footprint w/no green infrastructure | B10: =PO_BuildingFootprint-GI_Green_roof_sf-GI_Rainwater_harvesting_area+IF(GI_Rainwater_harvesting_parking="yes",PO_ParkingSf,0) -> 1600
A11: Green roof | B11: =IF(GI_Water_quality_fee_in_lieu="yes",0,GI_Green_roof_perc*PO_BuildingFootprint) -> 0 | C11: =GI_Green_roof_sf*GI_Green_roof_depth*GI_Green_roof_Eff*7.48 -> 0
A12: Green roof water harvesting area | B12: =IF(GI_Water_quality_fee_in_lieu="yes",0,IF(GI_Green_roof_water_harvesting="no",0,GI_Green_roof_sf)) -> 0 | C12: =GI_Green_roof_water_harvesting_area*GI_Green_roof_water_harvesting_depth*GI_Green_roof_water_harvesting_eff*7.48 -> 0
A13: Rainwater harvesting area ◊ | B13: =IF(GI_Water_quality_fee_in_lieu="yes",0,(IF((GI_Rainwater_harvesting_perc*PO_BuildingFootprint)>(PO_BuildingFootprint-GI_Green_roof_sf),(PO_BuildingFootprint-GI_Green_roof_sf),(GI_Rainwater_harvesting_perc*PO_BuildingFootprint))+IF(GI_Rainwater_harvesting_parking="no",0,PO_ParkingSf))) -> 0 | C13: =GI_Rainwater_harvesting_area*GI_Rainwater_harvesting_depth*GI_Rainwater_harvesting_eff*7.48 -> 0
A14: Biofiltration | B14: =IF(GI_Water_quality_fee_in_lieu="yes",0,GI_Biofiltration_perc*PO_LandscapingSf) -> 0 | C14: =GI_Biofiltration_sf*GI_Biofiltration_depth*GI_Biofiltration_eff*7.48 -> 0
A15: Rain gardens | B15: =IF(GI_Water_quality_fee_in_lieu="yes",0,IF(PO_LandscapingSf*B53>(PO_LandscapingSf-GI_Biofiltration_sf),PO_LandscapingSf-GI_Biofiltration_sf,PO_LandscapingSf*GI_Rain_garden_perc)) -> 0 | C15: =GI_Rain_gardens_sf*GI_Rain_garden_depth*GI_Rain_garden_eff*7.48 -> 0
A16: Total green infrastructure water capture | C16: =SUM(C11:C15) -> 0
A17: Conventional water quality facility | B17: =IF(GI_Water_quality_fee_in_lieu="yes",0,GI_Conventional_perc*PI_SiteArea) -> 0 | C17: =IF(GI_Water_quality_fee_in_lieu="yes",0,IF(C16<C4,C4-C16,0)) -> 0
A18: Financial Stats
A19: Rental (Residential and Commercial) | B19: Target Return | C19: Actual Return
A20: Cash-on-Cash (After Year 3) | B20: ='Mixed-Use Summary'!N5 -> 0.12 | C20: ='Mixed-Use Summary'!P5 -> 0
A21: IRR on Project Cost (Unleveraged Return) | B21: ='Mixed-Use Summary'!N6 -> 0.12 | C21: ='Mixed-Use Summary'!P6 -> 0
A22: IRR on Investor Equity (Leveraged Return Before Tax) | B22: ='Mixed-Use Summary'!N7 -> 0.25 | C22: ='Mixed-Use Summary'!P7 -> 0
A23: Debt Service Coverage Ratio (Year 3) | B23: ='Mixed-Use Summary'!N8 -> 1.25 | C23: ='Mixed-Use Summary'!P8 -> 0
A24: IRR on Public Participation | B24: ='Mixed-Use Summary'!N9 -> 0.05 | C24: ='Mixed-Use Summary'!P9 -> 0
A25: Owner Residential | B25: Target Return | C25: Actual Return
A26: Project Rate of Return | B26: ='Mixed-Use Summary'!T5 -> 0.2 | C26: =IF(PI_OwnerRenter="Owner",'Mixed-Use Summary'!V5,"N/A") -> 0.1973543891
A27: Return to Equity | B27: ='Mixed-Use Summary'!T6 -> 0.75 | C27: =IF(PI_OwnerRenter="Owner",'Mixed-Use Summary'!V6,"N/A") -> 0.9867719453
A28: Green Infrastructure & Stormwater Inputs ◊
A29: Stormwater Model | C29: Green Infrastructure Presets ◊
A30: Select model | B30: National -- simple method
A31: =IF(B30=A201,"","Located in Barton Springs Zone?") ->  | B31: no
A32: =IF(B30=A201,"Design storm rainfall depth?"&" ◊","") -> Design storm rainfall depth? ◊ | B32: 1
A33: Runoff Coefficient | B33: =IF(B30=A201,IF((0.05+0.9*GI_Impervious_Cover)<0.2,0.2,(0.05+0.9*GI_Impervious_Cover)),IF((GI_Recharge_Zone="yes"),(0.6072*GI_Impervious_Cover^2+0.2899*GI_Impervious_Cover+0.0075),(0.5463*GI_Impervious_Cover^2+0.328*GI_Impervious_Cover+0.0296))) -> 0.496
A35: Physical Inputs
A36: Percent of building footprint used as a Green Roof | C36: (enter percentage)
A37: Green roof media depth | B37: 1 | C37: ft
A38: Green roof capture efficiency | B38: 0.2 | C38: (enter percentage)
A39: Green roof connected to Rainwater Harvesting system
A40: Green roof water harvesting depth ◊ | B40: 1 | C40: ft
A41: Green roof water harvesting efficiency ◊ | B41: 0.45 | C41: (enter percentage)
A42: equivalent 7' X 8.5' cisterns | B42: =GI_Green_roof_rainwater_harvesting_volume/2500 -> 0
A43: Green roof area needed for harvested water ◊ | B43: =(GI_Green_roof_rainwater_harvesting_volume/7.48)/(0.005*(120-12)) -> 0 | C43: square feet
A44: Percent of building footprint used for Rainwater Harvesting (not inluded in green roof rainwater harvesting) ◊ | C44: (enter percentage)
A45: Rainwater harvesting depth ◊ | B45: 0.1 | C45: ft
A46: Rainwater harvesting efficiency | B46: 0.85 | C46: (enter percentage)
A47: Rainwater harvesting of parking area/structure ◊
A48: equivalent 7' x 8.5' cisterns | B48: =GI_Rainwater_harvesting_volume/2800 -> 0
A49: Landscaping area needed ◊ | B49: =(GI_Rainwater_harvesting_volume/7.48)/(0.005*(120-12)) -> 0 | C49: square feet
A50: Percent of landscaping/open space used for Biofiltration ◊ | C50: (enter percentage)
A51: Biofiltration media depth ◊ | B51: 4 | C51: ft
A52: Biofiltration capture efficiency | B52: 0.8 | C52: (enter percentage)
A53: Percent of landscaping/open space used for Rain Gardens ◊ | C53: (enter percentage)
A54: Rain garden depth ◊ | B54: 2 | C54: ft
A55: Rain garden capture efficiency | B55: 0.8 | C55: (enter percentage)
A56: % of site required for Conventional Facility ◊ | B56: =ROUND(C17/7.48/4/PI_SiteArea/GI_Conventional_eff,2) -> 0
A57: Underground? | B57: no
A58: Conventional Facility Capture Efficiency | B58: 0.92 | C58: (enter percentage)
A60: Stormwater & Green Infrastructure Cost per Gallon
A61: Green roof ◊ | B61: =AVERAGE(22,46) -> 34 | C61: =IF(GI_Water_quality_fee_in_lieu="yes",0,C11*B61) -> 0 | D61: total
A62: Biofiltration | B62: =AVERAGE(1,6) -> 3.5 | C62: =IF(GI_Water_quality_fee_in_lieu="yes",0,C14*B62) -> 0 | D62: total
A63: Rain gardens | B63: =AVERAGE(3,6) -> 4.5 | C63: =IF(GI_Water_quality_fee_in_lieu="yes",0,C15*B63) -> 0 | D63: total
A64: Rainwater harvesting | B64: =AVERAGE(1,7) -> 4 | C64: =IF(GI_Water_quality_fee_in_lieu="yes",0,(C12+C13)*B64) -> 0 | D64: total
A65: Conventional above ground ◊ | B65: 6.1 | C65: =IF(GI_Water_quality_fee_in_lieu="yes",0,IF(B57="no",C17*B65,0)) -> 0 | D65: total
A66: Conventional underground ◊ | B66: 10.5 | C66: =IF(GI_Water_quality_fee_in_lieu="yes",0,IF(B57="yes",C17*B66,0)) -> 0 | D66: total
A67: Mitigation fee/Fee-in-lieu only? ◊ | B67: yes | C67: 0 | D67: enter amount
A68: Total cost | C68: =SUM(C61:C67) -> 0
A69: Source: The Costs of LID: Low-impact-development BMP installation and operation and maintenance costs in Orange County, CA
A70: Source: Costs of Urban Stormwater Control Practices, adjusted costs
A71: Source: Sand and Organic Filter, NPDES, USEPA, adjusted costs
A73: Pollutant Loads
A74: Annual Rainfall | B74: 32.5 | C74: in
A75: =IF(B30=A201,"% of annual rainfall producing runoff"&" ◊","◊") -> % of annual rainfall producing runoff ◊ | B75: 0.9 | C75: (enter percentage)
A76: Total Sususpended Solids (TSS) reduction ◊ | B76: =L94 -> 0
A77: Total Nitrogen (TN) reduction ◊ | B77: =L100 -> 0
A78: Total Lead (TL) reduction ◊ | B78: =L106 -> 0
A79: F.Coli Reduction ◊ | B79: =L112 -> 0
A80: Total key pollutants removed (TSS, TN, TL) | B80: =IFERROR(K94+K100+K106,0) -> 0 | C80: lbs/yr
A82: Annual Runoff | B82: =IF(B30=A200,GI_Annual_Rainfall*GI_Runoff_Coefficient,GI_Annual_Rainfall*GI_runoff_frequency*GI_Runoff_Coefficient) -> 14.508 | C82: in
A83: Building Type | B83: =IF(PI_IndPct>0,"Industrial",IF(MATCH(PI_ResType,PI_ResTypes,0)<3,"Residential","Commercial")) -> Residential
A84: Captured Volume Assumed Treated | B84: 0.92
A85: Treatment Allocations for Landscape Devices
A86: Biofiltration | B86: =IFERROR((GI_Biofiltration_volume/(GI_Biofiltration_volume+GI_Raingarden_volume+GI_Conventional_volume)),0) -> 0
A87: Rain Gardens | B87: =IFERROR((GI_Raingarden_volume/(GI_Biofiltration_volume+GI_Raingarden_volume+GI_Conventional_volume)),0) -> 0
A88: Conventional water quality facility | B88: =IFERROR((GI_Conventional_volume/(GI_Biofiltration_volume+GI_Raingarden_volume+GI_Conventional_volume)),0) -> 0
E89: Treated by | K89: % Reduction
A90: Total Suspended Solids | B90: Pollutant Concentration (C ) (mg/l) | C90: Area (sf) | D90: Annual Load (lbs) | E90: Green Roof | F90: Green Roof w/Cistern | G90: Water Harvesting | H90: Biofiltration | I90: Rain Gardens | J90: Sed/Sand Filter | K90: Total (lbs)
A91: Building | B91: =VLOOKUP($B$83,$A$117:$G$119,IF($B$30=$C$116,3,2),FALSE) -> 19 | C91: =PO_BuildingFootprint -> 1600 | D91: =0.226*GI_annual_runoff_in*B91*(C91/43560) -> 2.288240661 | E91: =IF(GI_Green_roof_water_harvesting_area>0,0,0.226*GI_annual_runoff_in*B91*($B$11/43560)*GI_vol_treated_perc*B141) -> 0 | F91: =0.226*GI_annual_runoff_in*B91*(GI_Green_roof_water_harvesting_area/43560)*GI_vol_treated_perc*B142 -> 0 | G91: =0.226*GI_annual_runoff_in*B91*((GI_Rainwater_harvesting_area-IF(GI_Rainwater_harvesting_parking="yes",PO_ParkingSf,0))/43560)*GI_vol_treated_perc*B145 -> 0 | H91: =0.226*GI_annual_runoff_in*B91*(C91-GI_Green_roof_sf-(GI_Rainwater_harvesting_area-IF(GI_Rainwater_harvesting_parking="yes",PO_ParkingSf)))/43560*B86*GI_vol_treated_perc*$B143 -> 0 | I91: =0.226*GI_annual_runoff_in*B91*(C91-GI_Green_roof_sf-(GI_Rainwater_harvesting_area-IF(GI_Rainwater_harvesting_parking="yes",PO_ParkingSf,0)))/43560*B87*GI_vol_treated_perc*$B144 -> 0 | J91: =0.226*GI_annual_runoff_in*B91*(C91-GI_Green_roof_sf-(GI_Rainwater_harvesting_area-IF(GI_Rainwater_harvesting_parking="yes",PO_ParkingSf)))/43560*B88*GI_vol_treated_perc*$B146 -> 0 | K91: =SUM(E91:J91) -> 0
A92: Landscaping | B92: =VLOOKUP($B$83,$A$117:$G$119,IF($B$30=$E$116,5,4),FALSE) -> 602 | C92: =PO_LandscapingSf -> 2270 | D92: =0.226*$B$82*B92*(C92/43560) -> 102.860934 | H92: =0.226*GI_annual_runoff_in*B92*((GI_Biofiltration_sf/43560)+(((C92-GI_Biofiltration_sf-GI_Rain_gardens_sf-GI_Conventional_sf)/43560))*B86)*GI_vol_treated_perc*B143 -> 0 | I92: =0.226*GI_annual_runoff_in*B92*((GI_Rain_gardens_sf/43560)+(((C92-GI_Biofiltration_sf-GI_Rain_gardens_sf-GI_Conventional_sf)/43560))*B87)*GI_vol_treated_perc*B144 -> 0 | J92: =0.226*GI_annual_runoff_in*B92*((GI_Conventional_sf/43560)+(((C92-GI_Biofiltration_sf-GI_Rain_gardens_sf-GI_Conventional_sf)/43560))*B88)*GI_vol_treated_perc*B146 -> 0 | K92: =SUM(E92:J92) -> 0
A93: Parking | B93: =VLOOKUP($B$83,$A$117:$G$119,IF($B$30=$G116,7,6),FALSE) -> 173 | C93: =PO_ParkingSf -> 630 | D93: =0.226*$B$82*B93*(C93/43560) -> 8.203794397 | G93: =IF(GI_Rainwater_harvesting_parking="yes",(0.226*GI_annual_runoff_in*B93*PO_ParkingSf/43560),0)*GI_vol_treated_perc*B145 -> 0 | H93: =IF(GI_Rainwater_harvesting_parking="yes",0,D93*B86*GI_vol_treated_perc*B143) -> 0 | I93: =IF(GI_Rainwater_harvesting_parking="yes",0,D93*B87*GI_vol_treated_perc*B144) -> 0 | J93: =IF(GI_Rainwater_harvesting_parking="yes",0,D93*B88*GI_vol_treated_perc*B146) -> 0 | K93: =SUM(E93:J93) -> 0
C94: =SUM(C91:C93) -> 4500 | D94: 113.352969 | E94: 0 | F94: 0 | G94: 0 | H94: 0 | I94: 0 | J94: 0 | K94: 0 | L94: =IF(GI_Water_quality_fee_in_lieu="yes",0,IFERROR(K94/D94,)) -> 0
A96: Total Nitrogen | B96: C (mg/l) | C96: Area (sf) | D96: Annual Load (lbs) | E96: Green Roof | F96: Green Roof w/Cistern | G96: Water Harvesting | H96: Biofiltration | I96: Rain Gardens | J96: Sed/Sand Filter | K96: Total (lbs)
A97: Building | B97: =VLOOKUP($B$83,$A$123:$G$125,IF($B$30=$C$122,3,2),FALSE) -> 1.5 | C97: =PO_BuildingFootprint -> 1600 | D97: =0.226*$B$82*B97*(C97/43560) -> 0.1806505785 | E97: =IF($B$39="yes",0,0.226*GI_annual_runoff_in*B97*($B$11/43560)*GI_vol_treated_perc*C141) -> 0 | F97: =0.226*GI_annual_runoff_in*B97*(GI_Green_roof_water_harvesting_area/43560)*GI_vol_treated_perc*C142 -> 0 | G97: =0.226*GI_annual_runoff_in*B97*((GI_Rainwater_harvesting_area-IF(GI_Rainwater_harvesting_parking="yes",PO_ParkingSf,0))/43560)*GI_vol_treated_perc*C145 -> 0 | H97: =0.226*GI_annual_runoff_in*B97*(C97-GI_Green_roof_sf-(GI_Rainwater_harvesting_area-IF(GI_Rainwater_harvesting_parking="yes",PO_ParkingSf)))/43560*$B$86*GI_vol_treated_perc*C143 -> 0 | I97: =0.226*GI_annual_runoff_in*B97*(C97-GI_Green_roof_sf-(GI_Rainwater_harvesting_area-IF(GI_Rainwater_harvesting_parking="yes",PO_ParkingSf)))/43560*$B$87*GI_vol_treated_perc*C144 -> 0 | J97: =0.226*GI_annual_runoff_in*B97*(C97-GI_Green_roof_sf-(GI_Rainwater_harvesting_area-IF(GI_Rainwater_harvesting_parking="yes",PO_ParkingSf)))/43560*$B$88*GI_vol_treated_perc*C146 -> 0 | K97: =SUM(E97:J97) -> 0
A98: Landscaping | B98: =VLOOKUP($B$83,$A$123:$G$125,IF($B$30=$E$122,5,4),FALSE) -> 9.1 | C98: =PO_LandscapingSf -> 2270 | D98: =0.226*$B$82*B98*(C98/43560) -> 1.554874583 | H98: =0.226*GI_annual_runoff_in*B98*((GI_Biofiltration_sf/43560)+(((C98-GI_Biofiltration_sf-GI_Rain_gardens_sf-GI_Conventional_sf)/43560))*B86)*GI_vol_treated_perc*C143 -> 0 | I98: =0.226*GI_annual_runoff_in*B98*((GI_Rain_gardens_sf/43560)+(((C98-GI_Biofiltration_sf-GI_Rain_gardens_sf-GI_Conventional_sf)/43560))*B87)*GI_vol_treated_perc*C144 -> 0 | J98: =0.226*GI_annual_runoff_in*B98*((GI_Conventional_sf/43560)+(((C98-GI_Biofiltration_sf-GI_Rain_gardens_sf-GI_Conventional_sf)/43560))*B88)*GI_vol_treated_perc*C146 -> 0 | K98: =SUM(E98:J98) -> 0
A99: Parking | B99: =VLOOKUP($B$83,$A$123:$G$125,IF($B$30=$G$122,7,6),FALSE) -> 2.1 | C99: =PO_ParkingSf -> 630 | D99: =0.226*$B$82*B99*(C99/43560) -> 0.0995836314 | G99: =IF(GI_Rainwater_harvesting_parking="yes",(0.226*GI_annual_runoff_in*B99*PO_ParkingSf/43560),0)*GI_vol_treated_perc*C145 -> 0 | H99: =IF(GI_Rainwater_harvesting_parking="yes",0,D99*$B$86*GI_vol_treated_perc*C$143) -> 0 | I99: =IF(GI_Rainwater_harvesting_parking="yes",0,D99*$B$87*GI_vol_treated_perc*C$144) -> 0 | J99: =IF(GI_Rainwater_harvesting_parking="yes",0,D99*$B$88*GI_vol_treated_perc*C146) -> 0 | K99: =SUM(E99:J99) -> 0
C100: =SUM(C97:C99) -> 4500 | D100: 1.835108793 | E100: 0 | F100: 0 | G100: 0 | H100: 0 | I100: 0 | J100: 0 | K100: 0 | L100: =IF(GI_Water_quality_fee_in_lieu="yes",0,IFERROR(K100/D100,)) -> 0
A102: Lead (Pb) | B102: C (mg/l) | C102: Area (sf) | D102: Annual Load (lbs) | E102: Green Roof | F102: Green Roof w/Cistern | G102: Water Harvesting | H102: Biofiltration | I102: Rain Gardens | J102: Sed/Sand Filter | K102: Total (lbs)
A103: Building | B103: =VLOOKUP($B$83,$A$129:$G$131,IF($B$30=$C$128,3,2),FALSE) -> 0.021 | C103: =PO_BuildingFootprint -> 1600 | D103: =0.226*$B$82*B103*(C103/43560) -> 0.002529108099 | E103: =IF($B$39="yes",0,0.226*GI_annual_runoff_in*B103*($B$11/43560)*GI_vol_treated_perc*D141) -> 0 | F103: =0.226*GI_annual_runoff_in*B103*(GI_Green_roof_water_harvesting_area/43560)*GI_vol_treated_perc*D142 -> 0 | G103: =0.226*GI_annual_runoff_in*B103*((GI_Rainwater_harvesting_area-IF(GI_Rainwater_harvesting_parking="yes",PO_ParkingSf,0))/43560)*GI_vol_treated_perc*D145 -> 0 | H103: =0.226*GI_annual_runoff_in*B103*(C103-GI_Green_roof_sf-(GI_Rainwater_harvesting_area-IF(GI_Rainwater_harvesting_parking="yes",PO_ParkingSf)))/43560*$B$86*GI_vol_treated_perc*D143 -> 0 | I103: =0.226*GI_annual_runoff_in*B103*(C103-GI_Green_roof_sf-(GI_Rainwater_harvesting_area-IF(GI_Rainwater_harvesting_parking="yes",PO_ParkingSf)))/43560*$B$87*GI_vol_treated_perc*D144 -> 0 | J103: =0.226*GI_annual_runoff_in*B103*(C103-GI_Green_roof_sf-(GI_Rainwater_harvesting_area-IF(GI_Rainwater_harvesting_parking="yes",PO_ParkingSf)))/43560*$B$88*GI_vol_treated_perc*D146 -> 0 | K103: =SUM(E103:J103) -> 0
A104: Landscaping | B104: =VLOOKUP($B$83,$A$129:$G$131,IF($B$30=$E$128,5,4),FALSE) -> 0.017 | C104: =PO_LandscapingSf -> 2270 | D104: =0.226*$B$82*B104*(C104/43560) -> 0.00290471076 | H104: =0.226*GI_annual_runoff_in*B104*((GI_Biofiltration_sf/43560)+(((C104-GI_Biofiltration_sf-GI_Rain_gardens_sf-GI_Conventional_sf)/43560))*B86)*GI_vol_treated_perc*D143 -> 0 | I104: =0.226*GI_annual_runoff_in*B104*((GI_Rain_gardens_sf/43560)+(((C104-GI_Biofiltration_sf-GI_Rain_gardens_sf-GI_Conventional_sf)/43560))*B87)*GI_vol_treated_perc*D144 -> 0 | J104: =0.226*GI_annual_runoff_in*B104*((GI_Conventional_sf/43560)+(((C104-GI_Biofiltration_sf-GI_Rain_gardens_sf-GI_Conventional_sf)/43560))*B88)*GI_vol_treated_perc*D146 -> 0 | K104: =SUM(E104:J104) -> 0
A105: Parking | B105: =VLOOKUP($B$83,$A$129:$G$131,IF($B$30=$G128,7,6),FALSE) -> 0 | C105: =PO_ParkingSf -> 630 | D105: =0.226*$B$82*B105*(C105/43560) -> 0 | G105: =IF(GI_Rainwater_harvesting_parking="yes",(0.226*GI_annual_runoff_in*B105*PO_ParkingSf/43560),0)*GI_vol_treated_perc*D145 -> 0 | H105: =IF(GI_Rainwater_harvesting_parking="yes",0,D105*$B$86*GI_vol_treated_perc*D$143) -> 0 | I105: =IF(GI_Rainwater_harvesting_parking="yes",0,D105*$B$87*GI_vol_treated_perc*D$144) -> 0 | J105: =IF(GI_Rainwater_harvesting_parking="yes",0,D105*$B$88*GI_vol_treated_perc*D146) -> 0 | K105: =SUM(E105:J105) -> 0
C106: =SUM(C103:C105) -> 4500 | D106: 0.00543381886 | E106: 0 | F106: 0 | G106: 0 | H106: 0 | I106: 0 | J106: 0 | K106: 0 | L106: =IF(GI_Water_quality_fee_in_lieu="yes",0,IFERROR(K106/D106,)) -> 0
A108: F Coli Colonies (Billion colonies) | B108: C (1,000 colonies/ml) | C108: Area (sf) | D108: Annual Load (bil. colonies) | E108: Green Roof | F108: Green Roof w/Cistern | G108: Water Harvesting | H108: Biofiltration | I108: Rain Gardens | J108: Sed/Sand Filter | K108: Total (bil. colonies)
A109: Building | B109: =VLOOKUP($B$83,$A$135:$G$137,IF($B$30=$C$134,3,2),FALSE) -> 0.26 | C109: =PO_BuildingFootprint -> 1600 | D109: =103*$B$82*B109*(C109/43560) -> 14.27086281 | E109: =IF($B$39="yes",0,103*GI_annual_runoff_in*B109*($B$11/43560)*GI_vol_treated_perc*E141) -> 0 | F109: =103*GI_annual_runoff_in*B109*(GI_Green_roof_water_harvesting_area/43560)*GI_vol_treated_perc*E142 -> 0 | G109: =103*GI_annual_runoff_in*B109*((GI_Rainwater_harvesting_area-IF(GI_Rainwater_harvesting_parking="yes",PO_ParkingSf,0))/43560)*GI_vol_treated_perc*E145 -> 0 | H109: =103*GI_annual_runoff_in*B109*(C109-GI_Green_roof_sf-(GI_Rainwater_harvesting_area-IF(GI_Rainwater_harvesting_parking="yes",PO_ParkingSf)))/43560*$B$86*GI_vol_treated_perc*E143 -> 0 | I109: =103*GI_annual_runoff_in*B109*(C109-GI_Green_roof_sf-(GI_Rainwater_harvesting_area-IF(GI_Rainwater_harvesting_parking="yes",PO_ParkingSf)))/43560*$B$87*GI_vol_treated_perc*E144 -> 0 | J109: =103*GI_annual_runoff_in*B109*(C109-GI_Green_roof_sf-(GI_Rainwater_harvesting_area-IF(GI_Rainwater_harvesting_parking="yes",PO_ParkingSf)))/43560*$B$88*GI_vol_treated_perc*E146 -> 0 | K109: =SUM(E109:J109) -> 0
A110: Landscaping | B110: =VLOOKUP($B$83,$A$135:$G$137,IF($B$30=$E$134,5,4),FALSE) -> 24 | C110: =PO_LandscapingSf -> 2270 | D110: =103*$B$82*B110*(C110/43560) -> 1868.934149 | H110: =103*GI_annual_runoff_in*B110*((GI_Biofiltration_sf/43560)+(((C110-GI_Biofiltration_sf-GI_Rain_gardens_sf-GI_Conventional_sf)/43560))*B86)*GI_vol_treated_perc*E143 -> 0 | I110: =103*GI_annual_runoff_in*B110*((GI_Rain_gardens_sf/43560)+(((C110-GI_Biofiltration_sf-GI_Rain_gardens_sf-GI_Conventional_sf)/43560))*B87)*GI_vol_treated_perc*E144 -> 0 | J110: =103*GI_annual_runoff_in*B110*((GI_Conventional_sf/43560)+(((C110-GI_Biofiltration_sf-GI_Rain_gardens_sf-GI_Conventional_sf)/43560))*B88)*GI_vol_treated_perc*E146 -> 0 | K110: =SUM(E110:J110) -> 0
A111: Parking | B111: =VLOOKUP($B$83,$A$135:$G$137,IF($B$30=$G134,7,6),FALSE) -> 17 | C111: =PO_ParkingSf -> 630 | D111: =103*$B$82*B111*(C111/43560) -> 367.4061074 | G111: =IF(GI_Rainwater_harvesting_parking="yes",(0.226*GI_annual_runoff_in*B111*PO_ParkingSf/43560),0)*GI_vol_treated_perc*E145 -> 0 | H111: =IF(GI_Rainwater_harvesting_parking="yes",0,D111*$B$86*GI_vol_treated_perc*E$143) -> 0 | I111: =IF(GI_Rainwater_harvesting_parking="yes",0,D111*$B$87*GI_vol_treated_perc*E$144) -> 0 | J111: =IF(GI_Rainwater_harvesting_parking="yes",0,D111*$B$88*GI_vol_treated_perc*E146) -> 0 | K111: =SUM(E111:J111) -> 0
C112: =SUM(C109:C111) -> 4500 | D112: 2250.611119 | E112: 0 | F112: 0 | G112: 0 | H112: 0 | I112: 0 | J112: 0 | K112: 0 | L112: =IF(GI_Water_quality_fee_in_lieu="yes",0,IFERROR(K112/D112,)) -> 0
A114: Lookup Tables
A115: Total Suspended Solids (mg/l) | B115: Building | D115: Landscaping | F115: Parking
A116: Type | B116: =$A$201 -> National -- simple method | C116: =$A$200 -> Local (Austin) | D116: =$A$201 -> National -- simple method | E116: =$A$200 -> Local (Austin) | F116: =$A$201 -> National -- simple method | G116: =$A$200 -> Local (Austin)
A117: Residential | B117: 19 | C117: =IF(GI_Impervious_Cover<=0.15,82.5,110) -> 110 | D117: 602 | E117: =IF(GI_Impervious_Cover<=0.15,82.5,110) -> 110 | F117: 173 | G117: =IF(GI_Impervious_Cover<=0.15,82.5,110) -> 110
A118: Commercial | B118: 9 | C118: =IF(GI_Impervious_Cover<=0.15,82.5,110) -> 110 | D118: 37 | E118: =IF(GI_Impervious_Cover<=0.15,82.5,110) -> 110 | F118: 27 | G118: =IF(GI_Impervious_Cover<=0.15,82.5,110) -> 110
A119: Industrial | B119: 17 | C119: =IF(GI_Impervious_Cover<=0.15,82.5,110) -> 110 | D119: 37 | E119: =IF(GI_Impervious_Cover<=0.15,82.5,110) -> 110 | F119: 228 | G119: =IF(GI_Impervious_Cover<=0.15,82.5,110) -> 110
A121: Total Nitrogen (mg/l) | B121: Building | D121: Landscaping | F121: Parking
A122: Type | B122: =$A$201 -> National -- simple method | C122: =$A$200 -> Local (Austin) | D122: =$A$201 -> National -- simple method | E122: =$A$200 -> Local (Austin) | F122: =$A$201 -> National -- simple method | G122: =$A$200 -> Local (Austin)
A123: Residential | B123: 1.5 | C123: =IF(GI_Impervious_Cover<=0.15,1.27, 2) -> 2 | D123: 9.1 | E123: =IF(GI_Impervious_Cover<=0.15,1.27, 2) -> 2 | F123: 2.1 | G123: =IF(GI_Impervious_Cover<=0.15,1.27, 2) -> 2
A124: Commercial | B124: 2.1 | C124: =IF(PI_ResType="Multifamily",IF(GI_Impervious_Cover<=0.15,0.97,1.4),IF(GI_Impervious_Cover<=0.15,1.18,1.82)) -> 1.82 | D124: 0 | E124: =IF(PI_ResType="Multifamily",IF(GI_Impervious_Cover<=0.15,0.97,1.4),IF(GI_Impervious_Cover<=0.15,1.18,1.82)) -> 1.82 | F124: 1.9 | G124: =IF(PI_ResType="Multifamily",IF(GI_Impervious_Cover<=0.15,0.97,1.4),IF(GI_Impervious_Cover<=0.15,1.18,1.82)) -> 1.82
A125: Industrial | B125: 0 | C125: =IF(GI_Impervious_Cover<=0.15,1.18,1.82) -> 1.82 | D125: 0 | E125: =IF(GI_Impervious_Cover<=0.15,1.18,1.82) -> 1.82 | F125: 0 | G125: =IF(GI_Impervious_Cover<=0.15,1.18,1.82) -> 1.82
A127: Lead (Pb) (mg/l) | B127: Building | D127: Landscaping | F127: Parking
A128: Type | B128: =$A$201 -> National -- simple method | C128: =$A$200 -> Local (Austin) | D128: =$A$201 -> National -- simple method | E128: =$A$200 -> Local (Austin) | F128: =$A$201 -> National -- simple method | G128: =$A$200 -> Local (Austin)
A129: Residential | B129: 0.021 | C129: =IF(GI_Impervious_Cover<=0.15,0.012, 0.02) -> 0.02 | D129: 0.017 | E129: =IF(GI_Impervious_Cover<=0.15,0.012, 0.02) -> 0.02 | F129: 0 | G129: =IF(GI_Impervious_Cover<=0.15,0.012, 0.02) -> 0.02
A130: Commercial | B130: 0.017 | C130: =IF(PI_ResType="Multifamily",IF(GI_Impervious_Cover<=0.15,0.012,0.02),IF(GI_Impervious_Cover<=0.15,0.017,0.03)) -> 0.03 | D130: 0.029 | E130: =IF(PI_ResType="Multifamily",IF(GI_Impervious_Cover<=0.15,0.012,0.02),IF(GI_Impervious_Cover<=0.15,0.017,0.03)) -> 0.03 | F130: 0.028 | G130: =IF(PI_ResType="Multifamily",IF(GI_Impervious_Cover<=0.15,0.012,0.02),IF(GI_Impervious_Cover<=0.15,0.017,0.03)) -> 0.03
A131: Industrial | B131: 0.043 | C131: =IF(GI_Impervious_Cover<=0.15,0.017,0.03) -> 0.03 | D131: 0.029 | E131: =IF(GI_Impervious_Cover<=0.15,0.017,0.03) -> 0.03 | F131: 0.085 | G131: =IF(GI_Impervious_Cover<=0.15,0.017,0.03) -> 0.03
A133: F Coli (1,000 colonies/ml) | B133: Building | D133: Landscaping | F133: Parking
A134: Type | B134: =$A$201 -> National -- simple method | C134: =$A$200 -> Local (Austin) | D134: =$A$201 -> National -- simple method | E134: =$A$200 -> Local (Austin) | F134: =$A$201 -> National -- simple method | G134: =$A$200 -> Local (Austin)
A135: Residential | B135: 0.26 | C135: 26 | D135: 24 | E135: 24 | F135: 17 | G135: 17
A136: Commercial | B136: 1.1 | C136: 1.1 | D136: 94 | E136: 94 | F136: 1.8 | G136: 1.8
A137: Industrial | B137: 5.8 | C137: 5.8 | D137: 94 | E137: 94 | F137: 2.7 | G137: 2.7
A138: Sources: New York State Stormwater Management Design Manual, | B138: City of Austin, Environmental Criteria Manual, Section 1.6
A140: Treatment Efficiencies | B140: TSS | C140: TN | D140: Pb | E140: F Coli
A141: Green Roof | B141: 0 | C141: 0 | D141: 0 | E141: 0
A142: Green Roof with Cistern Harvesting | B142: 1 | C142: 1 | D142: 1 | E142: 1
A143: Biofiltration | B143: 0.915 | C143: 0.56 | D143: 0.8 | E143: 0.916
A144: Rain gardens | B144: 0.9 | C144: 0.5 | D144: 0.85 | E144: 0.8
A145: Water Harvesting | B145: 0.9 | C145: 0.9 | D145: 0.9 | E145: 0.9
A146: Sed/Sand Filter | B146: 0.87 | C146: 0.31 | D146: 0.8 | E146: 0.36
A148: References
A149: Practice | B149: Green Roof | C149: Green Roof with Cistern Harvesting | D149: Biofiltration | E149: Rain gardens | F149: Sed/Sand Filter
A150: TSS | B150: Minnesota Stormwater Manual | C150: WPD_BSZ_Load_Model_Draft_2007.02.8 | D150: Rusciano and Opropta, 2007 | E150: LID National Manual, 1990. | F150: City of Austin, Environmental Criteria Manual, Section 1.6
B151: Dietz, 2007 | C151: Hardin and Wanielista, 2007 | D151: EPA, 1999, "Bioretention" | E151: Li, Kim, Sung, Chu, 2010 | F151: WPD_BSZ_Load_Model_Draft_2007.02.8
B152: Guildford County, NC | F152: EPA, 1999, "Sand Filter"
A153: TN | B153: Rowe, 2010 | C153: WPD_BSZ_Load_Model_Draft_2007.02.8 | D153: Prince George's County Bioretention Manual | E153: LID National Manual, 1990. | F153: City of Austin, Environmental Criteria Manual, Section 1.6
B154: Dietz, 2007 | C154: Hardin and Wanielista, 2007 | D154: EPA, 1999, "Bioretention" | E154: Li, Kim, Sung, Chu, 2010 | F154: WPD_BSZ_Load_Model_Draft_2007.02.8
B155: Berndtsson, 2010 | F155: EPA, 1999, "Sand Filter"
A156: Pb | B156: Rowe, 2010 | C156: WPD_BSZ_Load_Model_Draft_2007.02.8 | D156: Prince George's County Bioretention Manual | E156: LID National Manual, 1990. | F156: City of Austin, Environmental Criteria Manual, Section 1.6
B157: Alsup, Ebbs, Battaglia, Retzlaff, 2013 | C157: Hardin and Wanielista, 2007 | D157: EPA, 1999, "Bioretention" | E157: Li, Kim, Sung, Chu, 2010 | F157: WPD_BSZ_Load_Model_Draft_2007.02.8
B158: Berndtsson, 2010 | F158: EPA, 1999, "Sand Filter"
B159: Gregoire, Clausen, 2011
A160: F coli | B160: International Stormwater BMP Database: Fecal Indicator Bacteria | C160: WPD_BSZ_Load_Model_Draft_2007.02.8 | D160: Rusciano and Opropta, 2007 | E160: LID National Manual, 1990. | F160: City of Austin, Environmental Criteria Manual, Section 1.6
B161: Clary et al., 2008 | C161: Hardin and Wanielista, 2007 | D161: EPA, 1999, "Bioretention" | E161: Clary et al., 2008 | F161: EPA, 1999, "Sand Filter"
F162: Clary et al., 2008
A196: Menu Data (Do Not Alter)
A197: yes
A198: no
A200: Local (Austin)
A201: National -- simple method

Sheet Trip Generation (hidden)
A1: Physical Stats
A2: Housing Units / Hotel Rooms | B2: ='Physical Outputs'!D39 -> 2
A3: Jobs | B3: ='Physical Outputs'!E39 -> 0
A4: ="Net Rentable/Sellable "&'Metric Translation'!B7 -> Net Rentable/Sellable Square Feet | B4: ='Physical Outputs'!C39-'Physical Outputs'!C38 -> 3200
A5: ="Housing / Hotel Room Density (Per "&'Metric Translation'!B10&")" -> Housing / Hotel Room Density (Per Acre) | B5: ='Physical Outputs'!F39 -> 19.36
A6: ="Job Density (Per "&'Metric Translation'!B10&")" -> Job Density (Per Acre) | B6: ='Physical Outputs'!G39 -> 0
A7: FAR ◊ | B7: ='Physical Outputs'!B39/PI_SiteArea -> 0.7111111111
A8: Trip Generation Stats | B8: Daily | C8: AM Peak Hour | D8: PM Peak Hour
A9: Total "Baseline" ITE Trips | B9: =SUM(F44:F46)+F57+F62+F68+F73+F80+B83 -> 13.3 | C9: =SUM(G44:G46)+G57+G62+G68+G73+G80+C83 -> 1.02 | D9: =SUM(H44:H46)+H57+H62+H68+H73+H80+D83 -> 1.24
A10: MXD Model Vehicle Trips | B10: ='Trip Generation'!E128 -> 13.02258909 | C10: ='Trip Generation'!E129 -> 1.001118697 | D10: ='Trip Generation'!E130 -> 1.214983514
A11: Trip Generation by Land Use - ITE | B11: Daily | C11: AM Peak Hour | D11: PM Peak Hour
A12: Residential | B12: =Calculations!B26 -> 13.3 | C12: =Calculations!B27 -> 1.02 | D12: =Calculations!B28 -> 1.24
A13: Retail | B13: =Calculations!B33 -> 0 | C13: =Calculations!B34 -> 0 | D13: =Calculations!B35 -> 0
A14: Office/Public | B14: =Calculations!B40 -> 0 | C14: =Calculations!B41 -> 0 | D14: =Calculations!B42 -> 0
A15: Education | B15: =Calculations!B54 -> 0 | C15: =Calculations!B55 -> 0 | D15: =Calculations!B56 -> 0
A16: ◊ Other | B16: =Calculations!B47 -> 0 | C16: =Calculations!B48 -> 0 | D16: =Calculations!B49 -> 0
A17: Trip Reduction | B17: Daily | C17: AM Peak Hour | D17: PM Peak Hour
A18: Internal Capture | B18: ='Trip Generation'!E113 -> 0.1391109304 | C18: ='Trip Generation'!E118 -> 0.0100976308 | D18: ='Trip Generation'!E123 -> 0.01237480113
A19: Walking External | B19: ='Trip Generation'!E114 -> 0.01783993321 | C19: ='Trip Generation'!E119 -> 0.002875401169 | D19: ='Trip Generation'!E124 -> 0.002222617218
A20: Transit External | B20: ='Trip Generation'!E115 -> 0.1204600445 | C20: ='Trip Generation'!E120 -> 0.00590827117 | D20: ='Trip Generation'!E125 -> 0.01041906796
A21: VMT Stats | B21: HBW | C21: HBO | D21: NHB | E21: Total
A22: ITE Daily VMT | B22: ='Trip Generation'!B194 -> 13.03975055 | C22: ='Trip Generation'!C194 -> 19.97280842 | D22: ='Trip Generation'!D194 -> 4.684951927 | E22: ='Trip Generation'!E194 -> 37.6975109
A23: MXD Daily Adjusted VMT | B23: ='Trip Generation'!B195 -> 12.8651009 | C23: ='Trip Generation'!C195 -> 19.52083781 | D23: ='Trip Generation'!D195 -> 4.574814097 | E23: ='Trip Generation'!E195 -> 36.96075281
A24: Trip Generation ◊
A25: Site Context | C25: Model Background ◊
A26: Number of Intersections ◊ | B26: 6 | C26: The technical methods to estimate how much traffic a new development will create, known as trip generation analysis, have been standardized by the Institute of Transportation Engineers (ITE) and are used by traffic engineers across the country. However, these methods are generally based on data collected from single-use, automobile-dependent, suburban sites. To help provide communities with better tools to analyze new development, EPA, in cooperation with ITE, worked with leading researchers and practitioners to develop new data and methods to estimate the trip-generation impacts of mixed-use developments. EPA analyzed six metropolitan regions, merging data from household travel surveys, GIS databases, and other sources to create consistent land use and travel measures. The resulting linked models estimate internal capture of trips within mixed-use developments as well as walking and transit use for trips starting or ending in mixed-use developments.
A27: Is Transit (bus or rail) present within the site or across the street? ◊ | B27: Yes
A28: Is the site in a Central Business District or TOD? ◊ | B28: No
A29: Employment within one mile of the MXD ◊ | B29: 5000
A30: Employment within a 30 minute Transit Trip (Door-to-door) ◊ | B30: 20000
A31: Average Vehicles Owned per Dwelling Unit ◊ | B31: 1.85
A33: Average Household Size | C33: Trip Generation Presets ◊
A34: Single Family | B34: 3.2
A35: Multi-Family | B35: 2.5
A36: High Rise Condo | B36: 2.5
A38: Non Home-Based Trips Generated by Project Households ◊
A39: Completely Within the Project Site | B39: 0.25
A40: With one trip end external to the Project Site | B40: 0.15
A41: Completely outside the Project Site | B41: 0.6
A43: Number of Dwelling Units | C43: Gross Square Footage | D43: Average Unit Size | E43: Trip Gen. Equation | F43: Daily Trips | G43: AM Peak | H43: PM Peak
A44: Single Family | B44: =IF(HousingType="SF",'Physical Outputs'!D29,IF(HousingType="MH",'Physical Outputs'!D29,0)) -> 0 | C44: =IF(B44>0,'Physical Outputs'!B$29,0) -> 0 | D44: =IFERROR('Physical Outputs'!C$29/B44,0) -> 0 | E44: Average Rate | F44: =IF(B44=0,0,IF('Fixed Parameters'!U86="No","Error",IF(E44="Average Rate",$B44*'Fixed Parameters'!B86,IF(E44="Linear Equation",$B44*'Fixed Parameters'!C86+'Fixed Parameters'!D86,EXP(LN($B44)*'Fixed Parameters'!E86+'Fixed Parameters'!F86))))) -> 0 | G44: =IF(B44=0,0,IF('Fixed Parameters'!V86="No","Error",IF(E44="Average Rate",$B44*'Fixed Parameters'!H86,IF(E44="Linear Equation",$B44*'Fixed Parameters'!I86+'Fixed Parameters'!J86,EXP(LN($B44)*'Fixed Parameters'!K86+'Fixed Parameters'!L86))))) -> 0 | H44: =IF(B44=0,0,IF('Fixed Parameters'!W86="No","Error",IF(E44="Average Rate",$B44*'Fixed Parameters'!N86,IF(E44="Linear Equation",$B44*'Fixed Parameters'!O86+'Fixed Parameters'!P86,EXP(LN($B44)*'Fixed Parameters'!Q86+'Fixed Parameters'!R86))))) -> 0
A45: Multi-Family | B45: =IF(AND(HousingType="MF",RentalPct>0),'Physical Outputs'!D29,IF(HousingType="TH",'Physical Outputs'!D29,0)) -> 2 | C45: =IF(B45>0,'Physical Outputs'!B$29,0) -> 3200 | D45: =IFERROR('Physical Outputs'!C$29/B45,0) -> 1600 | E45: Average Rate | F45: =IF(B45=0,0,IF('Fixed Parameters'!U87="No","Error",IF(E45="Average Rate",$B45*'Fixed Parameters'!B87,IF(E45="Linear Equation",$B45*'Fixed Parameters'!C87+'Fixed Parameters'!D87,EXP(LN($B45)*'Fixed Parameters'!E87+'Fixed Parameters'!F87))))) -> 13.3 | G45: =IF(B45=0,0,IF('Fixed Parameters'!V87="No","Error",IF(E45="Average Rate",$B45*'Fixed Parameters'!H87,IF(E45="Linear Equation",$B45*'Fixed Parameters'!I87+'Fixed Parameters'!J87,EXP(LN($B45)*'Fixed Parameters'!K87+'Fixed Parameters'!L87))))) -> 1.02 | H45: =IF(B45=0,0,IF('Fixed Parameters'!W87="No","Error",IF(E45="Average Rate",$B45*'Fixed Parameters'!N87,IF(E45="Linear Equation",$B45*'Fixed Parameters'!O87+'Fixed Parameters'!P87,EXP(LN($B45)*'Fixed Parameters'!Q87+'Fixed Parameters'!R87))))) -> 1.24
A46: Condo | B46: =IF(AND(HousingType="MF",RentalPct=0),'Physical Outputs'!D29,0) -> 0 | C46: =IF(B46>0,'Physical Outputs'!B$29,0) -> 0 | D46: =IFERROR('Physical Outputs'!C$29/B46,0) -> 0 | E46: Average Rate | F46: =IF(B46=0,0,IF('Fixed Parameters'!U88="No","Error",IF(E46="Average Rate",$B46*'Fixed Parameters'!B88,IF(E46="Linear Equation",$B46*'Fixed Parameters'!C88+'Fixed Parameters'!D88,EXP(LN($B46)*'Fixed Parameters'!E88+'Fixed Parameters'!F88))))) -> 0 | G46: =IF(B46=0,0,IF('Fixed Parameters'!V88="No","Error",IF(E46="Average Rate",$B46*'Fixed Parameters'!H88,IF(E46="Linear Equation",$B46*'Fixed Parameters'!I88+'Fixed Parameters'!J88,EXP(LN($B46)*'Fixed Parameters'!K88+'Fixed Parameters'!L88))))) -> 0 | H46: =IF(B46=0,0,IF('Fixed Parameters'!W88="No","Error",IF(E46="Average Rate",$B46*'Fixed Parameters'!N88,IF(E46="Linear Equation",$B46*'Fixed Parameters'!O88+'Fixed Parameters'!P88,EXP(LN($B46)*'Fixed Parameters'!Q88+'Fixed Parameters'!R88))))) -> 0
A48: Retail Program | C48: Gross Square Footage | D48: Jobs | E48: Trip Gen. Equation | F48: Daily Trips | G48: AM Peak | H48: PM Peak
A49: General Retail other than those listed below | B49: 1 | C49: ='Physical Outputs'!B$30*B49 -> 0 | D49: ='Physical Outputs'!E$30*B49 -> 0 | E49: Average Rate | F49: =IF(D49=0,0,IF('Fixed Parameters'!U91="No","Error",IF(E49="Average Rate",$D49/'Fixed Parameters'!T91*'Fixed Parameters'!B91,IF(E49="Linear Equation",$D49/'Fixed Parameters'!T91*'Fixed Parameters'!C91+'Fixed Parameters'!D91,EXP(LN($D49/'Fixed Parameters'!T91)*'Fixed Parameters'!E91+'Fixed Parameters'!F91))))) -> 0 | G49: =IF(D49=0,0,IF('Fixed Parameters'!V91="No","Error",IF(E49="Average Rate",$D49/'Fixed Parameters'!T91*'Fixed Parameters'!H91,IF(E49="Linear Equation",$D49/'Fixed Parameters'!T91*'Fixed Parameters'!I91+'Fixed Parameters'!J91,EXP(LN($D49/'Fixed Parameters'!T91)*'Fixed Parameters'!K91+'Fixed Parameters'!L91))))) -> 0 | H49: =IF(D49=0,0,IF('Fixed Parameters'!W91="No","Error",IF(E49="Average Rate",$D49/'Fixed Parameters'!T91*'Fixed Parameters'!N91,IF(E49="Linear Equation",$D49/'Fixed Parameters'!T91*'Fixed Parameters'!O91+'Fixed Parameters'!P91,EXP(LN($D49/'Fixed Parameters'!T91)*'Fixed Parameters'!Q91+'Fixed Parameters'!R91))))) -> 0
A50: Supermarket | B50: 0 | C50: ='Physical Outputs'!B$30*B50 -> 0 | D50: ='Physical Outputs'!E$30*B50 -> 0 | E50: Average Rate | F50: =IF(D50=0,0,IF('Fixed Parameters'!U92="No","Error",IF(E50="Average Rate",$D50/'Fixed Parameters'!T92*'Fixed Parameters'!B92,IF(E50="Linear Equation",$D50/'Fixed Parameters'!T92*'Fixed Parameters'!C92+'Fixed Parameters'!D92,EXP(LN($D50/'Fixed Parameters'!T92)*'Fixed Parameters'!E92+'Fixed Parameters'!F92))))) -> 0 | G50: =IF(D50=0,0,IF('Fixed Parameters'!V92="No","Error",IF(E50="Average Rate",$D50/'Fixed Parameters'!T92*'Fixed Parameters'!H92,IF(E50="Linear Equation",$D50/'Fixed Parameters'!T92*'Fixed Parameters'!I92+'Fixed Parameters'!J92,EXP(LN($D50/'Fixed Parameters'!T92)*'Fixed Parameters'!K92+'Fixed Parameters'!L92))))) -> 0 | H50: =IF(D50=0,0,IF('Fixed Parameters'!W92="No","Error",IF(E50="Average Rate",$D50/'Fixed Parameters'!T92*'Fixed Parameters'!N92,IF(E50="Linear Equation",$D50/'Fixed Parameters'!T92*'Fixed Parameters'!O92+'Fixed Parameters'!P92,EXP(LN($D50/'Fixed Parameters'!T92)*'Fixed Parameters'!Q92+'Fixed Parameters'!R92))))) -> 0
A51: Bank | B51: 0 | C51: ='Physical Outputs'!B$30*B51 -> 0 | D51: ='Physical Outputs'!E$30*B51 -> 0 | E51: Average Rate | F51: =IF(D51=0,0,IF('Fixed Parameters'!U93="No","Error",IF(E51="Average Rate",$D51/'Fixed Parameters'!T93*'Fixed Parameters'!B93,IF(E51="Linear Equation",$D51/'Fixed Parameters'!T93*'Fixed Parameters'!C93+'Fixed Parameters'!D93,EXP(LN($D51/'Fixed Parameters'!T93)*'Fixed Parameters'!E93+'Fixed Parameters'!F93))))) -> 0 | G51: =IF(D51=0,0,IF('Fixed Parameters'!V93="No","Error",IF(E51="Average Rate",$D51/'Fixed Parameters'!T93*'Fixed Parameters'!H93,IF(E51="Linear Equation",$D51/'Fixed Parameters'!T93*'Fixed Parameters'!I93+'Fixed Parameters'!J93,EXP(LN($D51/'Fixed Parameters'!T93)*'Fixed Parameters'!K93+'Fixed Parameters'!L93))))) -> 0 | H51: =IF(D51=0,0,IF('Fixed Parameters'!W93="No","Error",IF(E51="Average Rate",$D51/'Fixed Parameters'!T93*'Fixed Parameters'!N93,IF(E51="Linear Equation",$D51/'Fixed Parameters'!T93*'Fixed Parameters'!O93+'Fixed Parameters'!P93,EXP(LN($D51/'Fixed Parameters'!T93)*'Fixed Parameters'!Q93+'Fixed Parameters'!R93))))) -> 0
A52: Health Club | B52: 0 | C52: ='Physical Outputs'!B$30*B52 -> 0 | D52: ='Physical Outputs'!E$30*B52 -> 0 | E52: Average Rate | F52: =IF(D52=0,0,IF('Fixed Parameters'!U94="No","Error",IF(E52="Average Rate",$D52/'Fixed Parameters'!T94*'Fixed Parameters'!B94,IF(E52="Linear Equation",$D52/'Fixed Parameters'!T94*'Fixed Parameters'!C94+'Fixed Parameters'!D94,EXP(LN($D52/'Fixed Parameters'!T94)*'Fixed Parameters'!E94+'Fixed Parameters'!F94))))) -> 0 | G52: =IF(D52=0,0,IF('Fixed Parameters'!V94="No","Error",IF(E52="Average Rate",$D52/'Fixed Parameters'!T94*'Fixed Parameters'!H94,IF(E52="Linear Equation",$D52/'Fixed Parameters'!T94*'Fixed Parameters'!I94+'Fixed Parameters'!J94,EXP(LN($D52/'Fixed Parameters'!T94)*'Fixed Parameters'!K94+'Fixed Parameters'!L94))))) -> 0 | H52: =IF(D52=0,0,IF('Fixed Parameters'!W94="No","Error",IF(E52="Average Rate",$D52/'Fixed Parameters'!T94*'Fixed Parameters'!N94,IF(E52="Linear Equation",$D52/'Fixed Parameters'!T94*'Fixed Parameters'!O94+'Fixed Parameters'!P94,EXP(LN($D52/'Fixed Parameters'!T94)*'Fixed Parameters'!Q94+'Fixed Parameters'!R94))))) -> 0
A53: Restaurant (non-fast food) | B53: 0 | C53: ='Physical Outputs'!B$30*B53 -> 0 | D53: ='Physical Outputs'!E$30*B53 -> 0 | E53: Average Rate | F53: =IF(D53=0,0,IF('Fixed Parameters'!U95="No","Error",IF(E53="Average Rate",$D53/'Fixed Parameters'!T95*'Fixed Parameters'!B95,IF(E53="Linear Equation",$D53/'Fixed Parameters'!T95*'Fixed Parameters'!C95+'Fixed Parameters'!D95,EXP(LN($D53/'Fixed Parameters'!T95)*'Fixed Parameters'!E95+'Fixed Parameters'!F95))))) -> 0 | G53: =IF(D53=0,0,IF('Fixed Parameters'!V95="No","Error",IF(E53="Average Rate",$D53/'Fixed Parameters'!T95*'Fixed Parameters'!H95,IF(E53="Linear Equation",$D53/'Fixed Parameters'!T95*'Fixed Parameters'!I95+'Fixed Parameters'!J95,EXP(LN($D53/'Fixed Parameters'!T95)*'Fixed Parameters'!K95+'Fixed Parameters'!L95))))) -> 0 | H53: =IF(D53=0,0,IF('Fixed Parameters'!W95="No","Error",IF(E53="Average Rate",$D53/'Fixed Parameters'!T95*'Fixed Parameters'!N95,IF(E53="Linear Equation",$D53/'Fixed Parameters'!T95*'Fixed Parameters'!O95+'Fixed Parameters'!P95,EXP(LN($D53/'Fixed Parameters'!T95)*'Fixed Parameters'!Q95+'Fixed Parameters'!R95))))) -> 0
A54: Fast-Food Restaurant | B54: 0 | C54: ='Physical Outputs'!B$30*B54 -> 0 | D54: ='Physical Outputs'!E$30*B54 -> 0 | E54: Average Rate | F54: =IF(D54=0,0,IF('Fixed Parameters'!U96="No","Error",IF(E54="Average Rate",$D54/'Fixed Parameters'!T96*'Fixed Parameters'!B96,IF(E54="Linear Equation",$D54/'Fixed Parameters'!T96*'Fixed Parameters'!C96+'Fixed Parameters'!D96,EXP(LN($D54/'Fixed Parameters'!T96)*'Fixed Parameters'!E96+'Fixed Parameters'!F96))))) -> 0 | G54: =IF(D54=0,0,IF('Fixed Parameters'!V96="No","Error",IF(E54="Average Rate",$D54/'Fixed Parameters'!T96*'Fixed Parameters'!H96,IF(E54="Linear Equation",$D54/'Fixed Parameters'!T96*'Fixed Parameters'!I96+'Fixed Parameters'!J96,EXP(LN($D54/'Fixed Parameters'!T96)*'Fixed Parameters'!K96+'Fixed Parameters'!L96))))) -> 0 | H54: =IF(D54=0,0,IF('Fixed Parameters'!W96="No","Error",IF(E54="Average Rate",$D54/'Fixed Parameters'!T96*'Fixed Parameters'!N96,IF(E54="Linear Equation",$D54/'Fixed Parameters'!T96*'Fixed Parameters'!O96+'Fixed Parameters'!P96,EXP(LN($D54/'Fixed Parameters'!T96)*'Fixed Parameters'!Q96+'Fixed Parameters'!R96))))) -> 0
A55: Gas Station | B55: 0 | C55: ='Physical Outputs'!B$30*B55 -> 0 | D55: ='Physical Outputs'!E$30*B55 -> 0 | E55: Average Rate | F55: =IF(D55=0,0,IF('Fixed Parameters'!U97="No","Error",IF(E55="Average Rate",$D55/'Fixed Parameters'!T97*'Fixed Parameters'!B97,IF(E55="Linear Equation",$D55/'Fixed Parameters'!T97*'Fixed Parameters'!C97+'Fixed Parameters'!D97,EXP(LN($D55/'Fixed Parameters'!T97)*'Fixed Parameters'!E97+'Fixed Parameters'!F97))))) -> 0 | G55: =IF(D55=0,0,IF('Fixed Parameters'!V97="No","Error",IF(E55="Average Rate",$D55/'Fixed Parameters'!T97*'Fixed Parameters'!H97,IF(E55="Linear Equation",$D55/'Fixed Parameters'!T97*'Fixed Parameters'!I97+'Fixed Parameters'!J97,EXP(LN($D55/'Fixed Parameters'!T97)*'Fixed Parameters'!K97+'Fixed Parameters'!L97))))) -> 0 | H55: =IF(D55=0,0,IF('Fixed Parameters'!W97="No","Error",IF(E55="Average Rate",$D55/'Fixed Parameters'!T97*'Fixed Parameters'!N97,IF(E55="Linear Equation",$D55/'Fixed Parameters'!T97*'Fixed Parameters'!O97+'Fixed Parameters'!P97,EXP(LN($D55/'Fixed Parameters'!T97)*'Fixed Parameters'!Q97+'Fixed Parameters'!R97))))) -> 0
A56: Auto Repair | B56: 0 | C56: ='Physical Outputs'!B$30*B56 -> 0 | D56: ='Physical Outputs'!E$30*B56 -> 0 | E56: Average Rate | F56: =IF(D56=0,0,IF('Fixed Parameters'!U98="No","Error",IF(E56="Average Rate",$D56/'Fixed Parameters'!T98*'Fixed Parameters'!B98,IF(E56="Linear Equation",$D56/'Fixed Parameters'!T98*'Fixed Parameters'!C98+'Fixed Parameters'!D98,EXP(LN($D56/'Fixed Parameters'!T98)*'Fixed Parameters'!E98+'Fixed Parameters'!F98))))) -> 0 | G56: =IF(D56=0,0,IF('Fixed Parameters'!V98="No","Error",IF(E56="Average Rate",$D56/'Fixed Parameters'!T98*'Fixed Parameters'!H98,IF(E56="Linear Equation",$D56/'Fixed Parameters'!T98*'Fixed Parameters'!I98+'Fixed Parameters'!J98,EXP(LN($D56/'Fixed Parameters'!T98)*'Fixed Parameters'!K98+'Fixed Parameters'!L98))))) -> 0 | H56: =IF(D56=0,0,IF('Fixed Parameters'!W98="No","Error",IF(E56="Average Rate",$D56/'Fixed Parameters'!T98*'Fixed Parameters'!N98,IF(E56="Linear Equation",$D56/'Fixed Parameters'!T98*'Fixed Parameters'!O98+'Fixed Parameters'!P98,EXP(LN($D56/'Fixed Parameters'!T98)*'Fixed Parameters'!Q98+'Fixed Parameters'!R98))))) -> 0
A57: Total | B57: =SUM(B49:B56) -> 1 | C57: =SUM(C49:C56) -> 0 | D57: =SUM(D49:D56) -> 0 | E57: - | F57: =SUM(F49:F56) -> 0 | G57: =SUM(G49:G56) -> 0 | H57: =SUM(H49:H56) -> 0
A59: Office/Public Program | C59: Gross Square Footage | D59: Jobs | E59: Trip Gen. Equation | F59: Daily Trips | G59: AM Peak | H59: PM Peak
A60: Non-Medical | B60: 1 | C60: =B60*('Physical Outputs'!B$31+'Physical Outputs'!B$33) -> 0 | D60: =B60*('Physical Outputs'!E$31+'Physical Outputs'!E$33) -> 0 | E60: Average Rate | F60: =IF(D60=0,0,IF('Fixed Parameters'!U101="No","Error",IF(E60="Average Rate",$D60*'Fixed Parameters'!B101,IF(E60="Linear Equation",$D60*'Fixed Parameters'!C101+'Fixed Parameters'!D101,EXP(LN($D60)*'Fixed Parameters'!E101+'Fixed Parameters'!F101))))) -> 0 | G60: =IF(D60=0,0,IF('Fixed Parameters'!V101="No","Error",IF(E60="Average Rate",$D60*'Fixed Parameters'!H101,IF(E60="Linear Equation",$D60*'Fixed Parameters'!I101+'Fixed Parameters'!J101,EXP(LN($D60)*'Fixed Parameters'!K101+'Fixed Parameters'!L101))))) -> 0 | H60: =IF(D60=0,0,IF('Fixed Parameters'!W101="No","Error",IF(E60="Average Rate",$D60*'Fixed Parameters'!N101,IF(E60="Linear Equation",$D60*'Fixed Parameters'!O101+'Fixed Parameters'!P101,EXP(LN($D60)*'Fixed Parameters'!Q101+'Fixed Parameters'!R101))))) -> 0
A61: Medical | B61: 0 | C61: =B61*('Physical Outputs'!B$31+'Physical Outputs'!B$33) -> 0 | D61: =B61*('Physical Outputs'!E$31+'Physical Outputs'!E$33) -> 0 | E61: Average Rate | F61: =IF(D61=0,0,IF('Fixed Parameters'!U102="No","Error",IF(E61="Average Rate",$D61*'Fixed Parameters'!B102,IF(E61="Linear Equation",$D61*'Fixed Parameters'!C102+'Fixed Parameters'!D102,EXP(LN($D61)*'Fixed Parameters'!E102+'Fixed Parameters'!F102))))) -> 0 | G61: =IF(D61=0,0,IF('Fixed Parameters'!V102="No","Error",IF(E61="Average Rate",$D61*'Fixed Parameters'!H102,IF(E61="Linear Equation",$D61*'Fixed Parameters'!I102+'Fixed Parameters'!J102,EXP(LN($D61)*'Fixed Parameters'!K102+'Fixed Parameters'!L102))))) -> 0 | H61: =IF(D61=0,0,IF('Fixed Parameters'!W102="No","Error",IF(E61="Average Rate",$D61*'Fixed Parameters'!N102,IF(E61="Linear Equation",$D61*'Fixed Parameters'!O102+'Fixed Parameters'!P102,EXP(LN($D61)*'Fixed Parameters'!Q102+'Fixed Parameters'!R102))))) -> 0
A62: Total | B62: =SUM(B60:B61) -> 1 | C62: =SUM(C60:C61) -> 0 | D62: =SUM(D60:D61) -> 0 | E62: - | F62: =SUM(F60:F61) -> 0 | G62: =SUM(G60:G61) -> 0 | H62: =SUM(H60:H61) -> 0
A64: Industrial Program | C64: Gross Square Footage | D64: Jobs | E64: Trip Gen. Equation | F64: Daily Trips | G64: AM Peak | H64: PM Peak
A65: Light Industrial | B65: 1 | C65: =B65*'Physical Outputs'!B$32 -> 0 | D65: ='Physical Outputs'!E$32*B65 -> 0 | E65: Average Rate | F65: =IF(D65=0,0,IF('Fixed Parameters'!U105="No","Error",IF(E65="Average Rate",$D65*'Fixed Parameters'!B105,IF(E65="Linear Equation",$D65*'Fixed Parameters'!C105+'Fixed Parameters'!D105,EXP(LN($D65)*'Fixed Parameters'!E105+'Fixed Parameters'!F105))))) -> 0 | G65: =IF(D65=0,0,IF('Fixed Parameters'!V105="No","Error",IF(E65="Average Rate",$D65*'Fixed Parameters'!H105,IF(E65="Linear Equation",$D65*'Fixed Parameters'!I105+'Fixed Parameters'!J105,EXP(LN($D65)*'Fixed Parameters'!K105+'Fixed Parameters'!L105))))) -> 0 | H65: =IF(D65=0,0,IF('Fixed Parameters'!W105="No","Error",IF(E65="Average Rate",$D65*'Fixed Parameters'!N105,IF(E65="Linear Equation",$D65*'Fixed Parameters'!O105+'Fixed Parameters'!P105,EXP(LN($D65)*'Fixed Parameters'!Q105+'Fixed Parameters'!R105))))) -> 0
A66: Manufacturing | B66: 0 | C66: =B66*'Physical Outputs'!B$32 -> 0 | D66: ='Physical Outputs'!E$32*B66 -> 0 | E66: Average Rate | F66: =IF(D66=0,0,IF('Fixed Parameters'!U106="No","Error",IF(E66="Average Rate",$D66*'Fixed Parameters'!B106,IF(E66="Linear Equation",$D66*'Fixed Parameters'!C106+'Fixed Parameters'!D106,EXP(LN($D66)*'Fixed Parameters'!E106+'Fixed Parameters'!F106))))) -> 0 | G66: =IF(D66=0,0,IF('Fixed Parameters'!V106="No","Error",IF(E66="Average Rate",$D66*'Fixed Parameters'!H106,IF(E66="Linear Equation",$D66*'Fixed Parameters'!I106+'Fixed Parameters'!J106,EXP(LN($D66)*'Fixed Parameters'!K106+'Fixed Parameters'!L106))))) -> 0 | H66: =IF(D66=0,0,IF('Fixed Parameters'!W106="No","Error",IF(E66="Average Rate",$D66*'Fixed Parameters'!N106,IF(E66="Linear Equation",$D66*'Fixed Parameters'!O106+'Fixed Parameters'!P106,EXP(LN($D66)*'Fixed Parameters'!Q106+'Fixed Parameters'!R106))))) -> 0
A67: Warehousing / Self-Storage | B67: 0 | C67: =B67*'Physical Outputs'!B$32 -> 0 | D67: ='Physical Outputs'!E$32*B67 -> 0 | E67: Average Rate | F67: =IF(D67=0,0,IF('Fixed Parameters'!U107="No","Error",IF(E67="Average Rate",$D67*'Fixed Parameters'!B107,IF(E67="Linear Equation",$D67*'Fixed Parameters'!C107+'Fixed Parameters'!D107,EXP(LN($D67)*'Fixed Parameters'!E107+'Fixed Parameters'!F107))))) -> 0 | G67: =IF(D67=0,0,IF('Fixed Parameters'!V107="No","Error",IF(E67="Average Rate",$D67*'Fixed Parameters'!H107,IF(E67="Linear Equation",$D67*'Fixed Parameters'!I107+'Fixed Parameters'!J107,EXP(LN($D67)*'Fixed Parameters'!K107+'Fixed Parameters'!L107))))) -> 0 | H67: =IF(D67=0,0,IF('Fixed Parameters'!W107="No","Error",IF(E67="Average Rate",$D67*'Fixed Parameters'!N107,IF(E67="Linear Equation",$D67*'Fixed Parameters'!O107+'Fixed Parameters'!P107,EXP(LN($D67)*'Fixed Parameters'!Q107+'Fixed Parameters'!R107))))) -> 0
A68: Total | B68: =SUM(B65:B67) -> 1 | C68: =SUM(C65:C67) -> 0 | D68: =SUM(D65:D67) -> 0 | E68: - | F68: =SUM(F65:F67) -> 0 | G68: =SUM(G65:G67) -> 0 | H68: =SUM(H65:H67) -> 0
A70: Hotel Program | C70: Gross Square Footage | D70: Jobs | E70: Trip Gen. Equation | F70: Daily Trips | G70: AM Peak | H70: PM Peak
A71: Hotel (including restaurant, facilities, etc…) | B71: 1 | C71: =B71*'Physical Outputs'!B$35 -> 0 | D71: =B71*'Physical Outputs'!E$35 -> 0 | E71: Average Rate | F71: =IF(D71=0,0,IF('Fixed Parameters'!U110="No","Error",IF(E71="Average Rate",$D71*'Fixed Parameters'!B110,IF(E71="Linear Equation",$D71*'Fixed Parameters'!C110+'Fixed Parameters'!D110,EXP(LN($D71)*'Fixed Parameters'!E110+'Fixed Parameters'!F110))))) -> 0 | G71: =IF(D71=0,0,IF('Fixed Parameters'!V110="No","Error",IF(E71="Average Rate",$D71*'Fixed Parameters'!H110,IF(E71="Linear Equation",$D71*'Fixed Parameters'!I110+'Fixed Parameters'!J110,EXP(LN($D71)*'Fixed Parameters'!K110+'Fixed Parameters'!L110))))) -> 0 | H71: =IF(D71=0,0,IF('Fixed Parameters'!W110="No","Error",IF(E71="Average Rate",$D71*'Fixed Parameters'!N110,IF(E71="Linear Equation",$D71*'Fixed Parameters'!O110+'Fixed Parameters'!P110,EXP(LN($D71)*'Fixed Parameters'!Q110+'Fixed Parameters'!R110))))) -> 0
A72: Motel | B72: 0 | C72: =B72*'Physical Outputs'!B$35 -> 0 | D72: =B72*'Physical Outputs'!E$35 -> 0 | E72: Average Rate | F72: =IF(D72=0,0,IF('Fixed Parameters'!U111="No","Error",IF(E72="Average Rate",$D72*'Fixed Parameters'!B111,IF(E72="Linear Equation",$D72*'Fixed Parameters'!C111+'Fixed Parameters'!D111,EXP(LN($D72)*'Fixed Parameters'!E111+'Fixed Parameters'!F111))))) -> 0 | G72: =IF(D72=0,0,IF('Fixed Parameters'!V111="No","Error",IF(E72="Average Rate",$D72*'Fixed Parameters'!H111,IF(E72="Linear Equation",$D72*'Fixed Parameters'!I111+'Fixed Parameters'!J111,EXP(LN($D72)*'Fixed Parameters'!K111+'Fixed Parameters'!L111))))) -> 0 | H72: =IF(D72=0,0,IF('Fixed Parameters'!W111="No","Error",IF(E72="Average Rate",$D72*'Fixed Parameters'!N111,IF(E72="Linear Equation",$D72*'Fixed Parameters'!O111+'Fixed Parameters'!P111,EXP(LN($D72)*'Fixed Parameters'!Q111+'Fixed Parameters'!R111))))) -> 0
A73: Total | B73: =SUM(B71:B72) -> 1 | C73: =SUM(C71:C72) -> 0 | D73: =SUM(D71:D72) -> 0 | E73: - | F73: =SUM(F71:F72) -> 0 | G73: =SUM(G71:G72) -> 0 | H73: =SUM(H71:H72) -> 0
A75: Educational Program | C75: Gross Square Footage | D75: Students | E75: Trip Gen. Equation | F75: Daily Trips | G75: AM Peak | H75: PM Peak
A76: University | B76: 1 | C76: =B76*'Physical Outputs'!B$34 -> 0 | E76: Average Rate | F76: =IF(D76=0,0,IF('Fixed Parameters'!U114="No","Error",IF(E76="Average Rate",$D76*'Fixed Parameters'!B114,IF(E76="Linear Equation",$D76*'Fixed Parameters'!C114+'Fixed Parameters'!D114,EXP(LN($D76)*'Fixed Parameters'!E114+'Fixed Parameters'!F114))))) -> 0 | G76: =IF(D76=0,0,IF('Fixed Parameters'!V114="No","Error",IF(E76="Average Rate",$D76*'Fixed Parameters'!H114,IF(E76="Linear Equation",$D76*'Fixed Parameters'!I114+'Fixed Parameters'!J114,EXP(LN($D76)*'Fixed Parameters'!K114+'Fixed Parameters'!L114))))) -> 0 | H76: =IF(D76=0,0,IF('Fixed Parameters'!W114="No","Error",IF(E76="Average Rate",$D76*'Fixed Parameters'!N114,IF(E76="Linear Equation",$D76*'Fixed Parameters'!O114+'Fixed Parameters'!P114,EXP(LN($D76)*'Fixed Parameters'!Q114+'Fixed Parameters'!R114))))) -> 0
A77: High School | B77: 0 | C77: =B77*'Physical Outputs'!B$34 -> 0 | D77: 0 | E77: Average Rate | F77: =IF(D77=0,0,IF('Fixed Parameters'!U115="No","Error",IF(E77="Average Rate",$D77*'Fixed Parameters'!B115,IF(E77="Linear Equation",$D77*'Fixed Parameters'!C115+'Fixed Parameters'!D115,EXP(LN($D77)*'Fixed Parameters'!E115+'Fixed Parameters'!F115))))) -> 0 | G77: =IF(D77=0,0,IF('Fixed Parameters'!V115="No","Error",IF(E77="Average Rate",$D77*'Fixed Parameters'!H115,IF(E77="Linear Equation",$D77*'Fixed Parameters'!I115+'Fixed Parameters'!J115,EXP(LN($D77)*'Fixed Parameters'!K115+'Fixed Parameters'!L115))))) -> 0 | H77: =IF(D77=0,0,IF('Fixed Parameters'!W115="No","Error",IF(E77="Average Rate",$D77*'Fixed Parameters'!N115,IF(E77="Linear Equation",$D77*'Fixed Parameters'!O115+'Fixed Parameters'!P115,EXP(LN($D77)*'Fixed Parameters'!Q115+'Fixed Parameters'!R115))))) -> 0
A78: Middle School | B78: 0 | C78: =B78*'Physical Outputs'!B$34 -> 0 | D78: 0 | E78: Average Rate | F78: =IF(D78=0,0,IF('Fixed Parameters'!U116="No","Error",IF(E78="Average Rate",$D78*'Fixed Parameters'!B116,IF(E78="Linear Equation",$D78*'Fixed Parameters'!C116+'Fixed Parameters'!D116,EXP(LN($D78)*'Fixed Parameters'!E116+'Fixed Parameters'!F116))))) -> 0 | G78: =IF(D78=0,0,IF('Fixed Parameters'!V116="No","Error",IF(E78="Average Rate",$D78*'Fixed Parameters'!H116,IF(E78="Linear Equation",$D78*'Fixed Parameters'!I116+'Fixed Parameters'!J116,EXP(LN($D78)*'Fixed Parameters'!K116+'Fixed Parameters'!L116))))) -> 0 | H78: =IF(D78=0,0,IF('Fixed Parameters'!W116="No","Error",IF(E78="Average Rate",$D78*'Fixed Parameters'!N116,IF(E78="Linear Equation",$D78*'Fixed Parameters'!O116+'Fixed Parameters'!P116,EXP(LN($D78)*'Fixed Parameters'!Q116+'Fixed Parameters'!R116))))) -> 0
A79: Elementary | B79: 0 | C79: =B79*'Physical Outputs'!B$34 -> 0 | D79: 0 | E79: Average Rate | F79: =IF(D79=0,0,IF('Fixed Parameters'!U117="No","Error",IF(E79="Average Rate",$D79*'Fixed Parameters'!B117,IF(E79="Linear Equation",$D79*'Fixed Parameters'!C117+'Fixed Parameters'!D117,EXP(LN($D79)*'Fixed Parameters'!E117+'Fixed Parameters'!F117))))) -> 0 | G79: =IF(D79=0,0,IF('Fixed Parameters'!V117="No","Error",IF(E79="Average Rate",$D79*'Fixed Parameters'!H117,IF(E79="Linear Equation",$D79*'Fixed Parameters'!I117+'Fixed Parameters'!J117,EXP(LN($D79)*'Fixed Parameters'!K117+'Fixed Parameters'!L117))))) -> 0 | H79: =IF(D79=0,0,IF('Fixed Parameters'!W117="No","Error",IF(E79="Average Rate",$D79*'Fixed Parameters'!N117,IF(E79="Linear Equation",$D79*'Fixed Parameters'!O117+'Fixed Parameters'!P117,EXP(LN($D79)*'Fixed Parameters'!Q117+'Fixed Parameters'!R117))))) -> 0
A80: Total | B80: =SUM(B76:B79) -> 1 | C80: =SUM(C76:C79) -> 0 | D80: 0 | E80: - | F80: 0 | G80: 0 | H80: 0
A82: Other | B82: Daily | C82: AM Peak Hour | D82: PM Peak Hour
A83: Trips from Land uses not covered above | B83: 0 | C83: 0 | D83: 0
A84: Jobs in those Land Uses | B84: 0
A86: VMT Inputs | B86: HBW | C86: HBO | D86: NHB
A87: Average Trip Length in the Region ◊ | B87: 9.54 | C87: 4.62 | D87: 4.88
A88: Average Trip Length in the Traffic Analysis Zone | B88: 4.77 | C88: 2.31 | D88: 2.44
A91: Model Application - All Trips
A92: Baseline # of External Trips (ITE Model) | B92: HBW | C92: HBO | D92: NHB | E92: Total
A93: Daily | B93: =Calculations!D69 -> 2.733700325 | C93: =Calculations!E69 -> 8.646237409 | D93: =Calculations!F69 -> 1.920062265 | E93: =SUM(B93:D93) -> 13.3
A94: AM Peak Hour | B94: =Calculations!D70 -> 0.4581806141 | C94: =Calculations!E70 -> 0.5265493306 | D94: =Calculations!F70 -> 0.03527005524 | E94: =SUM(B94:D94) -> 1.02
A95: PM Peak Hour | B95: =Calculations!D71 -> 0.3482357348 | C95: =Calculations!E71 -> 0.6958168622 | D95: =Calculations!F71 -> 0.195947403 | E95: =SUM(B95:D95) -> 1.24
A97: % External Trip Reduction (predicted by MXD Model) - Daily | B97: HBW | C97: HBO | D97: NHB | E97: Total
A98: Internal Capture | B98: =EXP(Calculations!B$89)/(EXP(Calculations!B$89)+1) -> 0.007256866467 | C98: =EXP(Calculations!C$89)/(EXP(Calculations!C$89)+1) -> 0.01245966452 | D98: =EXP(Calculations!D$89)/(EXP(Calculations!D$89)+1) -> 0.006012104372 | E98: =IFERROR('Trip Generation'!E113/'Trip Generation'!E93,) -> 0.01045946845
A99: Walking External | B99: =EXP(Calculations!B$104)/(EXP(Calculations!B$104)+1) -> 0.006179385163 | C99: =EXP(Calculations!C$104)/(EXP(Calculations!C$104)+1) -> 0.0001239705179 | D99: =EXP(Calculations!D$104)/(EXP(Calculations!D$104)+1) -> 5.978429065e-06 | E99: =IFERROR('Trip Generation'!E114/('Trip Generation'!E93-'Trip Generation'!E113),) -> 0.001355526448
A100: Transit External | B100: =IF('Trip Generation'!$B27="No",0,EXP(Calculations!B$116)/(EXP(Calculations!B$116)+1)) -> 2.242424839e-06 | C100: =IF('Trip Generation'!$B27="No",0,EXP(Calculations!C$116)/(EXP(Calculations!C$116)+1)) -> 0.0101739703 | D100: =IF('Trip Generation'!$B27="No",0,EXP(Calculations!D$116)/(EXP(Calculations!D$116)+1)) -> 0.01759659521 | E100: =IFERROR('Trip Generation'!E115/('Trip Generation'!E93-'Trip Generation'!E113),) -> 0.009152880467
A102: % External Trip Reduction (predicted by MXD Model) - AM Peak | B102: HBW | C102: HBO | D102: NHB | E102: Total
A103: Internal Capture | B103: =B98 -> 0.007256866467 | C103: 0.01245966452 | D103: 0.006012104372 | E103: =IFERROR('Trip Generation'!E118/'Trip Generation'!E94,) -> 0.009899638037
A104: Walking External | B104: 0.006179385163 | C104: 0.0001239705179 | D104: 5.978429065e-06 | E104: =IFERROR('Trip Generation'!E119/('Trip Generation'!E94-'Trip Generation'!E118),) -> 0.002847207073
A105: Transit External | B105: 2.242424839e-06 | C105: 0.0101739703 | D105: 0.01759659521 | E105: =IFERROR('Trip Generation'!E120/('Trip Generation'!E94-'Trip Generation'!E118),) -> 0.005850338954
A107: % External Trip Reduction (predicted by MXD Model) - PM Peak | B107: HBW | C107: HBO | D107: NHB | E107: Total
A108: Internal Capture | B108: =B103 -> 0.007256866467 | C108: 0.01245966452 | D108: 0.006012104372 | E108: =IFERROR('Trip Generation'!E123/'Trip Generation'!E95,) -> 0.009979678332
A109: Walking External | B109: 0.006179385163 | C109: 0.0001239705179 | D109: 5.978429065e-06 | E109: =IFERROR('Trip Generation'!E124/('Trip Generation'!E95-'Trip Generation'!E123),) -> 0.001810501463
A110: Transit External | B110: 2.242424839e-06 | C110: 0.0101739703 | D110: 0.01759659521 | E110: =IFERROR('Trip Generation'!E125/('Trip Generation'!E95-'Trip Generation'!E123),) -> 0.008487173422
A112: # of Trips Reduced (predicted by MXD Model) - Daily | B112: HBW | C112: HBO | D112: NHB | E112: Total
A113: Internal Capture | B113: ='Trip Generation'!B93*'Trip Generation'!B98 -> 0.01983809822 | C113: ='Trip Generation'!C93*'Trip Generation'!C98 -> 0.1077292174 | D113: ='Trip Generation'!D93*'Trip Generation'!D98 -> 0.01154361474 | E113: =SUM(B113:D113) -> 0.1391109304
A114: Walking External | B114: =('Trip Generation'!B93-B113)*'Trip Generation'!B99 -> 0.01676999998 | C114: =('Trip Generation'!C93-C113)*'Trip Generation'!C99 -> 0.001058523282 | D114: =('Trip Generation'!D93-D113)*'Trip Generation'!D99 -> 1.140994337e-05 | E114: =SUM(B114:D114) -> 0.01783993321
A115: Transit External | B115: =('Trip Generation'!B93-B113)*'Trip Generation'!B100 -> 6.085632068e-06 | C115: =('Trip Generation'!C93-C113)*'Trip Generation'!C100 -> 0.08687052872 | D115: =('Trip Generation'!D93-D113)*'Trip Generation'!D100 -> 0.03358343014 | E115: =SUM(B115:D115) -> 0.1204600445
A117: # of Trips Reduced (predicted by MXD Model) - AM Peak | B117: HBW | C117: HBO | D117: NHB | E117: Total
A118: Internal Capture | B118: ='Trip Generation'!B94*'Trip Generation'!B103 -> 0.003324955534 | C118: ='Trip Generation'!C94*'Trip Generation'!C103 -> 0.006560628011 | D118: ='Trip Generation'!D94*'Trip Generation'!D103 -> 0.0002120472533 | E118: =SUM(B118:D118) -> 0.0100976308
A119: Walking External | B119: =('Trip Generation'!B94-B118)*'Trip Generation'!B104 -> 0.002810728308 | C119: =('Trip Generation'!C94-C118)*'Trip Generation'!C104 -> 6.446326874e-05 | D119: =('Trip Generation'!D94-D118)*'Trip Generation'!D104 -> 2.095918139e-07 | E119: =SUM(B119:D119) -> 0.002875401169
A120: Transit External | B120: =('Trip Generation'!B94-B118)*'Trip Generation'!B105 -> 1.019979627e-06 | C120: =('Trip Generation'!C94-C118)*'Trip Generation'!C105 -> 0.005290349615 | D120: =('Trip Generation'!D94-D118)*'Trip Generation'!D105 -> 0.0006169015754 | E120: =SUM(B120:D120) -> 0.00590827117
A122: # of Trips Reduced (predicted by MXD Model) - PM Peak | B122: HBW | C122: HBO | D122: NHB | E122: Total
A123: Internal Capture | B123: ='Trip Generation'!B95*'Trip Generation'!B108 -> 0.002527100226 | C123: ='Trip Generation'!C95*'Trip Generation'!C108 -> 0.008669644668 | D123: ='Trip Generation'!D95*'Trip Generation'!D108 -> 0.001178056238 | E123: =SUM(B123:D123) -> 0.01237480113
A124: Walking External | B124: =('Trip Generation'!B95-B123)*'Trip Generation'!B109 -> 0.002136266807 | C124: =('Trip Generation'!C95-C123)*'Trip Generation'!C109 -> 8.518599641e-05 | D124: =('Trip Generation'!D95-D123)*'Trip Generation'!D109 -> 1.164414724e-06 | E124: =SUM(B124:D124) -> 0.002222617218
A125: Transit External | B125: =('Trip Generation'!B95-B123)*'Trip Generation'!B110 -> 7.752256291e-07 | C125: =('Trip Generation'!C95-C123)*'Trip Generation'!C110 -> 0.006991015381 | D125: =('Trip Generation'!D95-D123)*'Trip Generation'!D110 -> 0.003427277354 | E125: =SUM(B125:D125) -> 0.01041906796
A127: MXD Model # of Vehicle Trips | B127: HBW | C127: HBO | D127: NHB | E127: Total
A128: Daily | B128: ='Trip Generation'!B93-SUM('Trip Generation'!B113:B115) -> 2.697086142 | C128: ='Trip Generation'!C93-SUM('Trip Generation'!C113:C115) -> 8.45057914 | D128: ='Trip Generation'!D93-SUM('Trip Generation'!D113:D115) -> 1.87492381 | E128: =SUM(B128:D128) -> 13.02258909
A129: AM Peak Hour | B129: ='Trip Generation'!B94-SUM('Trip Generation'!B118:B120) -> 0.4520439103 | C129: ='Trip Generation'!C94-SUM('Trip Generation'!C118:C120) -> 0.5146338897 | D129: ='Trip Generation'!D94-SUM('Trip Generation'!D118:D120) -> 0.03444089682 | E129: =SUM(B129:D129) -> 1.001118697
A130: PM Peak Hour | B130: ='Trip Generation'!B95-SUM('Trip Generation'!B123:B125) -> 0.3435715925 | C130: ='Trip Generation'!C95-SUM('Trip Generation'!C123:C125) -> 0.6800710162 | D130: ='Trip Generation'!D95-SUM('Trip Generation'!D123:D125) -> 0.191340905 | E130: =SUM(B130:D130) -> 1.214983514
A132: External Vehicle Trips | B132: Baseline | C132: Adjusted | D132: Reduction %
A133: Daily | B133: =Calculations!B61 -> 13.3 | C133: =SUM('Trip Generation'!B128:D128) -> 13.02258909 | D133: =IFERROR(1-C133/B133,) -> 0.02085796302
A134: AM Peak Hour | B134: =Calculations!B62 -> 1.02 | C134: =SUM('Trip Generation'!B129:D129) -> 1.001118697 | D134: =IFERROR(1-C134/B134,) -> 0.01851108151
A135: PM Peak Hour | B135: =Calculations!B63 -> 1.24 | C135: =SUM('Trip Generation'!B130:D130) -> 1.214983514 | D135: =IFERROR(1-C135/B135,) -> 0.02017458573
A137: Total Trips Reduced | B137: HBW | C137: HBO | D137: NHB | E137: Total
A138: Daily | B138: =SUM('Trip Generation'!B113:B115) -> 0.03661418383 | C138: =SUM('Trip Generation'!C113:C115) -> 0.1956582694 | D138: =SUM('Trip Generation'!D113:D115) -> 0.04513845482 | E138: =SUM(B138:D138) -> 0.2774109081
A139: AM Peak Hour | B139: =SUM('Trip Generation'!B118:B120) -> 0.006136703822 | C139: =SUM('Trip Generation'!C118:C120) -> 0.01191544089 | D139: =SUM('Trip Generation'!D118:D120) -> 0.0008291584205 | E139: =SUM(B139:D139) -> 0.01888130314
A140: PM Peak Hour | B140: =SUM('Trip Generation'!B123:B125) -> 0.004664142259 | C140: =SUM('Trip Generation'!C123:C125) -> 0.01574584605 | D140: =SUM('Trip Generation'!D123:D125) -> 0.004606498007 | E140: =SUM(B140:D140) -> 0.02501648631
A143: Model Application - Trip Ends Associated With Houses in the Project Only
A144: Baseline # of External Trips (ITE Model) | B144: HBW | C144: HBO | D144: NHB | E144: Total
A145: Daily | B145: =Calculations!R26 -> 2.733700325 | C145: =Calculations!S26 -> 8.646237409 | D145: =Calculations!T26 -> 1.920062265 | E145: =SUM(B145:D145) -> 13.3
A146: AM Peak Hour | B146: =Calculations!R27 -> 0.4581806141 | C146: =Calculations!S27 -> 0.5265493306 | D146: =Calculations!T27 -> 0.03527005524 | E146: =SUM(B146:D146) -> 1.02
A147: PM Peak Hour | B147: =Calculations!R28 -> 0.3482357348 | C147: =Calculations!S28 -> 0.6958168622 | D147: =Calculations!T28 -> 0.195947403 | E147: =SUM(B147:D147) -> 1.24
A149: % External Trip Reduction (predicted by MXD Model) - Daily | B149: HBW | C149: HBO | D149: NHB | E149: Total
A150: Internal Capture | B150: ='Trip Generation'!B98 -> 0.007256866467 | C150: ='Trip Generation'!C98 -> 0.01245966452 | D150: ='Trip Generation'!D98 -> 0.006012104372 | E150: =IFERROR(E165/E145,0) -> 0.01045946845
A151: Walking External | B151: ='Trip Generation'!B99 -> 0.006179385163 | C151: ='Trip Generation'!C99 -> 0.0001239705179 | D151: ='Trip Generation'!D99 -> 5.978429065e-06 | E151: =IFERROR(E166/(E145-E165),0) -> 0.001355526448
A152: Transit External | B152: ='Trip Generation'!B100 -> 2.242424839e-06 | C152: ='Trip Generation'!C100 -> 0.0101739703 | D152: ='Trip Generation'!D100 -> 0.01759659521 | E152: =IFERROR(E167/(E145-E165),0) -> 0.009152880467
A154: % External Trip Reduction (predicted by MXD Model) - AM Peak | B154: HBW | C154: HBO | D154: NHB | E154: Total
A155: Internal Capture | B155: ='Trip Generation'!B103 -> 0.007256866467 | C155: ='Trip Generation'!C103 -> 0.01245966452 | D155: ='Trip Generation'!D103 -> 0.006012104372 | E155: =IFERROR(E170/E146,0) -> 0.009899638037
A156: Walking External | B156: ='Trip Generation'!B104 -> 0.006179385163 | C156: ='Trip Generation'!C104 -> 0.0001239705179 | D156: ='Trip Generation'!D104 -> 5.978429065e-06 | E156: =IFERROR(E171/(E146-E170),0) -> 0.002847207073
A157: Transit External | B157: ='Trip Generation'!B105 -> 2.242424839e-06 | C157: ='Trip Generation'!C105 -> 0.0101739703 | D157: ='Trip Generation'!D105 -> 0.01759659521 | E157: =IFERROR(E172/(E146-E170),0) -> 0.005850338954
A159: % External Trip Reduction (predicted by MXD Model) - PM Peak | B159: HBW | C159: HBO | D159: NHB | E159: Total
A160: Internal Capture | B160: ='Trip Generation'!B108 -> 0.007256866467 | C160: ='Trip Generation'!C108 -> 0.01245966452 | D160: ='Trip Generation'!D108 -> 0.006012104372 | E160: =IFERROR(E175/E147,0) -> 0.009979678332
A161: Walking External | B161: ='Trip Generation'!B109 -> 0.006179385163 | C161: ='Trip Generation'!C109 -> 0.0001239705179 | D161: ='Trip Generation'!D109 -> 5.978429065e-06 | E161: =IFERROR(E176/(E147-E175),0) -> 0.001810501463
A162: Transit External | B162: ='Trip Generation'!B110 -> 2.242424839e-06 | C162: ='Trip Generation'!C110 -> 0.0101739703 | D162: ='Trip Generation'!D110 -> 0.01759659521 | E162: =IFERROR(E177/(E147-E175),0) -> 0.008487173422
A164: # of Trips Reduced (predicted by MXD Model) - Daily | B164: HBW | C164: HBO | D164: NHB | E164: Total
A165: Internal Capture | B165: =B145*B150 -> 0.01983809822 | C165: =C145*C150 -> 0.1077292174 | D165: =D145*D150 -> 0.01154361474 | E165: =SUM(B165:D165) -> 0.1391109304
A166: Walking External | B166: =(B145-B165)*B151 -> 0.01676999998 | C166: =(C145-C165)*C151 -> 0.001058523282 | D166: =(D145-D165)*D151 -> 1.140994337e-05 | E166: =SUM(B166:D166) -> 0.01783993321
A167: Transit External | B167: =(B145-B165)*B152 -> 6.085632068e-06 | C167: =(C145-C165)*C152 -> 0.08687052872 | D167: =(D145-D165)*D152 -> 0.03358343014 | E167: =SUM(B167:D167) -> 0.1204600445
A169: # of Trips Reduced (predicted by MXD Model) - AM Peak | B169: HBW | C169: HBO | D169: NHB | E169: Total
A170: Internal Capture | B170: =B146*B155 -> 0.003324955534 | C170: =C146*C155 -> 0.006560628011 | D170: =D146*D155 -> 0.0002120472533 | E170: =SUM(B170:D170) -> 0.0100976308
A171: Walking External | B171: =(B146-B170)*B156 -> 0.002810728308 | C171: =(C146-C170)*C156 -> 6.446326874e-05 | D171: =(D146-D170)*D156 -> 2.095918139e-07 | E171: =SUM(B171:D171) -> 0.002875401169
A172: Transit External | B172: =(B146-B170)*B157 -> 1.019979627e-06 | C172: =(C146-C170)*C157 -> 0.005290349615 | D172: =(D146-D170)*D157 -> 0.0006169015754 | E172: =SUM(B172:D172) -> 0.00590827117
A174: # of Trips Reduced (predicted by MXD Model) - PM Peak | B174: HBW | C174: HBO | D174: NHB | E174: Total
A175: Internal Capture | B175: =B147*B160 -> 0.002527100226 | C175: =C147*C160 -> 0.008669644668 | D175: =D147*D160 -> 0.001178056238 | E175: =SUM(B175:D175) -> 0.01237480113
A176: Walking External | B176: =(B147-B175)*B161 -> 0.002136266807 | C176: =(C147-C175)*C161 -> 8.518599641e-05 | D176: =(D147-D175)*D161 -> 1.164414724e-06 | E176: =SUM(B176:D176) -> 0.002222617218
A177: Transit External | B177: =(B147-B175)*B162 -> 7.752256291e-07 | C177: =(C147-C175)*C162 -> 0.006991015381 | D177: =(D147-D175)*D162 -> 0.003427277354 | E177: =SUM(B177:D177) -> 0.01041906796
A179: Adjusted # (MXD Model) of Vehicle Trips generated by Project Residences | B179: HBW | C179: HBO | D179: NHB | E179: Total
A180: Daily | B180: =B145-SUM(B165:B167) -> 2.697086142 | C180: =C145-SUM(C165:C167) -> 8.45057914 | D180: =D145-SUM(D165:D167) -> 1.87492381 | E180: =SUM(B180:D180) -> 13.02258909
A181: AM Peak Hour | B181: =B146-SUM(B170:B172) -> 0.4520439103 | C181: =C146-SUM(C170:C172) -> 0.5146338897 | D181: =D146-SUM(D170:D172) -> 0.03444089682 | E181: =SUM(B181:D181) -> 1.001118697
A182: PM Peak Hour | B182: =B147-SUM(B175:B177) -> 0.3435715925 | C182: =C147-SUM(C175:C177) -> 0.6800710162 | D182: =D147-SUM(D175:D177) -> 0.191340905 | E182: =SUM(B182:D182) -> 1.214983514
A185: External Vehicle Trips | B185: Baseline | C185: Adjusted | D185: Reduction %
A186: Daily | B186: =Calculations!B26 -> 13.3 | C186: =SUM(B180:D180) -> 13.02258909 | D186: =IFERROR(1-C186/B186,0) -> 0.02085796302
A187: AM Peak Hour | B187: =Calculations!B27 -> 1.02 | C187: =SUM(B181:D181) -> 1.001118697 | D187: =IFERROR(1-C187/B187,0) -> 0.01851108151
A188: PM Peak Hour | B188: =Calculations!B28 -> 1.24 | C188: =SUM(B182:D182) -> 1.214983514 | D188: =IFERROR(1-C188/B188,0) -> 0.02017458573
A192: VMT
A193: Daily VMT Reduced | B193: HBW | C193: HBO | D193: NHB | E193: Total
A194: ITE Daily VMT | B194: ='Trip Generation'!$B$93*'Trip Generation'!$B$88 -> 13.03975055 | C194: ='Trip Generation'!$C$93*'Trip Generation'!$C$88 -> 19.97280842 | D194: ='Trip Generation'!$D$93*'Trip Generation'!$D$88 -> 4.684951927 | E194: =SUM(B194:D194) -> 37.6975109
A195: MXD Daily Adjusted VMT | B195: ='Trip Generation'!$B$128*'Trip Generation'!$B$88 -> 12.8651009 | C195: ='Trip Generation'!$C$128*'Trip Generation'!$C$88 -> 19.52083781 | D195: ='Trip Generation'!$D$128*'Trip Generation'!$D$88 -> 4.574814097 | E195: =SUM(B195:D195) -> 36.96075281
A196: MXD Reduction in Daily VMT (VMT Reduction from Trip Capture) | E196: =E194-E195 -> 0.7367580891
A197: as a percentage | E197: =E196/E194 -> 0.01954394525
A199: Trip Capture VMT Reduction | B199: HBW | C199: HBO | D199: NHB | E199: Total
A200: VMT Reduction from Trip Capture | B200: ='Trip Generation'!$B$138*'Trip Generation'!$B$88 -> 0.1746496569 | C200: ='Trip Generation'!$C$138*'Trip Generation'!$C$88 -> 0.4519706024 | D200: ='Trip Generation'!$D$138*'Trip Generation'!$D$88 -> 0.1101378298 | E200: =SUM(B200:D200) -> 0.7367580891
A201: VMT Reduction from Shorter Trips in TAZ relative to region | B201: =('Trip Generation'!$B$87-'Trip Generation'!$B$88)*'Trip Generation'!$B$128 -> 12.8651009 | C201: =('Trip Generation'!$C$87-'Trip Generation'!$C$88)*'Trip Generation'!$C$128 -> 19.52083781 | D201: =('Trip Generation'!$D$87-'Trip Generation'!$D$88)*'Trip Generation'!$D$128 -> 4.574814097 | E201: =SUM(B201:D201) -> 36.96075281
A202: Total Daily VMT Avoided | E202: =SUM(E200:E201) -> 37.6975109
A204: Daily ITE VMT by Land Use Type | B204: HBW | C204: HBO | D204: NHB | E204: Total
A205: Residential | B205: =Calculations!R26*TG_TAZ_HBW -> 13.03975055 | C205: =Calculations!S26*TG_TAZ_HBO -> 19.97280842 | D205: =Calculations!T26*TG_TAZ_NHB -> 4.684951927 | E205: =SUM(B205:D205) -> 37.6975109
A206: Retail | B206: =Calculations!R33*TG_TAZ_HBW -> 0 | C206: =Calculations!S33*TG_TAZ_HBO -> 0 | D206: =Calculations!T33*TG_TAZ_NHB -> 0 | E206: =SUM(B206:D206) -> 0
A207: Office/Public | B207: =Calculations!R40*TG_TAZ_HBW -> 0 | C207: =Calculations!S40*TG_TAZ_HBO -> 0 | D207: =Calculations!T40*TG_TAZ_NHB -> 0 | E207: =SUM(B207:D207) -> 0
A208: Education | B208: =Calculations!R54*TG_TAZ_HBW -> 0 | C208: =Calculations!S54*TG_TAZ_HBO -> 0 | D208: =Calculations!T54*TG_TAZ_NHB -> 0 | E208: =SUM(B208:D208) -> 0
A209: Other | B209: =Calculations!R47*TG_TAZ_HBW -> 0 | C209: =Calculations!S47*TG_TAZ_HBO -> 0 | D209: =Calculations!T47*TG_TAZ_NHB -> 0 | E209: =SUM(B209:D209) -> 0
A211: Daily ITE VMT by Land Use Type | B211: HBW | C211: HBO | D211: NHB | E211: Total
A212: Residential | B212: =B205*(B$195/B$194) -> 12.8651009 | C212: 19.52083781 | D212: 4.574814097 | E212: =SUM(B212:D212) -> 36.96075281
A213: Retail | B213: 0 | C213: 0 | D213: 0 | E213: =SUM(B213:D213) -> 0
A214: Office/Public | B214: 0 | C214: 0 | D214: 0 | E214: =SUM(B214:D214) -> 0
A215: Education | B215: 0 | C215: 0 | D215: 0 | E215: =SUM(B215:D215) -> 0
A216: Other | B216: 0 | C216: 0 | D216: 0 | E216: =SUM(B216:D216) -> 0

Sheet Gap Financing Options (hidden)
A1: Financial Stats | B1: Residential (Owner) | C1: Residential (Rental) | D1: Hotel/Motel | E1: Retail | F1: Office | G1: Industrial | H1: Mixed-Use
A2: Rental (Residential and Commercial) | B2: % | C2: % | D2: % | E2: % | F2: % | G2: % | H2: %
A3: Cash-on-Cash (After Year 3) | C3: ='Residential Rental'!M5 -> 0 | D3: =Hotel!M5 -> 0 | E3: =Retail!M5 -> 0 | F3: =Office!M5 -> 0 | G3: =Industrial!M5 -> 0 | H3: ='Mixed-Use Summary'!P5 -> 0
A4: IRR on Project Cost (Unleveraged Return) | C4: ='Residential Rental'!M6 -> 0 | D4: =Hotel!M6 -> 0 | E4: =Retail!M6 -> 0 | F4: =Office!M6 -> 0 | G4: =Industrial!M6 -> 0 | H4: ='Mixed-Use Summary'!P6 -> 0
A5: IRR on Investor Equity (Leveraged Return Before Tax) | C5: ='Residential Rental'!M7 -> 0 | D5: =Hotel!M7 -> 0 | E5: =Retail!M7 -> 0 | F5: =Office!M7 -> 0 | G5: =Industrial!M7 -> 0 | H5: ='Mixed-Use Summary'!P7 -> 0
A6: Debt Service Coverage Ratio (Year 3) | C6: ='Residential Rental'!M8 -> 0 | D6: =Hotel!M8 -> 0 | E6: =Retail!M8 -> 0 | F6: =Office!M8 -> 0 | G6: =Industrial!M8 -> 0 | H6: ='Mixed-Use Summary'!P8 -> 0
A7: IRR on Public Participation | C7: ='Residential Rental'!M9 -> 0 | D7: =Hotel!M9 -> 0 | E7: =Retail!M9 -> 0 | F7: =Office!M9 -> 0 | G7: =Industrial!M9 -> 0 | H7: ='Mixed-Use Summary'!P9 -> 0
A8: Owner Residential | B8: % | C8: % | D8: % | E8: % | F8: % | G8: % | H8: %
A9: Project Rate of Return | B9: ='Residential Owner'!D3 -> 0.1973543891 | H9: ='Mixed-Use Summary'!V5 -> 0.1973543891
A10: Return to Equity | B10: ='Residential Owner'!D4 -> 0.9867719453 | H10: ='Mixed-Use Summary'!V6 -> 0.9867719453
A12: Leveraging Tools
A13: Cash Flow Support - Property Tax Abatements
A14: Property Tax Abatements | B14: Residential (Owner) | C14: Residential (Rental) | D14: Hotel/Motel | E14: Retail | F14: Office | G14: Industrial | H14: Commercial Parking
A15: Local property tax rate available for abatement | C15: 0 | D15: 0 | E15: 0 | F15: 0 | G15: 0 | H15: 0
A16: Total Property Tax Abatement | C16: =SUM('Residential Rental'!E123:N123) -> 0 | D16: =SUM(Hotel!E125:N125) -> 0 | E16: =SUM(Retail!E125:N125) -> 0 | F16: =SUM(Office!E122:N122) -> 0 | G16: =SUM(Industrial!E122:N122) -> 0 | H16: =SUM('Commercial Parking'!E125:N125) -> 0
A17: Year 1 | C17: 0 | D17: 0 | E17: 0 | F17: 0 | G17: 0 | H17: 0
A18: Year 2 | C18: 0 | D18: 0 | E18: 0 | F18: 0 | G18: 0 | H18: 0
A19: Year 3 | C19: 0 | D19: 0 | E19: 0 | F19: 0 | G19: 0 | H19: 0
A20: Year 4 | C20: 0 | D20: 0 | E20: 0 | F20: 0 | G20: 0 | H20: 0
A21: Year 5 | C21: 0 | D21: 0 | E21: 0 | F21: 0 | G21: 0 | H21: 0
A22: Year 6 | C22: 0 | D22: 0 | E22: 0 | F22: 0 | G22: 0 | H22: 0
A23: Year 7 | C23: 0 | D23: 0 | E23: 0 | F23: 0 | G23: 0 | H23: 0
A24: Year 8 | C24: 0 | D24: 0 | E24: 0 | F24: 0 | G24: 0 | H24: 0
A25: Year 9 | C25: 0 | D25: 0 | E25: 0 | F25: 0 | G25: 0 | H25: 0
A26: Year 10 | C26: 0 | D26: 0 | E26: 0 | F26: 0 | G26: 0 | H26: 0
A28: Cash Flow Support - Vertical Housing Tax Exemptions (Oregon)
A29: Tax Exemption Qualified Project? (Y/N) | B29: n
A30: Equalized Floor | B30: 5
A31: Percent Improvement Exemption | B31: 0.8
A32: Low-Income Allocation of Equalized Floors
A33: Percent Low-Income Land Exemption | B33: 0
A35: Cash Flow Support - Sales Tax Abatements
A36: Sales Tax Abatements | D36: Hotel/Motel | E36: Retail | F36: Office | G36: Industrial | H36: Commercial Parking
A37: Local sales tax rate available for abatement | D37: 0 | E37: 0 | F37: 0 | G37: 0 | H37: 0
A38: Total Sales Tax Abatements | D38: =SUM(Hotel!E126:N126) -> 0 | E38: =SUM(Retail!E126:N126) -> 0 | F38: =SUM(Office!E123:N123) -> 0 | G38: =SUM(Industrial!E123:N123) -> 0 | H38: =SUM('Commercial Parking'!E126:N126) -> 0
A39: Year 1 | D39: 0 | E39: 0 | F39: 0 | G39: 0 | H39: 0
A40: Year 2 | D40: 0 | E40: 0 | F40: 0 | G40: 0 | H40: 0
A41: Year 3 | D41: 0 | E41: 0 | F41: 0 | G41: 0 | H41: 0
A42: Year 4 | D42: 0 | E42: 0 | F42: 0 | G42: 0 | H42: 0
A43: Year 5 | D43: 0 | E43: 0 | F43: 0 | G43: 0 | H43: 0
A44: Year 6 | D44: 0 | E44: 0 | F44: 0 | G44: 0 | H44: 0
A45: Year 7 | D45: 0 | E45: 0 | F45: 0 | G45: 0 | H45: 0
A46: Year 8 | D46: 0 | E46: 0 | F46: 0 | G46: 0 | H46: 0
A47: Year 9 | D47: 0 | E47: 0 | F47: 0 | G47: 0 | H47: 0
A48: Year 10 | D48: 0 | E48: 0 | F48: 0 | G48: 0 | H48: 0
A51: Cash Flow Support - TIF or IRA Payments
A52: Cash Flow Support | C52: Residential (Rental) | D52: Hotel/Motel | E52: Retail | F52: Office | G52: Industrial | H52: Commercial Parking
A53: Total Cash Flow Support | C53: =SUM('Residential Rental'!E126:N126) -> 0 | D53: =SUM(Hotel!E127:N127) -> 0 | E53: =SUM(Retail!E127:N127) -> 0 | F53: =SUM(Office!E124:N124) -> 0 | G53: =SUM(Industrial!E124:N124) -> 0 | H53: =SUM('Commercial Parking'!E127:N127) -> 0
A54: Year 1 | C54: 0 | D54: 0 | E54: 0 | F54: 0 | G54: 0 | H54: 0
A55: Year 2 | C55: 0 | D55: 0 | E55: 0 | F55: 0 | G55: 0 | H55: 0
A56: Year 3 | C56: 0 | D56: 0 | E56: 0 | F56: 0 | G56: 0 | H56: 0
A57: Year 4 | C57: 0 | D57: 0 | E57: 0 | F57: 0 | G57: 0 | H57: 0
A58: Year 5 | C58: 0 | D58: 0 | E58: 0 | F58: 0 | G58: 0 | H58: 0
A59: Year 6 | C59: 0 | D59: 0 | E59: 0 | F59: 0 | G59: 0 | H59: 0
A60: Year 7 | C60: 0 | D60: 0 | E60: 0 | F60: 0 | G60: 0 | H60: 0
A61: Year 8 | C61: 0 | D61: 0 | E61: 0 | F61: 0 | G61: 0 | H61: 0
A62: Year 9 | C62: 0 | D62: 0 | E62: 0 | F62: 0 | G62: 0 | H62: 0
A63: Year 10 | C63: 0 | D63: 0 | E63: 0 | F63: 0 | G63: 0 | H63: 0
A66: Loan Support
A67: Loan Terms | C67: Residential (Rental) | D67: Hotel/Motel | E67: Retail | F67: Office | G67: Industrial | H67: Commercial Parking | I67: Total
A68: Public Leveraging Loan Included in Analysis? (1=Yes; 0=No) | B68: 0 | C68: =IF('Basic Financial'!$B$34=0,$B$68,0) -> 0 | D68: =IF('Basic Financial'!$B$34=0,$B$68,0) -> 0 | E68: =IF('Basic Financial'!$B$34=0,$B$68,0) -> 0 | F68: =IF('Basic Financial'!$B$34=0,$B$68,0) -> 0 | G68: =IF('Basic Financial'!$B$34=0,$B$68,0) -> 0 | H68: =IF('Basic Financial'!$B$34=0,$B$68,0) -> 0
A69: Maximum LTV | C69: 0.3 | D69: 0.3 | E69: 0.3 | F69: 0.3 | G69: 0.3 | H69: 0.3
A70: Interest rate | C70: 0.03 | D70: 0.03 | E70: 0.03 | F70: 0.03 | G70: 0.03 | H70: 0.03
A71: Amortization period - years | C71: 15 | D71: 15 | E71: 15 | F71: 15 | G71: 15 | H71: 15
A72: Loan $ Amount Required to Meet Loan Terms ◊ | C72: =C69*'Mixed-Use Summary'!B56 -> 0 | D72: =D69*'Mixed-Use Summary'!E56 -> 0 | E72: =E69*'Mixed-Use Summary'!D56 -> 0 | F72: =F69*'Mixed-Use Summary'!C56 -> 0 | G72: =G69*'Mixed-Use Summary'!F56 -> 0 | H72: =H69*'Mixed-Use Summary'!G56 -> 0 | I72: =SUM(C72:H72) -> 0
A73: Baseline Loan Support (based on LTV) | C73: =IF('Physical Inputs'!$B$42="Renter",'Mixed-Use Summary'!B65,0) -> 0 | D73: ='Mixed-Use Summary'!E65 -> 0 | E73: ='Mixed-Use Summary'!D65 -> 0 | F73: ='Mixed-Use Summary'!C65 -> 0 | G73: ='Mixed-Use Summary'!F65 -> 0 | H73: ='Mixed-Use Summary'!G65 -> 0 | I73: =SUM(C73:G73) -> 0 | J73: =SUM(I73:I74) -> 0
A74: Extra Loan Support (if options selected below exceed LTV amount required) | C74: =IF('Physical Inputs'!$B$42="Renter",((B79-I73)*'Development Costs'!F41),0) -> 0 | D74: =((B79-I73)*'Development Costs'!F47) -> 0 | E74: =((B79-I73)*'Development Costs'!F42) -> 0 | F74: =((B79-I73)*SUM('Development Costs'!F43,'Development Costs'!F45:F46)) -> 0 | G74: =((B79-I73)*'Development Costs'!F44) -> 0 | H74: =((B79-I73)*'Development Costs'!F48) -> 0 | I74: =SUM(C74:H74) -> 0
A75: Capital recovery (from grants)
A76: Annual cash throw off
A77: Share of net sales price
A78: Loan Support Options | B78: Total Detailed | C78: User Overide
A79: Total Loan Support | B79: =IF(AND(B68=1,C79=0,SUM(B80:B83)=0),I72,IF(C79>0,C79,SUM(B80:B83))) -> 0 | C79: 0
A80: Private Activity Bonds (PAB)
A81: Revolving Loan Funds (RLF)
A82: Low-Interest Loans (LIL)
A83: State Infrastructure Banks (SIB)
A86: Fee Waivers / Reductions
A87: Fee Waivers | B87: Residential (Owner) | C87: Residential (Rental) | D87: Hotel/Motel | E87: Retail | F87: Office | G87: Industrial | H87: Commercial Parking
A88: Fee Waivers / Reductions Distribution | B88: =IF('Physical Inputs'!$B$42="Owner",'Gap Financing Options'!$B$90*'Development Costs'!$F$41,0) -> 0 | C88: =IF('Physical Inputs'!$B$42="Renter",'Gap Financing Options'!$B$90*'Development Costs'!$F$41,0) -> 0 | D88: =B90*'Development Costs'!$F$47 -> 0 | E88: =$B90*'Development Costs'!$F$42 -> 0 | F88: =B90*IFERROR(SUM('Development Costs'!F43,'Development Costs'!F45:F46),0) -> 0 | G88: =B90*'Development Costs'!$F$44 -> 0 | H88: =$B90*'Development Costs'!$F$48 -> 0
A89: User Inputs | B89: Total Detailed | C89: User Overide
A90: Fee Waivers Total | B90: =IF(C90>0.01,C90,SUM(B91:B93)) -> 0 | C90: 0
A91: Fee Waivers (FW)
A92: Utility Fee Reductions (UFR)
A93: Impact Fee Reductions (IFR)
A96: Grants
A97: Grants | B97: Residential (Owner) | C97: Residential (Rental) | D97: Hotel/Motel | E97: Retail | F97: Office | G97: Industrial | H97: Commercial Parking
A98: Grant Distribution | B98: =IF('Physical Inputs'!$B$42="Owner",'Gap Financing Options'!$B$100*'Development Costs'!$F$41,0) -> 0 | C98: =IF('Physical Inputs'!$B$42="Renter",'Gap Financing Options'!$B$100*'Development Costs'!$F$41,0) -> 0 | D98: =B100*'Development Costs'!$F$47 -> 0 | E98: =$B100*'Development Costs'!$F$42 -> 0 | F98: =B100*IFERROR(SUM('Development Costs'!F43,'Development Costs'!F45:F46),0) -> 0 | G98: =B100*'Development Costs'!$F$44 -> 0 | H98: =$B100*'Development Costs'!$F$48 -> 0
A99: User Inputs | B99: Total Detailed | C99: User Overide
A100: Grants Total | B100: =IF(C100>0.01,C100,SUM(B101:B117)) -> 0 | C100: 0
A101: CDBG
A102: CMAQ
A103: STP
A104: EDA
A105: LID
A106: Business Improvement Districts (BID)
A107: Revenue Bonds (RB)
A108: Parking Districts (PD)
A109: General Obligation Bonds (GOB)
A110: TIF
A111: GARVEE
A112: COPs
A113: TIFIA
A114: RRIF
A115: Urbanized Area Formula (UAF) Program
A116: Foundation Grants (FG)
A117: Other
A120: Tax Credits
A121: Tax Credits | B121: Residential (Owner) | C121: Residential (Rental) | D121: Hotel/Motel | E121: Retail | F121: Office | G121: Industrial | H121: Commercial Parking
A122: Tax Credits net to project Distribution | B122: =IF(SUM(B124:H124)=0,IF('Physical Inputs'!$B$42="Owner",'Gap Financing Options'!B126*B123,0),IF('Physical Inputs'!$B$42="Owner",'Gap Financing Options'!B126*B124,0)) -> 0 | C122: =IF(SUM(B124:H124)=0,IF('Physical Inputs'!$B$42="Renter",'Gap Financing Options'!B126*C123,0),IF('Physical Inputs'!$B$42="Renter",'Gap Financing Options'!B126*C124,0)) -> 0 | D122: =IF(SUM(B124:H124)=0,B126*D123,B126*D124) -> 0 | E122: =IF(SUM(B124:H124)=0,$B126*E123,B126*E124) -> 0 | F122: =IF(SUM(B124:H124)=0,B126*F123,B126*F124) -> 0 | G122: =IF(SUM(B124:H124)=0,B126*G123,B126*G124) -> 0 | H122: =IF(SUM(B124:H124)=0,$B126*H123,B126*H124) -> 0
A123: Development Costs by Land Use (%) ◊ | B123: =IF('Physical Inputs'!$B$42="Owner",'Development Costs'!$F$41,0) -> 1 | C123: =IF('Physical Inputs'!$B$42="Renter",'Development Costs'!$F$41,0) -> 0 | D123: ='Development Costs'!$F$47 -> 0 | E123: ='Development Costs'!$F$42 -> 0 | F123: ='Development Costs'!$F$43 -> 0 | G123: ='Development Costs'!$F$44 -> 0 | H123: ='Development Costs'!$F$48 -> 0
A124: Tax Credit Allocation (%) Overide - User Defined ◊
A125: User Inputs | B125: Total Detailed | C125: User Overide
A126: Tax Credits Total | B126: =IF(C126>0.01,C126,SUM(B127:B129)) -> 0
A127: Low/Moderate Income Housing Tax Credits (L/MIHTC)
A128: New Market Tax Credits (NMTC)
A129: Historic Preservation Tax Credits (HPTC)

Sheet Gap Financing Definitions (hidden)
A1: PUBLIC LEVERAGING TOOLS
A3: Cash Flow Support -- Improves annual project cash flow
A5: Property Tax Abatement (PTA)
B6: Many local communities may eliminate or reduce real and personal property taxes over a scheduled period of time as an incentive to new and expanding businesses. Usually, property tax abatement allows a property owner to phase in payment of property taxes over a designated period. Depending on state enabling legislation, this period may be any number of years between one and 20 or longer with abatements usually ranging from 100 percent down to 10 percent for any given year. Sometimes property tax abatement is used to offset capital investments made by the investor (see Tax Increment Finance and Infrastructure Reimbursement Agreements).
B7: Application – Reduced property tax assessments over the applicable years.
A9: Sales Tax Abatement (STA)
B10: Some states allow local communities to eliminate or reduce sales taxes over a scheduled period of time as an incentive to new and expanding businesses. Usually, sales tax abatement allows a retail operation to phase in payment of sales taxes over a designated period. Depending on state enabling legislation, this period may be any number of years between one and usually no more than 10 but it could be longer, with abatements usually ranging from 100 percent down to 10 percent for any given year. Sometimes sales tax abatement is used to offset capital investments made by the investor (see Tax Increment Finance and Infrastructure Reimbursement Agreements).
B11: Application – Reduced sales tax assessments over the applicable years.
A13: Tax Increment Financing (TIF)
B14: TIF uses future gains in taxes to finance improvements which in theory create the very value recaptured for this purpose – it is a form of value recapture. When a development or public project is carried out, there is often an increase in the value of surrounding real estate and perhaps new investment such as new or rehabilitated buildings. This increased site value and investment sometimes generates increased tax revenues. The increased tax revenues are the "tax increment." Tax Increment Financing dedicates tax increments within a certain defined district to finance debt issued to pay for the project. TIF is designed to channel funding toward improvements in distressed or underdeveloped areas where development might not otherwise occur. TIF creates funding for "public" projects that may otherwise be unaffordable to localities, by borrowing against future property tax revenues. TIF can also be applied to increased sales taxes generated by new development. TIF revenues may be used to retire bonds issued to finance qualifying public purpose investments, or used to reimburse the investor directly from property and/or sales taxes (see Infrastructure Reimbursement Agreements).
B15: Application – Where TIF bonds are used, the tool is considered a grant. Where property and/or sales tax abatement is used, abatement would be the application.
A17: Infrastructure Reimbursement Agreements (IRA)
B18: Sometimes local government cannot finance facility improvements needed to attract investment. In these situations, the investor may be willing to finance the improvements provided the investor is reimbursed through property and/or sales tax abatements. Another alternative is to have local government assess subsequent new development a proportionate share of its cost of facility improvements though a “late-comer” fee.
B19: Application – Reduced property and/or sales tax assessments over the applicable years.
A21: Fee Waivers -- Effect is to buy down total project cost
A23: Fee Waivers (FW)
B24: Local governments assess a wide range of fees to process new development. Collectively, they can account for up to 5 percent or more of the total construction costs. Waiver of fees, or their payment through such alternatives as CDBG funds, can reduce the cost.
B25: Application – Grant for qualifying capital improvements.
A27: Utility Fee Reductions (UFR)
B28: Many local governments charge connection fees to link new development to water and sewer services. They can account for up to 5 percent or more of the total construction costs. Some local governments reduce or waive these fees for economic development, redevelopment, affordable housing, or other public policy purpose.
B29: Application – Grant for qualifying capital improvements.
A31: Impact Fee Reductions (IFR)
B32: Many local governments charge impact fees so that the impacts of new development on public facilities can be mitigated. They can account for up to 5 percent or more of the total construction costs. Normally impact fees must be paid to assure legal defensibility but they may be paid from such alternatives as CDBG funds, local housing or economic development funds, or paid over time through a loan arrangement.
B33: Application – Fee waiver/reduction.
A35: Grants -- Proceeds used to buy down land and/or building costs
A37: Community Development Block Grants (CDBG)
B38: The Community Development Block Grant (CDBG) program is one of the longest-running programs of the U.S. Department of Housing and Urban Development. It funds local community development activities such as affordable housing, anti-poverty programs, and infrastructure development. CDBG are subject to less federal oversight and are largely used at the discretion of the state and local governments and their sub grantees.
B39: Application – Grant for qualifying capital improvements.
A41: Congestion Mitigation and Air Quality Improvement (CMAQ) Funds
B42: The CMAQ program was created under the Intermodal Surface Transportation Efficiency Act (ISTEA) of 1991, continued under the Transportation Equity Act for the 21st Century (TEA-21), and reauthorized by the Safe, Accountable, Flexible, Efficient Transportation Equity Act: A Legacy for Users (SAFETEA-LU). The purpose of the CMAQ program is to fund transportation projects or programs that will contribute to attainment or maintenance of the national ambient air quality standards (NAAQS) for ozone, carbon monoxide (CO), and particulate matter (PM). CMAQ funds may be used to establish new or expanded transportation projects or programs that reduce emissions, including capital investments in transportation infrastructure, congestion relief efforts, diesel engine retrofits, or other capital projects.
B43: Application – Grant for qualifying capital improvements.
A45: Surface Transportation Program (STP)
B46: The STP provides flexible funding that may be used by States and localities for projects on any Federal-aid highway, including the NHS, bridge projects on any public road, transit capital projects, and intracity and intercity bus terminals and facilities. A portion of funds reserved for rural areas may be spent on rural minor collectors. http://www.fhwa.dot.gov/tea21/factsheets/stp.htm
B47: Application – Grant for qualifying capital improvements.
A49: Economic Development Administration (EDA) Grants
B50: The EDA is an agency in the U.S. Department of Commerce that provides grants to economically distressed communities to generate new employment, help retain existing jobs and stimulate industrial and commercial growth.
B51: Application – Grant for qualifying capital improvements.
A53: Local Improvement District; Community Improvement District; Special Assessment District; Benefit Assessment District; Related (LID)
B54: These are mechanisms for property owners with common concerns to band together and assess themselves for purely local improvements such as sidewalk repair, neighborhood park rehabilitation, streets, and so forth. They must be authorized by state law and follow specific state procedures for formation, governance, and the issuance of bonds to finance the projects. They are funded through such sources as general taxes, special assessments, or fees based on formulas (such as street front-foot). Although property owners pay the benefits to new investment could be considered a grant. (See also Business Improvement Districts.)
B55: Application – Grant for qualifying capital improvements.
A57: Business Improvement Districts (BID)
B58: A business improvement district (BID) is a defined area within which businesses pay an additional tax or fee in order to fund improvements within the district's boundaries. Grant funds acquired by the city for special programs and/or incentives such as tax abatements can be made available to assist businesses or to recruit new business. BIDs may go by other names, such as business improvement area (BIA), business revitalization zone (BRZ), community improvement district (CID), special services area (SSA), or special improvement district (SID). BIDs provide services, such as cleaning streets, providing security, making capital improvements, construction of pedestrian and streetscape enhancements, and marketing the area. The services provided by BIDs are supplemental to those already provided by the municipality. BIDs may generate revenue used to underwrite investments in new development.
B59: Application – Grant for qualifying capital improvements.
A61: Revenue Bonds (RB)
B62: A revenue bond is a special type of municipal bond distinguished by its guarantee of repayment solely from revenues generated by a specified revenue-generating entity associated with the purpose of the bonds, rather than from a tax. Unlike general obligation bonds, only the revenues specified in the legal contract between the bond holder and bond issuer are required to be used for repayment of the principal and interest of the bonds; other revenues (notably tax revenues) and the general credit of the issuing agency are not so encumbered. Because the pledge of security is not as great as that of general obligation bonds, revenue bonds may carry a slightly higher interest rate than G.O. bonds; however, they are usually considered the second-most secure type of municipal bonds.
B63: Application – Grant for qualifying capital improvements.
A65: Parking Districts (PD)
B66: These are a variant of the Local Improvement District but focusing on providing parking usually for downtowns and suburban centers. A Revenue Bond is used finance the capital construction while parking fees retire the debt and help with maintenance. Sometimes a BID will underwrite the revenue bond and use parking revenues for O&M. Parking districts can shift the cost of providing expensive decked or underground parking from an investment project to a larger pool of properties.
B67: Application – Grant for qualifying capital improvements, usually the parking structures costs otherwise incurred by new investment.
A69: General Obligation Bonds (GOB)
B70: A general obligation bond is a common type of municipal bond in the nation that is secured by a state or local government's pledge to use legally available resources, including tax revenues, to repay bond holders. Most general obligation pledges at the local government level include a pledge to levy a property tax to meet debt service requirements, in which case holders of general obligation bonds have a right to compel the borrowing government to levy that tax to satisfy the local government's obligation. Because property owners are usually reluctant to risk losing their holding due to unpaid property tax bills, credit rating agencies often consider a general obligation pledge to have very strong credit quality and frequently assign them investment grade ratings. If local property owners do not pay their property taxes on time in any given year, a government entity is required to increase its property tax rate by as much as is legally allowable in a following year to make up for any delinquencies. In the interim between the taxpayer delinquency and the higher property tax rate in the following year, the general obligation pledge requires the local government to pay debt service coming due with its available resources. GO Bonds can be used for a wide range of purposes that benefit investment property.
B71: Application – Grant for qualifying capital improvements.
A73: Tax Increment Financing (TIF)
B74: TIF uses future gains in taxes to finance improvements which in theory create the very value recaptured for this purpose – it is a form of value recapture. When a development or public project is carried out, there is often an increase in the value of surrounding real estate and perhaps new investment such as new or rehabilitated buildings. This increased site value and investment sometimes generates increased tax revenues. The increased tax revenues are the "tax increment." Tax Increment Financing dedicates tax increments within a certain defined district to finance debt issued to pay for the project. TIF is designed to channel funding toward improvements in distressed or underdeveloped areas where development might not otherwise occur. TIF creates funding for "public" projects that may otherwise be unaffordable to localities, by borrowing against future property tax revenues. TIF can also be applied to increased sales taxes generated by new development. TIF revenues may be used to retire bonds issued to finance qualifying public purpose investments, or used to reimburse the investor directly from property and/or sales taxes (see Infrastructure Reimbursement Agreements).
B75: Application – Where TIF bonds are used, the tool is considered a grant. Where property and/or sales tax abatement is used, abatement would be the application.
A77: Grant Anticipation Revenue (GARVEE) Bonds
B78: Grant Anticipation Revenue Vehicle, or GARVEE, is a type of bond issued by a state or state infrastructure bank under federal guidelines. States must repay the bonds using federal funds expected to be received in the future. Federal guidelines state "an eligible debt financing instrument is a bond, note, certificate, mortgage, lease, or other debt financing instrument issued by a State or political subdivision of a State or a public authority, the proceeds of which are used to fund a project eligible for assistance under Title 23.” GARVEE bonds may be used for major projects receiving federal funding. They do not guarantee that the federal government will provide the expected financing, and they are not guaranteed by the federal government. Eligible costs for projects may include interest, retirement of principal, costs for issuing bonds, and other incidental costs which must be approved.
B79: Application – Grant for qualifying capital improvements.
A81: Lease Revenue Bonds/Certificates of Participation (COPs)
B82: Lease-revenue bonds are a variant of revenue bonds. The revenue stream backing the bond is created from lease payments made by the occupying department to the governmental financing entity which constructs the facility. The financing authority constructs the facility, issues financing bonds, and retains title to the facility until the debt is retired. Lease-revenue bonds do not require voter approval because the transaction is set up to mirror a typical financing lease, i.e., lease payments are due on a year-to-year basis and required only if the facility can be occupied.
B83: A further variant are Certificates of Participation (COPs) in which an investor buys a share in the improvements or infrastructure the government entity intends to fund. This contrasts with a bond, in which the investor loans the government or municipality money in order to make these improvements. This is used primarily when the government or municipality has a charter-mandated debt ceiling.
B84: Application – Where the tool generates revenue to finance improvements, they may be considered a form of long-term financing. Where they generate funds to build a facility for a public purpose and the tenant such as a government entity retires the debt through lease payments, they may be considered a grant for construction but rent revenue pledged to the lease must be reduced from cash flow available to the investor.
A86: Transportation Infrastructure Finance and Innovation Act (TIFIA)
B87: The TIFIA program provides Federal credit assistance to nationally or regionally significant surface transportation projects, including highway, transit and rail. The program is designed to fill market gaps and leverage substantial private co-investment by providing projects with supplemental or subordinate debt.
B88: Application – Grant for qualifying capital improvements.
A90: Railroad Rehabilitation & Improvement Financing (RRIF) Program
B91: The RRIF program was established by the Transportation Equity Act for the 21st Century (TEA-21) and amended by the Safe Accountable, Flexible and Efficient Transportation Equity Act: a Legacy for Users (SAFETEA-LU). The RRIF Program provides direct federal loans and loan guarantees to finance development of railroad infrastructure.
B92: Application – Grant for qualifying capital improvements.
A94: Urbanized Area Formula (UAF) Program
B95: The UAF makes Federal resources available to urbanized areas and to Governors for transit capital and operating assistance in urbanized areas and for transportation related planning. Activities include planning, engineering design and evaluation of transit projects and other technical transportation-related studies.
B96: Application – Grant for qualifying capital improvements.
A98: Foundation Grants (FG)
B99: Foundations, especially those whose purpose is to advance the well being of local communities, may be interested in providing grants or lower interest loans.
B100: Application – Grant for qualifying capital improvements and or debt service usually with below-market interest.
A102: Loan Support -- Effect is to reduce equity requirements and if below-market rates also reduce debt service obligations
A104: Private Activity Bonds (PAB)
B105: This is a form of a tax-exempt municipal bond in which a local government entity is seeking to raise money for a private company. A municipality issues a private activity bond when it wishes to attract a business and the jobs it brings to the area, especially when the business may be otherwise unable to obtain financing for the project. The municipality issuing the bond must be able to prove that a public benefit derives from the private activity bond in order to qualify for tax-exempt status. Private activity bonds generally are not guaranteed by the revenue of the municipality.
B106: Application – Debt service usually with below-market interest.
A108: Revolving Loan Funds (RLF)
B109: A Revolving Loan Funds (RLF) is a source of money from which loans are made for multiple business development projects. The fund gets its name from the revolving aspect of loan repayment, where the central fund is replenished as individual projects pay back their loans, creating the opportunity to issue other loans to new projects.
B110: Application – Debt service usually with below-market interest.
A112: Low-Interest Loans (LIL)
B113: Local governments may have access to funds that can be used to provide below-market loans for all or part of an investment. If it is just for part, it is often used for “mezzanine” financing.
B114: Application – Debt service usually with below-market interest.
A116: State Infrastructure Banks (SIB)
B117: The SIB program gives states the capacity to increase the efficiency of their transportation investment and significantly leverage Federal resources by attracting non-Federal public and private investment. A SIB, much like a private bank, can offer a range of loans and credit assistance enhancement products to public and private sponsors of Title 23 highway construction projects or Title 49 transit capital projects. By offering SIB support for a project, the sponsor may be able to attract private, local, and additional state financial resources, leveraging a small amount of SIB assistance into a larger dollar investment. Alternatively, SIB capital can be used as collateral to borrow in the bond market or to establish a guaranteed reserve fund. (May not be available in all areas)
B118: Application – establish infrastructure revolving funds eligible to be capitalized with Federal transportation funds
A120: Tax Credits -- Net proceeds used to buy down construction costs
A122: Low/Moderate Income Housing Tax Credits (L/MIHTC)
B123: The federal Low/Moderate Income Housing Tax Credit (LIHTC - often pronounced "lie-tech" or MIHTC – “my-tech” housing credit) program is a dollar-for-dollar tax credit in the for affordable housing investments. It was created under the Tax Reform Act of 1986 (TRA86) that gives incentives for the utilization of private equity in the development of affordable housing aimed at low- or moderate-income households. L/MIHTC accounts for the majority - approximately 90 percent - of all affordable rental housing created in the United States today. The credits are also commonly called Section 42 credits in reference to the applicable section of the Internal Revenue Service. The tax credits are more attractive than tax deductions as they provide a dollar-for-dollar reduction in a taxpayer's federal income tax, whereas a tax deduction only provides a reduction in taxable income. The "passive loss rules" and similar tax changes made by TRA86 greatly reduced the value of tax credits and deductions to individual taxpayers. As a result, almost all investors in L/MIHTC projects are corporations.
B124: Application – The tax credit is considered a grant against a share of the construction cost of the project for each year in which the credit is applicable, up to 10 years. The credit is 9-percent per year for qualifying low-income housing for a total of 90 percent over 10 years, and 4-percent per year for qualifying moderate income housing for a total of 40 percent also over 10 years. The credits apply only to individually qualifying units, and may include a mix of low-income (9-percent/year credit), moderate-income (4-percent/year credit), and market rate (no credit) units.
A126: New Market Tax Credits (NMTC)
B127: The New Markets Tax Credit (NMTC) Program was established in 2000 as part of the Community Renewal Tax Relief Act of 2000. The goal of the program is to induce revitalization efforts of low-income and impoverished communities. The NMTC Program provides tax credit incentives to investors for equity investments in certified Community Development Entities, which invest in low-income communities. The credit equals 39-percent of the investment paid out as 5-percent in each of the first three years and then 6-percent in the final four years (actually six years and plus one day of the seventh year) . A Community Development Entity must have a primary mission of investing in low-income communities and persons.
B128: Application – Grant for qualifying capital improvements.
A130: Historic Preservation Tax Credits (HPTC)
B131: An owner of rental/income-producing property listed by the National Park Service’s Register of National Historic Places (or properties that are contributing resources within a National Register Historic District) may be eligible for a 20 percent investment tax credit for the rehabilitation of the historic structure. The rehabilitation may include commercial, industrial, or residential rental property. In addition, the tax incentive program allows for a 10 percent tax credit for rehabilitation of non-historic, nonresidential buildings built before 1936.
B132: Application – Grant for qualifying capital improvements.

Sheet Hotel (hidden)
A1: ROI Template - Accommodation
A3: Leveraging Tools | D3: Summary | E3: User override | F3: TOTAL | H3: Investment Targets and Performance
A4: Tax Credits net to project | D4: ='Gap Financing Options'!D122 -> 0 | E4: 0 | F4: =IF('Basic Financial'!$B$34=0,D4,0) -> 0 | H4: Performance Indicator | L4: Target | M4: Actual | N4: NPV
A5: Fee Reductions | D5: ='Gap Financing Options'!D88 -> 0 | E5: 0 | F5: =IF('Basic Financial'!$B$34=0,D5,0) -> 0 | H5: Cash-on-Cash After Year 3 | L5: ='Advanced Financial'!D67 -> 0.1 | M5: =G135 -> 0
A6: Grants | D6: ='Gap Financing Options'!D98 -> 0 | E6: 0 | F6: =IF('Basic Financial'!$B$34=0,D6,('Basic Financial'!$B$34*'Development Costs'!F47)) -> 0 | H6: IRR on Project Cost (Unleveraged Return) | L6: ='Advanced Financial'!D68 -> 0.1 | M6: =N149 -> 0 | N6: =N150 -> 0 | O6: =IF(N149=0, "Check NPV for target","") -> Check NPV for target
A7: Total Development Offsets (Contributions to Equity) | F7: =SUM(F4:F6) -> 0 | H7: IRR on Investor Equity (Leveraged Return Before Tax) | L7: ='Advanced Financial'!D69 -> 0.25 | M7: =N157 -> 0 | N7: =N158 -> 0 | O7: =IF(N157=0, "Check NPV for target","") -> Check NPV for target
A8: Net Development Costs | F8: =(C58-F7) -> 0 | H8: Debt Service Coverage Ratio (Year 3) | L8: ='Advanced Financial'!D70 -> 1.25 | M8: =IFERROR(G130/G131,0) -> 0
H9: IRR on Public Participation | L9: =E112 -> 0.05 | M9: =N167 -> 0 | N9: =N168 -> 0
A13: Local Property Tax Rate Available for abatement | D13: ='Gap Financing Options'!D15 -> 0
A14: Local Sales Tax Rate Available for abatement | D14: ='Gap Financing Options'!D37 -> 0
A16: Net Operating Income Analysis
A17: Total Development Costs | C17: =-'Development Costs'!E47 -> 0
A18: Project Feature | C18: Project | D18: Average Daily Rent
A19: Number of units | C19: ='Physical Outputs'!D35 -> 0 | D19: ='Basic Financial'!B63 -> 150
A20: Total project size, square feet | C20: ='Physical Outputs'!C35 -> 0
A21: Other Income | C21: ='Advanced Financial'!D80 -> 0
A22: Less: Vacancy | C22: =1-'Advanced Financial'!C32 -> 0.25
A23: Less: Concessions, Bad Debt | C23: ='Advanced Financial'!D81 -> 0
A24: Less: Operating Costs (%of GPI) | C24: ='Advanced Financial'!D82 -> 0
A26: Initial Project Value Analysis
A27: Property Value (Year 1)
A28: Going in Cap Rate | D28: ='Advanced Financial'!D83 -> 0
A30: Debt Financing
A31: Primary Debt
A32: Maximum LTV | D32: ='Advanced Financial'!D91 -> 0.7
A33: Rate | D33: ='Advanced Financial'!D92 -> 0.06
A34: Amortization Period, Years | D34: ='Advanced Financial'!D93 -> 25
A35: Public Leveraging Loan
A36: Maximum LTV | D36: =IF(D43=1,'Gap Financing Options'!D69,0) -> 0
A37: Rate | D37: =IF(D43=1,'Gap Financing Options'!D70,0) -> 0
A38: Amortization Period, Years | D38: =IF(D43=1,'Gap Financing Options'!D71,0) -> 0
A39: Public Participation
A40: Capital Recovery (from grants) | D40: =IF(D43=1,'Gap Financing Options'!D75,0) -> 0
A41: Annual Cash Throw Off | D41: =IF(D43=1,'Gap Financing Options'!D76,0) -> 0
A42: Share of Net Sales Price | D42: =IF(D43=1,'Gap Financing Options'!D77,0) -> 0
A43: Public Leveraging Loan Included in Analysis?(1=Yes; 0=No) | D43: ='Gap Financing Options'!D68 -> 0
A44: Target IRR | D44: ='Advanced Financial'!D71 -> 0.05
A46: Operating Statement
A47: GPI | C47: Escalation | D47: ='Advanced Financial'!D84 -> 0
A48: EGI
A49: Less: Operating Costs | C49: Escalation | D49: ='Advanced Financial'!D85 -> 0
A51: Project Value | D51: Year 1
A52: Terminal Cap Rate, Gross Sales Price | D52: ='Advanced Financial'!D87 -> 0
A53: Net Sales = Price Less Sales Cost | D53: ='Advanced Financial'!D88 -> 0
A57: Net Operating Income Analysis
A58: Total Development Costs | C58: =C17 -> 0
A59: Development Costs Per Unit | C59: =IFERROR(C58/C61,0) -> 0
A60: Project Feature | C60: Project | D60: Average Daily Rent | E60: Total Rent @ 365 Days | F60: Occupied Rooms
A61: Number of units | C61: =C19 -> 0 | D61: =D19 -> 150
A62: Total project size, square feet | C62: =C20 -> 0
A63: Gross Potential Rent (GPI) | E63: =D61*C61*365 -> 0
A64: Other Income | C64: =C21 -> 0 | E64: =C64*E63 -> 0
A65: Total Income | E65: =E63+E64 -> 0
A66: Less: Vacancy | C66: =C22 -> 0.25 | E66: =E65*C66 -> 0 | F66: =C61*(1-C66)*365 -> 0
A67: Less: Concessions, Bad Debt | C67: =C23 -> 0 | E67: =E65*C67 -> 0
A68: Effective Gross Income (EGI) | E68: =E65-E66-E67 -> 0
A69: Less: Operating Costs (%of GPI) | C69: =C24 -> 0 | E69: =C69*E63 -> 0
A70: Net Operating Income | E70: =E68-E69 -> 0
A72: Initial Project Value Analysis
A73: CAP RATE (Yield to Costs) | D73: =IFERROR(E70/F8,0) -> 0
A74: Debt Service | D74: =IFERROR(-E99,0) -> 0
A75: Cash Flow | D75: =E70-D74 -> 0
A76: Return on Equity (Year 1) | D76: =IFERROR(D75/E104,0) -> 0
A77: Property Value (Year 1)
A78: NOI | D78: =E70 -> 0
A79: Going in Cap Rate | D79: =D28 -> 0
A80: Project Market Value | D80: =IFERROR(D78/D79,0) -> 0
A81: Net Project Value | D81: =D80-C58 -> 0
A83: Debt Financing
A84: Primary Debt
A85: Total Value | E85: =IF(D80>C58,C58,D80) -> 0
A86: Maximum LTV | D86: =D32 -> 0.7 | E86: =E85*D86 -> 0
A87: Imputed Loan Amount | E87: =E86 -> 0
A88: Rate | E88: =D33 -> 0.06
A89: Amortization Period, Years | E89: =D34 -> 25
A90: Annual Debt Service (Amortized) | E90: =IFERROR(PMT(E88/12,E89*12,E87)*12,0) -> 0
A91: Public Leveraging Loan
A92: Maximum LTV | D92: =IF(D43=1,D36,0) -> 0 | E92: =IF(E85*D92>'Development Costs'!F47*'Gap Financing Options'!B79,'Development Costs'!F47*'Gap Financing Options'!B79,E85*D92) -> 0
A93: Imputed Loan Amount | E93: =IF(AND(D43=1,'Basic Financial'!B34=0),E92+'Gap Financing Options'!D74,0) -> 0
A94: Rate | E94: =IF(D43=1,D37,0) -> 0
A95: Amortization Period, Years | E95: =D38 -> 0
A96: Annual Debt Service (Amortized) | E96: =IFERROR(PMT(E94/12,E95*12,E93)*12,0) -> 0
A98: Total Debt | E98: =E87+E93 -> 0
A99: Total Debt Service | E99: =E90+E96 -> 0
A100: Summary
A101: Total Development Costs | E101: =C58 -> 0
A102: Equity Required | E102: =IF(E101-E98<0,1,E101-E98) -> 0
A103: Total Development Offsets (Contributions to Equity) | E103: =F7 -> 0
A104: Net Equity Required | E104: =E102-E103 -> 0
A105: Total Project Cost | E105: =E101 -> 0
A106: Total Project Cost After Development Offsets | E106: =E105-E103 -> 0
A107: Public Participation
A108: Capital Recovery (from grants) | E108: =D40 -> 0
A109: Annual Cash Throw Off | E109: =D41 -> 0
A110: Share of Net Sales Price | E110: =D42 -> 0
A111: Public Leveraging Loan Included in Analysis? | D111: (1=Yes; 0=No) | E111: =D43 -> 0
A112: Target IRR | E112: =D44 -> 0.05
A116: Operating Statement | E116: Year 1 | F116: Year 2 | G116: Year 3 | H116: Year 4 | I116: Year 5 | J116: Year 6 | K116: Year 7 | L116: Year 8 | M116: Year 9 | N116: Year 10
A117: GPI | C117: Escalation | D117: =D47 -> 0 | E117: =E63 -> 0 | F117: =E117*(1+$D$117) -> 0 | G117: 0 | H117: 0 | I117: 0 | J117: 0 | K117: 0 | L117: 0 | M117: 0 | N117: 0
A118: Other Income | E118: =E64 -> 0 | F118: 0 | G118: 0 | H118: 0 | I118: 0 | J118: 0 | K118: 0 | L118: 0 | M118: 0 | N118: 0
A119: Total Income | E119: =E117+E118 -> 0 | F119: 0 | G119: 0 | H119: 0 | I119: 0 | J119: 0 | K119: 0 | L119: 0 | M119: 0 | N119: 0
A120: Less: Vacancy | D120: =C66 -> 0.25 | E120: =$D$120*E119 -> 0 | F120: 0 | G120: 0 | H120: 0 | I120: 0 | J120: 0 | K120: 0 | L120: 0 | M120: 0 | N120: 0
A121: Less: Concessions, Market Loss | D121: =C67 -> 0 | E121: =$D$121*E119 -> 0 | F121: 0 | G121: 0 | H121: 0 | I121: 0 | J121: 0 | K121: 0 | L121: 0 | M121: 0 | N121: 0
A122: EGI | E122: =E119-E120-E121 -> 0 | F122: 0 | G122: 0 | H122: 0 | I122: 0 | J122: 0 | K122: 0 | L122: 0 | M122: 0 | N122: 0
A123: Less: Operating Costs | C123: Escalation | D123: =D49 -> 0 | E123: =E69 -> 0 | F123: =E123*(1+$D$123) -> 0 | G123: 0 | H123: 0 | I123: 0 | J123: 0 | K123: 0 | L123: 0 | M123: 0 | N123: 0
A124: Less: Property Taxes | C124: Millage Rate | D124: ='Advanced Financial'!D63 -> 0 | E124: =$F8*$D124*'Advanced Financial'!$D64 -> 0 | F124: =$F8*$D124*'Advanced Financial'!$D64*(1+'Advanced Financial'!D86) -> 0 | G124: =$F8*$D124*'Advanced Financial'!$D64*(1+'Advanced Financial'!D86)^2 -> 0 | H124: =$F8*$D124*'Advanced Financial'!$D64*(1+'Advanced Financial'!D86)^3 -> 0 | I124: =$F8*$D124*'Advanced Financial'!$D64*(1+'Advanced Financial'!D86)^4 -> 0 | J124: =$F8*$D124*'Advanced Financial'!$D64*(1+'Advanced Financial'!D86)^5 -> 0 | K124: =$F8*$D124*'Advanced Financial'!$D64*(1+'Advanced Financial'!D86)^6 -> 0 | L124: =$F8*$D124*'Advanced Financial'!$D64*(1+'Advanced Financial'!D86)^7 -> 0 | M124: =$F8*$D124*'Advanced Financial'!$D64*(1+'Advanced Financial'!D86)^8 -> 0 | N124: =$F8*$D124*'Advanced Financial'!$D64*(1+'Advanced Financial'!D86)^9 -> 0
A125: Plus Property Tax Abatement | E125: =IF(OR(BF_Subsidy=0,BF_Subsidy=""),$D$13*'Advanced Financial'!$D64*$F8*'Gap Financing Options'!D17,0) -> 0 | F125: =IF(OR(BF_Subsidy=0,BF_Subsidy=""),$D$13*'Advanced Financial'!$D64*$F8*(1+$D$117)*'Gap Financing Options'!D18,0) -> 0 | G125: =IF(OR(BF_Subsidy=0,BF_Subsidy=""),$D$13*'Advanced Financial'!$D64*$F8*(1+$D$117)^2*'Gap Financing Options'!D19,0) -> 0 | H125: =IF(OR(BF_Subsidy=0,BF_Subsidy=""),$D$13*'Advanced Financial'!$D64*$F8*(1+$D$117)^3*'Gap Financing Options'!D20,0) -> 0 | I125: =IF(OR(BF_Subsidy=0,BF_Subsidy=""),$D$13*'Advanced Financial'!$D64*$F8*(1+$D$117)^4*'Gap Financing Options'!D21,0) -> 0 | J125: =IF(OR(BF_Subsidy=0,BF_Subsidy=""),$D$13*'Advanced Financial'!$D64*$F8*(1+$D$117)^5*'Gap Financing Options'!D22,0) -> 0 | K125: =IF(OR(BF_Subsidy=0,BF_Subsidy=""),$D$13*'Advanced Financial'!$D64*$F8*(1+$D$117)^6*'Gap Financing Options'!D23,0) -> 0 | L125: =IF(OR(BF_Subsidy=0,BF_Subsidy=""),$D$13*'Advanced Financial'!$D64*$F8*(1+$D$117)^7*'Gap Financing Options'!D24,0) -> 0 | M125: =IF(OR(BF_Subsidy=0,BF_Subsidy=""),$D$13*'Advanced Financial'!$D64*$F8*(1+$D$117)^8*'Gap Financing Options'!D25,0) -> 0 | N125: =IF(OR(BF_Subsidy=0,BF_Subsidy=""),$D$13*'Advanced Financial'!$D64*$F8*(1+$D$117)^9*'Gap Financing Options'!D26,0) -> 0
A126: Plus Sales Tax Abatement | E126: =IF(OR(BF_Subsidy=0,BF_Subsidy=""),'Gap Financing Options'!D39*$D$14*E119,0) -> 0 | F126: =IF(OR(BF_Subsidy=0,BF_Subsidy=""),'Gap Financing Options'!D40*$D$14*F119,0) -> 0 | G126: =IF(OR(BF_Subsidy=0,BF_Subsidy=""),'Gap Financing Options'!D41*$D$14*G119,0) -> 0 | H126: =IF(OR(BF_Subsidy=0,BF_Subsidy=""),'Gap Financing Options'!D42*$D$14*H119,0) -> 0 | I126: =IF(OR(BF_Subsidy=0,BF_Subsidy=""),'Gap Financing Options'!D43*$D$14*I119,0) -> 0 | J126: =IF(OR(BF_Subsidy=0,BF_Subsidy=""),'Gap Financing Options'!D44*$D$14*J119,0) -> 0 | K126: =IF(OR(BF_Subsidy=0,BF_Subsidy=""),'Gap Financing Options'!D45*$D$14*K119,0) -> 0 | L126: =IF(OR(BF_Subsidy=0,BF_Subsidy=""),'Gap Financing Options'!D46*$D$14*L119,0) -> 0 | M126: =IF(OR(BF_Subsidy=0,BF_Subsidy=""),'Gap Financing Options'!D47*$D$14*M119,0) -> 0 | N126: =IF(OR(BF_Subsidy=0,BF_Subsidy=""),'Gap Financing Options'!D48*$D$14*N119,0) -> 0
A127: Plus TIF + IRA Retainage of Taxes | E127: =IF(OR(BF_Subsidy=0,BF_Subsidy=""),'Gap Financing Options'!D54,0) -> 0 | F127: =IF(OR(BF_Subsidy=0,BF_Subsidy=""),'Gap Financing Options'!D55,0) -> 0 | G127: =IF(OR(BF_Subsidy=0,BF_Subsidy=""),'Gap Financing Options'!D56,0) -> 0 | H127: =IF(OR(BF_Subsidy=0,BF_Subsidy=""),'Gap Financing Options'!D57,0) -> 0 | I127: =IF(OR(BF_Subsidy=0,BF_Subsidy=""),'Gap Financing Options'!D58,0) -> 0 | J127: =IF(OR(BF_Subsidy=0,BF_Subsidy=""),'Gap Financing Options'!D59,0) -> 0 | K127: =IF(OR(BF_Subsidy=0,BF_Subsidy=""),'Gap Financing Options'!D60,0) -> 0 | L127: =IF(OR(BF_Subsidy=0,BF_Subsidy=""),'Gap Financing Options'!D61,0) -> 0 | M127: =IF(OR(BF_Subsidy=0,BF_Subsidy=""),'Gap Financing Options'!D62,0) -> 0 | N127: =IF(OR(BF_Subsidy=0,BF_Subsidy=""),'Gap Financing Options'!D63,0) -> 0
A128: Less Cash Throw Off to Public Partner | E128: =IF(OR(BF_Subsidy=0,BF_Subsidy=""),-$E$109,0) -> 0 | F128: 0 | G128: 0 | H128: 0 | I128: 0 | J128: 0 | K128: 0 | L128: 0 | M128: 0 | N128: 0
A130: NOI | E130: =E122-E124-E123+E125+E126+E128+E127 -> 0 | F130: =F122-F124-F123+F125+F126+F128+F127 -> 0 | G130: 0 | H130: 0 | I130: 0 | J130: 0 | K130: 0 | L130: 0 | M130: 0 | N130: 0
A131: Less: Debt Service | E131: =-$E$99 -> 0 | F131: 0 | G131: 0 | H131: 0 | I131: 0 | J131: 0 | K131: 0 | L131: 0 | M131: 0 | N131: 0
A132: Net Cash Flow | E132: =E130-E131 -> 0 | F132: 0 | G132: 0 | H132: 0 | I132: 0 | J132: 0 | K132: 0 | L132: 0 | M132: 0 | N132: 0
A134: Cap Rate | E134: =IFERROR(E130/$E$101,0) -> 0 | F134: 0 | G134: 0 | H134: 0 | I134: 0 | J134: 0 | K134: 0 | L134: 0 | M134: 0 | N134: 0
A135: Cash on Cash Return (Equity Dividend Rate) | E135: =IFERROR(E132/$E$104,0) -> 0 | F135: =IFERROR(F132/$E$104,0) -> 0 | G135: 0 | H135: 0 | I135: 0 | J135: 0 | K135: 0 | L135: 0 | M135: 0 | N135: 0
A137: Project Value | D137: Year 0 | E137: Year 1 | F137: Year 2 | G137: Year 3 | H137: Year 4 | I137: Year 5 | J137: Year 6 | K137: Year 7 | L137: Year 8 | M137: Year 9 | N137: Year 10
A138: Terminal Cap Rate, Gross Sales Price | E138: =D52 -> 0 | N138: =IFERROR(N130/E138,0) -> 0
A139: Net Sales = Price Less Sales Cost | E139: =D53 -> 0 | N139: =N138*(1-E139) -> 0
A140: Less Mortgage Balance | N140: =AA184 -> 0
A141: Net Sales Proceeds | N141: =N139-N140 -> 0
A144: IRR - Unleveraged (Project Cost) | D144: Year 0 | E144: Year 1 | F144: Year 2 | G144: Year 3 | H144: Year 4 | I144: Year 5 | J144: Year 6 | K144: Year 7 | L144: Year 8 | M144: Year 9 | N144: Year 10
A145: Total Investment | D145: =-E106 -> 0
A146: Project NOI | E146: =E130 -> 0 | F146: 0 | G146: 0 | H146: 0 | I146: 0 | J146: 0 | K146: 0 | L146: 0 | M146: 0 | N146: 0
A147: Net Sales Price | N147: =N139 -> 0
A148: Total | D148: =SUM(D145:D147) -> 0 | E148: =SUM(E145:E147) -> 0 | F148: =SUM(F145:F147) -> 0 | G148: 0 | H148: 0 | I148: 0 | J148: 0 | K148: 0 | L148: 0 | M148: 0 | N148: 0
A149: IRR - Project Cost | N149: =IFERROR(IRR(D148:N148),0) -> 0
A150: NPV - Project Cost | N150: =NPV($L$6,D148:N148) -> 0
A152: IRR - Leveraged (Before Tax) | D152: Year 0 | E152: Year 1 | F152: Year 2 | G152: Year 3 | H152: Year 4 | I152: Year 5 | J152: Year 6 | K152: Year 7 | L152: Year 8 | M152: Year 9 | N152: Year 10
A153: Original Investment (Equity) | D153: =-E104 -> 0
A154: Project Cash Flow | E154: =E132 -> 0 | F154: 0 | G154: 0 | H154: 0 | I154: 0 | J154: 0 | K154: 0 | L154: 0 | M154: 0 | N154: 0
A155: Net Sales Proceeds | N155: =N141 -> 0
A156: Total | D156: =SUM(D153:D155) -> 0 | E156: =SUM(E153:E155) -> 0 | F156: 0 | G156: 0 | H156: 0 | I156: 0 | J156: 0 | K156: 0 | L156: 0 | M156: 0 | N156: 0
A157: IRR - Equity | N157: =IFERROR(IRR(D156:N156),0) -> 0
A158: NPV - Equity | N158: =NPV($L$7,D156:N156) -> 0
A160: IRR - Public Participation | D160: Year 0 | E160: Year 1 | F160: Year 2 | G160: Year 3 | H160: Year 4 | I160: Year 5 | J160: Year 6 | K160: Year 7 | L160: Year 8 | M160: Year 9 | N160: Year 10
A161: Original Investment (Equity) | D161: =-(E108+(E93*E111)) -> 0
A162: Mezzanine Financing | E162: =-$E$96 -> 0 | F162: 0 | G162: 0 | H162: 0 | I162: 0 | J162: 0 | K162: 0 | L162: 0 | M162: 0 | N162: 0
A163: Cash Throw Off | E163: =$E$109 -> 0 | F163: 0 | G163: 0 | H163: 0 | I163: 0 | J163: 0 | K163: 0 | L163: 0 | M163: 0 | N163: 0
A164: Sale Proceeds | N164: =N155*E110 -> 0
A165: Loan Balance | N165: =V184*E111 -> 0
A166: Total | D166: =SUM(D161:D165) -> 0 | E166: =SUM(E161:E165) -> 0 | F166: 0 | G166: 0 | H166: 0 | I166: 0 | J166: 0 | K166: 0 | L166: 0 | M166: 0 | N166: 0
A167: IRR - Equity | N167: =IFERROR(IRR(D166:N166),0) -> 0
A168: NPV - Equity | N168: =NPV($E$112,D166:N166) -> 0
A171: DEBT SERVICE MORTIZATION TABLES
A172: Primary Debt Amortization | F172: Low Interest Loan | K172: Total Debt Amortization | P172: Annual Debt Service Summary - Primary Debt | U172: Annual Debt Service Summary - Secondary Debt | Z172: Annual Debt Service Summary - Total Debt
A174: Period | B174: Balance | C174: Payment | D174: Interest | E174: Principal | F174: Period | G174: Balance | H174: Payment | I174: Interest | J174: Principal | K174: Period | L174: Balance | M174: Payment | N174: Interest | O174: Principal | P174: Year | Q174: Balance | R174: Payment | S174: Interest | T174: Principal | U174: Year | V174: Balance | W174: Payment | X174: Interest | Y174: Principal | Z174: Year | AA174: Balance | AB174: Payment | AC174: Interest | AD174: Principal
A175: 0 | B175: =E87 -> 0 | F175: 0 | G175: =E93 -> 0 | K175: 0 | L175: =B175+G175 -> 0 | P175: 1 | Q175: =B187 -> 0 | R175: =SUM(C176:C187) -> 0 | S175: =SUM(D176:D187) -> 0 | T175: =SUM(E176:E187) -> 0 | U175: 1 | V175: =G187 -> 0 | W175: =SUM(H176:H187) -> 0 | X175: =SUM(I176:I187) -> 0 | Y175: =SUM(J176:J187) -> 0 | Z175: 1 | AA175: =Q175+V175 -> 0 | AB175: =R175+W175 -> 0 | AC175: =S175+X175 -> 0 | AD175: =T175+Y175 -> 0
A176: 1 | B176: =B175-E176 -> 0 | C176: =-$E$90/12 -> 0 | D176: =$E$88/12*B175 -> 0 | E176: =C176-D176 -> 0 | F176: 1 | G176: =G175-J176 -> 0 | H176: =-$E$96/12 -> 0 | I176: =$E$94/12*G175 -> 0 | J176: =H176-I176 -> 0 | K176: 1 | L176: =G176+B176 -> 0 | M176: 0 | N176: 0 | O176: 0 | P176: 2 | Q176: =B199 -> 0 | R176: =SUM(C188:C199) -> 0 | S176: =SUM(D188:D199) -> 0 | T176: =SUM(E188:E199) -> 0 | U176: 2 | V176: =G199 -> 0 | W176: =SUM(H188:H199) -> 0 | X176: =SUM(I188:I199) -> 0 | Y176: =SUM(J188:J199) -> 0 | Z176: 2 | AA176: =Q176+V176 -> 0 | AB176: =R176+W176 -> 0 | AC176: =S176+X176 -> 0 | AD176: =T176+Y176 -> 0
A177: =A176+1 -> 2 | B177: 0 | C177: 0 | D177: 0 | E177: 0 | F177: =F176+1 -> 2 | G177: 0 | H177: 0 | I177: 0 | J177: 0 | K177: =K176+1 -> 2 | L177: 0 | M177: 0 | N177: 0 | O177: 0 | P177: 3 | Q177: =B211 -> 0 | R177: =SUM(C200:C211) -> 0 | S177: =SUM(D200:D211) -> 0 | T177: =SUM(E200:E211) -> 0 | U177: 3 | V177: =G211 -> 0 | W177: =SUM(H200:H211) -> 0 | X177: =SUM(I200:I211) -> 0 | Y177: =SUM(J200:J211) -> 0 | Z177: 3 | AA177: 0 | AB177: 0 | AC177: 0 | AD177: 0
A178: 3 | B178: 0 | C178: 0 | D178: 0 | E178: 0 | F178: 3 | G178: 0 | H178: 0 | I178: 0 | J178: 0 | K178: 3 | L178: 0 | M178: 0 | N178: 0 | O178: 0 | P178: 4 | Q178: =B223 -> 0 | R178: =SUM(C212:C223) -> 0 | S178: =SUM(D212:D223) -> 0 | T178: =SUM(E212:E223) -> 0 | U178: 4 | V178: =G223 -> 0 | W178: =SUM(H212:H223) -> 0 | X178: =SUM(I212:I223) -> 0 | Y178: =SUM(J212:J223) -> 0 | Z178: 4 | AA178: 0 | AB178: 0 | AC178: 0 | AD178: 0
A179: 4 | B179: 0 | C179: 0 | D179: 0 | E179: 0 | F179: 4 | G179: 0 | H179: 0 | I179: 0 | J179: 0 | K179: 4 | L179: 0 | M179: 0 | N179: 0 | O179: 0 | P179: 5 | Q179: =B235 -> 0 | R179: =SUM(C224:C235) -> 0 | S179: =SUM(D224:D235) -> 0 | T179: =SUM(E224:E235) -> 0 | U179: 5 | V179: =G235 -> 0 | W179: =SUM(H224:H235) -> 0 | X179: =SUM(I224:I235) -> 0 | Y179: =SUM(J224:J235) -> 0 | Z179: 5 | AA179: 0 | AB179: 0 | AC179: 0 | AD179: 0
A180: 5 | B180: 0 | C180: 0 | D180: 0 | E180: 0 | F180: 5 | G180: 0 | H180: 0 | I180: 0 | J180: 0 | K180: 5 | L180: 0 | M180: 0 | N180: 0 | O180: 0 | P180: 6 | Q180: =B247 -> 0 | R180: =SUM(C236:C247) -> 0 | S180: =SUM(D236:D247) -> 0 | T180: =SUM(E236:E247) -> 0 | U180: 6 | V180: =G247 -> 0 | W180: =SUM(H236:H247) -> 0 | X180: =SUM(I236:I247) -> 0 | Y180: =SUM(J236:J247) -> 0 | Z180: 6 | AA180: 0 | AB180: 0 | AC180: 0 | AD180: 0
A181: 6 | B181: 0 | C181: 0 | D181: 0 | E181: 0 | F181: 6 | G181: 0 | H181: 0 | I181: 0 | J181: 0 | K181: 6 | L181: 0 | M181: 0 | N181: 0 | O181: 0 | P181: 7 | Q181: =B259 -> 0 | R181: =SUM(C248:C259) -> 0 | S181: =SUM(D248:D259) -> 0 | T181: =SUM(E248:E259) -> 0 | U181: 7 | V181: =G259 -> 0 | W181: =SUM(H248:H259) -> 0 | X181: =SUM(I248:I259) -> 0 | Y181: =SUM(J248:J259) -> 0 | Z181: 7 | AA181: 0 | AB181: 0 | AC181: 0 | AD181: 0
A182: 7 | B182: 0 | C182: 0 | D182: 0 | E182: 0 | F182: 7 | G182: 0 | H182: 0 | I182: 0 | J182: 0 | K182: 7 | L182: 0 | M182: 0 | N182: 0 | O182: 0 | P182: 8 | Q182: =B271 -> 0 | R182: =SUM(C260:C271) -> 0 | S182: =SUM(D260:D271) -> 0 | T182: =SUM(E260:E271) -> 0 | U182: 8 | V182: =G271 -> 0 | W182: =SUM(H260:H271) -> 0 | X182: =SUM(I260:I271) -> 0 | Y182: =SUM(J260:J271) -> 0 | Z182: 8 | AA182: 0 | AB182: 0 | AC182: 0 | AD182: 0
A183: 8 | B183: 0 | C183: 0 | D183: 0 | E183: 0 | F183: 8 | G183: 0 | H183: 0 | I183: 0 | J183: 0 | K183: 8 | L183: 0 | M183: 0 | N183: 0 | O183: 0 | P183: 9 | Q183: =B283 -> 0 | R183: =SUM(C272:C283) -> 0 | S183: =SUM(D272:D283) -> 0 | T183: =SUM(E272:E283) -> 0 | U183: 9 | V183: =G283 -> 0 | W183: =SUM(H272:H283) -> 0 | X183: =SUM(I272:I283) -> 0 | Y183: =SUM(J272:J283) -> 0 | Z183: 9 | AA183: 0 | AB183: 0 | AC183: 0 | AD183: 0
A184: 9 | B184: 0 | C184: 0 | D184: 0 | E184: 0 | F184: 9 | G184: 0 | H184: 0 | I184: 0 | J184: 0 | K184: 9 | L184: 0 | M184: 0 | N184: 0 | O184: 0 | P184: 10 | Q184: =B295 -> 0 | R184: =SUM(C284:C295) -> 0 | S184: =SUM(D284:D295) -> 0 | T184: =SUM(E284:E295) -> 0 | U184: 10 | V184: =G295 -> 0 | W184: =SUM(H284:H295) -> 0 | X184: =SUM(I284:I295) -> 0 | Y184: =SUM(J284:J295) -> 0 | Z184: 10 | AA184: =Q184+V184 -> 0 | AB184: =R184+W184 -> 0 | AC184: =S184+X184 -> 0 | AD184: =T184+Y184 -> 0
A185: 10 | B185: 0 | C185: 0 | D185: 0 | E185: 0 | F185: 10 | G185: 0 | H185: 0 | I185: 0 | J185: 0 | K185: 10 | L185: 0 | M185: 0 | N185: 0 | O185: 0
A186: 11 | B186: 0 | C186: 0 | D186: 0 | E186: 0 | F186: 11 | G186: 0 | H186: 0 | I186: 0 | J186: 0 | K186: 11 | L186: 0 | M186: 0 | N186: 0 | O186: 0
A187: 12 | B187: 0 | C187: 0 | D187: 0 | E187: 0 | F187: 12 | G187: 0 | H187: 0 | I187: 0 | J187: 0 | K187: 12 | L187: 0 | M187: 0 | N187: 0 | O187: 0
A188: 13 | B188: 0 | C188: 0 | D188: 0 | E188: 0 | F188: 13 | G188: 0 | H188: 0 | I188: 0 | J188: 0 | K188: 13 | L188: 0 | M188: 0 | N188: 0 | O188: 0
A189: 14 | B189: 0 | C189: 0 | D189: 0 | E189: 0 | F189: 14 | G189: 0 | H189: 0 | I189: 0 | J189: 0 | K189: 14 | L189: 0 | M189: 0 | N189: 0 | O189: 0
A190: 15 | B190: 0 | C190: 0 | D190: 0 | E190: 0 | F190: 15 | G190: 0 | H190: 0 | I190: 0 | J190: 0 | K190: 15 | L190: 0 | M190: 0 | N190: 0 | O190: 0
A191: 16 | B191: 0 | C191: 0 | D191: 0 | E191: 0 | F191: 16 | G191: 0 | H191: 0 | I191: 0 | J191: 0 | K191: 16 | L191: 0 | M191: 0 | N191: 0 | O191: 0
A192: 17 | B192: 0 | C192: 0 | D192: 0 | E192: 0 | F192: 17 | G192: 0 | H192: 0 | I192: 0 | J192: 0 | K192: 17 | L192: 0 | M192: 0 | N192: 0 | O192: 0
A193: 18 | B193: 0 | C193: 0 | D193: 0 | E193: 0 | F193: 18 | G193: 0 | H193: 0 | I193: 0 | J193: 0 | K193: 18 | L193: 0 | M193: 0 | N193: 0 | O193: 0
A194: 19 | B194: 0 | C194: 0 | D194: 0 | E194: 0 | F194: 19 | G194: 0 | H194: 0 | I194: 0 | J194: 0 | K194: 19 | L194: 0 | M194: 0 | N194: 0 | O194: 0
A195: 20 | B195: 0 | C195: 0 | D195: 0 | E195: 0 | F195: 20 | G195: 0 | H195: 0 | I195: 0 | J195: 0 | K195: 20 | L195: 0 | M195: 0 | N195: 0 | O195: 0
A196: 21 | B196: 0 | C196: 0 | D196: 0 | E196: 0 | F196: 21 | G196: 0 | H196: 0 | I196: 0 | J196: 0 | K196: 21 | L196: 0 | M196: 0 | N196: 0 | O196: 0
A197: 22 | B197: 0 | C197: 0 | D197: 0 | E197: 0 | F197: 22 | G197: 0 | H197: 0 | I197: 0 | J197: 0 | K197: 22 | L197: 0 | M197: 0 | N197: 0 | O197: 0
A198: 23 | B198: 0 | C198: 0 | D198: 0 | E198: 0 | F198: 23 | G198: 0 | H198: 0 | I198: 0 | J198: 0 | K198: 23 | L198: 0 | M198: 0 | N198: 0 | O198: 0
A199: 24 | B199: 0 | C199: 0 | D199: 0 | E199: 0 | F199: 24 | G199: 0 | H199: 0 | I199: 0 | J199: 0 | K199: 24 | L199: 0 | M199: 0 | N199: 0 | O199: 0
A200: 25 | B200: 0 | C200: 0 | D200: 0 | E200: 0 | F200: 25 | G200: 0 | H200: 0 | I200: 0 | J200: 0 | K200: 25 | L200: 0 | M200: 0 | N200: 0 | O200: 0
A201: 26 | B201: 0 | C201: 0 | D201: 0 | E201: 0 | F201: 26 | G201: 0 | H201: 0 | I201: 0 | J201: 0 | K201: 26 | L201: 0 | M201: 0 | N201: 0 | O201: 0
A202: 27 | B202: 0 | C202: 0 | D202: 0 | E202: 0 | F202: 27 | G202: 0 | H202: 0 | I202: 0 | J202: 0 | K202: 27 | L202: 0 | M202: 0 | N202: 0 | O202: 0
A203: 28 | B203: 0 | C203: 0 | D203: 0 | E203: 0 | F203: 28 | G203: 0 | H203: 0 | I203: 0 | J203: 0 | K203: 28 | L203: 0 | M203: 0 | N203: 0 | O203: 0
A204: 29 | B204: 0 | C204: 0 | D204: 0 | E204: 0 | F204: 29 | G204: 0 | H204: 0 | I204: 0 | J204: 0 | K204: 29 | L204: 0 | M204: 0 | N204: 0 | O204: 0
A205: 30 | B205: 0 | C205: 0 | D205: 0 | E205: 0 | F205: 30 | G205: 0 | H205: 0 | I205: 0 | J205: 0 | K205: 30 | L205: 0 | M205: 0 | N205: 0 | O205: 0
A206: 31 | B206: 0 | C206: 0 | D206: 0 | E206: 0 | F206: 31 | G206: 0 | H206: 0 | I206: 0 | J206: 0 | K206: 31 | L206: 0 | M206: 0 | N206: 0 | O206: 0
A207: 32 | B207: 0 | C207: 0 | D207: 0 | E207: 0 | F207: 32 | G207: 0 | H207: 0 | I207: 0 | J207: 0 | K207: 32 | L207: 0 | M207: 0 | N207: 0 | O207: 0
A208: 33 | B208: 0 | C208: 0 | D208: 0 | E208: 0 | F208: 33 | G208: 0 | H208: 0 | I208: 0 | J208: 0 | K208: 33 | L208: 0 | M208: 0 | N208: 0 | O208: 0
A209: 34 | B209: 0 | C209: 0 | D209: 0 | E209: 0 | F209: 34 | G209: 0 | H209: 0 | I209: 0 | J209: 0 | K209: 34 | L209: 0 | M209: 0 | N209: 0 | O209: 0
A210: 35 | B210: 0 | C210: 0 | D210: 0 | E210: 0 | F210: 35 | G210: 0 | H210: 0 | I210: 0 | J210: 0 | K210: 35 | L210: 0 | M210: 0 | N210: 0 | O210: 0
A211: 36 | B211: 0 | C211: 0 | D211: 0 | E211: 0 | F211: 36 | G211: 0 | H211: 0 | I211: 0 | J211: 0 | K211: 36 | L211: 0 | M211: 0 | N211: 0 | O211: 0
A212: 37 | B212: 0 | C212: 0 | D212: 0 | E212: 0 | F212: 37 | G212: 0 | H212: 0 | I212: 0 | J212: 0 | K212: 37 | L212: 0 | M212: 0 | N212: 0 | O212: 0
A213: 38 | B213: 0 | C213: 0 | D213: 0 | E213: 0 | F213: 38 | G213: 0 | H213: 0 | I213: 0 | J213: 0 | K213: 38 | L213: 0 | M213: 0 | N213: 0 | O213: 0
A214: 39 | B214: 0 | C214: 0 | D214: 0 | E214: 0 | F214: 39 | G214: 0 | H214: 0 | I214: 0 | J214: 0 | K214: 39 | L214: 0 | M214: 0 | N214: 0 | O214: 0
A215: 40 | B215: 0 | C215: 0 | D215: 0 | E215: 0 | F215: 40 | G215: 0 | H215: 0 | I215: 0 | J215: 0 | K215: 40 | L215: 0 | M215: 0 | N215: 0 | O215: 0
A216: 41 | B216: 0 | C216: 0 | D216: 0 | E216: 0 | F216: 41 | G216: 0 | H216: 0 | I216: 0 | J216: 0 | K216: 41 | L216: 0 | M216: 0 | N216: 0 | O216: 0
A217: 42 | B217: 0 | C217: 0 | D217: 0 | E217: 0 | F217: 42 | G217: 0 | H217: 0 | I217: 0 | J217: 0 | K217: 42 | L217: 0 | M217: 0 | N217: 0 | O217: 0
A218: 43 | B218: 0 | C218: 0 | D218: 0 | E218: 0 | F218: 43 | G218: 0 | H218: 0 | I218: 0 | J218: 0 | K218: 43 | L218: 0 | M218: 0 | N218: 0 | O218: 0
A219: 44 | B219: 0 | C219: 0 | D219: 0 | E219: 0 | F219: 44 | G219: 0 | H219: 0 | I219: 0 | J219: 0 | K219: 44 | L219: 0 | M219: 0 | N219: 0 | O219: 0
A220: 45 | B220: 0 | C220: 0 | D220: 0 | E220: 0 | F220: 45 | G220: 0 | H220: 0 | I220: 0 | J220: 0 | K220: 45 | L220: 0 | M220: 0 | N220: 0 | O220: 0
A221: 46 | B221: 0 | C221: 0 | D221: 0 | E221: 0 | F221: 46 | G221: 0 | H221: 0 | I221: 0 | J221: 0 | K221: 46 | L221: 0 | M221: 0 | N221: 0 | O221: 0
A222: 47 | B222: 0 | C222: 0 | D222: 0 | E222: 0 | F222: 47 | G222: 0 | H222: 0 | I222: 0 | J222: 0 | K222: 47 | L222: 0 | M222: 0 | N222: 0 | O222: 0
A223: 48 | B223: 0 | C223: 0 | D223: 0 | E223: 0 | F223: 48 | G223: 0 | H223: 0 | I223: 0 | J223: 0 | K223: 48 | L223: 0 | M223: 0 | N223: 0 | O223: 0
A224: 49 | B224: 0 | C224: 0 | D224: 0 | E224: 0 | F224: 49 | G224: 0 | H224: 0 | I224: 0 | J224: 0 | K224: 49 | L224: 0 | M224: 0 | N224: 0 | O224: 0
A225: 50 | B225: 0 | C225: 0 | D225: 0 | E225: 0 | F225: 50 | G225: 0 | H225: 0 | I225: 0 | J225: 0 | K225: 50 | L225: 0 | M225: 0 | N225: 0 | O225: 0
A226: 51 | B226: 0 | C226: 0 | D226: 0 | E226: 0 | F226: 51 | G226: 0 | H226: 0 | I226: 0 | J226: 0 | K226: 51 | L226: 0 | M226: 0 | N226: 0 | O226: 0
A227: 52 | B227: 0 | C227: 0 | D227: 0 | E227: 0 | F227: 52 | G227: 0 | H227: 0 | I227: 0 | J227: 0 | K227: 52 | L227: 0 | M227: 0 | N227: 0 | O227: 0
A228: 53 | B228: 0 | C228: 0 | D228: 0 | E228: 0 | F228: 53 | G228: 0 | H228: 0 | I228: 0 | J228: 0 | K228: 53 | L228: 0 | M228: 0 | N228: 0 | O228: 0
... 307 more rows

Sheet Residential Owner (hidden)
A1: ROI Template - Residential Owner
A2: Investment Targets and Performance | B2: Target | C2: Actual | D2: Leveraging Tools
A3: Project Rate of Return Target | B3: ='Advanced Financial'!C74 -> 0.2 | C3: =B25 -> 0.1973543891 | D3: =B43 -> 0.1973543891
A4: Equity Return Target | B4: ='Advanced Financial'!C75 -> 0.75 | C4: =B29 -> 0.9867719453 | D4: =B48 -> 0.9867719453
A6: Public Leveraging Tools | C6: TOTAL
A7: Tax Credits net to project | B7: ='Gap Financing Options'!B122 -> 0 | C7: =IF('Basic Financial'!B34=0,B7,0) -> 0
A8: Fee Reductions | B8: ='Gap Financing Options'!B88 -> 0 | C8: =IF('Basic Financial'!B34=0,B8,0) -> 0
A9: Grants | B9: ='Gap Financing Options'!B98 -> 0 | C9: =IF('Physical Inputs'!B42="Renter",0,IF('Basic Financial'!B34=0,B9,'Development Costs'!F41*'Basic Financial'!B34)) -> 0
A10: Total | B10: =SUM(B7:B9) -> 0 | C10: =SUM(C7:C9) -> 0
A13: Project Baseline | B13: Baseline Figures
A14: Total Project Cost | B14: =IF('Physical Inputs'!B42="Owner",-'Development Costs'!E41,0) -> 1228207.8 | D14: Additional Interest | E14: =IFERROR(-IPMT(0.1/12,Dashboard!D23-Assumptions!B19,360,B15),0) -> 0
A15: Interim Financing Amount | B15: ='Advanced Financial'!B91*B14 -> 982566.24 | D15: Taxes | E15: ='Residential Owner'!B19*'Advanced Financial'!B63*((Dashboard!C23-Assumptions!B19)/12) -> 0
A16: Developer Equity | B16: =B14-B15 -> 245641.56 | D16: Total | E16: =SUM(E14:E15) -> 0 | I16: =Dashboard!D23-Assumptions!B19 -> -9
A17: Residential Units | B17: =IF('Physical Inputs'!B42="Owner",'Physical Inputs'!B2,0) -> 2 | D17: Adjusted Return | E17: =IFERROR((B24-E16)/B23,0) -> 0.1973543891
A18: Average Market Price | B18: ='Basic Financial'!D55 -> 735300
A19: Net Sales Proceeds | B19: =B17*B18 -> 1470600
A20: Net Project Return | B20: =B19-B14 -> 242392.2
A22: Performance Assessment
A23: Total Project Cost | B23: =B14 -> 1228207.8
A24: Project Return | B24: =B19-B23 -> 242392.2 | D24: =1.2*B23 -> 1473849.36
A25: Project Profit (Loss) - based on target return | B25: =IF(B23=0,0,B24/B23) -> 0.1973543891 | D25: =SUM(B23:B24)-D24-E16 -> -3249.36 | E25: Surplus or gap
A26: Net Project Return | B26: =B24-(B14*B3) -> -3249.36
A27: Net Sales Proceeds | B27: =B24 -> 242392.2
A28: Equity | B28: =B16 -> 245641.56
A29: Return to Equity | B29: =IF(B28=0,0,B27/B28) -> 0.9867719453
A30: Project Profit (Loss) - based on target return | B30: =B27-(B4*B28) -> 58161.03
A32: Leveraged Performance Analysis
A33: Adjusted Financial Features
A34: Project Cost | B34: =B14 -> 1228207.8
A35: Public Leveraging | B35: =IF('Physical Inputs'!B42="Renter",0,IF('Basic Financial'!B34=0,C10,'Basic Financial'!B34*'Development Costs'!F41)) -> 0
A36: Adjusted Project Cost | B36: =B34-B35 -> 1228207.8
A37: Interim Financing Amount | B37: =B15 -> 982566.24
A38: Developer Equity | B38: =IF((B36-B37)<0,1,B36-B37) -> 245641.56
A39: Project Rate of Return
A40: Adjusted Project Cost | B40: =B36 -> 1228207.8
A41: Net Sales Proceeds | B41: =B19 -> 1470600
A42: Net Project Return | B42: =B41-B40 -> 242392.2
A43: Project Rate of Return | B43: =IF(B40=0,0,B42/B40) -> 0.1973543891
A44: Project Profit (Loss) | B44: =B42-(B40*B3) -> -3249.36
A45: Equity Rate of Return
A46: Developer Equity | B46: =B38 -> 245641.56
A47: Net Project Return | B47: =B42 -> 242392.2
A48: Return to Equity | B48: =IFERROR(B47/B46,0) -> 0.9867719453
A49: Equity Profit (Loss) | B49: =B47-(B46*B4) -> 58161.03
A51: Property Tax | E51: Year 1 | F51: Year 2 | G51: Year 3 | H51: Year 4 | I51: Year 5 | J51: Year 6 | K51: Year 7 | L51: Year 8 | M51: Year 9 | N51: Year 10
A52: Project Market Value | E52: =B19 -> 1470600 | F52: =$E52*(1+'Advanced Financial'!$B$86) -> 1514718 | G52: =$E52*(1+'Advanced Financial'!$B$86)^2 -> 1560159.54 | H52: =$E52*(1+'Advanced Financial'!$B$86)^3 -> 1606964.326 | I52: =$E52*(1+'Advanced Financial'!$B$86)^4 -> 1655173.256 | J52: =$E52*(1+'Advanced Financial'!$B$86)^5 -> 1704828.454 | K52: =$E52*(1+'Advanced Financial'!$B$86)^6 -> 1755973.307 | L52: =$E52*(1+'Advanced Financial'!$B$86)^7 -> 1808652.506 | M52: =$E52*(1+'Advanced Financial'!$B$86)^8 -> 1862912.082 | N52: =$E52*(1+'Advanced Financial'!$B$86)^9 -> 1918799.444
A53: Project Assessed Value | E53: =B19*'Advanced Financial'!C64 -> 1470600 | F53: =$E53*(1+'Advanced Financial'!$B$86) -> 1514718 | G53: =$E53*(1+'Advanced Financial'!$B$86)^2 -> 1560159.54 | H53: =$E53*(1+'Advanced Financial'!$B$86)^3 -> 1606964.326 | I53: =$E53*(1+'Advanced Financial'!$B$86)^4 -> 1655173.256 | J53: =$E53*(1+'Advanced Financial'!$B$86)^5 -> 1704828.454 | K53: =$E53*(1+'Advanced Financial'!$B$86)^6 -> 1755973.307 | L53: =$E53*(1+'Advanced Financial'!$B$86)^7 -> 1808652.506 | M53: =$E53*(1+'Advanced Financial'!$B$86)^8 -> 1862912.082 | N53: =$E53*(1+'Advanced Financial'!$B$86)^9 -> 1918799.444
A54: Estimated Property Taxes | B54: Millage Rate | D54: ='Advanced Financial'!B63 -> 0.01 | E54: =E53*D54 -> 14706 | F54: =$E54*(1+'Advanced Financial'!$B$86) -> 15147.18 | G54: =$E54*(1+'Advanced Financial'!$B$86)^2 -> 15601.5954 | H54: =$E54*(1+'Advanced Financial'!$B$86)^3 -> 16069.64326 | I54: =$E54*(1+'Advanced Financial'!$B$86)^4 -> 16551.73256 | J54: =$E54*(1+'Advanced Financial'!$B$86)^5 -> 17048.28454 | K54: =$E54*(1+'Advanced Financial'!$B$86)^6 -> 17559.73307 | L54: =$E54*(1+'Advanced Financial'!$B$86)^7 -> 18086.52506 | M54: =$E54*(1+'Advanced Financial'!$B$86)^8 -> 18629.12082 | N54: =$E54*(1+'Advanced Financial'!$B$86)^9 -> 19187.99444

Sheet Residential Rental (hidden)
A1: ROI Template - Residential Rental
A3: Leveraging Tools | D3: Summary | E3: User override | F3: TOTAL | H3: Investment Targets and Performance
A4: Tax Credits net to project | D4: ='Gap Financing Options'!C122 -> 0 | F4: =IF('Basic Financial'!$B$34=0,D4,0) -> 0 | H4: Performance Indicator | L4: Target | M4: Actual | N4: NPV
A5: Fee Reductions | D5: ='Gap Financing Options'!C88 -> 0 | F5: =IF('Basic Financial'!$B$34=0,D5,0) -> 0 | H5: Cash-on-Cash After Year 3 | L5: ='Advanced Financial'!C67 -> 0.12 | M5: =G133 -> 0
A6: Grants | D6: ='Gap Financing Options'!C98 -> 0 | F6: =IF('Basic Financial'!$B$34=0,D6,IF('Physical Inputs'!B42="Renter",'Basic Financial'!$B$34*'Development Costs'!F41,0)) -> 0 | H6: IRR on Project Cost (Unleveraged Return) | L6: ='Advanced Financial'!C68 -> 0.12 | M6: =N147 -> 0 | N6: =N148 -> 0
A7: Total Development Offsets (Contributions to Equity) | F7: =SUM(F4:F6) -> 0 | H7: IRR on Investor Equity (Leveraged Return Before Tax) | L7: ='Advanced Financial'!C69 -> 0.25 | M7: =N155 -> 0 | N7: =N156 -> 0
A8: Net Development Costs | F8: =(C57-F7) -> 0 | H8: Debt Service Coverage Ratio (Year 3) | L8: ='Advanced Financial'!C70 -> 1.25 | M8: =IFERROR(G127/G129,0) -> 0
H9: IRR on Public Participation | L9: =E111 -> 0.05 | M9: =N165 -> 0 | N9: =N166 -> 0
A13: Local Property Tax Rate Available for abatement | D13: ='Gap Financing Options'!C15 -> 0
A15: Net Operating Income Analysis
A16: Total Development Costs | D16: =IF('Physical Inputs'!B42="Renter",-'Development Costs'!E41,0) -> 0
A17: Vertical Costs Only | D17: =IF('Physical Inputs'!B42="Renter",-'Development Costs'!C41,0) -> 0
A18: Project Feature | C18: Project | D18: Rent
A19: Number of units | C19: =IF('Physical Inputs'!B42="Renter",'Physical Outputs'!D29,0) -> 0
A20: Total project size, square feet | C20: =IF('Physical Inputs'!B42="Renter",'Physical Outputs'!C29,0) -> 0 | D20: =IF('Physical Inputs'!B42="Renter",'Basic Financial'!E51,0) -> 0
A21: Other Income (vending, fines) | C21: =IF('Physical Inputs'!B42="Renter",'Advanced Financial'!C80,0) -> 0
A22: Less: Vacancy | C22: =IF('Physical Inputs'!B42="Renter",1-'Advanced Financial'!C31,0) -> 0
A23: Less: Concessions, Bad Debt | C23: =IF('Physical Inputs'!B42="Renter",'Advanced Financial'!C81,0) -> 0
A24: Less: Operating Costs (per unit) | C24: =IF('Physical Inputs'!B42="Renter",IFERROR((('Advanced Financial'!C82*E62)/'Physical Outputs'!D29),0),0) -> 0
A26: Initial Project Value Analysis
A27: Property Value (Year 1)
A28: Going in Cap Rate | D28: =IF('Physical Inputs'!B42="Renter",'Advanced Financial'!C83,0) -> 0
A30: Debt Financing | D30: .
A31: Primary Debt
A32: Maximum LTV | D32: ='Advanced Financial'!C91 -> 0.8
A33: Rate | D33: ='Advanced Financial'!C92 -> 0.06
A34: Amortization Period, Years | D34: ='Advanced Financial'!C93 -> 30
A35: Public Leveraging Loan
A36: Maximum LTV | D36: =IF(D43=1,'Gap Financing Options'!C69,0) -> 0
A37: Rate | D37: =IF(D43=1,'Gap Financing Options'!C70,0) -> 0
A38: Amortization Period, Years | D38: =IF(D43=1,'Gap Financing Options'!C71,0) -> 0
A39: Public Participation
A40: Capital Recovery (from grants) | D40: =IF(D43=0,0,'Gap Financing Options'!C75) -> 0
A41: Annual Cash Throw Off | D41: =IF(D43=0,0,'Gap Financing Options'!C76) -> 0
A42: Share of Net Sales Price | D42: =IF(D43=0,0,'Gap Financing Options'!C77) -> 0
A43: Public Leveraging Loan Included in Analysis?(1=Yes; 0=No). | D43: ='Gap Financing Options'!C68 -> 0
A44: Target IRR | D44: ='Advanced Financial'!C71 -> 0.05
A46: Operating Statement
A47: GPI | C47: Escalation | D47: ='Advanced Financial'!C84 -> 0.03
A48: EGI
A49: Less: Operating Costs | C49: Escalation | D49: ='Advanced Financial'!C85 -> 0.03
A51: Project Value | D51: Year 1
A52: Terminal Cap Rate, Gross Sales Price | D52: ='Advanced Financial'!C87 -> 0.045
A53: Net Sales = Price Less Sales Cost | D53: ='Advanced Financial'!C88 -> 0.05
A56: Net Operating Income Analysis | C56: Project
A57: Total Development Costs | C57: =D16 -> 0
A58: Development Costs Per Unit | C58: =IFERROR(C57/C60,0) -> 0
A59: Project Feature | C59: Project | D59: Rent | E59: Total Rent | F59: Rent PSF
A60: Number of units | C60: =C19 -> 0
A61: Total project size, square feet | C61: =C20 -> 0 | D61: =D20 -> 0 | E61: =C60*D61 -> 0 | F61: =IFERROR(E61/C61,0) -> 0
A62: Gross Potential Rent (GPI) | E62: =E61*12 -> 0
A63: Other Income (vending, fines) | C63: =C21 -> 0 | E63: =C63*E62 -> 0
A64: Total Income | E64: =E62+E63 -> 0
A65: Less: Vacancy | C65: =C22 -> 0 | E65: =E64*C65 -> 0
A66: Less: Concessions, Bad Debt | C66: =C23 -> 0 | E66: =E64*C66 -> 0
A67: Effective Gross Income (EGI) | E67: =E64-E65-E66 -> 0
A68: Less: Operating Costs (per unit) | C68: =C24 -> 0 | E68: =C68*C60 -> 0
A69: Net Operating Income | E69: =E67-E68 -> 0
A71: Initial Project Value Analysis
A72: CAP RATE (Yield to Costs) | C72: =IFERROR(E69/F8,0) -> 0
A73: Debt Service | C73: =IFERROR(-E98,0) -> 0
A74: Cash Flow | C74: =E69-C73 -> 0
A75: Return on Equity (Year 1) | C75: =IFERROR(C74/E103,0) -> 0
A76: Property Value (Year 1)
A77: NOI | C77: =E69 -> 0
A78: Going in Cap Rate | C78: =D28 -> 0
A79: Project Market Value | C79: =IFERROR(C77/C78,0) -> 0
A80: Net Project Value | C80: =C79-C57 -> 0
A82: Debt Financing
A83: Primary Debt
A84: Total Value | E84: =D16 -> 0
A85: Maximum LTV | D85: =D32 -> 0.8 | E85: =E84*D85 -> 0
A86: Imputed Loan Amount | E86: =E85 -> 0
A87: Rate | E87: =D33 -> 0.06
A88: Amortization Period, Years | E88: =D34 -> 30
A89: Annual Debt Service (Amortized) | E89: =IFERROR(PMT(E87/12,E88*12,E86)*12,0) -> 0
A90: Public Leveraging Loan
A91: Maximum LTV | D91: =IF(D43=1,D36,0) -> 0 | E91: =IF(AND('Physical Inputs'!B42="Renter",E84*D91>'Development Costs'!F41*'Gap Financing Options'!B79),'Development Costs'!F41*'Gap Financing Options'!B79,E84*D91) -> 0
A92: Imputed Loan Amount | E92: =IF(AND(D43=1,'Basic Financial'!B34=0),E91+'Gap Financing Options'!C74,0) -> 0
A93: Rate | E93: =IF(D43=1,D37,0) -> 0
A94: Amortization Period, Years | E94: =IF(D43=1,D38,0) -> 0
A95: Annual Debt Service (Amortized) | E95: =IFERROR(PMT(E93/12,E94*12,E92)*12,0) -> 0
A97: Total Debt | E97: =E86+E92 -> 0
A98: Total Debt Service | E98: =E89+E95 -> 0
A99: Summary
A100: Total Development Costs | E100: =C57 -> 0
A101: Equity Required | E101: =IF(E100-E97<0,1,E100-E97) -> 0
A102: Total Development Offsets (Contributions to Equity) | E102: =F7 -> 0
A103: Net Equity Required | E103: =E101-E102 -> 0
A104: Total Project Cost | E104: =E100 -> 0
A105: Total Project Cost After Development Offsets | E105: =E104-E102 -> 0
A106: Public Participation
A107: Capital Recovery (from grants) | E107: =D40 -> 0
A108: Annual Cash Throw Off | E108: =D41 -> 0
A109: Share of Net Sales Price | E109: =D42 -> 0
A110: Public Leveraging Loan Included in Analysis? | D110: (1=Yes; 0=No) | E110: =D43 -> 0
A111: Target IRR | E111: =D44 -> 0.05
A114: Operating Statement | E114: Year 1 | F114: Year 2 | G114: Year 3 | H114: Year 4 | I114: Year 5 | J114: Year 6 | K114: Year 7 | L114: Year 8 | M114: Year 9 | N114: Year 10
A115: GPI | C115: Escalation | D115: =D47 -> 0.03 | E115: =E62 -> 0 | F115: =E115*(1+$D$115) -> 0 | G115: 0 | H115: 0 | I115: 0 | J115: 0 | K115: 0 | L115: 0 | M115: 0 | N115: 0
A116: Other Income | E116: =E63 -> 0 | F116: 0 | G116: 0 | H116: 0 | I116: 0 | J116: 0 | K116: 0 | L116: 0 | M116: 0 | N116: 0
A117: Total Income | E117: =E115+E116 -> 0 | F117: 0 | G117: 0 | H117: 0 | I117: 0 | J117: 0 | K117: 0 | L117: 0 | M117: 0 | N117: 0
A118: Less: Vacancy | D118: =C65 -> 0 | E118: =IF('Advanced Financial'!B31>0,(1-'Advanced Financial'!B31)*E117,$D$118*E117) -> 0 | F118: =$D$118*F117 -> 0 | G118: 0 | H118: 0 | I118: 0 | J118: 0 | K118: 0 | L118: 0 | M118: 0 | N118: 0
A119: Less: Concessions, Market Loss | D119: =C66 -> 0 | E119: =$D$119*E117 -> 0 | F119: 0 | G119: 0 | H119: 0 | I119: 0 | J119: 0 | K119: 0 | L119: 0 | M119: 0 | N119: 0
A120: EGI | E120: =E117-E118-E119 -> 0 | F120: 0 | G120: 0 | H120: 0 | I120: 0 | J120: 0 | K120: 0 | L120: 0 | M120: 0 | N120: 0
A121: Less: Operating Costs | C121: Escalation | D121: =D49 -> 0.03 | E121: =E68 -> 0 | F121: =E121*(1+$D$121) -> 0 | G121: 0 | H121: 0 | I121: 0 | J121: 0 | K121: 0 | L121: 0 | M121: 0 | N121: 0
A122: Less: Property Taxes | C122: Millage Rate | D122: ='Advanced Financial'!C63 -> 0.01 | E122: =$D16*$D122*'Advanced Financial'!$C64 -> 0 | F122: =$D16*$D122*'Advanced Financial'!$C64*(1+'Advanced Financial'!C86) -> 0 | G122: =$D16*$D122*'Advanced Financial'!$C64*(1+'Advanced Financial'!C86)^2 -> 0 | H122: =$D16*$D122*'Advanced Financial'!$C64*(1+'Advanced Financial'!C86)^3 -> 0 | I122: =$D16*$D122*'Advanced Financial'!$C64*(1+'Advanced Financial'!C86)^4 -> 0 | J122: =$D16*$D122*'Advanced Financial'!$C64*(1+'Advanced Financial'!C86)^5 -> 0 | K122: =$D16*$D122*'Advanced Financial'!$C64*(1+'Advanced Financial'!C86)^6 -> 0 | L122: =$D16*$D122*'Advanced Financial'!$C64*(1+'Advanced Financial'!C86)^7 -> 0 | M122: =$D16*$D122*'Advanced Financial'!$C64*(1+'Advanced Financial'!C86)^8 -> 0 | N122: =$D16*$D122*'Advanced Financial'!$C64*(1+'Advanced Financial'!C86)^9 -> 0
A123: Plus: Property Tax Abatement | E123: =IF(OR(BF_Subsidy=0,BF_Subsidy=""),$D$13*'Advanced Financial'!$C64*$F8*'Gap Financing Options'!C17,0) -> 0 | F123: =IF(OR(BF_Subsidy=0,BF_Subsidy=""),$D$13*'Advanced Financial'!$C64*$F8*(1+$D$115)*'Gap Financing Options'!C18,0) -> 0 | G123: =IF(OR(BF_Subsidy=0,BF_Subsidy=""),$D$13*'Advanced Financial'!$C64*$F8*(1+$D$115)^2*'Gap Financing Options'!C19,0) -> 0 | H123: =IF(OR(BF_Subsidy=0,BF_Subsidy=""),$D$13*'Advanced Financial'!$C64*$F8*(1+$D$115)^3*'Gap Financing Options'!C20,0) -> 0 | I123: =IF(OR(BF_Subsidy=0,BF_Subsidy=""),$D$13*'Advanced Financial'!$C64*$F8*(1+$D$115)^4*'Gap Financing Options'!C21,0) -> 0 | J123: =IF(OR(BF_Subsidy=0,BF_Subsidy=""),$D$13*'Advanced Financial'!$C64*$F8*(1+$D$115)^5*'Gap Financing Options'!C22,0) -> 0 | K123: =IF(OR(BF_Subsidy=0,BF_Subsidy=""),$D$13*'Advanced Financial'!$C64*$F8*(1+$D$115)^6*'Gap Financing Options'!C23,0) -> 0 | L123: =IF(OR(BF_Subsidy=0,BF_Subsidy=""),$D$13*'Advanced Financial'!$C64*$F8*(1+$D$115)^7*'Gap Financing Options'!C24,0) -> 0 | M123: =IF(OR(BF_Subsidy=0,BF_Subsidy=""),$D$13*'Advanced Financial'!$C64*$F8*(1+$D$115)^8*'Gap Financing Options'!C25,0) -> 0 | N123: =IF(OR(BF_Subsidy=0,BF_Subsidy=""),$D$13*'Advanced Financial'!$C64*$F8*(1+$D$115)^9*'Gap Financing Options'!C26,0) -> 0
A124: Plus: Vertical Housing Tax Exemption | E124: =IF('Gap Financing Options'!$B$29="Y",(($D$17*'Advanced Financial'!$C$63*'Advanced Financial'!$C$64*ImpExemption)+(-'Development Costs'!$E$8*'Advanced Financial'!$C$63*'Advanced Financial'!$C$64*LandExemption)),0) -> 0 | F124: =IF('Gap Financing Options'!$B$29="Y",(($D$17*'Advanced Financial'!$C$63*'Advanced Financial'!$C$64*ImpExemption)+(-'Development Costs'!$E$8*'Advanced Financial'!$C$63*'Advanced Financial'!$C$64*LandExemption)),0)*(1+'Advanced Financial'!C84) -> 0 | G124: =IF('Gap Financing Options'!$B$29="Y",(($D$17*'Advanced Financial'!$C$63*'Advanced Financial'!$C$64*ImpExemption)+(-'Development Costs'!$E$8*'Advanced Financial'!$C$63*'Advanced Financial'!$C$64*LandExemption)),0)*(1+'Advanced Financial'!$C$86)^2 -> 0 | H124: =IF('Gap Financing Options'!$B$29="Y",(($D$17*'Advanced Financial'!$C$63*'Advanced Financial'!$C$64*ImpExemption)+(-'Development Costs'!$E$8*'Advanced Financial'!$C$63*'Advanced Financial'!$C$64*LandExemption)),0)*(1+'Advanced Financial'!$C$86)^3 -> 0 | I124: =IF('Gap Financing Options'!$B$29="Y",(($D$17*'Advanced Financial'!$C$63*'Advanced Financial'!$C$64*ImpExemption)+(-'Development Costs'!$E$8*'Advanced Financial'!$C$63*'Advanced Financial'!$C$64*LandExemption)),0)*(1+'Advanced Financial'!$C$86)^4 -> 0 | J124: =IF('Gap Financing Options'!$B$29="Y",(($D$17*'Advanced Financial'!$C$63*'Advanced Financial'!$C$64*ImpExemption)+(-'Development Costs'!$E$8*'Advanced Financial'!$C$63*'Advanced Financial'!$C$64*LandExemption)),0)*(1+'Advanced Financial'!$C$86)^5 -> 0 | K124: =IF('Gap Financing Options'!$B$29="Y",(($D$17*'Advanced Financial'!$C$63*'Advanced Financial'!$C$64*ImpExemption)+(-'Development Costs'!$E$8*'Advanced Financial'!$C$63*'Advanced Financial'!$C$64*LandExemption)),0)*(1+'Advanced Financial'!$C$86)^6 -> 0 | L124: =IF('Gap Financing Options'!$B$29="Y",(($D$17*'Advanced Financial'!$C$63*'Advanced Financial'!$C$64*ImpExemption)+(-'Development Costs'!$E$8*'Advanced Financial'!$C$63*'Advanced Financial'!$C$64*LandExemption)),0)*(1+'Advanced Financial'!$C$86)^7 -> 0 | M124: =IF('Gap Financing Options'!$B$29="Y",(($D$17*'Advanced Financial'!$C$63*'Advanced Financial'!$C$64*ImpExemption)+(-'Development Costs'!$E$8*'Advanced Financial'!$C$63*'Advanced Financial'!$C$64*LandExemption)),0)*(1+'Advanced Financial'!$C$86)^8 -> 0 | N124: =IF('Gap Financing Options'!$B$29="Y",(($D$17*'Advanced Financial'!$C$63*'Advanced Financial'!$C$64*ImpExemption)+(-'Development Costs'!$E$8*'Advanced Financial'!$C$63*'Advanced Financial'!$C$64*LandExemption)),0)*(1+'Advanced Financial'!$C$86)^9 -> 0
A125: Cash Throw Off to Public Partner | E125: =IF(OR(BF_Subsidy=0,BF_Subsidy=""),-$E$108,0) -> 0 | F125: 0 | G125: 0 | H125: 0 | I125: 0 | J125: 0 | K125: 0 | L125: 0 | M125: 0 | N125: 0
A126: TIF + IRA Retainage of Taxes | E126: =IF(OR(BF_Subsidy=0,BF_Subsidy=""),'Gap Financing Options'!C54,0) -> 0 | F126: =IF(OR(BF_Subsidy=0,BF_Subsidy=""),'Gap Financing Options'!C55,0) -> 0 | G126: =IF(OR(BF_Subsidy=0,BF_Subsidy=""),'Gap Financing Options'!C56,0) -> 0 | H126: =IF(OR(BF_Subsidy=0,BF_Subsidy=""),'Gap Financing Options'!C57,0) -> 0 | I126: =IF(OR(BF_Subsidy=0,BF_Subsidy=""),'Gap Financing Options'!C58,0) -> 0 | J126: =IF(OR(BF_Subsidy=0,BF_Subsidy=""),'Gap Financing Options'!C59,0) -> 0 | K126: =IF(OR(BF_Subsidy=0,BF_Subsidy=""),'Gap Financing Options'!C60,0) -> 0 | L126: =IF(OR(BF_Subsidy=0,BF_Subsidy=""),'Gap Financing Options'!C61,0) -> 0 | M126: =IF(OR(BF_Subsidy=0,BF_Subsidy=""),'Gap Financing Options'!C62,0) -> 0 | N126: =IF(OR(BF_Subsidy=0,BF_Subsidy=""),'Gap Financing Options'!C63,0) -> 0
A127: NOI | E127: =E120-E122-E121+E123+E124+E125+E126 -> 0 | F127: =F120-F122-F121+F123+F124+F125+F126 -> 0 | G127: 0 | H127: 0 | I127: 0 | J127: 0 | K127: 0 | L127: 0 | M127: 0 | N127: =N120-N122-N121+N123+N124+N125+N126 -> 0
A129: Less: Debt Service | E129: =-$E$98 -> 0 | F129: 0 | G129: 0 | H129: 0 | I129: 0 | J129: 0 | K129: 0 | L129: 0 | M129: 0 | N129: 0
A130: Net Cash Flow | E130: =E127-E129 -> 0 | F130: 0 | G130: 0 | H130: 0 | I130: 0 | J130: 0 | K130: 0 | L130: 0 | M130: 0 | N130: 0
A132: Cap Rate | E132: =IFERROR(E127/$E$100,0) -> 0 | F132: 0 | G132: 0 | H132: 0 | I132: 0 | J132: 0 | K132: 0 | L132: 0 | M132: 0 | N132: 0
A133: Cash on Cash Return (Equity Dividend Rate) | E133: =IFERROR(E130/$E$103,0) -> 0 | F133: =IFERROR(F130/$E$103,0) -> 0 | G133: 0 | H133: 0 | I133: 0 | J133: 0 | K133: 0 | L133: 0 | M133: 0 | N133: =IFERROR(N130/$E$103,0) -> 0
A135: Project Value | D135: Year 0 | E135: Year 1 | F135: Year 2 | G135: Year 3 | H135: Year 4 | I135: Year 5 | J135: Year 6 | K135: Year 7 | L135: Year 8 | M135: Year 9 | N135: Year 10
A136: Terminal Cap Rate, Gross Sales Price | E136: =D52 -> 0.045 | N136: =IFERROR(N127/E136,0) -> 0
A137: Net Sales = Price Less Sales Cost | E137: =D53 -> 0.05 | N137: =N136*(1-E137) -> 0
A138: Less Mortgage Balance | N138: =AA183 -> 0
A139: Net Sales Proceeds | N139: =N137-N138 -> 0
A142: IRR - Unleveraged (Project Cost) | D142: Year 0 | E142: Year 1 | F142: Year 2 | G142: Year 3 | H142: Year 4 | I142: Year 5 | J142: Year 6 | K142: Year 7 | L142: Year 8 | M142: Year 9 | N142: Year 10
A143: Total Investment | D143: =-E105 -> 0
A144: Project NOI | E144: =E127 -> 0 | F144: =F127 -> 0 | G144: 0 | H144: 0 | I144: 0 | J144: 0 | K144: 0 | L144: 0 | M144: 0 | N144: 0
A145: Net Sales Price | N145: =N137 -> 0
A146: Total | D146: =SUM(D143:D145) -> 0 | E146: =SUM(E143:E145) -> 0 | F146: =SUM(F143:F145) -> 0 | G146: 0 | H146: 0 | I146: 0 | J146: 0 | K146: 0 | L146: 0 | M146: 0 | N146: 0
A147: IRR - Project Cost | N147: =IFERROR(IRR(D146:N146),0) -> 0
A148: NPV - Project Cost | N148: =NPV(L6,D146:N146) -> 0
A150: IRR - Leveraged (Before Tax) | D150: Year 0 | E150: Year 1 | F150: Year 2 | G150: Year 3 | H150: Year 4 | I150: Year 5 | J150: Year 6 | K150: Year 7 | L150: Year 8 | M150: Year 9 | N150: Year 10
A151: Original Investment (Equity) | D151: =-E103 -> 0
A152: Project Cash Flow | E152: =E130 -> 0 | F152: 0 | G152: 0 | H152: 0 | I152: 0 | J152: 0 | K152: 0 | L152: 0 | M152: 0 | N152: 0
A153: Net Sales Proceeds | N153: =N139 -> 0
A154: Total | D154: =SUM(D151:D153) -> 0 | E154: 0 | F154: 0 | G154: 0 | H154: 0 | I154: 0 | J154: =SUM(J151:J153) -> 0 | K154: =SUM(K151:K153) -> 0 | L154: =SUM(L151:L153) -> 0 | M154: =SUM(M151:M153) -> 0 | N154: =SUM(N151:N153) -> 0
A155: IRR - Equity | N155: =IFERROR(IRR(D154:N154),0) -> 0
A156: NPV - Equity | N156: =NPV(L7,D154:N154) -> 0
A158: IRR - Public Participation | D158: Year 0 | E158: Year 1 | F158: Year 2 | G158: Year 3 | H158: Year 4 | I158: Year 5 | J158: Year 6 | K158: Year 7 | L158: Year 8 | M158: Year 9 | N158: Year 10
A159: Original Investment (Equity) | D159: =-(E107+(E92*E110)) -> 0
A160: Mezzanine Financing | E160: =-$E$95 -> 0 | F160: 0 | G160: 0 | H160: 0 | I160: 0 | J160: 0 | K160: 0 | L160: 0 | M160: 0 | N160: 0
A161: Cash Throw Off | E161: =$E$108 -> 0 | F161: 0 | G161: 0 | H161: 0 | I161: 0 | J161: 0 | K161: 0 | L161: 0 | M161: 0 | N161: 0
A162: Sale Proceeds | N162: =N153*E109 -> 0
A163: Loan Balance | N163: =V183*E110 -> 0
A164: Total | D164: =SUM(D159:D163) -> 0 | E164: =SUM(E159:E163) -> 0 | F164: 0 | G164: 0 | H164: 0 | I164: 0 | J164: 0 | K164: 0 | L164: 0 | M164: 0 | N164: 0
A165: IRR - Equity | N165: =IFERROR(IRR(D164:N164),0) -> 0
A166: NPV - Equity | N166: =NPV(E111,D164:N164) -> 0
A170: DEBT SERVICE MORTIZATION TABLES
A171: Primary Debt Amortization | F171: Low Interest Loan | K171: Total Debt Amortization | P171: Annual Debt Service Summary - Primary Debt | U171: Annual Debt Service Summary - Secondary Debt | Z171: Annual Debt Service Summary - Total Debt
A173: Period | B173: Balance | C173: Payment | D173: Interest | E173: Principal | F173: Period | G173: Balance | H173: Payment | I173: Interest | J173: Principal | K173: Period | L173: Balance | M173: Payment | N173: Interest | O173: Principal | P173: Year | Q173: Balance | R173: Payment | S173: Interest | T173: Principal | U173: Year | V173: Balance | W173: Payment | X173: Interest | Y173: Principal | Z173: Year | AA173: Balance | AB173: Payment | AC173: Interest | AD173: Principal
A174: 0 | B174: ='Residential Rental'!E86 -> 0 | F174: 0 | G174: ='Residential Rental'!E92 -> 0 | K174: 0 | L174: =B174+G174 -> 0 | P174: 1 | Q174: =B186 -> 0 | R174: =SUM(C175:C186) -> 0 | S174: =SUM(D175:D186) -> 0 | T174: =SUM(E175:E186) -> 0 | U174: 1 | V174: =G186 -> 0 | W174: =SUM(H175:H186) -> 0 | X174: =SUM(I175:I186) -> 0 | Y174: =SUM(J175:J186) -> 0 | Z174: 1 | AA174: =Q174+V174 -> 0 | AB174: =R174+W174 -> 0 | AC174: =S174+X174 -> 0 | AD174: =T174+Y174 -> 0
A175: 1 | B175: =B174-E175 -> 0 | C175: =-'Residential Rental'!$E$89/12 -> 0 | D175: ='Residential Rental'!$E$87/12*B174 -> 0 | E175: =C175-D175 -> 0 | F175: 1 | G175: =G174-J175 -> 0 | H175: =-'Residential Rental'!$E$95/12 -> 0 | I175: ='Residential Rental'!$E$93/12*G174 -> 0 | J175: =H175-I175 -> 0 | K175: 1 | L175: =G175+B175 -> 0 | M175: 0 | N175: 0 | O175: 0 | P175: 2 | Q175: =B198 -> 0 | R175: =SUM(C187:C198) -> 0 | S175: =SUM(D187:D198) -> 0 | T175: =SUM(E187:E198) -> 0 | U175: 2 | V175: =G198 -> 0 | W175: =SUM(H187:H198) -> 0 | X175: =SUM(I187:I198) -> 0 | Y175: =SUM(J187:J198) -> 0 | Z175: 2 | AA175: =Q175+V175 -> 0 | AB175: =R175+W175 -> 0 | AC175: =S175+X175 -> 0 | AD175: =T175+Y175 -> 0
A176: =A175+1 -> 2 | B176: 0 | C176: =-'Residential Rental'!$E$89/12 -> 0 | D176: ='Residential Rental'!$E$87/12*B175 -> 0 | E176: 0 | F176: =F175+1 -> 2 | G176: 0 | H176: =-'Residential Rental'!$E$95/12 -> 0 | I176: ='Residential Rental'!$E$93/12*G175 -> 0 | J176: 0 | K176: =K175+1 -> 2 | L176: 0 | M176: 0 | N176: 0 | O176: 0 | P176: 3 | Q176: =B210 -> 0 | R176: =SUM(C199:C210) -> 0 | S176: =SUM(D199:D210) -> 0 | T176: =SUM(E199:E210) -> 0 | U176: 3 | V176: =G210 -> 0 | W176: =SUM(H199:H210) -> 0 | X176: =SUM(I199:I210) -> 0 | Y176: =SUM(J199:J210) -> 0 | Z176: 3 | AA176: 0 | AB176: 0 | AC176: 0 | AD176: 0
A177: 3 | B177: 0 | C177: =-'Residential Rental'!$E$89/12 -> 0 | D177: ='Residential Rental'!$E$87/12*B176 -> 0 | E177: 0 | F177: 3 | G177: 0 | H177: =-'Residential Rental'!$E$95/12 -> 0 | I177: ='Residential Rental'!$E$93/12*G176 -> 0 | J177: 0 | K177: 3 | L177: 0 | M177: 0 | N177: 0 | O177: 0 | P177: 4 | Q177: =B222 -> 0 | R177: =SUM(C211:C222) -> 0 | S177: =SUM(D211:D222) -> 0 | T177: =SUM(E211:E222) -> 0 | U177: 4 | V177: =G222 -> 0 | W177: =SUM(H211:H222) -> 0 | X177: =SUM(I211:I222) -> 0 | Y177: =SUM(J211:J222) -> 0 | Z177: 4 | AA177: 0 | AB177: 0 | AC177: 0 | AD177: 0
A178: 4 | B178: 0 | C178: =-'Residential Rental'!$E$89/12 -> 0 | D178: ='Residential Rental'!$E$87/12*B177 -> 0 | E178: 0 | F178: 4 | G178: 0 | H178: =-'Residential Rental'!$E$95/12 -> 0 | I178: ='Residential Rental'!$E$93/12*G177 -> 0 | J178: 0 | K178: 4 | L178: 0 | M178: 0 | N178: 0 | O178: 0 | P178: 5 | Q178: =B234 -> 0 | R178: =SUM(C223:C234) -> 0 | S178: =SUM(D223:D234) -> 0 | T178: =SUM(E223:E234) -> 0 | U178: 5 | V178: =G234 -> 0 | W178: =SUM(H223:H234) -> 0 | X178: =SUM(I223:I234) -> 0 | Y178: =SUM(J223:J234) -> 0 | Z178: 5 | AA178: 0 | AB178: 0 | AC178: 0 | AD178: 0
A179: 5 | B179: 0 | C179: =-'Residential Rental'!$E$89/12 -> 0 | D179: ='Residential Rental'!$E$87/12*B178 -> 0 | E179: 0 | F179: 5 | G179: 0 | H179: =-'Residential Rental'!$E$95/12 -> 0 | I179: ='Residential Rental'!$E$93/12*G178 -> 0 | J179: 0 | K179: 5 | L179: 0 | M179: 0 | N179: 0 | O179: 0 | P179: 6 | Q179: =B246 -> 0 | R179: =SUM(C235:C246) -> 0 | S179: =SUM(D235:D246) -> 0 | T179: =SUM(E235:E246) -> 0 | U179: 6 | V179: =G246 -> 0 | W179: =SUM(H235:H246) -> 0 | X179: =SUM(I235:I246) -> 0 | Y179: =SUM(J235:J246) -> 0 | Z179: 6 | AA179: 0 | AB179: 0 | AC179: 0 | AD179: 0
A180: 6 | B180: 0 | C180: =-'Residential Rental'!$E$89/12 -> 0 | D180: ='Residential Rental'!$E$87/12*B179 -> 0 | E180: 0 | F180: 6 | G180: 0 | H180: =-'Residential Rental'!$E$95/12 -> 0 | I180: ='Residential Rental'!$E$93/12*G179 -> 0 | J180: 0 | K180: 6 | L180: 0 | M180: 0 | N180: 0 | O180: 0 | P180: 7 | Q180: =B258 -> 0 | R180: =SUM(C247:C258) -> 0 | S180: =SUM(D247:D258) -> 0 | T180: =SUM(E247:E258) -> 0 | U180: 7 | V180: =G258 -> 0 | W180: =SUM(H247:H258) -> 0 | X180: =SUM(I247:I258) -> 0 | Y180: =SUM(J247:J258) -> 0 | Z180: 7 | AA180: 0 | AB180: 0 | AC180: 0 | AD180: 0
A181: 7 | B181: 0 | C181: =-'Residential Rental'!$E$89/12 -> 0 | D181: ='Residential Rental'!$E$87/12*B180 -> 0 | E181: 0 | F181: 7 | G181: 0 | H181: =-'Residential Rental'!$E$95/12 -> 0 | I181: ='Residential Rental'!$E$93/12*G180 -> 0 | J181: 0 | K181: 7 | L181: 0 | M181: 0 | N181: 0 | O181: 0 | P181: 8 | Q181: =B270 -> 0 | R181: =SUM(C259:C270) -> 0 | S181: =SUM(D259:D270) -> 0 | T181: =SUM(E259:E270) -> 0 | U181: 8 | V181: =G270 -> 0 | W181: =SUM(H259:H270) -> 0 | X181: =SUM(I259:I270) -> 0 | Y181: =SUM(J259:J270) -> 0 | Z181: 8 | AA181: 0 | AB181: 0 | AC181: 0 | AD181: 0
A182: 8 | B182: 0 | C182: =-'Residential Rental'!$E$89/12 -> 0 | D182: ='Residential Rental'!$E$87/12*B181 -> 0 | E182: 0 | F182: 8 | G182: 0 | H182: =-'Residential Rental'!$E$95/12 -> 0 | I182: ='Residential Rental'!$E$93/12*G181 -> 0 | J182: 0 | K182: 8 | L182: 0 | M182: 0 | N182: 0 | O182: 0 | P182: 9 | Q182: =B282 -> 0 | R182: =SUM(C271:C282) -> 0 | S182: =SUM(D271:D282) -> 0 | T182: =SUM(E271:E282) -> 0 | U182: 9 | V182: =G282 -> 0 | W182: =SUM(H271:H282) -> 0 | X182: =SUM(I271:I282) -> 0 | Y182: =SUM(J271:J282) -> 0 | Z182: 9 | AA182: 0 | AB182: 0 | AC182: 0 | AD182: 0
A183: 9 | B183: 0 | C183: =-'Residential Rental'!$E$89/12 -> 0 | D183: ='Residential Rental'!$E$87/12*B182 -> 0 | E183: 0 | F183: 9 | G183: 0 | H183: =-'Residential Rental'!$E$95/12 -> 0 | I183: ='Residential Rental'!$E$93/12*G182 -> 0 | J183: 0 | K183: 9 | L183: 0 | M183: 0 | N183: 0 | O183: 0 | P183: 10 | Q183: =B294 -> 0 | R183: =SUM(C283:C294) -> 0 | S183: =SUM(D283:D294) -> 0 | T183: =SUM(E283:E294) -> 0 | U183: 10 | V183: =G294 -> 0 | W183: =SUM(H283:H294) -> 0 | X183: =SUM(I283:I294) -> 0 | Y183: =SUM(J283:J294) -> 0 | Z183: 10 | AA183: =Q183+V183 -> 0 | AB183: 0 | AC183: 0 | AD183: =T183+Y183 -> 0
A184: 10 | B184: 0 | C184: =-'Residential Rental'!$E$89/12 -> 0 | D184: ='Residential Rental'!$E$87/12*B183 -> 0 | E184: 0 | F184: 10 | G184: 0 | H184: =-'Residential Rental'!$E$95/12 -> 0 | I184: ='Residential Rental'!$E$93/12*G183 -> 0 | J184: 0 | K184: 10 | L184: 0 | M184: 0 | N184: 0 | O184: 0
A185: 11 | B185: 0 | C185: =-'Residential Rental'!$E$89/12 -> 0 | D185: ='Residential Rental'!$E$87/12*B184 -> 0 | E185: 0 | F185: 11 | G185: 0 | H185: =-'Residential Rental'!$E$95/12 -> 0 | I185: ='Residential Rental'!$E$93/12*G184 -> 0 | J185: 0 | K185: 11 | L185: 0 | M185: 0 | N185: 0 | O185: 0
A186: 12 | B186: 0 | C186: =-'Residential Rental'!$E$89/12 -> 0 | D186: ='Residential Rental'!$E$87/12*B185 -> 0 | E186: 0 | F186: 12 | G186: 0 | H186: =-'Residential Rental'!$E$95/12 -> 0 | I186: ='Residential Rental'!$E$93/12*G185 -> 0 | J186: 0 | K186: 12 | L186: 0 | M186: 0 | N186: 0 | O186: 0
A187: 13 | B187: 0 | C187: =-'Residential Rental'!$E$89/12 -> 0 | D187: ='Residential Rental'!$E$87/12*B186 -> 0 | E187: 0 | F187: 13 | G187: 0 | H187: =-'Residential Rental'!$E$95/12 -> 0 | I187: ='Residential Rental'!$E$93/12*G186 -> 0 | J187: 0 | K187: 13 | L187: 0 | M187: 0 | N187: 0 | O187: 0
A188: 14 | B188: 0 | C188: =-'Residential Rental'!$E$89/12 -> 0 | D188: ='Residential Rental'!$E$87/12*B187 -> 0 | E188: 0 | F188: 14 | G188: 0 | H188: =-'Residential Rental'!$E$95/12 -> 0 | I188: ='Residential Rental'!$E$93/12*G187 -> 0 | J188: 0 | K188: 14 | L188: 0 | M188: 0 | N188: 0 | O188: 0
A189: 15 | B189: 0 | C189: =-'Residential Rental'!$E$89/12 -> 0 | D189: ='Residential Rental'!$E$87/12*B188 -> 0 | E189: 0 | F189: 15 | G189: 0 | H189: =-'Residential Rental'!$E$95/12 -> 0 | I189: ='Residential Rental'!$E$93/12*G188 -> 0 | J189: 0 | K189: 15 | L189: 0 | M189: 0 | N189: 0 | O189: 0
A190: 16 | B190: 0 | C190: =-'Residential Rental'!$E$89/12 -> 0 | D190: ='Residential Rental'!$E$87/12*B189 -> 0 | E190: 0 | F190: 16 | G190: 0 | H190: =-'Residential Rental'!$E$95/12 -> 0 | I190: ='Residential Rental'!$E$93/12*G189 -> 0 | J190: 0 | K190: 16 | L190: 0 | M190: 0 | N190: 0 | O190: 0
A191: 17 | B191: 0 | C191: =-'Residential Rental'!$E$89/12 -> 0 | D191: ='Residential Rental'!$E$87/12*B190 -> 0 | E191: 0 | F191: 17 | G191: 0 | H191: =-'Residential Rental'!$E$95/12 -> 0 | I191: ='Residential Rental'!$E$93/12*G190 -> 0 | J191: 0 | K191: 17 | L191: 0 | M191: 0 | N191: 0 | O191: 0
A192: 18 | B192: 0 | C192: =-'Residential Rental'!$E$89/12 -> 0 | D192: ='Residential Rental'!$E$87/12*B191 -> 0 | E192: 0 | F192: 18 | G192: 0 | H192: =-'Residential Rental'!$E$95/12 -> 0 | I192: ='Residential Rental'!$E$93/12*G191 -> 0 | J192: 0 | K192: 18 | L192: 0 | M192: 0 | N192: 0 | O192: 0
A193: 19 | B193: 0 | C193: =-'Residential Rental'!$E$89/12 -> 0 | D193: ='Residential Rental'!$E$87/12*B192 -> 0 | E193: 0 | F193: 19 | G193: 0 | H193: =-'Residential Rental'!$E$95/12 -> 0 | I193: ='Residential Rental'!$E$93/12*G192 -> 0 | J193: 0 | K193: 19 | L193: 0 | M193: 0 | N193: 0 | O193: 0
A194: 20 | B194: 0 | C194: =-'Residential Rental'!$E$89/12 -> 0 | D194: ='Residential Rental'!$E$87/12*B193 -> 0 | E194: 0 | F194: 20 | G194: 0 | H194: =-'Residential Rental'!$E$95/12 -> 0 | I194: ='Residential Rental'!$E$93/12*G193 -> 0 | J194: 0 | K194: 20 | L194: 0 | M194: 0 | N194: 0 | O194: 0
A195: 21 | B195: 0 | C195: =-'Residential Rental'!$E$89/12 -> 0 | D195: ='Residential Rental'!$E$87/12*B194 -> 0 | E195: 0 | F195: 21 | G195: 0 | H195: =-'Residential Rental'!$E$95/12 -> 0 | I195: ='Residential Rental'!$E$93/12*G194 -> 0 | J195: 0 | K195: 21 | L195: 0 | M195: 0 | N195: 0 | O195: 0
A196: 22 | B196: 0 | C196: =-'Residential Rental'!$E$89/12 -> 0 | D196: ='Residential Rental'!$E$87/12*B195 -> 0 | E196: 0 | F196: 22 | G196: 0 | H196: =-'Residential Rental'!$E$95/12 -> 0 | I196: ='Residential Rental'!$E$93/12*G195 -> 0 | J196: 0 | K196: 22 | L196: 0 | M196: 0 | N196: 0 | O196: 0
A197: 23 | B197: 0 | C197: =-'Residential Rental'!$E$89/12 -> 0 | D197: ='Residential Rental'!$E$87/12*B196 -> 0 | E197: 0 | F197: 23 | G197: 0 | H197: =-'Residential Rental'!$E$95/12 -> 0 | I197: ='Residential Rental'!$E$93/12*G196 -> 0 | J197: 0 | K197: 23 | L197: 0 | M197: 0 | N197: 0 | O197: 0
A198: 24 | B198: 0 | C198: =-'Residential Rental'!$E$89/12 -> 0 | D198: ='Residential Rental'!$E$87/12*B197 -> 0 | E198: 0 | F198: 24 | G198: 0 | H198: =-'Residential Rental'!$E$95/12 -> 0 | I198: ='Residential Rental'!$E$93/12*G197 -> 0 | J198: 0 | K198: 24 | L198: 0 | M198: 0 | N198: 0 | O198: 0
A199: 25 | B199: 0 | C199: =-'Residential Rental'!$E$89/12 -> 0 | D199: ='Residential Rental'!$E$87/12*B198 -> 0 | E199: 0 | F199: 25 | G199: 0 | H199: =-'Residential Rental'!$E$95/12 -> 0 | I199: ='Residential Rental'!$E$93/12*G198 -> 0 | J199: 0 | K199: 25 | L199: 0 | M199: 0 | N199: 0 | O199: 0
A200: 26 | B200: 0 | C200: =-'Residential Rental'!$E$89/12 -> 0 | D200: ='Residential Rental'!$E$87/12*B199 -> 0 | E200: 0 | F200: 26 | G200: 0 | H200: =-'Residential Rental'!$E$95/12 -> 0 | I200: ='Residential Rental'!$E$93/12*G199 -> 0 | J200: 0 | K200: 26 | L200: 0 | M200: 0 | N200: 0 | O200: 0
A201: 27 | B201: 0 | C201: =-'Residential Rental'!$E$89/12 -> 0 | D201: ='Residential Rental'!$E$87/12*B200 -> 0 | E201: 0 | F201: 27 | G201: 0 | H201: =-'Residential Rental'!$E$95/12 -> 0 | I201: ='Residential Rental'!$E$93/12*G200 -> 0 | J201: 0 | K201: 27 | L201: 0 | M201: 0 | N201: 0 | O201: 0
A202: 28 | B202: 0 | C202: =-'Residential Rental'!$E$89/12 -> 0 | D202: ='Residential Rental'!$E$87/12*B201 -> 0 | E202: 0 | F202: 28 | G202: 0 | H202: =-'Residential Rental'!$E$95/12 -> 0 | I202: ='Residential Rental'!$E$93/12*G201 -> 0 | J202: 0 | K202: 28 | L202: 0 | M202: 0 | N202: 0 | O202: 0
A203: 29 | B203: 0 | C203: =-'Residential Rental'!$E$89/12 -> 0 | D203: ='Residential Rental'!$E$87/12*B202 -> 0 | E203: 0 | F203: 29 | G203: 0 | H203: =-'Residential Rental'!$E$95/12 -> 0 | I203: ='Residential Rental'!$E$93/12*G202 -> 0 | J203: 0 | K203: 29 | L203: 0 | M203: 0 | N203: 0 | O203: 0
A204: 30 | B204: 0 | C204: =-'Residential Rental'!$E$89/12 -> 0 | D204: ='Residential Rental'!$E$87/12*B203 -> 0 | E204: 0 | F204: 30 | G204: 0 | H204: =-'Residential Rental'!$E$95/12 -> 0 | I204: ='Residential Rental'!$E$93/12*G203 -> 0 | J204: 0 | K204: 30 | L204: 0 | M204: 0 | N204: 0 | O204: 0
A205: 31 | B205: 0 | C205: =-'Residential Rental'!$E$89/12 -> 0 | D205: ='Residential Rental'!$E$87/12*B204 -> 0 | E205: 0 | F205: 31 | G205: 0 | H205: =-'Residential Rental'!$E$95/12 -> 0 | I205: ='Residential Rental'!$E$93/12*G204 -> 0 | J205: 0 | K205: 31 | L205: 0 | M205: 0 | N205: 0 | O205: 0
A206: 32 | B206: 0 | C206: =-'Residential Rental'!$E$89/12 -> 0 | D206: ='Residential Rental'!$E$87/12*B205 -> 0 | E206: 0 | F206: 32 | G206: 0 | H206: =-'Residential Rental'!$E$95/12 -> 0 | I206: ='Residential Rental'!$E$93/12*G205 -> 0 | J206: 0 | K206: 32 | L206: 0 | M206: 0 | N206: 0 | O206: 0
A207: 33 | B207: 0 | C207: =-'Residential Rental'!$E$89/12 -> 0 | D207: ='Residential Rental'!$E$87/12*B206 -> 0 | E207: 0 | F207: 33 | G207: 0 | H207: =-'Residential Rental'!$E$95/12 -> 0 | I207: ='Residential Rental'!$E$93/12*G206 -> 0 | J207: 0 | K207: 33 | L207: 0 | M207: 0 | N207: 0 | O207: 0
A208: 34 | B208: 0 | C208: =-'Residential Rental'!$E$89/12 -> 0 | D208: ='Residential Rental'!$E$87/12*B207 -> 0 | E208: 0 | F208: 34 | G208: 0 | H208: =-'Residential Rental'!$E$95/12 -> 0 | I208: ='Residential Rental'!$E$93/12*G207 -> 0 | J208: 0 | K208: 34 | L208: 0 | M208: 0 | N208: 0 | O208: 0
A209: 35 | B209: 0 | C209: =-'Residential Rental'!$E$89/12 -> 0 | D209: ='Residential Rental'!$E$87/12*B208 -> 0 | E209: 0 | F209: 35 | G209: 0 | H209: =-'Residential Rental'!$E$95/12 -> 0 | I209: ='Residential Rental'!$E$93/12*G208 -> 0 | J209: 0 | K209: 35 | L209: 0 | M209: 0 | N209: 0 | O209: 0
A210: 36 | B210: 0 | C210: =-'Residential Rental'!$E$89/12 -> 0 | D210: ='Residential Rental'!$E$87/12*B209 -> 0 | E210: 0 | F210: 36 | G210: 0 | H210: =-'Residential Rental'!$E$95/12 -> 0 | I210: ='Residential Rental'!$E$93/12*G209 -> 0 | J210: 0 | K210: 36 | L210: 0 | M210: 0 | N210: 0 | O210: 0
A211: 37 | B211: 0 | C211: =-'Residential Rental'!$E$89/12 -> 0 | D211: ='Residential Rental'!$E$87/12*B210 -> 0 | E211: 0 | F211: 37 | G211: 0 | H211: =-'Residential Rental'!$E$95/12 -> 0 | I211: ='Residential Rental'!$E$93/12*G210 -> 0 | J211: 0 | K211: 37 | L211: 0 | M211: 0 | N211: 0 | O211: 0
A212: 38 | B212: 0 | C212: =-'Residential Rental'!$E$89/12 -> 0 | D212: ='Residential Rental'!$E$87/12*B211 -> 0 | E212: 0 | F212: 38 | G212: 0 | H212: =-'Residential Rental'!$E$95/12 -> 0 | I212: ='Residential Rental'!$E$93/12*G211 -> 0 | J212: 0 | K212: 38 | L212: 0 | M212: 0 | N212: 0 | O212: 0
A213: 39 | B213: 0 | C213: =-'Residential Rental'!$E$89/12 -> 0 | D213: ='Residential Rental'!$E$87/12*B212 -> 0 | E213: 0 | F213: 39 | G213: 0 | H213: =-'Residential Rental'!$E$95/12 -> 0 | I213: ='Residential Rental'!$E$93/12*G212 -> 0 | J213: 0 | K213: 39 | L213: 0 | M213: 0 | N213: 0 | O213: 0
A214: 40 | B214: 0 | C214: =-'Residential Rental'!$E$89/12 -> 0 | D214: ='Residential Rental'!$E$87/12*B213 -> 0 | E214: 0 | F214: 40 | G214: 0 | H214: =-'Residential Rental'!$E$95/12 -> 0 | I214: ='Residential Rental'!$E$93/12*G213 -> 0 | J214: 0 | K214: 40 | L214: 0 | M214: 0 | N214: 0 | O214: 0
A215: 41 | B215: 0 | C215: =-'Residential Rental'!$E$89/12 -> 0 | D215: ='Residential Rental'!$E$87/12*B214 -> 0 | E215: 0 | F215: 41 | G215: 0 | H215: =-'Residential Rental'!$E$95/12 -> 0 | I215: ='Residential Rental'!$E$93/12*G214 -> 0 | J215: 0 | K215: 41 | L215: 0 | M215: 0 | N215: 0 | O215: 0
A216: 42 | B216: 0 | C216: =-'Residential Rental'!$E$89/12 -> 0 | D216: ='Residential Rental'!$E$87/12*B215 -> 0 | E216: 0 | F216: 42 | G216: 0 | H216: =-'Residential Rental'!$E$95/12 -> 0 | I216: ='Residential Rental'!$E$93/12*G215 -> 0 | J216: 0 | K216: 42 | L216: 0 | M216: 0 | N216: 0 | O216: 0
A217: 43 | B217: 0 | C217: =-'Residential Rental'!$E$89/12 -> 0 | D217: ='Residential Rental'!$E$87/12*B216 -> 0 | E217: 0 | F217: 43 | G217: 0 | H217: =-'Residential Rental'!$E$95/12 -> 0 | I217: ='Residential Rental'!$E$93/12*G216 -> 0 | J217: 0 | K217: 43 | L217: 0 | M217: 0 | N217: 0 | O217: 0
A218: 44 | B218: 0 | C218: =-'Residential Rental'!$E$89/12 -> 0 | D218: ='Residential Rental'!$E$87/12*B217 -> 0 | E218: 0 | F218: 44 | G218: 0 | H218: =-'Residential Rental'!$E$95/12 -> 0 | I218: ='Residential Rental'!$E$93/12*G217 -> 0 | J218: 0 | K218: 44 | L218: 0 | M218: 0 | N218: 0 | O218: 0
A219: 45 | B219: 0 | C219: =-'Residential Rental'!$E$89/12 -> 0 | D219: ='Residential Rental'!$E$87/12*B218 -> 0 | E219: 0 | F219: 45 | G219: 0 | H219: =-'Residential Rental'!$E$95/12 -> 0 | I219: ='Residential Rental'!$E$93/12*G218 -> 0 | J219: 0 | K219: 45 | L219: 0 | M219: 0 | N219: 0 | O219: 0
A220: 46 | B220: 0 | C220: =-'Residential Rental'!$E$89/12 -> 0 | D220: ='Residential Rental'!$E$87/12*B219 -> 0 | E220: 0 | F220: 46 | G220: 0 | H220: =-'Residential Rental'!$E$95/12 -> 0 | I220: ='Residential Rental'!$E$93/12*G219 -> 0 | J220: 0 | K220: 46 | L220: 0 | M220: 0 | N220: 0 | O220: 0
A221: 47 | B221: 0 | C221: =-'Residential Rental'!$E$89/12 -> 0 | D221: ='Residential Rental'!$E$87/12*B220 -> 0 | E221: 0 | F221: 47 | G221: 0 | H221: =-'Residential Rental'!$E$95/12 -> 0 | I221: ='Residential Rental'!$E$93/12*G220 -> 0 | J221: 0 | K221: 47 | L221: 0 | M221: 0 | N221: 0 | O221: 0
